Workbook

Sheet Personalize (hidden)
D1: FORM RESULTS | F1: 0 | G1: MockDraftCentral | H1: ESPN (T. Cockcroft) | I1: Cairo | J1: Teams | K1: Starters | L1: More Starters | N1: ADP | R1: Cairo | S1: 10 | T1: 0 | U1: ANA | V1: TRUE
D2: AB | E2: 0 | F2: 1 | G2: CBS Sportsline | H2: Hardball Times | I2: Steamer | J2: 6 | K2: 0 | L2: 0 | M2: ADP | R2: Steamer | S2: 45 | T2: 66 | U2: ARI | V2: TRUE
B3: Team 1 | D3: Single | E3: 1 | F3: 2 | G3: Yahoo | H3: David Gonos | I3: Steamer (w/ Fangraphs PT) | J3: 7 | K3: 1 | L3: 1 | M3: Proj. Points | R3: Fangraphs | S3: 20 | T3: 12 | U3: ATL | V3: TRUE
B4: Team 2 | D4: Double | E4: 2 | F4: 3 | G4: ESPN | H4: CBS (N. Di Fino) | I4: Fangraphs | J4: 8 | K4: 2 | L4: 2 | M4: Exp. Rank | R4: ZiPS | S4: 25 | T4: 0 | U4: BAL | V4: TRUE
B5: Team 3 | D5: Triple | E5: 3 | F5: 4 | G5: Avg of 4 Sites | H5: CBS (A. Melchior) | I5: ZiPS | J5: 9 | K5: 3 | L5: 3 | M5: PAPA Rank | R5: Oliver | S5: 0 | T5: 0 | U5: BOS | V5: TRUE
B6: Team 4 | D6: HR | E6: 4 | F6: 5 | G6: Fantasy Gameday | H6: CBS (S.White) | I6: Oliver | J6: 10 | L6: 4 | M6: By Position | R6: Marcel | S6: 0 | T6: 22 | U6: CHC | V6: TRUE
B7: Team 5 | D7: BB | E7: 1 | F7: 6 | H7: Mr. Cheatsheet [Roto] | I7: Marcel | J7: 11 | L7: 5 | M7: AVG | S7: 0 | T7: 0 | U7: CHW | V7: TRUE
B8: Team 6 | D8: SB | E8: 1 | F8: 7 | H8: FantasyPros Avg | I8: MORPS | J8: 12 | L8: 6 | M8: HR | R8: MORPS | S8: 0 | T8: 0 | U8: CIN | V8: TRUE
B9: Team 7 | D9: CS | E9: -1 | F9: 8 | I9: Clay Davenport | J9: 13 | L9: 7 | M9: Runs | R9: Clay Davenport | S9: 0 | T9: 0 | U9: CLE | V9: TRUE
B10: Team 8 | D10: K | E10: -1 | F10: 9 | I10: Custom (optons below) | J10: 14 | L10: 8 | M10: RBI | R10: Steamer (w/ Fangraphs PT) | S10: 0 | T10: 0 | U10: COL | V10: TRUE
B11: Team 9 | D11: R | E11: 1 | F11: 10 | I11: Mr. C's Special Blend | J11: 15 | L11: 9 | M11: SB | U11: DET | V11: TRUE
B12: Team 10 | D12: RBI | E12: 1 | F12: 11 | J12: 16 | M12: ERA | U12: HOU | V12: TRUE
B13: Team 11 | D13: W | E13: 4 | F13: 12 | J13: 17 | M13: WHIP | U13: KC | V13: TRUE
B14: Team 12 | D14: L | E14: -2 | F14: 13 | J14: 18 | M14: K's | U14: LA | V14: TRUE
B15: Team 13 | D15: IP | E15: 1 | F15: 14 | J15: 19 | M15: Wins | U15: MIA | V15: TRUE
A16: =IF((Personalize!$E$18+1)<14,"","Team 14") ->  | B16: Team 14 | D16: Hit Allowed | E16: -1 | F16: 15 | J16: 20 | M16: Saves | U16: MIL | V16: TRUE
A17: =IF((Personalize!$E$18+1)<15,"","Team 15") ->  | B17: Team 15 | D17: BB | E17: -1 | F17: 16 | J17: 21 | U17: MIN | V17: TRUE
A18: =IF((Personalize!$E$18+1)<16,"","Team 16") ->  | B18: Team 16 | D18: K | E18: 2.5 | F18: 17 | J18: 22 | U18: NYM | V18: TRUE
B19: Team 18 | D19: ER | E19: -1 | F19: 18 | J19: 23 | U19: NYY | V19: TRUE
B20: Team 17 | D20: S | E20: 10 | F20: 19 | J20: 24 | U20: OAK | V20: TRUE
B21: Team 19 | D21: QS | E21: 0 | F21: 20 | U21: PHI | V21: TRUE
B22: Team 20 | D22: # of Teams | E22: 12 | F22: 21 | U22: PIT | V22: TRUE
B23: Team 21 | D23: C | E23: 1 | F23: 22 | U23: SD | V23: TRUE
B24: Team 22 | D24: 1B | E24: 1 | F24: 23 | U24: SEA | V24: TRUE
B25: Team 23 | D25: 2B | E25: 1 | F25: 24 | U25: SF | V25: TRUE
B26: Team 24 | D26: 3B | E26: 1 | U26: STL | V26: TRUE
D27: SS | E27: 1 | U27: TB | V27: TRUE
B28: TRUE | D28: CI | E28: 0 | U28: TEX | V28: TRUE
B29: TRUE | D29: MI | E29: 0 | U29: TOR | V29: TRUE
B30: FALSE | D30: OF | E30: 3 | U30: WAS | V30: TRUE
D31: LF | E31: 0 | U31: All Players
D32: CF | E32: 0 | U32: NL-Only
D33: RF | E33: 0 | U33: AL-Only
D34: DH | E34: 1 | U34: Custom
D35: SP | E35: 4
D36: RP | E36: 1
D37: P | E37: 1
D38: ADP Site: | E38: =IF(F38=G1,1,IF(F38=G2,2,IF(F38=G3,3,IF(F38=G4,4,IF(F38=G5,5,IF(F38=G6,6,0)))))) -> 2 | F38: CBS Sportsline
D39: Rankings: | E39: =IF(F39=H1,1,IF(F39=H2,2,IF(F39=H3,3,IF(F39=H4,4,IF(F39=H5,5,IF(F39=H6,6,IF(F39=H7,7,IF(F39=H8,8,0)))))))) -> 6 | F39: CBS (S.White)
D40: Projections: | E40: =IF(F40=I1,1,IF(F40=I2,2,IF(F40=I3,10,IF(F40=I4,3,IF(F40=I5,4,IF(F40=I6,5,IF(F40=I7,6,IF(F40=I9,9,IF(F40=I10,7,IF(F40=I8,8,IF(F40=I11,11,0))))))))))) -> 11 | F40: Mr. C's Special Blend
E41: 1
B42: 5 | D42: CG | E42: 5
B43: 5 | D43: Shutout | E43: 5
B44: 0 | D44: Holds | E44: 0

Sheet Draft Central
B1: ="Current Pick: "&(COUNTA($A$4:$A$743)+1) -> Current Pick: 1 | Y1: Sort:
A2: Drafted By (click box to select team) | B2: Name | C2: Pos | D2: OF Elig | E2: Tm | F2: Age | G2: ADP | H2: ADP Rd | I2: Expert Rank | J2: PAPA Rank | K2: Projected Points | L2: Pos Avg | M2: Points Above Pos Avg | N2: Pts Per PA/IP | O2: W | P2: S | Q2: K | R2: ERA | S2: WHIP | T2: AVG | U2: HR | V2: RBI | W2: R | X2: SB | Y2: Odds Curr Avail | Z2: In One Round | AA2: In Two Rounds | AB2: Your Player Notes: | AC2: Early | AD2: Late | AE2: Drafted
B4: Miguel Cabrera | C4: =IFERROR(IF(VLOOKUP(B4,'ADP-Rank'!$A$2:$B$700,2,FALSE)="OF",VLOOKUP(B4,'Starter Calc'!$B$2:$AM$700,38,FALSE),(VLOOKUP(B4,'ADP-Rank'!$A$2:$B$700,2,FALSE))),"") -> 3B | D4: =IFERROR(IF(VLOOKUP(B4,'Starter Calc'!$B$2:$E$700,4,FALSE)="","",VLOOKUP(B4,'Starter Calc'!$B$2:$E$700,4,FALSE)),"") ->  | E4: =IFERROR(VLOOKUP($B4,'ADP-Rank'!$A$2:$D$700,3,FALSE),"") -> DET | F4: =IFERROR(VLOOKUP($B4,'ADP-Rank'!$A$2:$W$700,23,FALSE),"") -> 30 | G4: =IFERROR((IF(Personalize!$E$38=1,VLOOKUP($B4,'ADP-Rank'!$A$2:$J$700,4,FALSE),(IF(Personalize!$E$38=2,VLOOKUP($B4,'ADP-Rank'!$A$2:$J$700,7,FALSE),(IF(Personalize!$E$38=3,VLOOKUP($B4,'ADP-Rank'!$A$2:$J$700,10,FALSE),(IF(Personalize!$E$38=4,VLOOKUP($B4,'ADP-Rank'!$A$2:$AD$700,24,FALSE),(IF(Personalize!$E$38=5,VLOOKUP($B4,'ADP-Rank'!$A$2:$AD$700,27,FALSE),VLOOKUP($B4,'ADP-Rank'!$A$2:$AZ$700,30,FALSE))))))))))),"") -> 1.57 | H4: =IFERROR(ROUNDDOWN(VLOOKUP($B4,'ADP-Rank'!$A$2:$AY$1064,38,FALSE),0),"") -> 1 | I4: =VLOOKUP($B4,'ADP-Rank'!$A$2:$AJ$1064,36,FALSE) -> 2 | J4: =IFERROR(RANK($M4,$M$4:$M$743,0),"") -> 2 | K4: =IFERROR(IF((OR($C4="RP",$C4="SP")),VLOOKUP($B4,Pitcher!$A$1:$Z$700,20,FALSE),(VLOOKUP($B4,Hitter!$A$1:$Z$700,26,FALSE))),"") -> 539.8896141 | L4: =IFERROR(IF((OR($C4="RP",$C4="SP")),VLOOKUP($C4,'Filtered-P'!$M$3:$P$4,4,FALSE), VLOOKUP($C4,Filtered!$Q$3:$T$14,4,FALSE)),"") -> 360.1633507 | M4: =IFERROR(K4-L4,"") -> 179.7262634 | N4: =IFERROR(IF((OR($C4="RP",$C4="SP")),VLOOKUP($B4,Pitcher!$A$1:$Z$700,20,FALSE)/VLOOKUP($B4,Pitcher!$A$1:$Z$700,4,FALSE),(VLOOKUP($B4,Hitter!$A$1:$Z$700,26,FALSE)/VLOOKUP($B4,Hitter!$A$1:$Z$700,2,FALSE))),"") -> 0.8138528687 | O4: =IFERROR(IF((OR($C4="RP",$C4="SP")),VLOOKUP($B4,Pitcher!$A$1:$V$700,2,FALSE),""),"") ->  | P4: =IFERROR(IF((OR($C4="RP",$C4="SP")),VLOOKUP($B4,Pitcher!$A$1:$V$700,9,FALSE),""),"") ->  | Q4: =IFERROR(IF((OR($C4="RP",$C4="SP")),VLOOKUP($B4,Pitcher!$A$1:$V$700,7,FALSE),""),"") ->  | R4: =IFERROR(IF((OR($C4="RP",$C4="SP")),VLOOKUP($B4,Pitcher!$A$1:$AB$700,21,FALSE),""),"") ->  | S4: =IFERROR(IF((OR($C4="RP",$C4="SP")),VLOOKUP($B4,Pitcher!$A$1:$V$700,22,FALSE),""),"") ->  | T4: =IFERROR(IF((OR($C4="RP",$C4="SP")),"",VLOOKUP($B4,Hitter!$A$1:$AH$700,27,FALSE)),"") -> 0.3186375386 | U4: =IFERROR(IF((OR($C4="RP",$C4="SP")),"",VLOOKUP($B4,Hitter!$A$1:$AH$700,9,FALSE)),"") -> 35.16235377 | V4: =IFERROR(IF((OR($C4="RP",$C4="SP")),"",VLOOKUP($B4,Hitter!$A$1:$AH$700,10,FALSE)),"") -> 114.650875 | W4: =IFERROR(IF((OR($C4="RP",$C4="SP")),"",VLOOKUP($B4,Hitter!$A$1:$AH$700,4,FALSE)),"") -> 107.7099533 | X4: =IFERROR(IF((OR($C4="RP",$C4="SP")),"",VLOOKUP($B4,Hitter!$A$1:$AH$700,11,FALSE)),"") -> 3.986168654 | Y4: =IFERROR(IF(ISTEXT($A4),"",(1-NORMDIST((COUNTA($A$4:$A$743)),($G4),((AD4-AC4)/6),TRUE))),"") -> 0.9417924444 | Z4: =IFERROR(IF(ISTEXT($A4),"",(1-NORMDIST((COUNTA($A$4:$A$743))+(Personalize!$E$18+1),$G4,((AD4-AC4)/6),TRUE))),"") -> 0.02680341888 | AA4: =IFERROR(IF(ISTEXT($A4),"",(1-NORMDIST((COUNTA($A$4:$A$743))+((Personalize!$E$18+1)*2),$G4,((AD4-AC4)/6),TRUE))),"") -> 2.817702593e-08 | AC4: =IF(Personalize!$E$34=1,VLOOKUP($B4,'ADP-Rank'!$A$2:$J$700,5,FALSE),(IF(Personalize!$E$34=2,VLOOKUP($B4,'ADP-Rank'!$A$2:$J$700,8,FALSE),(IF(Personalize!$E$34=3,VLOOKUP($B4,'ADP-Rank'!$A$2:$O$700,11,FALSE),(IF(Personalize!$E$31=4,VLOOKUP($B4,'ADP-Rank'!$A$2:$AZ$700,25,FALSE),(IF(Personalize!$E$31=5,VLOOKUP($B4,'ADP-Rank'!$A$2:$AZ$700,28,FALSE),(IF(Personalize!$E$31=6,VLOOKUP($B4,'ADP-Rank'!$A$2:$AZ$700,32,FALSE),""))))))))))) -> 1 | AD4: =IF(Personalize!$E$34=1,VLOOKUP($B4,'ADP-Rank'!$A$2:$J$700,6,FALSE),(IF(Personalize!$E$34=2,VLOOKUP($B4,'ADP-Rank'!$A$2:$J$700,9,FALSE),(IF(Personalize!$E$34=3,VLOOKUP($B4,'ADP-Rank'!$A$2:$O$700,12,FALSE),(IF(Personalize!$E$31=4,VLOOKUP($B4,'ADP-Rank'!$A$2:$AZ$700,26,FALSE),(IF(Personalize!$E$31=5,VLOOKUP($B4,'ADP-Rank'!$A$2:$AZ$700,29,FALSE),(IF(Personalize!$E$31=6,VLOOKUP($B4,'ADP-Rank'!$A$2:$AZ$700,33,FALSE),""))))))))))) -> 7 | AE4: =IF(ISBLANK(A4),0,1) -> 0 | AF4: =IF(K4="",0,1) -> 1 | AG4: =A4 -> 0 | AH4: =IF(C4="C",1,IF(C4="1B",2,IF(C4="2B",3,IF(C4="3B",4,IF(C4="SS",5,IF(C4="CI",6,IF(C4="MI",7,IF(C4="OF",11,IF(C4="LF",8,IF(C4="CF",9,IF(C4="RF",10,IF(C4="DH",12,IF(C4="SP",13,IF(C4="RP",14,IF(C4="P",15,16))))))))))))))) -> 4 | AI4: =VLOOKUP(B4,'Starter Calc'!$B$2:$BN$700,65,FALSE) -> Bench | AJ4: =IFERROR(VLOOKUP($B4,'ADP-Rank'!$A$2:$AH$964,34,FALSE),TRUE) -> TRUE
B5: Mike Trout | C5: =IFERROR(IF(VLOOKUP(B5,'ADP-Rank'!$A$2:$B$700,2,FALSE)="OF",VLOOKUP(B5,'Starter Calc'!$B$2:$AM$700,38,FALSE),(VLOOKUP(B5,'ADP-Rank'!$A$2:$B$700,2,FALSE))),"") -> OF | D5: =IFERROR(IF(VLOOKUP(B5,'Starter Calc'!$B$2:$E$700,4,FALSE)="","",VLOOKUP(B5,'Starter Calc'!$B$2:$E$700,4,FALSE)),"") -> CF,LF | E5: =IFERROR(VLOOKUP($B5,'ADP-Rank'!$A$2:$D$700,3,FALSE),"") -> ANA | F5: =IFERROR(VLOOKUP($B5,'ADP-Rank'!$A$2:$W$700,23,FALSE),"") -> 22 | G5: =IFERROR((IF(Personalize!$E$38=1,VLOOKUP($B5,'ADP-Rank'!$A$2:$J$700,4,FALSE),(IF(Personalize!$E$38=2,VLOOKUP($B5,'ADP-Rank'!$A$2:$J$700,7,FALSE),(IF(Personalize!$E$38=3,VLOOKUP($B5,'ADP-Rank'!$A$2:$J$700,10,FALSE),(IF(Personalize!$E$38=4,VLOOKUP($B5,'ADP-Rank'!$A$2:$AD$700,24,FALSE),(IF(Personalize!$E$38=5,VLOOKUP($B5,'ADP-Rank'!$A$2:$AD$700,27,FALSE),VLOOKUP($B5,'ADP-Rank'!$A$2:$AZ$700,30,FALSE))))))))))),"") -> 3.23 | H5: =IFERROR(ROUNDDOWN(VLOOKUP($B5,'ADP-Rank'!$A$2:$AY$1064,38,FALSE),0),"") -> 1 | I5: =VLOOKUP($B5,'ADP-Rank'!$A$2:$AJ$1064,36,FALSE) -> 3 | J5: =IFERROR(RANK($M5,$M$4:$M$743,0),"") -> 10 | K5: =IFERROR(IF((OR($C5="RP",$C5="SP")),VLOOKUP($B5,Pitcher!$A$1:$Z$700,20,FALSE),(VLOOKUP($B5,Hitter!$A$1:$Z$700,26,FALSE))),"") -> 478.2104162 | L5: =IFERROR(IF((OR($C5="RP",$C5="SP")),VLOOKUP($C5,'Filtered-P'!$M$3:$P$4,4,FALSE), VLOOKUP($C5,Filtered!$Q$3:$T$14,4,FALSE)),"") -> 368.4885837 | M5: =IFERROR(K5-L5,"") -> 109.7218325 | N5: =IFERROR(IF((OR($C5="RP",$C5="SP")),VLOOKUP($B5,Pitcher!$A$1:$Z$700,20,FALSE)/VLOOKUP($B5,Pitcher!$A$1:$Z$700,4,FALSE),(VLOOKUP($B5,Hitter!$A$1:$Z$700,26,FALSE)/VLOOKUP($B5,Hitter!$A$1:$Z$700,2,FALSE))),"") -> 0.6897074553 | O5: =IFERROR(IF((OR($C5="RP",$C5="SP")),VLOOKUP($B5,Pitcher!$A$1:$V$700,2,FALSE),""),"") ->  | P5: =IFERROR(IF((OR($C5="RP",$C5="SP")),VLOOKUP($B5,Pitcher!$A$1:$V$700,9,FALSE),""),"") ->  | Q5: =IFERROR(IF((OR($C5="RP",$C5="SP")),VLOOKUP($B5,Pitcher!$A$1:$V$700,7,FALSE),""),"") ->  | R5: =IFERROR(IF((OR($C5="RP",$C5="SP")),VLOOKUP($B5,Pitcher!$A$1:$AB$700,21,FALSE),""),"") ->  | S5: =IFERROR(IF((OR($C5="RP",$C5="SP")),VLOOKUP($B5,Pitcher!$A$1:$V$700,22,FALSE),""),"") ->  | T5: =IFERROR(IF((OR($C5="RP",$C5="SP")),"",VLOOKUP($B5,Hitter!$A$1:$AH$700,27,FALSE)),"") -> 0.2922636492 | U5: =IFERROR(IF((OR($C5="RP",$C5="SP")),"",VLOOKUP($B5,Hitter!$A$1:$AH$700,9,FALSE)),"") -> 26.46510094 | V5: =IFERROR(IF((OR($C5="RP",$C5="SP")),"",VLOOKUP($B5,Hitter!$A$1:$AH$700,10,FALSE)),"") -> 83.10370727 | W5: =IFERROR(IF((OR($C5="RP",$C5="SP")),"",VLOOKUP($B5,Hitter!$A$1:$AH$700,4,FALSE)),"") -> 124.4883257 | X5: =IFERROR(IF((OR($C5="RP",$C5="SP")),"",VLOOKUP($B5,Hitter!$A$1:$AH$700,11,FALSE)),"") -> 45.04061569 | Y5: =IFERROR(IF(ISTEXT($A5),"",(1-NORMDIST((COUNTA($A$4:$A$743)),($G5),((AD5-AC5)/6),TRUE))),"") -> 0.9999993669 | Z5: =IFERROR(IF(ISTEXT($A5),"",(1-NORMDIST((COUNTA($A$4:$A$743))+(Personalize!$E$18+1),$G5,((AD5-AC5)/6),TRUE))),"") -> 0.3427387555 | AA5: =IFERROR(IF(ISTEXT($A5),"",(1-NORMDIST((COUNTA($A$4:$A$743))+((Personalize!$E$18+1)*2),$G5,((AD5-AC5)/6),TRUE))),"") -> 7.792313683e-09 | AC5: =IF(Personalize!$E$34=1,VLOOKUP($B5,'ADP-Rank'!$A$2:$J$700,5,FALSE),(IF(Personalize!$E$34=2,VLOOKUP($B5,'ADP-Rank'!$A$2:$J$700,8,FALSE),(IF(Personalize!$E$34=3,VLOOKUP($B5,'ADP-Rank'!$A$2:$O$700,11,FALSE),(IF(Personalize!$E$31=4,VLOOKUP($B5,'ADP-Rank'!$A$2:$AZ$700,25,FALSE),(IF(Personalize!$E$31=5,VLOOKUP($B5,'ADP-Rank'!$A$2:$AZ$700,28,FALSE),(IF(Personalize!$E$31=6,VLOOKUP($B5,'ADP-Rank'!$A$2:$AZ$700,32,FALSE),""))))))))))) -> 1 | AD5: =IF(Personalize!$E$34=1,VLOOKUP($B5,'ADP-Rank'!$A$2:$J$700,6,FALSE),(IF(Personalize!$E$34=2,VLOOKUP($B5,'ADP-Rank'!$A$2:$J$700,9,FALSE),(IF(Personalize!$E$34=3,VLOOKUP($B5,'ADP-Rank'!$A$2:$O$700,12,FALSE),(IF(Personalize!$E$31=4,VLOOKUP($B5,'ADP-Rank'!$A$2:$AZ$700,26,FALSE),(IF(Personalize!$E$31=5,VLOOKUP($B5,'ADP-Rank'!$A$2:$AZ$700,29,FALSE),(IF(Personalize!$E$31=6,VLOOKUP($B5,'ADP-Rank'!$A$2:$AZ$700,33,FALSE),""))))))))))) -> 5 | AE5: =IF(ISBLANK(A5),0,1) -> 0 | AF5: =IF(K5="",0,1) -> 1 | AG5: =A5 -> 0 | AH5: =IF(C5="C",1,IF(C5="1B",2,IF(C5="2B",3,IF(C5="3B",4,IF(C5="SS",5,IF(C5="CI",6,IF(C5="MI",7,IF(C5="OF",11,IF(C5="LF",8,IF(C5="CF",9,IF(C5="RF",10,IF(C5="DH",12,IF(C5="SP",13,IF(C5="RP",14,IF(C5="P",15,16))))))))))))))) -> 11 | AI5: =VLOOKUP(B5,'Starter Calc'!$B$2:$BN$700,65,FALSE) -> Bench | AJ5: =IFERROR(VLOOKUP($B5,'ADP-Rank'!$A$2:$AH$964,34,FALSE),TRUE) -> TRUE
B6: Ryan Braun | C6: =IFERROR(IF(VLOOKUP(B6,'ADP-Rank'!$A$2:$B$700,2,FALSE)="OF",VLOOKUP(B6,'Starter Calc'!$B$2:$AM$700,38,FALSE),(VLOOKUP(B6,'ADP-Rank'!$A$2:$B$700,2,FALSE))),"") -> OF | D6: =IFERROR(IF(VLOOKUP(B6,'Starter Calc'!$B$2:$E$700,4,FALSE)="","",VLOOKUP(B6,'Starter Calc'!$B$2:$E$700,4,FALSE)),"") -> LF | E6: =IFERROR(VLOOKUP($B6,'ADP-Rank'!$A$2:$D$700,3,FALSE),"") -> MIL | F6: =IFERROR(VLOOKUP($B6,'ADP-Rank'!$A$2:$W$700,23,FALSE),"") -> 30 | G6: =IFERROR((IF(Personalize!$E$38=1,VLOOKUP($B6,'ADP-Rank'!$A$2:$J$700,4,FALSE),(IF(Personalize!$E$38=2,VLOOKUP($B6,'ADP-Rank'!$A$2:$J$700,7,FALSE),(IF(Personalize!$E$38=3,VLOOKUP($B6,'ADP-Rank'!$A$2:$J$700,10,FALSE),(IF(Personalize!$E$38=4,VLOOKUP($B6,'ADP-Rank'!$A$2:$AD$700,24,FALSE),(IF(Personalize!$E$38=5,VLOOKUP($B6,'ADP-Rank'!$A$2:$AD$700,27,FALSE),VLOOKUP($B6,'ADP-Rank'!$A$2:$AZ$700,30,FALSE))))))))))),"") -> 4.3 | H6: =IFERROR(ROUNDDOWN(VLOOKUP($B6,'ADP-Rank'!$A$2:$AY$1064,38,FALSE),0),"") -> 1 | I6: =VLOOKUP($B6,'ADP-Rank'!$A$2:$AJ$1064,36,FALSE) -> 1 | J6: =IFERROR(RANK($M6,$M$4:$M$743,0),"") -> 6 | K6: =IFERROR(IF((OR($C6="RP",$C6="SP")),VLOOKUP($B6,Pitcher!$A$1:$Z$700,20,FALSE),(VLOOKUP($B6,Hitter!$A$1:$Z$700,26,FALSE))),"") -> 507.2197763 | L6: =IFERROR(IF((OR($C6="RP",$C6="SP")),VLOOKUP($C6,'Filtered-P'!$M$3:$P$4,4,FALSE), VLOOKUP($C6,Filtered!$Q$3:$T$14,4,FALSE)),"") -> 368.4885837 | M6: =IFERROR(K6-L6,"") -> 138.7311925 | N6: =IFERROR(IF((OR($C6="RP",$C6="SP")),VLOOKUP($B6,Pitcher!$A$1:$Z$700,20,FALSE)/VLOOKUP($B6,Pitcher!$A$1:$Z$700,4,FALSE),(VLOOKUP($B6,Hitter!$A$1:$Z$700,26,FALSE)/VLOOKUP($B6,Hitter!$A$1:$Z$700,2,FALSE))),"") -> 0.7532218012 | O6: =IFERROR(IF((OR($C6="RP",$C6="SP")),VLOOKUP($B6,Pitcher!$A$1:$V$700,2,FALSE),""),"") ->  | P6: =IFERROR(IF((OR($C6="RP",$C6="SP")),VLOOKUP($B6,Pitcher!$A$1:$V$700,9,FALSE),""),"") ->  | Q6: =IFERROR(IF((OR($C6="RP",$C6="SP")),VLOOKUP($B6,Pitcher!$A$1:$V$700,7,FALSE),""),"") ->  | R6: =IFERROR(IF((OR($C6="RP",$C6="SP")),VLOOKUP($B6,Pitcher!$A$1:$AB$700,21,FALSE),""),"") ->  | S6: =IFERROR(IF((OR($C6="RP",$C6="SP")),VLOOKUP($B6,Pitcher!$A$1:$V$700,22,FALSE),""),"") ->  | T6: =IFERROR(IF((OR($C6="RP",$C6="SP")),"",VLOOKUP($B6,Hitter!$A$1:$AH$700,27,FALSE)),"") -> 0.304657752 | U6: =IFERROR(IF((OR($C6="RP",$C6="SP")),"",VLOOKUP($B6,Hitter!$A$1:$AH$700,9,FALSE)),"") -> 34.29849439 | V6: =IFERROR(IF((OR($C6="RP",$C6="SP")),"",VLOOKUP($B6,Hitter!$A$1:$AH$700,10,FALSE)),"") -> 106.7519352 | W6: =IFERROR(IF((OR($C6="RP",$C6="SP")),"",VLOOKUP($B6,Hitter!$A$1:$AH$700,4,FALSE)),"") -> 106.3166955 | X6: =IFERROR(IF((OR($C6="RP",$C6="SP")),"",VLOOKUP($B6,Hitter!$A$1:$AH$700,11,FALSE)),"") -> 23.76296646 | Y6: =IFERROR(IF(ISTEXT($A6),"",(1-NORMDIST((COUNTA($A$4:$A$743)),($G6),((AD6-AC6)/6),TRUE))),"") -> 0.9999914601 | Z6: =IFERROR(IF(ISTEXT($A6),"",(1-NORMDIST((COUNTA($A$4:$A$743))+(Personalize!$E$18+1),$G6,((AD6-AC6)/6),TRUE))),"") -> 0.7881446014 | AA6: =IFERROR(IF(ISTEXT($A6),"",(1-NORMDIST((COUNTA($A$4:$A$743))+((Personalize!$E$18+1)*2),$G6,((AD6-AC6)/6),TRUE))),"") -> 0.003466973803 | AC6: =IF(Personalize!$E$34=1,VLOOKUP($B6,'ADP-Rank'!$A$2:$J$700,5,FALSE),(IF(Personalize!$E$34=2,VLOOKUP($B6,'ADP-Rank'!$A$2:$J$700,8,FALSE),(IF(Personalize!$E$34=3,VLOOKUP($B6,'ADP-Rank'!$A$2:$O$700,11,FALSE),(IF(Personalize!$E$31=4,VLOOKUP($B6,'ADP-Rank'!$A$2:$AZ$700,25,FALSE),(IF(Personalize!$E$31=5,VLOOKUP($B6,'ADP-Rank'!$A$2:$AZ$700,28,FALSE),(IF(Personalize!$E$31=6,VLOOKUP($B6,'ADP-Rank'!$A$2:$AZ$700,32,FALSE),""))))))))))) -> 1 | AD6: =IF(Personalize!$E$34=1,VLOOKUP($B6,'ADP-Rank'!$A$2:$J$700,6,FALSE),(IF(Personalize!$E$34=2,VLOOKUP($B6,'ADP-Rank'!$A$2:$J$700,9,FALSE),(IF(Personalize!$E$34=3,VLOOKUP($B6,'ADP-Rank'!$A$2:$O$700,12,FALSE),(IF(Personalize!$E$31=4,VLOOKUP($B6,'ADP-Rank'!$A$2:$AZ$700,26,FALSE),(IF(Personalize!$E$31=5,VLOOKUP($B6,'ADP-Rank'!$A$2:$AZ$700,29,FALSE),(IF(Personalize!$E$31=6,VLOOKUP($B6,'ADP-Rank'!$A$2:$AZ$700,33,FALSE),""))))))))))) -> 7 | AE6: =IF(ISBLANK(A6),0,1) -> 0 | AF6: =IF(K6="",0,1) -> 1 | AG6: =A6 -> 0 | AH6: =IF(C6="C",1,IF(C6="1B",2,IF(C6="2B",3,IF(C6="3B",4,IF(C6="SS",5,IF(C6="CI",6,IF(C6="MI",7,IF(C6="OF",11,IF(C6="LF",8,IF(C6="CF",9,IF(C6="RF",10,IF(C6="DH",12,IF(C6="SP",13,IF(C6="RP",14,IF(C6="P",15,16))))))))))))))) -> 11 | AI6: =VLOOKUP(B6,'Starter Calc'!$B$2:$BN$700,65,FALSE) -> Bench | AJ6: =IFERROR(VLOOKUP($B6,'ADP-Rank'!$A$2:$AH$964,34,FALSE),TRUE) -> TRUE
B7: Justin Verlander | C7: =IFERROR(IF(VLOOKUP(B7,'ADP-Rank'!$A$2:$B$700,2,FALSE)="OF",VLOOKUP(B7,'Starter Calc'!$B$2:$AM$700,38,FALSE),(VLOOKUP(B7,'ADP-Rank'!$A$2:$B$700,2,FALSE))),"") -> SP | D7: =IFERROR(IF(VLOOKUP(B7,'Starter Calc'!$B$2:$E$700,4,FALSE)="","",VLOOKUP(B7,'Starter Calc'!$B$2:$E$700,4,FALSE)),"") ->  | E7: =IFERROR(VLOOKUP($B7,'ADP-Rank'!$A$2:$D$700,3,FALSE),"") -> DET | F7: =IFERROR(VLOOKUP($B7,'ADP-Rank'!$A$2:$W$700,23,FALSE),"") -> 30 | G7: =IFERROR((IF(Personalize!$E$38=1,VLOOKUP($B7,'ADP-Rank'!$A$2:$J$700,4,FALSE),(IF(Personalize!$E$38=2,VLOOKUP($B7,'ADP-Rank'!$A$2:$J$700,7,FALSE),(IF(Personalize!$E$38=3,VLOOKUP($B7,'ADP-Rank'!$A$2:$J$700,10,FALSE),(IF(Personalize!$E$38=4,VLOOKUP($B7,'ADP-Rank'!$A$2:$AD$700,24,FALSE),(IF(Personalize!$E$38=5,VLOOKUP($B7,'ADP-Rank'!$A$2:$AD$700,27,FALSE),VLOOKUP($B7,'ADP-Rank'!$A$2:$AZ$700,30,FALSE))))))))))),"") -> 4.83 | H7: =IFERROR(ROUNDDOWN(VLOOKUP($B7,'ADP-Rank'!$A$2:$AY$1064,38,FALSE),0),"") -> 1 | I7: =VLOOKUP($B7,'ADP-Rank'!$A$2:$AJ$1064,36,FALSE) -> 11 | J7: =IFERROR(RANK($M7,$M$4:$M$743,0),"") -> 5 | K7: =IFERROR(IF((OR($C7="RP",$C7="SP")),VLOOKUP($B7,Pitcher!$A$1:$Z$700,20,FALSE),(VLOOKUP($B7,Hitter!$A$1:$Z$700,26,FALSE))),"") -> 514.062893 | L7: =IFERROR(IF((OR($C7="RP",$C7="SP")),VLOOKUP($C7,'Filtered-P'!$M$3:$P$4,4,FALSE), VLOOKUP($C7,Filtered!$Q$3:$T$14,4,FALSE)),"") -> 357.2271519 | M7: =IFERROR(K7-L7,"") -> 156.8357411 | N7: =IFERROR(IF((OR($C7="RP",$C7="SP")),VLOOKUP($B7,Pitcher!$A$1:$Z$700,20,FALSE)/VLOOKUP($B7,Pitcher!$A$1:$Z$700,4,FALSE),(VLOOKUP($B7,Hitter!$A$1:$Z$700,26,FALSE)/VLOOKUP($B7,Hitter!$A$1:$Z$700,2,FALSE))),"") -> 2.357113545 | O7: =IFERROR(IF((OR($C7="RP",$C7="SP")),VLOOKUP($B7,Pitcher!$A$1:$V$700,2,FALSE),""),"") -> 17.61 | P7: =IFERROR(IF((OR($C7="RP",$C7="SP")),VLOOKUP($B7,Pitcher!$A$1:$V$700,9,FALSE),""),"") -> 0 | Q7: =IFERROR(IF((OR($C7="RP",$C7="SP")),VLOOKUP($B7,Pitcher!$A$1:$V$700,7,FALSE),""),"") -> 215.1491572 | R7: =IFERROR(IF((OR($C7="RP",$C7="SP")),VLOOKUP($B7,Pitcher!$A$1:$AB$700,21,FALSE),""),"") -> 3.232060159 | S7: =IFERROR(IF((OR($C7="RP",$C7="SP")),VLOOKUP($B7,Pitcher!$A$1:$V$700,22,FALSE),""),"") -> 1.148058141 | T7: =IFERROR(IF((OR($C7="RP",$C7="SP")),"",VLOOKUP($B7,Hitter!$A$1:$AH$700,27,FALSE)),"") ->  | U7: =IFERROR(IF((OR($C7="RP",$C7="SP")),"",VLOOKUP($B7,Hitter!$A$1:$AH$700,9,FALSE)),"") ->  | V7: =IFERROR(IF((OR($C7="RP",$C7="SP")),"",VLOOKUP($B7,Hitter!$A$1:$AH$700,10,FALSE)),"") ->  | W7: =IFERROR(IF((OR($C7="RP",$C7="SP")),"",VLOOKUP($B7,Hitter!$A$1:$AH$700,4,FALSE)),"") ->  | X7: =IFERROR(IF((OR($C7="RP",$C7="SP")),"",VLOOKUP($B7,Hitter!$A$1:$AH$700,11,FALSE)),"") ->  | Y7: =IFERROR(IF(ISTEXT($A7),"",(1-NORMDIST((COUNTA($A$4:$A$743)),($G7),((AD7-AC7)/6),TRUE))),"") -> 0.9061263882 | Z7: =IFERROR(IF(ISTEXT($A7),"",(1-NORMDIST((COUNTA($A$4:$A$743))+(Personalize!$E$18+1),$G7,((AD7-AC7)/6),TRUE))),"") -> 0.6415956877 | AA7: =IFERROR(IF(ISTEXT($A7),"",(1-NORMDIST((COUNTA($A$4:$A$743))+((Personalize!$E$18+1)*2),$G7,((AD7-AC7)/6),TRUE))),"") -> 0.2769861733 | AC7: =IF(Personalize!$E$34=1,VLOOKUP($B7,'ADP-Rank'!$A$2:$J$700,5,FALSE),(IF(Personalize!$E$34=2,VLOOKUP($B7,'ADP-Rank'!$A$2:$J$700,8,FALSE),(IF(Personalize!$E$34=3,VLOOKUP($B7,'ADP-Rank'!$A$2:$O$700,11,FALSE),(IF(Personalize!$E$31=4,VLOOKUP($B7,'ADP-Rank'!$A$2:$AZ$700,25,FALSE),(IF(Personalize!$E$31=5,VLOOKUP($B7,'ADP-Rank'!$A$2:$AZ$700,28,FALSE),(IF(Personalize!$E$31=6,VLOOKUP($B7,'ADP-Rank'!$A$2:$AZ$700,32,FALSE),""))))))))))) -> 10 | AD7: =IF(Personalize!$E$34=1,VLOOKUP($B7,'ADP-Rank'!$A$2:$J$700,6,FALSE),(IF(Personalize!$E$34=2,VLOOKUP($B7,'ADP-Rank'!$A$2:$J$700,9,FALSE),(IF(Personalize!$E$34=3,VLOOKUP($B7,'ADP-Rank'!$A$2:$O$700,12,FALSE),(IF(Personalize!$E$31=4,VLOOKUP($B7,'ADP-Rank'!$A$2:$AZ$700,26,FALSE),(IF(Personalize!$E$31=5,VLOOKUP($B7,'ADP-Rank'!$A$2:$AZ$700,29,FALSE),(IF(Personalize!$E$31=6,VLOOKUP($B7,'ADP-Rank'!$A$2:$AZ$700,33,FALSE),""))))))))))) -> 32 | AE7: =IF(ISBLANK(A7),0,1) -> 0 | AF7: =IF(K7="",0,1) -> 1 | AG7: =A7 -> 0 | AH7: =IF(C7="C",1,IF(C7="1B",2,IF(C7="2B",3,IF(C7="3B",4,IF(C7="SS",5,IF(C7="CI",6,IF(C7="MI",7,IF(C7="OF",11,IF(C7="LF",8,IF(C7="CF",9,IF(C7="RF",10,IF(C7="DH",12,IF(C7="SP",13,IF(C7="RP",14,IF(C7="P",15,16))))))))))))))) -> 13 | AI7: =VLOOKUP(B7,'Starter Calc'!$B$2:$BN$700,65,FALSE) -> Bench | AJ7: =IFERROR(VLOOKUP($B7,'ADP-Rank'!$A$2:$AH$964,34,FALSE),TRUE) -> TRUE
B8: Clayton Kershaw | C8: =IFERROR(IF(VLOOKUP(B8,'ADP-Rank'!$A$2:$B$700,2,FALSE)="OF",VLOOKUP(B8,'Starter Calc'!$B$2:$AM$700,38,FALSE),(VLOOKUP(B8,'ADP-Rank'!$A$2:$B$700,2,FALSE))),"") -> SP | D8: =IFERROR(IF(VLOOKUP(B8,'Starter Calc'!$B$2:$E$700,4,FALSE)="","",VLOOKUP(B8,'Starter Calc'!$B$2:$E$700,4,FALSE)),"") ->  | E8: =IFERROR(VLOOKUP($B8,'ADP-Rank'!$A$2:$D$700,3,FALSE),"") -> LA | F8: =IFERROR(VLOOKUP($B8,'ADP-Rank'!$A$2:$W$700,23,FALSE),"") -> 25 | G8: =IFERROR((IF(Personalize!$E$38=1,VLOOKUP($B8,'ADP-Rank'!$A$2:$J$700,4,FALSE),(IF(Personalize!$E$38=2,VLOOKUP($B8,'ADP-Rank'!$A$2:$J$700,7,FALSE),(IF(Personalize!$E$38=3,VLOOKUP($B8,'ADP-Rank'!$A$2:$J$700,10,FALSE),(IF(Personalize!$E$38=4,VLOOKUP($B8,'ADP-Rank'!$A$2:$AD$700,24,FALSE),(IF(Personalize!$E$38=5,VLOOKUP($B8,'ADP-Rank'!$A$2:$AD$700,27,FALSE),VLOOKUP($B8,'ADP-Rank'!$A$2:$AZ$700,30,FALSE))))))))))),"") -> 6 | H8: =IFERROR(ROUNDDOWN(VLOOKUP($B8,'ADP-Rank'!$A$2:$AY$1064,38,FALSE),0),"") -> 1 | I8: =VLOOKUP($B8,'ADP-Rank'!$A$2:$AJ$1064,36,FALSE) -> 15 | J8: =IFERROR(RANK($M8,$M$4:$M$743,0),"") -> 3 | K8: =IFERROR(IF((OR($C8="RP",$C8="SP")),VLOOKUP($B8,Pitcher!$A$1:$Z$700,20,FALSE),(VLOOKUP($B8,Hitter!$A$1:$Z$700,26,FALSE))),"") -> 536.1456059 | L8: =IFERROR(IF((OR($C8="RP",$C8="SP")),VLOOKUP($C8,'Filtered-P'!$M$3:$P$4,4,FALSE), VLOOKUP($C8,Filtered!$Q$3:$T$14,4,FALSE)),"") -> 357.2271519 | M8: =IFERROR(K8-L8,"") -> 178.918454 | N8: =IFERROR(IF((OR($C8="RP",$C8="SP")),VLOOKUP($B8,Pitcher!$A$1:$Z$700,20,FALSE)/VLOOKUP($B8,Pitcher!$A$1:$Z$700,4,FALSE),(VLOOKUP($B8,Hitter!$A$1:$Z$700,26,FALSE)/VLOOKUP($B8,Hitter!$A$1:$Z$700,2,FALSE))),"") -> 2.574034308 | O8: =IFERROR(IF((OR($C8="RP",$C8="SP")),VLOOKUP($B8,Pitcher!$A$1:$V$700,2,FALSE),""),"") -> 16.07 | P8: =IFERROR(IF((OR($C8="RP",$C8="SP")),VLOOKUP($B8,Pitcher!$A$1:$V$700,9,FALSE),""),"") -> 0 | Q8: =IFERROR(IF((OR($C8="RP",$C8="SP")),VLOOKUP($B8,Pitcher!$A$1:$V$700,7,FALSE),""),"") -> 223.7582424 | R8: =IFERROR(IF((OR($C8="RP",$C8="SP")),VLOOKUP($B8,Pitcher!$A$1:$AB$700,21,FALSE),""),"") -> 3.021172404 | S8: =IFERROR(IF((OR($C8="RP",$C8="SP")),VLOOKUP($B8,Pitcher!$A$1:$V$700,22,FALSE),""),"") -> 1.133035671 | T8: =IFERROR(IF((OR($C8="RP",$C8="SP")),"",VLOOKUP($B8,Hitter!$A$1:$AH$700,27,FALSE)),"") ->  | U8: =IFERROR(IF((OR($C8="RP",$C8="SP")),"",VLOOKUP($B8,Hitter!$A$1:$AH$700,9,FALSE)),"") ->  | V8: =IFERROR(IF((OR($C8="RP",$C8="SP")),"",VLOOKUP($B8,Hitter!$A$1:$AH$700,10,FALSE)),"") ->  | W8: =IFERROR(IF((OR($C8="RP",$C8="SP")),"",VLOOKUP($B8,Hitter!$A$1:$AH$700,4,FALSE)),"") ->  | X8: =IFERROR(IF((OR($C8="RP",$C8="SP")),"",VLOOKUP($B8,Hitter!$A$1:$AH$700,11,FALSE)),"") ->  | Y8: =IFERROR(IF(ISTEXT($A8),"",(1-NORMDIST((COUNTA($A$4:$A$743)),($G8),((AD8-AC8)/6),TRUE))),"") -> 0.9949360047 | Z8: =IFERROR(IF(ISTEXT($A8),"",(1-NORMDIST((COUNTA($A$4:$A$743))+(Personalize!$E$18+1),$G8,((AD8-AC8)/6),TRUE))),"") -> 0.8580116141 | AA8: =IFERROR(IF(ISTEXT($A8),"",(1-NORMDIST((COUNTA($A$4:$A$743))+((Personalize!$E$18+1)*2),$G8,((AD8-AC8)/6),TRUE))),"") -> 0.3341175709 | AC8: =IF(Personalize!$E$34=1,VLOOKUP($B8,'ADP-Rank'!$A$2:$J$700,5,FALSE),(IF(Personalize!$E$34=2,VLOOKUP($B8,'ADP-Rank'!$A$2:$J$700,8,FALSE),(IF(Personalize!$E$34=3,VLOOKUP($B8,'ADP-Rank'!$A$2:$O$700,11,FALSE),(IF(Personalize!$E$31=4,VLOOKUP($B8,'ADP-Rank'!$A$2:$AZ$700,25,FALSE),(IF(Personalize!$E$31=5,VLOOKUP($B8,'ADP-Rank'!$A$2:$AZ$700,28,FALSE),(IF(Personalize!$E$31=6,VLOOKUP($B8,'ADP-Rank'!$A$2:$AZ$700,32,FALSE),""))))))))))) -> 13 | AD8: =IF(Personalize!$E$34=1,VLOOKUP($B8,'ADP-Rank'!$A$2:$J$700,6,FALSE),(IF(Personalize!$E$34=2,VLOOKUP($B8,'ADP-Rank'!$A$2:$J$700,9,FALSE),(IF(Personalize!$E$34=3,VLOOKUP($B8,'ADP-Rank'!$A$2:$O$700,12,FALSE),(IF(Personalize!$E$31=4,VLOOKUP($B8,'ADP-Rank'!$A$2:$AZ$700,26,FALSE),(IF(Personalize!$E$31=5,VLOOKUP($B8,'ADP-Rank'!$A$2:$AZ$700,29,FALSE),(IF(Personalize!$E$31=6,VLOOKUP($B8,'ADP-Rank'!$A$2:$AZ$700,33,FALSE),""))))))))))) -> 27 | AE8: =IF(ISBLANK(A8),0,1) -> 0 | AF8: =IF(K8="",0,1) -> 1 | AG8: =A8 -> 0 | AH8: =IF(C8="C",1,IF(C8="1B",2,IF(C8="2B",3,IF(C8="3B",4,IF(C8="SS",5,IF(C8="CI",6,IF(C8="MI",7,IF(C8="OF",11,IF(C8="LF",8,IF(C8="CF",9,IF(C8="RF",10,IF(C8="DH",12,IF(C8="SP",13,IF(C8="RP",14,IF(C8="P",15,16))))))))))))))) -> 13 | AI8: =VLOOKUP(B8,'Starter Calc'!$B$2:$BN$700,65,FALSE) -> Bench | AJ8: =IFERROR(VLOOKUP($B8,'ADP-Rank'!$A$2:$AH$964,34,FALSE),TRUE) -> TRUE
B9: Robinson Cano | C9: =IFERROR(IF(VLOOKUP(B9,'ADP-Rank'!$A$2:$B$700,2,FALSE)="OF",VLOOKUP(B9,'Starter Calc'!$B$2:$AM$700,38,FALSE),(VLOOKUP(B9,'ADP-Rank'!$A$2:$B$700,2,FALSE))),"") -> 2B | D9: =IFERROR(IF(VLOOKUP(B9,'Starter Calc'!$B$2:$E$700,4,FALSE)="","",VLOOKUP(B9,'Starter Calc'!$B$2:$E$700,4,FALSE)),"") ->  | E9: =IFERROR(VLOOKUP($B9,'ADP-Rank'!$A$2:$D$700,3,FALSE),"") -> NYY | F9: =IFERROR(VLOOKUP($B9,'ADP-Rank'!$A$2:$W$700,23,FALSE),"") -> 31 | G9: =IFERROR((IF(Personalize!$E$38=1,VLOOKUP($B9,'ADP-Rank'!$A$2:$J$700,4,FALSE),(IF(Personalize!$E$38=2,VLOOKUP($B9,'ADP-Rank'!$A$2:$J$700,7,FALSE),(IF(Personalize!$E$38=3,VLOOKUP($B9,'ADP-Rank'!$A$2:$J$700,10,FALSE),(IF(Personalize!$E$38=4,VLOOKUP($B9,'ADP-Rank'!$A$2:$AD$700,24,FALSE),(IF(Personalize!$E$38=5,VLOOKUP($B9,'ADP-Rank'!$A$2:$AD$700,27,FALSE),VLOOKUP($B9,'ADP-Rank'!$A$2:$AZ$700,30,FALSE))))))))))),"") -> 8.04 | H9: =IFERROR(ROUNDDOWN(VLOOKUP($B9,'ADP-Rank'!$A$2:$AY$1064,38,FALSE),0),"") -> 1 | I9: =VLOOKUP($B9,'ADP-Rank'!$A$2:$AJ$1064,36,FALSE) -> 5 | J9: =IFERROR(RANK($M9,$M$4:$M$743,0),"") -> 13 | K9: =IFERROR(IF((OR($C9="RP",$C9="SP")),VLOOKUP($B9,Pitcher!$A$1:$Z$700,20,FALSE),(VLOOKUP($B9,Hitter!$A$1:$Z$700,26,FALSE))),"") -> 470.7275092 | L9: =IFERROR(IF((OR($C9="RP",$C9="SP")),VLOOKUP($C9,'Filtered-P'!$M$3:$P$4,4,FALSE), VLOOKUP($C9,Filtered!$Q$3:$T$14,4,FALSE)),"") -> 368.3944957 | M9: =IFERROR(K9-L9,"") -> 102.3330135 | N9: =IFERROR(IF((OR($C9="RP",$C9="SP")),VLOOKUP($B9,Pitcher!$A$1:$Z$700,20,FALSE)/VLOOKUP($B9,Pitcher!$A$1:$Z$700,4,FALSE),(VLOOKUP($B9,Hitter!$A$1:$Z$700,26,FALSE)/VLOOKUP($B9,Hitter!$A$1:$Z$700,2,FALSE))),"") -> 0.6986601107 | O9: =IFERROR(IF((OR($C9="RP",$C9="SP")),VLOOKUP($B9,Pitcher!$A$1:$V$700,2,FALSE),""),"") ->  | P9: =IFERROR(IF((OR($C9="RP",$C9="SP")),VLOOKUP($B9,Pitcher!$A$1:$V$700,9,FALSE),""),"") ->  | Q9: =IFERROR(IF((OR($C9="RP",$C9="SP")),VLOOKUP($B9,Pitcher!$A$1:$V$700,7,FALSE),""),"") ->  | R9: =IFERROR(IF((OR($C9="RP",$C9="SP")),VLOOKUP($B9,Pitcher!$A$1:$AB$700,21,FALSE),""),"") ->  | S9: =IFERROR(IF((OR($C9="RP",$C9="SP")),VLOOKUP($B9,Pitcher!$A$1:$V$700,22,FALSE),""),"") ->  | T9: =IFERROR(IF((OR($C9="RP",$C9="SP")),"",VLOOKUP($B9,Hitter!$A$1:$AH$700,27,FALSE)),"") -> 0.2976080647 | U9: =IFERROR(IF((OR($C9="RP",$C9="SP")),"",VLOOKUP($B9,Hitter!$A$1:$AH$700,9,FALSE)),"") -> 27.47070295 | V9: =IFERROR(IF((OR($C9="RP",$C9="SP")),"",VLOOKUP($B9,Hitter!$A$1:$AH$700,10,FALSE)),"") -> 98.91755661 | W9: =IFERROR(IF((OR($C9="RP",$C9="SP")),"",VLOOKUP($B9,Hitter!$A$1:$AH$700,4,FALSE)),"") -> 97.45996105 | X9: =IFERROR(IF((OR($C9="RP",$C9="SP")),"",VLOOKUP($B9,Hitter!$A$1:$AH$700,11,FALSE)),"") -> 4.578732246 | Y9: =IFERROR(IF(ISTEXT($A9),"",(1-NORMDIST((COUNTA($A$4:$A$743)),($G9),((AD9-AC9)/6),TRUE))),"") -> 0.9999999584 | Z9: =IFERROR(IF(ISTEXT($A9),"",(1-NORMDIST((COUNTA($A$4:$A$743))+(Personalize!$E$18+1),$G9,((AD9-AC9)/6),TRUE))),"") -> 0.9987636677 | AA9: =IFERROR(IF(ISTEXT($A9),"",(1-NORMDIST((COUNTA($A$4:$A$743))+((Personalize!$E$18+1)*2),$G9,((AD9-AC9)/6),TRUE))),"") -> 0.7559498055 | AC9: =IF(Personalize!$E$34=1,VLOOKUP($B9,'ADP-Rank'!$A$2:$J$700,5,FALSE),(IF(Personalize!$E$34=2,VLOOKUP($B9,'ADP-Rank'!$A$2:$J$700,8,FALSE),(IF(Personalize!$E$34=3,VLOOKUP($B9,'ADP-Rank'!$A$2:$O$700,11,FALSE),(IF(Personalize!$E$31=4,VLOOKUP($B9,'ADP-Rank'!$A$2:$AZ$700,25,FALSE),(IF(Personalize!$E$31=5,VLOOKUP($B9,'ADP-Rank'!$A$2:$AZ$700,28,FALSE),(IF(Personalize!$E$31=6,VLOOKUP($B9,'ADP-Rank'!$A$2:$AZ$700,32,FALSE),""))))))))))) -> 4 | AD9: =IF(Personalize!$E$34=1,VLOOKUP($B9,'ADP-Rank'!$A$2:$J$700,6,FALSE),(IF(Personalize!$E$34=2,VLOOKUP($B9,'ADP-Rank'!$A$2:$J$700,9,FALSE),(IF(Personalize!$E$34=3,VLOOKUP($B9,'ADP-Rank'!$A$2:$O$700,12,FALSE),(IF(Personalize!$E$31=4,VLOOKUP($B9,'ADP-Rank'!$A$2:$AZ$700,26,FALSE),(IF(Personalize!$E$31=5,VLOOKUP($B9,'ADP-Rank'!$A$2:$AZ$700,29,FALSE),(IF(Personalize!$E$31=6,VLOOKUP($B9,'ADP-Rank'!$A$2:$AZ$700,33,FALSE),""))))))))))) -> 13 | AE9: =IF(ISBLANK(A9),0,1) -> 0 | AF9: =IF(K9="",0,1) -> 1 | AG9: =A9 -> 0 | AH9: =IF(C9="C",1,IF(C9="1B",2,IF(C9="2B",3,IF(C9="3B",4,IF(C9="SS",5,IF(C9="CI",6,IF(C9="MI",7,IF(C9="OF",11,IF(C9="LF",8,IF(C9="CF",9,IF(C9="RF",10,IF(C9="DH",12,IF(C9="SP",13,IF(C9="RP",14,IF(C9="P",15,16))))))))))))))) -> 3 | AI9: =VLOOKUP(B9,'Starter Calc'!$B$2:$BN$700,65,FALSE) -> Bench | AJ9: =IFERROR(VLOOKUP($B9,'ADP-Rank'!$A$2:$AH$964,34,FALSE),TRUE) -> TRUE
B10: Albert Pujols | C10: =IFERROR(IF(VLOOKUP(B10,'ADP-Rank'!$A$2:$B$700,2,FALSE)="OF",VLOOKUP(B10,'Starter Calc'!$B$2:$AM$700,38,FALSE),(VLOOKUP(B10,'ADP-Rank'!$A$2:$B$700,2,FALSE))),"") -> 1B | D10: =IFERROR(IF(VLOOKUP(B10,'Starter Calc'!$B$2:$E$700,4,FALSE)="","",VLOOKUP(B10,'Starter Calc'!$B$2:$E$700,4,FALSE)),"") ->  | E10: =IFERROR(VLOOKUP($B10,'ADP-Rank'!$A$2:$D$700,3,FALSE),"") -> ANA | F10: =IFERROR(VLOOKUP($B10,'ADP-Rank'!$A$2:$W$700,23,FALSE),"") -> 33 | G10: =IFERROR((IF(Personalize!$E$38=1,VLOOKUP($B10,'ADP-Rank'!$A$2:$J$700,4,FALSE),(IF(Personalize!$E$38=2,VLOOKUP($B10,'ADP-Rank'!$A$2:$J$700,7,FALSE),(IF(Personalize!$E$38=3,VLOOKUP($B10,'ADP-Rank'!$A$2:$J$700,10,FALSE),(IF(Personalize!$E$38=4,VLOOKUP($B10,'ADP-Rank'!$A$2:$AD$700,24,FALSE),(IF(Personalize!$E$38=5,VLOOKUP($B10,'ADP-Rank'!$A$2:$AD$700,27,FALSE),VLOOKUP($B10,'ADP-Rank'!$A$2:$AZ$700,30,FALSE))))))))))),"") -> 8.35 | H10: =IFERROR(ROUNDDOWN(VLOOKUP($B10,'ADP-Rank'!$A$2:$AY$1064,38,FALSE),0),"") -> 1 | I10: =VLOOKUP($B10,'ADP-Rank'!$A$2:$AJ$1064,36,FALSE) -> 4 | J10: =IFERROR(RANK($M10,$M$4:$M$743,0),"") -> 8 | K10: =IFERROR(IF((OR($C10="RP",$C10="SP")),VLOOKUP($B10,Pitcher!$A$1:$Z$700,20,FALSE),(VLOOKUP($B10,Hitter!$A$1:$Z$700,26,FALSE))),"") -> 522.6276146 | L10: =IFERROR(IF((OR($C10="RP",$C10="SP")),VLOOKUP($C10,'Filtered-P'!$M$3:$P$4,4,FALSE), VLOOKUP($C10,Filtered!$Q$3:$T$14,4,FALSE)),"") -> 395.2780551 | M10: =IFERROR(K10-L10,"") -> 127.3495595 | N10: =IFERROR(IF((OR($C10="RP",$C10="SP")),VLOOKUP($B10,Pitcher!$A$1:$Z$700,20,FALSE)/VLOOKUP($B10,Pitcher!$A$1:$Z$700,4,FALSE),(VLOOKUP($B10,Hitter!$A$1:$Z$700,26,FALSE)/VLOOKUP($B10,Hitter!$A$1:$Z$700,2,FALSE))),"") -> 0.7989524544 | O10: =IFERROR(IF((OR($C10="RP",$C10="SP")),VLOOKUP($B10,Pitcher!$A$1:$V$700,2,FALSE),""),"") ->  | P10: =IFERROR(IF((OR($C10="RP",$C10="SP")),VLOOKUP($B10,Pitcher!$A$1:$V$700,9,FALSE),""),"") ->  | Q10: =IFERROR(IF((OR($C10="RP",$C10="SP")),VLOOKUP($B10,Pitcher!$A$1:$V$700,7,FALSE),""),"") ->  | R10: =IFERROR(IF((OR($C10="RP",$C10="SP")),VLOOKUP($B10,Pitcher!$A$1:$AB$700,21,FALSE),""),"") ->  | S10: =IFERROR(IF((OR($C10="RP",$C10="SP")),VLOOKUP($B10,Pitcher!$A$1:$V$700,22,FALSE),""),"") ->  | T10: =IFERROR(IF((OR($C10="RP",$C10="SP")),"",VLOOKUP($B10,Hitter!$A$1:$AH$700,27,FALSE)),"") -> 0.2940294685 | U10: =IFERROR(IF((OR($C10="RP",$C10="SP")),"",VLOOKUP($B10,Hitter!$A$1:$AH$700,9,FALSE)),"") -> 34.74250968 | V10: =IFERROR(IF((OR($C10="RP",$C10="SP")),"",VLOOKUP($B10,Hitter!$A$1:$AH$700,10,FALSE)),"") -> 107.3714754 | W10: =IFERROR(IF((OR($C10="RP",$C10="SP")),"",VLOOKUP($B10,Hitter!$A$1:$AH$700,4,FALSE)),"") -> 101.5344493 | X10: =IFERROR(IF((OR($C10="RP",$C10="SP")),"",VLOOKUP($B10,Hitter!$A$1:$AH$700,11,FALSE)),"") -> 7.91824724 | Y10: =IFERROR(IF(ISTEXT($A10),"",(1-NORMDIST((COUNTA($A$4:$A$743)),($G10),((AD10-AC10)/6),TRUE))),"") -> 1 | Z10: =IFERROR(IF(ISTEXT($A10),"",(1-NORMDIST((COUNTA($A$4:$A$743))+(Personalize!$E$18+1),$G10,((AD10-AC10)/6),TRUE))),"") -> 0.9999838874 | AA10: =IFERROR(IF(ISTEXT($A10),"",(1-NORMDIST((COUNTA($A$4:$A$743))+((Personalize!$E$18+1)*2),$G10,((AD10-AC10)/6),TRUE))),"") -> 0.8763930003 | AC10: =IF(Personalize!$E$34=1,VLOOKUP($B10,'ADP-Rank'!$A$2:$J$700,5,FALSE),(IF(Personalize!$E$34=2,VLOOKUP($B10,'ADP-Rank'!$A$2:$J$700,8,FALSE),(IF(Personalize!$E$34=3,VLOOKUP($B10,'ADP-Rank'!$A$2:$O$700,11,FALSE),(IF(Personalize!$E$31=4,VLOOKUP($B10,'ADP-Rank'!$A$2:$AZ$700,25,FALSE),(IF(Personalize!$E$31=5,VLOOKUP($B10,'ADP-Rank'!$A$2:$AZ$700,28,FALSE),(IF(Personalize!$E$31=6,VLOOKUP($B10,'ADP-Rank'!$A$2:$AZ$700,32,FALSE),""))))))))))) -> 4 | AD10: =IF(Personalize!$E$34=1,VLOOKUP($B10,'ADP-Rank'!$A$2:$J$700,6,FALSE),(IF(Personalize!$E$34=2,VLOOKUP($B10,'ADP-Rank'!$A$2:$J$700,9,FALSE),(IF(Personalize!$E$34=3,VLOOKUP($B10,'ADP-Rank'!$A$2:$O$700,12,FALSE),(IF(Personalize!$E$31=4,VLOOKUP($B10,'ADP-Rank'!$A$2:$AZ$700,26,FALSE),(IF(Personalize!$E$31=5,VLOOKUP($B10,'ADP-Rank'!$A$2:$AZ$700,29,FALSE),(IF(Personalize!$E$31=6,VLOOKUP($B10,'ADP-Rank'!$A$2:$AZ$700,33,FALSE),""))))))))))) -> 11 | AE10: =IF(ISBLANK(A10),0,1) -> 0 | AF10: =IF(K10="",0,1) -> 1 | AG10: =A10 -> 0 | AH10: =IF(C10="C",1,IF(C10="1B",2,IF(C10="2B",3,IF(C10="3B",4,IF(C10="SS",5,IF(C10="CI",6,IF(C10="MI",7,IF(C10="OF",11,IF(C10="LF",8,IF(C10="CF",9,IF(C10="RF",10,IF(C10="DH",12,IF(C10="SP",13,IF(C10="RP",14,IF(C10="P",15,16))))))))))))))) -> 2 | AI10: =VLOOKUP(B10,'Starter Calc'!$B$2:$BN$700,65,FALSE) -> Bench | AJ10: =IFERROR(VLOOKUP($B10,'ADP-Rank'!$A$2:$AH$964,34,FALSE),TRUE) -> TRUE
B11: Joey Votto | C11: =IFERROR(IF(VLOOKUP(B11,'ADP-Rank'!$A$2:$B$700,2,FALSE)="OF",VLOOKUP(B11,'Starter Calc'!$B$2:$AM$700,38,FALSE),(VLOOKUP(B11,'ADP-Rank'!$A$2:$B$700,2,FALSE))),"") -> 1B | D11: =IFERROR(IF(VLOOKUP(B11,'Starter Calc'!$B$2:$E$700,4,FALSE)="","",VLOOKUP(B11,'Starter Calc'!$B$2:$E$700,4,FALSE)),"") ->  | E11: =IFERROR(VLOOKUP($B11,'ADP-Rank'!$A$2:$D$700,3,FALSE),"") -> CIN | F11: =IFERROR(VLOOKUP($B11,'ADP-Rank'!$A$2:$W$700,23,FALSE),"") -> 30 | G11: =IFERROR((IF(Personalize!$E$38=1,VLOOKUP($B11,'ADP-Rank'!$A$2:$J$700,4,FALSE),(IF(Personalize!$E$38=2,VLOOKUP($B11,'ADP-Rank'!$A$2:$J$700,7,FALSE),(IF(Personalize!$E$38=3,VLOOKUP($B11,'ADP-Rank'!$A$2:$J$700,10,FALSE),(IF(Personalize!$E$38=4,VLOOKUP($B11,'ADP-Rank'!$A$2:$AD$700,24,FALSE),(IF(Personalize!$E$38=5,VLOOKUP($B11,'ADP-Rank'!$A$2:$AD$700,27,FALSE),VLOOKUP($B11,'ADP-Rank'!$A$2:$AZ$700,30,FALSE))))))))))),"") -> 10.31 | H11: =IFERROR(ROUNDDOWN(VLOOKUP($B11,'ADP-Rank'!$A$2:$AY$1064,38,FALSE),0),"") -> 1 | I11: =VLOOKUP($B11,'ADP-Rank'!$A$2:$AJ$1064,36,FALSE) -> 8 | J11: =IFERROR(RANK($M11,$M$4:$M$743,0),"") -> 29 | K11: =IFERROR(IF((OR($C11="RP",$C11="SP")),VLOOKUP($B11,Pitcher!$A$1:$Z$700,20,FALSE),(VLOOKUP($B11,Hitter!$A$1:$Z$700,26,FALSE))),"") -> 450.9494771 | L11: =IFERROR(IF((OR($C11="RP",$C11="SP")),VLOOKUP($C11,'Filtered-P'!$M$3:$P$4,4,FALSE), VLOOKUP($C11,Filtered!$Q$3:$T$14,4,FALSE)),"") -> 395.2780551 | M11: =IFERROR(K11-L11,"") -> 55.67142205 | N11: =IFERROR(IF((OR($C11="RP",$C11="SP")),VLOOKUP($B11,Pitcher!$A$1:$Z$700,20,FALSE)/VLOOKUP($B11,Pitcher!$A$1:$Z$700,4,FALSE),(VLOOKUP($B11,Hitter!$A$1:$Z$700,26,FALSE)/VLOOKUP($B11,Hitter!$A$1:$Z$700,2,FALSE))),"") -> 0.7078792417 | O11: =IFERROR(IF((OR($C11="RP",$C11="SP")),VLOOKUP($B11,Pitcher!$A$1:$V$700,2,FALSE),""),"") ->  | P11: =IFERROR(IF((OR($C11="RP",$C11="SP")),VLOOKUP($B11,Pitcher!$A$1:$V$700,9,FALSE),""),"") ->  | Q11: =IFERROR(IF((OR($C11="RP",$C11="SP")),VLOOKUP($B11,Pitcher!$A$1:$V$700,7,FALSE),""),"") ->  | R11: =IFERROR(IF((OR($C11="RP",$C11="SP")),VLOOKUP($B11,Pitcher!$A$1:$AB$700,21,FALSE),""),"") ->  | S11: =IFERROR(IF((OR($C11="RP",$C11="SP")),VLOOKUP($B11,Pitcher!$A$1:$V$700,22,FALSE),""),"") ->  | T11: =IFERROR(IF((OR($C11="RP",$C11="SP")),"",VLOOKUP($B11,Hitter!$A$1:$AH$700,27,FALSE)),"") -> 0.2982496489 | U11: =IFERROR(IF((OR($C11="RP",$C11="SP")),"",VLOOKUP($B11,Hitter!$A$1:$AH$700,9,FALSE)),"") -> 25.73972913 | V11: =IFERROR(IF((OR($C11="RP",$C11="SP")),"",VLOOKUP($B11,Hitter!$A$1:$AH$700,10,FALSE)),"") -> 91.22619138 | W11: =IFERROR(IF((OR($C11="RP",$C11="SP")),"",VLOOKUP($B11,Hitter!$A$1:$AH$700,4,FALSE)),"") -> 97.26810471 | X11: =IFERROR(IF((OR($C11="RP",$C11="SP")),"",VLOOKUP($B11,Hitter!$A$1:$AH$700,11,FALSE)),"") -> 7.637409629 | Y11: =IFERROR(IF(ISTEXT($A11),"",(1-NORMDIST((COUNTA($A$4:$A$743)),($G11),((AD11-AC11)/6),TRUE))),"") -> 0.9999813826 | Z11: =IFERROR(IF(ISTEXT($A11),"",(1-NORMDIST((COUNTA($A$4:$A$743))+(Personalize!$E$18+1),$G11,((AD11-AC11)/6),TRUE))),"") -> 0.9967751747 | AA11: =IFERROR(IF(ISTEXT($A11),"",(1-NORMDIST((COUNTA($A$4:$A$743))+((Personalize!$E$18+1)*2),$G11,((AD11-AC11)/6),TRUE))),"") -> 0.9072484776 | AC11: =IF(Personalize!$E$34=1,VLOOKUP($B11,'ADP-Rank'!$A$2:$J$700,5,FALSE),(IF(Personalize!$E$34=2,VLOOKUP($B11,'ADP-Rank'!$A$2:$J$700,8,FALSE),(IF(Personalize!$E$34=3,VLOOKUP($B11,'ADP-Rank'!$A$2:$O$700,11,FALSE),(IF(Personalize!$E$31=4,VLOOKUP($B11,'ADP-Rank'!$A$2:$AZ$700,25,FALSE),(IF(Personalize!$E$31=5,VLOOKUP($B11,'ADP-Rank'!$A$2:$AZ$700,28,FALSE),(IF(Personalize!$E$31=6,VLOOKUP($B11,'ADP-Rank'!$A$2:$AZ$700,32,FALSE),""))))))))))) -> 6 | AD11: =IF(Personalize!$E$34=1,VLOOKUP($B11,'ADP-Rank'!$A$2:$J$700,6,FALSE),(IF(Personalize!$E$34=2,VLOOKUP($B11,'ADP-Rank'!$A$2:$J$700,9,FALSE),(IF(Personalize!$E$34=3,VLOOKUP($B11,'ADP-Rank'!$A$2:$O$700,12,FALSE),(IF(Personalize!$E$31=4,VLOOKUP($B11,'ADP-Rank'!$A$2:$AZ$700,26,FALSE),(IF(Personalize!$E$31=5,VLOOKUP($B11,'ADP-Rank'!$A$2:$AZ$700,29,FALSE),(IF(Personalize!$E$31=6,VLOOKUP($B11,'ADP-Rank'!$A$2:$AZ$700,33,FALSE),""))))))))))) -> 21 | AE11: =IF(ISBLANK(A11),0,1) -> 0 | AF11: =IF(K11="",0,1) -> 1 | AG11: =A11 -> 0 | AH11: =IF(C11="C",1,IF(C11="1B",2,IF(C11="2B",3,IF(C11="3B",4,IF(C11="SS",5,IF(C11="CI",6,IF(C11="MI",7,IF(C11="OF",11,IF(C11="LF",8,IF(C11="CF",9,IF(C11="RF",10,IF(C11="DH",12,IF(C11="SP",13,IF(C11="RP",14,IF(C11="P",15,16))))))))))))))) -> 2 | AI11: =VLOOKUP(B11,'Starter Calc'!$B$2:$BN$700,65,FALSE) -> Bench | AJ11: =IFERROR(VLOOKUP($B11,'ADP-Rank'!$A$2:$AH$964,34,FALSE),TRUE) -> TRUE
B12: Matt Kemp | C12: =IFERROR(IF(VLOOKUP(B12,'ADP-Rank'!$A$2:$B$700,2,FALSE)="OF",VLOOKUP(B12,'Starter Calc'!$B$2:$AM$700,38,FALSE),(VLOOKUP(B12,'ADP-Rank'!$A$2:$B$700,2,FALSE))),"") -> OF | D12: =IFERROR(IF(VLOOKUP(B12,'Starter Calc'!$B$2:$E$700,4,FALSE)="","",VLOOKUP(B12,'Starter Calc'!$B$2:$E$700,4,FALSE)),"") -> CF | E12: =IFERROR(VLOOKUP($B12,'ADP-Rank'!$A$2:$D$700,3,FALSE),"") -> LA | F12: =IFERROR(VLOOKUP($B12,'ADP-Rank'!$A$2:$W$700,23,FALSE),"") -> 29 | G12: =IFERROR((IF(Personalize!$E$38=1,VLOOKUP($B12,'ADP-Rank'!$A$2:$J$700,4,FALSE),(IF(Personalize!$E$38=2,VLOOKUP($B12,'ADP-Rank'!$A$2:$J$700,7,FALSE),(IF(Personalize!$E$38=3,VLOOKUP($B12,'ADP-Rank'!$A$2:$J$700,10,FALSE),(IF(Personalize!$E$38=4,VLOOKUP($B12,'ADP-Rank'!$A$2:$AD$700,24,FALSE),(IF(Personalize!$E$38=5,VLOOKUP($B12,'ADP-Rank'!$A$2:$AD$700,27,FALSE),VLOOKUP($B12,'ADP-Rank'!$A$2:$AZ$700,30,FALSE))))))))))),"") -> 10.7 | H12: =IFERROR(ROUNDDOWN(VLOOKUP($B12,'ADP-Rank'!$A$2:$AY$1064,38,FALSE),0),"") -> 1 | I12: =VLOOKUP($B12,'ADP-Rank'!$A$2:$AJ$1064,36,FALSE) -> 6 | J12: =IFERROR(RANK($M12,$M$4:$M$743,0),"") -> 42 | K12: =IFERROR(IF((OR($C12="RP",$C12="SP")),VLOOKUP($B12,Pitcher!$A$1:$Z$700,20,FALSE),(VLOOKUP($B12,Hitter!$A$1:$Z$700,26,FALSE))),"") -> 410.5858464 | L12: =IFERROR(IF((OR($C12="RP",$C12="SP")),VLOOKUP($C12,'Filtered-P'!$M$3:$P$4,4,FALSE), VLOOKUP($C12,Filtered!$Q$3:$T$14,4,FALSE)),"") -> 368.4885837 | M12: =IFERROR(K12-L12,"") -> 42.09726266 | N12: =IFERROR(IF((OR($C12="RP",$C12="SP")),VLOOKUP($B12,Pitcher!$A$1:$Z$700,20,FALSE)/VLOOKUP($B12,Pitcher!$A$1:$Z$700,4,FALSE),(VLOOKUP($B12,Hitter!$A$1:$Z$700,26,FALSE)/VLOOKUP($B12,Hitter!$A$1:$Z$700,2,FALSE))),"") -> 0.6530895819 | O12: =IFERROR(IF((OR($C12="RP",$C12="SP")),VLOOKUP($B12,Pitcher!$A$1:$V$700,2,FALSE),""),"") ->  | P12: =IFERROR(IF((OR($C12="RP",$C12="SP")),VLOOKUP($B12,Pitcher!$A$1:$V$700,9,FALSE),""),"") ->  | Q12: =IFERROR(IF((OR($C12="RP",$C12="SP")),VLOOKUP($B12,Pitcher!$A$1:$V$700,7,FALSE),""),"") ->  | R12: =IFERROR(IF((OR($C12="RP",$C12="SP")),VLOOKUP($B12,Pitcher!$A$1:$AB$700,21,FALSE),""),"") ->  | S12: =IFERROR(IF((OR($C12="RP",$C12="SP")),VLOOKUP($B12,Pitcher!$A$1:$V$700,22,FALSE),""),"") ->  | T12: =IFERROR(IF((OR($C12="RP",$C12="SP")),"",VLOOKUP($B12,Hitter!$A$1:$AH$700,27,FALSE)),"") -> 0.2862772125 | U12: =IFERROR(IF((OR($C12="RP",$C12="SP")),"",VLOOKUP($B12,Hitter!$A$1:$AH$700,9,FALSE)),"") -> 29.60652887 | V12: =IFERROR(IF((OR($C12="RP",$C12="SP")),"",VLOOKUP($B12,Hitter!$A$1:$AH$700,10,FALSE)),"") -> 98.81068627 | W12: =IFERROR(IF((OR($C12="RP",$C12="SP")),"",VLOOKUP($B12,Hitter!$A$1:$AH$700,4,FALSE)),"") -> 98.50460801 | X12: =IFERROR(IF((OR($C12="RP",$C12="SP")),"",VLOOKUP($B12,Hitter!$A$1:$AH$700,11,FALSE)),"") -> 19.80830412 | Y12: =IFERROR(IF(ISTEXT($A12),"",(1-NORMDIST((COUNTA($A$4:$A$743)),($G12),((AD12-AC12)/6),TRUE))),"") -> 1 | Z12: =IFERROR(IF(ISTEXT($A12),"",(1-NORMDIST((COUNTA($A$4:$A$743))+(Personalize!$E$18+1),$G12,((AD12-AC12)/6),TRUE))),"") -> 1 | AA12: =IFERROR(IF(ISTEXT($A12),"",(1-NORMDIST((COUNTA($A$4:$A$743))+((Personalize!$E$18+1)*2),$G12,((AD12-AC12)/6),TRUE))),"") -> 0.9998922003 | AC12: =IF(Personalize!$E$34=1,VLOOKUP($B12,'ADP-Rank'!$A$2:$J$700,5,FALSE),(IF(Personalize!$E$34=2,VLOOKUP($B12,'ADP-Rank'!$A$2:$J$700,8,FALSE),(IF(Personalize!$E$34=3,VLOOKUP($B12,'ADP-Rank'!$A$2:$O$700,11,FALSE),(IF(Personalize!$E$31=4,VLOOKUP($B12,'ADP-Rank'!$A$2:$AZ$700,25,FALSE),(IF(Personalize!$E$31=5,VLOOKUP($B12,'ADP-Rank'!$A$2:$AZ$700,28,FALSE),(IF(Personalize!$E$31=6,VLOOKUP($B12,'ADP-Rank'!$A$2:$AZ$700,32,FALSE),""))))))))))) -> 3 | AD12: =IF(Personalize!$E$34=1,VLOOKUP($B12,'ADP-Rank'!$A$2:$J$700,6,FALSE),(IF(Personalize!$E$34=2,VLOOKUP($B12,'ADP-Rank'!$A$2:$J$700,9,FALSE),(IF(Personalize!$E$34=3,VLOOKUP($B12,'ADP-Rank'!$A$2:$O$700,12,FALSE),(IF(Personalize!$E$31=4,VLOOKUP($B12,'ADP-Rank'!$A$2:$AZ$700,26,FALSE),(IF(Personalize!$E$31=5,VLOOKUP($B12,'ADP-Rank'!$A$2:$AZ$700,29,FALSE),(IF(Personalize!$E$31=6,VLOOKUP($B12,'ADP-Rank'!$A$2:$AZ$700,33,FALSE),""))))))))))) -> 9 | AE12: =IF(ISBLANK(A12),0,1) -> 0 | AF12: =IF(K12="",0,1) -> 1 | AG12: =A12 -> 0 | AH12: =IF(C12="C",1,IF(C12="1B",2,IF(C12="2B",3,IF(C12="3B",4,IF(C12="SS",5,IF(C12="CI",6,IF(C12="MI",7,IF(C12="OF",11,IF(C12="LF",8,IF(C12="CF",9,IF(C12="RF",10,IF(C12="DH",12,IF(C12="SP",13,IF(C12="RP",14,IF(C12="P",15,16))))))))))))))) -> 11 | AI12: =VLOOKUP(B12,'Starter Calc'!$B$2:$BN$700,65,FALSE) -> Bench | AJ12: =IFERROR(VLOOKUP($B12,'ADP-Rank'!$A$2:$AH$964,34,FALSE),TRUE) -> TRUE
B13: David Price | C13: =IFERROR(IF(VLOOKUP(B13,'ADP-Rank'!$A$2:$B$700,2,FALSE)="OF",VLOOKUP(B13,'Starter Calc'!$B$2:$AM$700,38,FALSE),(VLOOKUP(B13,'ADP-Rank'!$A$2:$B$700,2,FALSE))),"") -> SP | D13: =IFERROR(IF(VLOOKUP(B13,'Starter Calc'!$B$2:$E$700,4,FALSE)="","",VLOOKUP(B13,'Starter Calc'!$B$2:$E$700,4,FALSE)),"") ->  | E13: =IFERROR(VLOOKUP($B13,'ADP-Rank'!$A$2:$D$700,3,FALSE),"") -> TB | F13: =IFERROR(VLOOKUP($B13,'ADP-Rank'!$A$2:$W$700,23,FALSE),"") -> 28 | G13: =IFERROR((IF(Personalize!$E$38=1,VLOOKUP($B13,'ADP-Rank'!$A$2:$J$700,4,FALSE),(IF(Personalize!$E$38=2,VLOOKUP($B13,'ADP-Rank'!$A$2:$J$700,7,FALSE),(IF(Personalize!$E$38=3,VLOOKUP($B13,'ADP-Rank'!$A$2:$J$700,10,FALSE),(IF(Personalize!$E$38=4,VLOOKUP($B13,'ADP-Rank'!$A$2:$AD$700,24,FALSE),(IF(Personalize!$E$38=5,VLOOKUP($B13,'ADP-Rank'!$A$2:$AD$700,27,FALSE),VLOOKUP($B13,'ADP-Rank'!$A$2:$AZ$700,30,FALSE))))))))))),"") -> 11.11 | H13: =IFERROR(ROUNDDOWN(VLOOKUP($B13,'ADP-Rank'!$A$2:$AY$1064,38,FALSE),0),"") -> 1 | I13: =VLOOKUP($B13,'ADP-Rank'!$A$2:$AJ$1064,36,FALSE) -> 23 | J13: =IFERROR(RANK($M13,$M$4:$M$743,0),"") -> 14 | K13: =IFERROR(IF((OR($C13="RP",$C13="SP")),VLOOKUP($B13,Pitcher!$A$1:$Z$700,20,FALSE),(VLOOKUP($B13,Hitter!$A$1:$Z$700,26,FALSE))),"") -> 451.1990044 | L13: =IFERROR(IF((OR($C13="RP",$C13="SP")),VLOOKUP($C13,'Filtered-P'!$M$3:$P$4,4,FALSE), VLOOKUP($C13,Filtered!$Q$3:$T$14,4,FALSE)),"") -> 357.2271519 | M13: =IFERROR(K13-L13,"") -> 93.97185255 | N13: =IFERROR(IF((OR($C13="RP",$C13="SP")),VLOOKUP($B13,Pitcher!$A$1:$Z$700,20,FALSE)/VLOOKUP($B13,Pitcher!$A$1:$Z$700,4,FALSE),(VLOOKUP($B13,Hitter!$A$1:$Z$700,26,FALSE)/VLOOKUP($B13,Hitter!$A$1:$Z$700,2,FALSE))),"") -> 2.210676161 | O13: =IFERROR(IF((OR($C13="RP",$C13="SP")),VLOOKUP($B13,Pitcher!$A$1:$V$700,2,FALSE),""),"") -> 15.86 | P13: =IFERROR(IF((OR($C13="RP",$C13="SP")),VLOOKUP($B13,Pitcher!$A$1:$V$700,9,FALSE),""),"") -> 0 | Q13: =IFERROR(IF((OR($C13="RP",$C13="SP")),VLOOKUP($B13,Pitcher!$A$1:$V$700,7,FALSE),""),"") -> 198.7116018 | R13: =IFERROR(IF((OR($C13="RP",$C13="SP")),VLOOKUP($B13,Pitcher!$A$1:$AB$700,21,FALSE),""),"") -> 3.263547281 | S13: =IFERROR(IF((OR($C13="RP",$C13="SP")),VLOOKUP($B13,Pitcher!$A$1:$V$700,22,FALSE),""),"") -> 1.191131798 | T13: =IFERROR(IF((OR($C13="RP",$C13="SP")),"",VLOOKUP($B13,Hitter!$A$1:$AH$700,27,FALSE)),"") ->  | U13: =IFERROR(IF((OR($C13="RP",$C13="SP")),"",VLOOKUP($B13,Hitter!$A$1:$AH$700,9,FALSE)),"") ->  | V13: =IFERROR(IF((OR($C13="RP",$C13="SP")),"",VLOOKUP($B13,Hitter!$A$1:$AH$700,10,FALSE)),"") ->  | W13: =IFERROR(IF((OR($C13="RP",$C13="SP")),"",VLOOKUP($B13,Hitter!$A$1:$AH$700,4,FALSE)),"") ->  | X13: =IFERROR(IF((OR($C13="RP",$C13="SP")),"",VLOOKUP($B13,Hitter!$A$1:$AH$700,11,FALSE)),"") ->  | Y13: =IFERROR(IF(ISTEXT($A13),"",(1-NORMDIST((COUNTA($A$4:$A$743)),($G13),((AD13-AC13)/6),TRUE))),"") -> 0.9868583472 | Z13: =IFERROR(IF(ISTEXT($A13),"",(1-NORMDIST((COUNTA($A$4:$A$743))+(Personalize!$E$18+1),$G13,((AD13-AC13)/6),TRUE))),"") -> 0.9359954597 | AA13: =IFERROR(IF(ISTEXT($A13),"",(1-NORMDIST((COUNTA($A$4:$A$743))+((Personalize!$E$18+1)*2),$G13,((AD13-AC13)/6),TRUE))),"") -> 0.7944615515 | AC13: =IF(Personalize!$E$34=1,VLOOKUP($B13,'ADP-Rank'!$A$2:$J$700,5,FALSE),(IF(Personalize!$E$34=2,VLOOKUP($B13,'ADP-Rank'!$A$2:$J$700,8,FALSE),(IF(Personalize!$E$34=3,VLOOKUP($B13,'ADP-Rank'!$A$2:$O$700,11,FALSE),(IF(Personalize!$E$31=4,VLOOKUP($B13,'ADP-Rank'!$A$2:$AZ$700,25,FALSE),(IF(Personalize!$E$31=5,VLOOKUP($B13,'ADP-Rank'!$A$2:$AZ$700,28,FALSE),(IF(Personalize!$E$31=6,VLOOKUP($B13,'ADP-Rank'!$A$2:$AZ$700,32,FALSE),""))))))))))) -> 20 | AD13: =IF(Personalize!$E$34=1,VLOOKUP($B13,'ADP-Rank'!$A$2:$J$700,6,FALSE),(IF(Personalize!$E$34=2,VLOOKUP($B13,'ADP-Rank'!$A$2:$J$700,9,FALSE),(IF(Personalize!$E$34=3,VLOOKUP($B13,'ADP-Rank'!$A$2:$O$700,12,FALSE),(IF(Personalize!$E$31=4,VLOOKUP($B13,'ADP-Rank'!$A$2:$AZ$700,26,FALSE),(IF(Personalize!$E$31=5,VLOOKUP($B13,'ADP-Rank'!$A$2:$AZ$700,29,FALSE),(IF(Personalize!$E$31=6,VLOOKUP($B13,'ADP-Rank'!$A$2:$AZ$700,33,FALSE),""))))))))))) -> 50 | AE13: =IF(ISBLANK(A13),0,1) -> 0 | AF13: =IF(K13="",0,1) -> 1 | AG13: =A13 -> 0 | AH13: =IF(C13="C",1,IF(C13="1B",2,IF(C13="2B",3,IF(C13="3B",4,IF(C13="SS",5,IF(C13="CI",6,IF(C13="MI",7,IF(C13="OF",11,IF(C13="LF",8,IF(C13="CF",9,IF(C13="RF",10,IF(C13="DH",12,IF(C13="SP",13,IF(C13="RP",14,IF(C13="P",15,16))))))))))))))) -> 13 | AI13: =VLOOKUP(B13,'Starter Calc'!$B$2:$BN$700,65,FALSE) -> Bench | AJ13: =IFERROR(VLOOKUP($B13,'ADP-Rank'!$A$2:$AH$964,34,FALSE),TRUE) -> TRUE
B14: Stephen Strasburg | C14: =IFERROR(IF(VLOOKUP(B14,'ADP-Rank'!$A$2:$B$700,2,FALSE)="OF",VLOOKUP(B14,'Starter Calc'!$B$2:$AM$700,38,FALSE),(VLOOKUP(B14,'ADP-Rank'!$A$2:$B$700,2,FALSE))),"") -> SP | D14: =IFERROR(IF(VLOOKUP(B14,'Starter Calc'!$B$2:$E$700,4,FALSE)="","",VLOOKUP(B14,'Starter Calc'!$B$2:$E$700,4,FALSE)),"") ->  | E14: =IFERROR(VLOOKUP($B14,'ADP-Rank'!$A$2:$D$700,3,FALSE),"") -> WAS | F14: =IFERROR(VLOOKUP($B14,'ADP-Rank'!$A$2:$W$700,23,FALSE),"") -> 25 | G14: =IFERROR((IF(Personalize!$E$38=1,VLOOKUP($B14,'ADP-Rank'!$A$2:$J$700,4,FALSE),(IF(Personalize!$E$38=2,VLOOKUP($B14,'ADP-Rank'!$A$2:$J$700,7,FALSE),(IF(Personalize!$E$38=3,VLOOKUP($B14,'ADP-Rank'!$A$2:$J$700,10,FALSE),(IF(Personalize!$E$38=4,VLOOKUP($B14,'ADP-Rank'!$A$2:$AD$700,24,FALSE),(IF(Personalize!$E$38=5,VLOOKUP($B14,'ADP-Rank'!$A$2:$AD$700,27,FALSE),VLOOKUP($B14,'ADP-Rank'!$A$2:$AZ$700,30,FALSE))))))))))),"") -> 12.16 | H14: =IFERROR(ROUNDDOWN(VLOOKUP($B14,'ADP-Rank'!$A$2:$AY$1064,38,FALSE),0),"") -> 1 | I14: =VLOOKUP($B14,'ADP-Rank'!$A$2:$AJ$1064,36,FALSE) -> 32 | J14: =IFERROR(RANK($M14,$M$4:$M$743,0),"") -> 4 | K14: =IFERROR(IF((OR($C14="RP",$C14="SP")),VLOOKUP($B14,Pitcher!$A$1:$Z$700,20,FALSE),(VLOOKUP($B14,Hitter!$A$1:$Z$700,26,FALSE))),"") -> 523.2947572 | L14: =IFERROR(IF((OR($C14="RP",$C14="SP")),VLOOKUP($C14,'Filtered-P'!$M$3:$P$4,4,FALSE), VLOOKUP($C14,Filtered!$Q$3:$T$14,4,FALSE)),"") -> 357.2271519 | M14: =IFERROR(K14-L14,"") -> 166.0676053 | N14: =IFERROR(IF((OR($C14="RP",$C14="SP")),VLOOKUP($B14,Pitcher!$A$1:$Z$700,20,FALSE)/VLOOKUP($B14,Pitcher!$A$1:$Z$700,4,FALSE),(VLOOKUP($B14,Hitter!$A$1:$Z$700,26,FALSE)/VLOOKUP($B14,Hitter!$A$1:$Z$700,2,FALSE))),"") -> 3.141213502 | O14: =IFERROR(IF((OR($C14="RP",$C14="SP")),VLOOKUP($B14,Pitcher!$A$1:$V$700,2,FALSE),""),"") -> 15.16 | P14: =IFERROR(IF((OR($C14="RP",$C14="SP")),VLOOKUP($B14,Pitcher!$A$1:$V$700,9,FALSE),""),"") -> 0 | Q14: =IFERROR(IF((OR($C14="RP",$C14="SP")),VLOOKUP($B14,Pitcher!$A$1:$V$700,7,FALSE),""),"") -> 212.1379029 | R14: =IFERROR(IF((OR($C14="RP",$C14="SP")),VLOOKUP($B14,Pitcher!$A$1:$AB$700,21,FALSE),""),"") -> 2.857374392 | S14: =IFERROR(IF((OR($C14="RP",$C14="SP")),VLOOKUP($B14,Pitcher!$A$1:$V$700,22,FALSE),""),"") -> 1.103967825 | T14: =IFERROR(IF((OR($C14="RP",$C14="SP")),"",VLOOKUP($B14,Hitter!$A$1:$AH$700,27,FALSE)),"") ->  | U14: =IFERROR(IF((OR($C14="RP",$C14="SP")),"",VLOOKUP($B14,Hitter!$A$1:$AH$700,9,FALSE)),"") ->  | V14: =IFERROR(IF((OR($C14="RP",$C14="SP")),"",VLOOKUP($B14,Hitter!$A$1:$AH$700,10,FALSE)),"") ->  | W14: =IFERROR(IF((OR($C14="RP",$C14="SP")),"",VLOOKUP($B14,Hitter!$A$1:$AH$700,4,FALSE)),"") ->  | X14: =IFERROR(IF((OR($C14="RP",$C14="SP")),"",VLOOKUP($B14,Hitter!$A$1:$AH$700,11,FALSE)),"") ->  | Y14: =IFERROR(IF(ISTEXT($A14),"",(1-NORMDIST((COUNTA($A$4:$A$743)),($G14),((AD14-AC14)/6),TRUE))),"") -> 0.9907024062 | Z14: =IFERROR(IF(ISTEXT($A14),"",(1-NORMDIST((COUNTA($A$4:$A$743))+(Personalize!$E$18+1),$G14,((AD14-AC14)/6),TRUE))),"") -> 0.9531435394 | AA14: =IFERROR(IF(ISTEXT($A14),"",(1-NORMDIST((COUNTA($A$4:$A$743))+((Personalize!$E$18+1)*2),$G14,((AD14-AC14)/6),TRUE))),"") -> 0.8410323243 | AC14: =IF(Personalize!$E$34=1,VLOOKUP($B14,'ADP-Rank'!$A$2:$J$700,5,FALSE),(IF(Personalize!$E$34=2,VLOOKUP($B14,'ADP-Rank'!$A$2:$J$700,8,FALSE),(IF(Personalize!$E$34=3,VLOOKUP($B14,'ADP-Rank'!$A$2:$O$700,11,FALSE),(IF(Personalize!$E$31=4,VLOOKUP($B14,'ADP-Rank'!$A$2:$AZ$700,25,FALSE),(IF(Personalize!$E$31=5,VLOOKUP($B14,'ADP-Rank'!$A$2:$AZ$700,28,FALSE),(IF(Personalize!$E$31=6,VLOOKUP($B14,'ADP-Rank'!$A$2:$AZ$700,32,FALSE),""))))))))))) -> 16 | AD14: =IF(Personalize!$E$34=1,VLOOKUP($B14,'ADP-Rank'!$A$2:$J$700,6,FALSE),(IF(Personalize!$E$34=2,VLOOKUP($B14,'ADP-Rank'!$A$2:$J$700,9,FALSE),(IF(Personalize!$E$34=3,VLOOKUP($B14,'ADP-Rank'!$A$2:$O$700,12,FALSE),(IF(Personalize!$E$31=4,VLOOKUP($B14,'ADP-Rank'!$A$2:$AZ$700,26,FALSE),(IF(Personalize!$E$31=5,VLOOKUP($B14,'ADP-Rank'!$A$2:$AZ$700,29,FALSE),(IF(Personalize!$E$31=6,VLOOKUP($B14,'ADP-Rank'!$A$2:$AZ$700,33,FALSE),""))))))))))) -> 47 | AE14: =IF(ISBLANK(A14),0,1) -> 0 | AF14: =IF(K14="",0,1) -> 1 | AG14: =A14 -> 0 | AH14: =IF(C14="C",1,IF(C14="1B",2,IF(C14="2B",3,IF(C14="3B",4,IF(C14="SS",5,IF(C14="CI",6,IF(C14="MI",7,IF(C14="OF",11,IF(C14="LF",8,IF(C14="CF",9,IF(C14="RF",10,IF(C14="DH",12,IF(C14="SP",13,IF(C14="RP",14,IF(C14="P",15,16))))))))))))))) -> 13 | AI14: =VLOOKUP(B14,'Starter Calc'!$B$2:$BN$700,65,FALSE) -> Bench | AJ14: =IFERROR(VLOOKUP($B14,'ADP-Rank'!$A$2:$AH$964,34,FALSE),TRUE) -> TRUE
B15: Prince Fielder | C15: =IFERROR(IF(VLOOKUP(B15,'ADP-Rank'!$A$2:$B$700,2,FALSE)="OF",VLOOKUP(B15,'Starter Calc'!$B$2:$AM$700,38,FALSE),(VLOOKUP(B15,'ADP-Rank'!$A$2:$B$700,2,FALSE))),"") -> 1B | D15: =IFERROR(IF(VLOOKUP(B15,'Starter Calc'!$B$2:$E$700,4,FALSE)="","",VLOOKUP(B15,'Starter Calc'!$B$2:$E$700,4,FALSE)),"") ->  | E15: =IFERROR(VLOOKUP($B15,'ADP-Rank'!$A$2:$D$700,3,FALSE),"") -> DET | F15: =IFERROR(VLOOKUP($B15,'ADP-Rank'!$A$2:$W$700,23,FALSE),"") -> 29 | G15: =IFERROR((IF(Personalize!$E$38=1,VLOOKUP($B15,'ADP-Rank'!$A$2:$J$700,4,FALSE),(IF(Personalize!$E$38=2,VLOOKUP($B15,'ADP-Rank'!$A$2:$J$700,7,FALSE),(IF(Personalize!$E$38=3,VLOOKUP($B15,'ADP-Rank'!$A$2:$J$700,10,FALSE),(IF(Personalize!$E$38=4,VLOOKUP($B15,'ADP-Rank'!$A$2:$AD$700,24,FALSE),(IF(Personalize!$E$38=5,VLOOKUP($B15,'ADP-Rank'!$A$2:$AD$700,27,FALSE),VLOOKUP($B15,'ADP-Rank'!$A$2:$AZ$700,30,FALSE))))))))))),"") -> 13.9 | H15: =IFERROR(ROUNDDOWN(VLOOKUP($B15,'ADP-Rank'!$A$2:$AY$1064,38,FALSE),0),"") -> 1 | I15: =VLOOKUP($B15,'ADP-Rank'!$A$2:$AJ$1064,36,FALSE) -> 9 | J15: =IFERROR(RANK($M15,$M$4:$M$743,0),"") -> 16 | K15: =IFERROR(IF((OR($C15="RP",$C15="SP")),VLOOKUP($B15,Pitcher!$A$1:$Z$700,20,FALSE),(VLOOKUP($B15,Hitter!$A$1:$Z$700,26,FALSE))),"") -> 482.0086296 | L15: =IFERROR(IF((OR($C15="RP",$C15="SP")),VLOOKUP($C15,'Filtered-P'!$M$3:$P$4,4,FALSE), VLOOKUP($C15,Filtered!$Q$3:$T$14,4,FALSE)),"") -> 395.2780551 | M15: =IFERROR(K15-L15,"") -> 86.73057448 | N15: =IFERROR(IF((OR($C15="RP",$C15="SP")),VLOOKUP($B15,Pitcher!$A$1:$Z$700,20,FALSE)/VLOOKUP($B15,Pitcher!$A$1:$Z$700,4,FALSE),(VLOOKUP($B15,Hitter!$A$1:$Z$700,26,FALSE)/VLOOKUP($B15,Hitter!$A$1:$Z$700,2,FALSE))),"") -> 0.7343130162 | O15: =IFERROR(IF((OR($C15="RP",$C15="SP")),VLOOKUP($B15,Pitcher!$A$1:$V$700,2,FALSE),""),"") ->  | P15: =IFERROR(IF((OR($C15="RP",$C15="SP")),VLOOKUP($B15,Pitcher!$A$1:$V$700,9,FALSE),""),"") ->  | Q15: =IFERROR(IF((OR($C15="RP",$C15="SP")),VLOOKUP($B15,Pitcher!$A$1:$V$700,7,FALSE),""),"") ->  | R15: =IFERROR(IF((OR($C15="RP",$C15="SP")),VLOOKUP($B15,Pitcher!$A$1:$AB$700,21,FALSE),""),"") ->  | S15: =IFERROR(IF((OR($C15="RP",$C15="SP")),VLOOKUP($B15,Pitcher!$A$1:$V$700,22,FALSE),""),"") ->  | T15: =IFERROR(IF((OR($C15="RP",$C15="SP")),"",VLOOKUP($B15,Hitter!$A$1:$AH$700,27,FALSE)),"") -> 0.293365618 | U15: =IFERROR(IF((OR($C15="RP",$C15="SP")),"",VLOOKUP($B15,Hitter!$A$1:$AH$700,9,FALSE)),"") -> 32.0867253 | V15: =IFERROR(IF((OR($C15="RP",$C15="SP")),"",VLOOKUP($B15,Hitter!$A$1:$AH$700,10,FALSE)),"") -> 102.8605805 | W15: =IFERROR(IF((OR($C15="RP",$C15="SP")),"",VLOOKUP($B15,Hitter!$A$1:$AH$700,4,FALSE)),"") -> 95.12258657 | X15: =IFERROR(IF((OR($C15="RP",$C15="SP")),"",VLOOKUP($B15,Hitter!$A$1:$AH$700,11,FALSE)),"") -> 1.329067079 | Y15: =IFERROR(IF(ISTEXT($A15),"",(1-NORMDIST((COUNTA($A$4:$A$743)),($G15),((AD15-AC15)/6),TRUE))),"") -> 0.9999999068 | Z15: =IFERROR(IF(ISTEXT($A15),"",(1-NORMDIST((COUNTA($A$4:$A$743))+(Personalize!$E$18+1),$G15,((AD15-AC15)/6),TRUE))),"") -> 0.9999519037 | AA15: =IFERROR(IF(ISTEXT($A15),"",(1-NORMDIST((COUNTA($A$4:$A$743))+((Personalize!$E$18+1)*2),$G15,((AD15-AC15)/6),TRUE))),"") -> 0.9951662402 | AC15: =IF(Personalize!$E$34=1,VLOOKUP($B15,'ADP-Rank'!$A$2:$J$700,5,FALSE),(IF(Personalize!$E$34=2,VLOOKUP($B15,'ADP-Rank'!$A$2:$J$700,8,FALSE),(IF(Personalize!$E$34=3,VLOOKUP($B15,'ADP-Rank'!$A$2:$O$700,11,FALSE),(IF(Personalize!$E$31=4,VLOOKUP($B15,'ADP-Rank'!$A$2:$AZ$700,25,FALSE),(IF(Personalize!$E$31=5,VLOOKUP($B15,'ADP-Rank'!$A$2:$AZ$700,28,FALSE),(IF(Personalize!$E$31=6,VLOOKUP($B15,'ADP-Rank'!$A$2:$AZ$700,32,FALSE),""))))))))))) -> 7 | AD15: =IF(Personalize!$E$34=1,VLOOKUP($B15,'ADP-Rank'!$A$2:$J$700,6,FALSE),(IF(Personalize!$E$34=2,VLOOKUP($B15,'ADP-Rank'!$A$2:$J$700,9,FALSE),(IF(Personalize!$E$34=3,VLOOKUP($B15,'ADP-Rank'!$A$2:$O$700,12,FALSE),(IF(Personalize!$E$31=4,VLOOKUP($B15,'ADP-Rank'!$A$2:$AZ$700,26,FALSE),(IF(Personalize!$E$31=5,VLOOKUP($B15,'ADP-Rank'!$A$2:$AZ$700,29,FALSE),(IF(Personalize!$E$31=6,VLOOKUP($B15,'ADP-Rank'!$A$2:$AZ$700,33,FALSE),""))))))))))) -> 23 | AE15: =IF(ISBLANK(A15),0,1) -> 0 | AF15: =IF(K15="",0,1) -> 1 | AG15: =A15 -> 0 | AH15: =IF(C15="C",1,IF(C15="1B",2,IF(C15="2B",3,IF(C15="3B",4,IF(C15="SS",5,IF(C15="CI",6,IF(C15="MI",7,IF(C15="OF",11,IF(C15="LF",8,IF(C15="CF",9,IF(C15="RF",10,IF(C15="DH",12,IF(C15="SP",13,IF(C15="RP",14,IF(C15="P",15,16))))))))))))))) -> 2 | AI15: =VLOOKUP(B15,'Starter Calc'!$B$2:$BN$700,65,FALSE) -> Bench | AJ15: =IFERROR(VLOOKUP($B15,'ADP-Rank'!$A$2:$AH$964,34,FALSE),TRUE) -> TRUE
B16: Felix Hernandez | C16: =IFERROR(IF(VLOOKUP(B16,'ADP-Rank'!$A$2:$B$700,2,FALSE)="OF",VLOOKUP(B16,'Starter Calc'!$B$2:$AM$700,38,FALSE),(VLOOKUP(B16,'ADP-Rank'!$A$2:$B$700,2,FALSE))),"") -> SP | D16: =IFERROR(IF(VLOOKUP(B16,'Starter Calc'!$B$2:$E$700,4,FALSE)="","",VLOOKUP(B16,'Starter Calc'!$B$2:$E$700,4,FALSE)),"") ->  | E16: =IFERROR(VLOOKUP($B16,'ADP-Rank'!$A$2:$D$700,3,FALSE),"") -> SEA | F16: =IFERROR(VLOOKUP($B16,'ADP-Rank'!$A$2:$W$700,23,FALSE),"") -> 27 | G16: =IFERROR((IF(Personalize!$E$38=1,VLOOKUP($B16,'ADP-Rank'!$A$2:$J$700,4,FALSE),(IF(Personalize!$E$38=2,VLOOKUP($B16,'ADP-Rank'!$A$2:$J$700,7,FALSE),(IF(Personalize!$E$38=3,VLOOKUP($B16,'ADP-Rank'!$A$2:$J$700,10,FALSE),(IF(Personalize!$E$38=4,VLOOKUP($B16,'ADP-Rank'!$A$2:$AD$700,24,FALSE),(IF(Personalize!$E$38=5,VLOOKUP($B16,'ADP-Rank'!$A$2:$AD$700,27,FALSE),VLOOKUP($B16,'ADP-Rank'!$A$2:$AZ$700,30,FALSE))))))))))),"") -> 15.71 | H16: =IFERROR(ROUNDDOWN(VLOOKUP($B16,'ADP-Rank'!$A$2:$AY$1064,38,FALSE),0),"") -> 2 | I16: =VLOOKUP($B16,'ADP-Rank'!$A$2:$AJ$1064,36,FALSE) -> 21 | J16: =IFERROR(RANK($M16,$M$4:$M$743,0),"") -> 11 | K16: =IFERROR(IF((OR($C16="RP",$C16="SP")),VLOOKUP($B16,Pitcher!$A$1:$Z$700,20,FALSE),(VLOOKUP($B16,Hitter!$A$1:$Z$700,26,FALSE))),"") -> 464.4611283 | L16: =IFERROR(IF((OR($C16="RP",$C16="SP")),VLOOKUP($C16,'Filtered-P'!$M$3:$P$4,4,FALSE), VLOOKUP($C16,Filtered!$Q$3:$T$14,4,FALSE)),"") -> 357.2271519 | M16: =IFERROR(K16-L16,"") -> 107.2339764 | N16: =IFERROR(IF((OR($C16="RP",$C16="SP")),VLOOKUP($B16,Pitcher!$A$1:$Z$700,20,FALSE)/VLOOKUP($B16,Pitcher!$A$1:$Z$700,4,FALSE),(VLOOKUP($B16,Hitter!$A$1:$Z$700,26,FALSE)/VLOOKUP($B16,Hitter!$A$1:$Z$700,2,FALSE))),"") -> 2.185596576 | O16: =IFERROR(IF((OR($C16="RP",$C16="SP")),VLOOKUP($B16,Pitcher!$A$1:$V$700,2,FALSE),""),"") -> 14.7 | P16: =IFERROR(IF((OR($C16="RP",$C16="SP")),VLOOKUP($B16,Pitcher!$A$1:$V$700,9,FALSE),""),"") -> 0 | Q16: =IFERROR(IF((OR($C16="RP",$C16="SP")),VLOOKUP($B16,Pitcher!$A$1:$V$700,7,FALSE),""),"") -> 199.9644513 | R16: =IFERROR(IF((OR($C16="RP",$C16="SP")),VLOOKUP($B16,Pitcher!$A$1:$AB$700,21,FALSE),""),"") -> 3.255093878 | S16: =IFERROR(IF((OR($C16="RP",$C16="SP")),VLOOKUP($B16,Pitcher!$A$1:$V$700,22,FALSE),""),"") -> 1.183944285 | T16: =IFERROR(IF((OR($C16="RP",$C16="SP")),"",VLOOKUP($B16,Hitter!$A$1:$AH$700,27,FALSE)),"") ->  | U16: =IFERROR(IF((OR($C16="RP",$C16="SP")),"",VLOOKUP($B16,Hitter!$A$1:$AH$700,9,FALSE)),"") ->  | V16: =IFERROR(IF((OR($C16="RP",$C16="SP")),"",VLOOKUP($B16,Hitter!$A$1:$AH$700,10,FALSE)),"") ->  | W16: =IFERROR(IF((OR($C16="RP",$C16="SP")),"",VLOOKUP($B16,Hitter!$A$1:$AH$700,4,FALSE)),"") ->  | X16: =IFERROR(IF((OR($C16="RP",$C16="SP")),"",VLOOKUP($B16,Hitter!$A$1:$AH$700,11,FALSE)),"") ->  | Y16: =IFERROR(IF(ISTEXT($A16),"",(1-NORMDIST((COUNTA($A$4:$A$743)),($G16),((AD16-AC16)/6),TRUE))),"") -> 0.997217367 | Z16: =IFERROR(IF(ISTEXT($A16),"",(1-NORMDIST((COUNTA($A$4:$A$743))+(Personalize!$E$18+1),$G16,((AD16-AC16)/6),TRUE))),"") -> 0.9844075714 | AA16: =IFERROR(IF(ISTEXT($A16),"",(1-NORMDIST((COUNTA($A$4:$A$743))+((Personalize!$E$18+1)*2),$G16,((AD16-AC16)/6),TRUE))),"") -> 0.9378605474 | AC16: =IF(Personalize!$E$34=1,VLOOKUP($B16,'ADP-Rank'!$A$2:$J$700,5,FALSE),(IF(Personalize!$E$34=2,VLOOKUP($B16,'ADP-Rank'!$A$2:$J$700,8,FALSE),(IF(Personalize!$E$34=3,VLOOKUP($B16,'ADP-Rank'!$A$2:$O$700,11,FALSE),(IF(Personalize!$E$31=4,VLOOKUP($B16,'ADP-Rank'!$A$2:$AZ$700,25,FALSE),(IF(Personalize!$E$31=5,VLOOKUP($B16,'ADP-Rank'!$A$2:$AZ$700,28,FALSE),(IF(Personalize!$E$31=6,VLOOKUP($B16,'ADP-Rank'!$A$2:$AZ$700,32,FALSE),""))))))))))) -> 23 | AD16: =IF(Personalize!$E$34=1,VLOOKUP($B16,'ADP-Rank'!$A$2:$J$700,6,FALSE),(IF(Personalize!$E$34=2,VLOOKUP($B16,'ADP-Rank'!$A$2:$J$700,9,FALSE),(IF(Personalize!$E$34=3,VLOOKUP($B16,'ADP-Rank'!$A$2:$O$700,12,FALSE),(IF(Personalize!$E$31=4,VLOOKUP($B16,'ADP-Rank'!$A$2:$AZ$700,26,FALSE),(IF(Personalize!$E$31=5,VLOOKUP($B16,'ADP-Rank'!$A$2:$AZ$700,29,FALSE),(IF(Personalize!$E$31=6,VLOOKUP($B16,'ADP-Rank'!$A$2:$AZ$700,33,FALSE),""))))))))))) -> 57 | AE16: =IF(ISBLANK(A16),0,1) -> 0 | AF16: =IF(K16="",0,1) -> 1 | AG16: =A16 -> 0 | AH16: =IF(C16="C",1,IF(C16="1B",2,IF(C16="2B",3,IF(C16="3B",4,IF(C16="SS",5,IF(C16="CI",6,IF(C16="MI",7,IF(C16="OF",11,IF(C16="LF",8,IF(C16="CF",9,IF(C16="RF",10,IF(C16="DH",12,IF(C16="SP",13,IF(C16="RP",14,IF(C16="P",15,16))))))))))))))) -> 13 | AI16: =VLOOKUP(B16,'Starter Calc'!$B$2:$BN$700,65,FALSE) -> Bench | AJ16: =IFERROR(VLOOKUP($B16,'ADP-Rank'!$A$2:$AH$964,34,FALSE),TRUE) -> TRUE
B17: Troy Tulowitzki | C17: =IFERROR(IF(VLOOKUP(B17,'ADP-Rank'!$A$2:$B$700,2,FALSE)="OF",VLOOKUP(B17,'Starter Calc'!$B$2:$AM$700,38,FALSE),(VLOOKUP(B17,'ADP-Rank'!$A$2:$B$700,2,FALSE))),"") -> SS | D17: =IFERROR(IF(VLOOKUP(B17,'Starter Calc'!$B$2:$E$700,4,FALSE)="","",VLOOKUP(B17,'Starter Calc'!$B$2:$E$700,4,FALSE)),"") ->  | E17: =IFERROR(VLOOKUP($B17,'ADP-Rank'!$A$2:$D$700,3,FALSE),"") -> COL | F17: =IFERROR(VLOOKUP($B17,'ADP-Rank'!$A$2:$W$700,23,FALSE),"") -> 29 | G17: =IFERROR((IF(Personalize!$E$38=1,VLOOKUP($B17,'ADP-Rank'!$A$2:$J$700,4,FALSE),(IF(Personalize!$E$38=2,VLOOKUP($B17,'ADP-Rank'!$A$2:$J$700,7,FALSE),(IF(Personalize!$E$38=3,VLOOKUP($B17,'ADP-Rank'!$A$2:$J$700,10,FALSE),(IF(Personalize!$E$38=4,VLOOKUP($B17,'ADP-Rank'!$A$2:$AD$700,24,FALSE),(IF(Personalize!$E$38=5,VLOOKUP($B17,'ADP-Rank'!$A$2:$AD$700,27,FALSE),VLOOKUP($B17,'ADP-Rank'!$A$2:$AZ$700,30,FALSE))))))))))),"") -> 16 | H17: =IFERROR(ROUNDDOWN(VLOOKUP($B17,'ADP-Rank'!$A$2:$AY$1064,38,FALSE),0),"") -> 2 | I17: =VLOOKUP($B17,'ADP-Rank'!$A$2:$AJ$1064,36,FALSE) -> 10 | J17: =IFERROR(RANK($M17,$M$4:$M$743,0),"") -> 57 | K17: =IFERROR(IF((OR($C17="RP",$C17="SP")),VLOOKUP($B17,Pitcher!$A$1:$Z$700,20,FALSE),(VLOOKUP($B17,Hitter!$A$1:$Z$700,26,FALSE))),"") -> 363.1750236 | L17: =IFERROR(IF((OR($C17="RP",$C17="SP")),VLOOKUP($C17,'Filtered-P'!$M$3:$P$4,4,FALSE), VLOOKUP($C17,Filtered!$Q$3:$T$14,4,FALSE)),"") -> 340.1248739 | M17: =IFERROR(K17-L17,"") -> 23.05014966 | N17: =IFERROR(IF((OR($C17="RP",$C17="SP")),VLOOKUP($B17,Pitcher!$A$1:$Z$700,20,FALSE)/VLOOKUP($B17,Pitcher!$A$1:$Z$700,4,FALSE),(VLOOKUP($B17,Hitter!$A$1:$Z$700,26,FALSE)/VLOOKUP($B17,Hitter!$A$1:$Z$700,2,FALSE))),"") -> 0.7558386345 | O17: =IFERROR(IF((OR($C17="RP",$C17="SP")),VLOOKUP($B17,Pitcher!$A$1:$V$700,2,FALSE),""),"") ->  | P17: =IFERROR(IF((OR($C17="RP",$C17="SP")),VLOOKUP($B17,Pitcher!$A$1:$V$700,9,FALSE),""),"") ->  | Q17: =IFERROR(IF((OR($C17="RP",$C17="SP")),VLOOKUP($B17,Pitcher!$A$1:$V$700,7,FALSE),""),"") ->  | R17: =IFERROR(IF((OR($C17="RP",$C17="SP")),VLOOKUP($B17,Pitcher!$A$1:$AB$700,21,FALSE),""),"") ->  | S17: =IFERROR(IF((OR($C17="RP",$C17="SP")),VLOOKUP($B17,Pitcher!$A$1:$V$700,22,FALSE),""),"") ->  | T17: =IFERROR(IF((OR($C17="RP",$C17="SP")),"",VLOOKUP($B17,Hitter!$A$1:$AH$700,27,FALSE)),"") -> 0.2960041655 | U17: =IFERROR(IF((OR($C17="RP",$C17="SP")),"",VLOOKUP($B17,Hitter!$A$1:$AH$700,9,FALSE)),"") -> 22.13247391 | V17: =IFERROR(IF((OR($C17="RP",$C17="SP")),"",VLOOKUP($B17,Hitter!$A$1:$AH$700,10,FALSE)),"") -> 76.95640701 | W17: =IFERROR(IF((OR($C17="RP",$C17="SP")),"",VLOOKUP($B17,Hitter!$A$1:$AH$700,4,FALSE)),"") -> 74.04939033 | X17: =IFERROR(IF((OR($C17="RP",$C17="SP")),"",VLOOKUP($B17,Hitter!$A$1:$AH$700,11,FALSE)),"") -> 6.976990907 | Y17: =IFERROR(IF(ISTEXT($A17),"",(1-NORMDIST((COUNTA($A$4:$A$743)),($G17),((AD17-AC17)/6),TRUE))),"") -> 0.9999997821 | Z17: =IFERROR(IF(ISTEXT($A17),"",(1-NORMDIST((COUNTA($A$4:$A$743))+(Personalize!$E$18+1),$G17,((AD17-AC17)/6),TRUE))),"") -> 0.9999604925 | AA17: =IFERROR(IF(ISTEXT($A17),"",(1-NORMDIST((COUNTA($A$4:$A$743))+((Personalize!$E$18+1)*2),$G17,((AD17-AC17)/6),TRUE))),"") -> 0.9977591654 | AC17: =IF(Personalize!$E$34=1,VLOOKUP($B17,'ADP-Rank'!$A$2:$J$700,5,FALSE),(IF(Personalize!$E$34=2,VLOOKUP($B17,'ADP-Rank'!$A$2:$J$700,8,FALSE),(IF(Personalize!$E$34=3,VLOOKUP($B17,'ADP-Rank'!$A$2:$O$700,11,FALSE),(IF(Personalize!$E$31=4,VLOOKUP($B17,'ADP-Rank'!$A$2:$AZ$700,25,FALSE),(IF(Personalize!$E$31=5,VLOOKUP($B17,'ADP-Rank'!$A$2:$AZ$700,28,FALSE),(IF(Personalize!$E$31=6,VLOOKUP($B17,'ADP-Rank'!$A$2:$AZ$700,32,FALSE),""))))))))))) -> 10 | AD17: =IF(Personalize!$E$34=1,VLOOKUP($B17,'ADP-Rank'!$A$2:$J$700,6,FALSE),(IF(Personalize!$E$34=2,VLOOKUP($B17,'ADP-Rank'!$A$2:$J$700,9,FALSE),(IF(Personalize!$E$34=3,VLOOKUP($B17,'ADP-Rank'!$A$2:$O$700,12,FALSE),(IF(Personalize!$E$31=4,VLOOKUP($B17,'ADP-Rank'!$A$2:$AZ$700,26,FALSE),(IF(Personalize!$E$31=5,VLOOKUP($B17,'ADP-Rank'!$A$2:$AZ$700,29,FALSE),(IF(Personalize!$E$31=6,VLOOKUP($B17,'ADP-Rank'!$A$2:$AZ$700,33,FALSE),""))))))))))) -> 29 | AE17: =IF(ISBLANK(A17),0,1) -> 0 | AF17: =IF(K17="",0,1) -> 1 | AG17: =A17 -> 0 | AH17: =IF(C17="C",1,IF(C17="1B",2,IF(C17="2B",3,IF(C17="3B",4,IF(C17="SS",5,IF(C17="CI",6,IF(C17="MI",7,IF(C17="OF",11,IF(C17="LF",8,IF(C17="CF",9,IF(C17="RF",10,IF(C17="DH",12,IF(C17="SP",13,IF(C17="RP",14,IF(C17="P",15,16))))))))))))))) -> 5 | AI17: =VLOOKUP(B17,'Starter Calc'!$B$2:$BN$700,65,FALSE) -> Bench | AJ17: =IFERROR(VLOOKUP($B17,'ADP-Rank'!$A$2:$AH$964,34,FALSE),TRUE) -> TRUE
B18: Andrew McCutchen | C18: =IFERROR(IF(VLOOKUP(B18,'ADP-Rank'!$A$2:$B$700,2,FALSE)="OF",VLOOKUP(B18,'Starter Calc'!$B$2:$AM$700,38,FALSE),(VLOOKUP(B18,'ADP-Rank'!$A$2:$B$700,2,FALSE))),"") -> OF | D18: =IFERROR(IF(VLOOKUP(B18,'Starter Calc'!$B$2:$E$700,4,FALSE)="","",VLOOKUP(B18,'Starter Calc'!$B$2:$E$700,4,FALSE)),"") -> CF | E18: =IFERROR(VLOOKUP($B18,'ADP-Rank'!$A$2:$D$700,3,FALSE),"") -> PIT | F18: =IFERROR(VLOOKUP($B18,'ADP-Rank'!$A$2:$W$700,23,FALSE),"") -> 27 | G18: =IFERROR((IF(Personalize!$E$38=1,VLOOKUP($B18,'ADP-Rank'!$A$2:$J$700,4,FALSE),(IF(Personalize!$E$38=2,VLOOKUP($B18,'ADP-Rank'!$A$2:$J$700,7,FALSE),(IF(Personalize!$E$38=3,VLOOKUP($B18,'ADP-Rank'!$A$2:$J$700,10,FALSE),(IF(Personalize!$E$38=4,VLOOKUP($B18,'ADP-Rank'!$A$2:$AD$700,24,FALSE),(IF(Personalize!$E$38=5,VLOOKUP($B18,'ADP-Rank'!$A$2:$AD$700,27,FALSE),VLOOKUP($B18,'ADP-Rank'!$A$2:$AZ$700,30,FALSE))))))))))),"") -> 16.75 | H18: =IFERROR(ROUNDDOWN(VLOOKUP($B18,'ADP-Rank'!$A$2:$AY$1064,38,FALSE),0),"") -> 2 | I18: =VLOOKUP($B18,'ADP-Rank'!$A$2:$AJ$1064,36,FALSE) -> 7 | J18: =IFERROR(RANK($M18,$M$4:$M$743,0),"") -> 18 | K18: =IFERROR(IF((OR($C18="RP",$C18="SP")),VLOOKUP($B18,Pitcher!$A$1:$Z$700,20,FALSE),(VLOOKUP($B18,Hitter!$A$1:$Z$700,26,FALSE))),"") -> 447.5534624 | L18: =IFERROR(IF((OR($C18="RP",$C18="SP")),VLOOKUP($C18,'Filtered-P'!$M$3:$P$4,4,FALSE), VLOOKUP($C18,Filtered!$Q$3:$T$14,4,FALSE)),"") -> 368.4885837 | M18: =IFERROR(K18-L18,"") -> 79.06487869 | N18: =IFERROR(IF((OR($C18="RP",$C18="SP")),VLOOKUP($B18,Pitcher!$A$1:$Z$700,20,FALSE)/VLOOKUP($B18,Pitcher!$A$1:$Z$700,4,FALSE),(VLOOKUP($B18,Hitter!$A$1:$Z$700,26,FALSE)/VLOOKUP($B18,Hitter!$A$1:$Z$700,2,FALSE))),"") -> 0.6795597825 | O18: =IFERROR(IF((OR($C18="RP",$C18="SP")),VLOOKUP($B18,Pitcher!$A$1:$V$700,2,FALSE),""),"") ->  | P18: =IFERROR(IF((OR($C18="RP",$C18="SP")),VLOOKUP($B18,Pitcher!$A$1:$V$700,9,FALSE),""),"") ->  | Q18: =IFERROR(IF((OR($C18="RP",$C18="SP")),VLOOKUP($B18,Pitcher!$A$1:$V$700,7,FALSE),""),"") ->  | R18: =IFERROR(IF((OR($C18="RP",$C18="SP")),VLOOKUP($B18,Pitcher!$A$1:$AB$700,21,FALSE),""),"") ->  | S18: =IFERROR(IF((OR($C18="RP",$C18="SP")),VLOOKUP($B18,Pitcher!$A$1:$V$700,22,FALSE),""),"") ->  | T18: =IFERROR(IF((OR($C18="RP",$C18="SP")),"",VLOOKUP($B18,Hitter!$A$1:$AH$700,27,FALSE)),"") -> 0.2917466849 | U18: =IFERROR(IF((OR($C18="RP",$C18="SP")),"",VLOOKUP($B18,Hitter!$A$1:$AH$700,9,FALSE)),"") -> 25.71117361 | V18: =IFERROR(IF((OR($C18="RP",$C18="SP")),"",VLOOKUP($B18,Hitter!$A$1:$AH$700,10,FALSE)),"") -> 88.4276041 | W18: =IFERROR(IF((OR($C18="RP",$C18="SP")),"",VLOOKUP($B18,Hitter!$A$1:$AH$700,4,FALSE)),"") -> 100.7910398 | X18: =IFERROR(IF((OR($C18="RP",$C18="SP")),"",VLOOKUP($B18,Hitter!$A$1:$AH$700,11,FALSE)),"") -> 21.22856746 | Y18: =IFERROR(IF(ISTEXT($A18),"",(1-NORMDIST((COUNTA($A$4:$A$743)),($G18),((AD18-AC18)/6),TRUE))),"") -> 1 | Z18: =IFERROR(IF(ISTEXT($A18),"",(1-NORMDIST((COUNTA($A$4:$A$743))+(Personalize!$E$18+1),$G18,((AD18-AC18)/6),TRUE))),"") -> 1 | AA18: =IFERROR(IF(ISTEXT($A18),"",(1-NORMDIST((COUNTA($A$4:$A$743))+((Personalize!$E$18+1)*2),$G18,((AD18-AC18)/6),TRUE))),"") -> 1 | AC18: =IF(Personalize!$E$34=1,VLOOKUP($B18,'ADP-Rank'!$A$2:$J$700,5,FALSE),(IF(Personalize!$E$34=2,VLOOKUP($B18,'ADP-Rank'!$A$2:$J$700,8,FALSE),(IF(Personalize!$E$34=3,VLOOKUP($B18,'ADP-Rank'!$A$2:$O$700,11,FALSE),(IF(Personalize!$E$31=4,VLOOKUP($B18,'ADP-Rank'!$A$2:$AZ$700,25,FALSE),(IF(Personalize!$E$31=5,VLOOKUP($B18,'ADP-Rank'!$A$2:$AZ$700,28,FALSE),(IF(Personalize!$E$31=6,VLOOKUP($B18,'ADP-Rank'!$A$2:$AZ$700,32,FALSE),""))))))))))) -> 4 | AD18: =IF(Personalize!$E$34=1,VLOOKUP($B18,'ADP-Rank'!$A$2:$J$700,6,FALSE),(IF(Personalize!$E$34=2,VLOOKUP($B18,'ADP-Rank'!$A$2:$J$700,9,FALSE),(IF(Personalize!$E$34=3,VLOOKUP($B18,'ADP-Rank'!$A$2:$O$700,12,FALSE),(IF(Personalize!$E$31=4,VLOOKUP($B18,'ADP-Rank'!$A$2:$AZ$700,26,FALSE),(IF(Personalize!$E$31=5,VLOOKUP($B18,'ADP-Rank'!$A$2:$AZ$700,29,FALSE),(IF(Personalize!$E$31=6,VLOOKUP($B18,'ADP-Rank'!$A$2:$AZ$700,33,FALSE),""))))))))))) -> 12 | AE18: =IF(ISBLANK(A18),0,1) -> 0 | AF18: =IF(K18="",0,1) -> 1 | AG18: =A18 -> 0 | AH18: =IF(C18="C",1,IF(C18="1B",2,IF(C18="2B",3,IF(C18="3B",4,IF(C18="SS",5,IF(C18="CI",6,IF(C18="MI",7,IF(C18="OF",11,IF(C18="LF",8,IF(C18="CF",9,IF(C18="RF",10,IF(C18="DH",12,IF(C18="SP",13,IF(C18="RP",14,IF(C18="P",15,16))))))))))))))) -> 11 | AI18: =VLOOKUP(B18,'Starter Calc'!$B$2:$BN$700,65,FALSE) -> Bench | AJ18: =IFERROR(VLOOKUP($B18,'ADP-Rank'!$A$2:$AH$964,34,FALSE),TRUE) -> TRUE
B19: Cole Hamels | C19: =IFERROR(IF(VLOOKUP(B19,'ADP-Rank'!$A$2:$B$700,2,FALSE)="OF",VLOOKUP(B19,'Starter Calc'!$B$2:$AM$700,38,FALSE),(VLOOKUP(B19,'ADP-Rank'!$A$2:$B$700,2,FALSE))),"") -> SP | D19: =IFERROR(IF(VLOOKUP(B19,'Starter Calc'!$B$2:$E$700,4,FALSE)="","",VLOOKUP(B19,'Starter Calc'!$B$2:$E$700,4,FALSE)),"") ->  | E19: =IFERROR(VLOOKUP($B19,'ADP-Rank'!$A$2:$D$700,3,FALSE),"") -> PHI | F19: =IFERROR(VLOOKUP($B19,'ADP-Rank'!$A$2:$W$700,23,FALSE),"") -> 30 | G19: =IFERROR((IF(Personalize!$E$38=1,VLOOKUP($B19,'ADP-Rank'!$A$2:$J$700,4,FALSE),(IF(Personalize!$E$38=2,VLOOKUP($B19,'ADP-Rank'!$A$2:$J$700,7,FALSE),(IF(Personalize!$E$38=3,VLOOKUP($B19,'ADP-Rank'!$A$2:$J$700,10,FALSE),(IF(Personalize!$E$38=4,VLOOKUP($B19,'ADP-Rank'!$A$2:$AD$700,24,FALSE),(IF(Personalize!$E$38=5,VLOOKUP($B19,'ADP-Rank'!$A$2:$AD$700,27,FALSE),VLOOKUP($B19,'ADP-Rank'!$A$2:$AZ$700,30,FALSE))))))))))),"") -> 19.13 | H19: =IFERROR(ROUNDDOWN(VLOOKUP($B19,'ADP-Rank'!$A$2:$AY$1064,38,FALSE),0),"") -> 2 | I19: =VLOOKUP($B19,'ADP-Rank'!$A$2:$AJ$1064,36,FALSE) -> 30 | J19: =IFERROR(RANK($M19,$M$4:$M$743,0),"") -> 12 | K19: =IFERROR(IF((OR($C19="RP",$C19="SP")),VLOOKUP($B19,Pitcher!$A$1:$Z$700,20,FALSE),(VLOOKUP($B19,Hitter!$A$1:$Z$700,26,FALSE))),"") -> 462.1765889 | L19: =IFERROR(IF((OR($C19="RP",$C19="SP")),VLOOKUP($C19,'Filtered-P'!$M$3:$P$4,4,FALSE), VLOOKUP($C19,Filtered!$Q$3:$T$14,4,FALSE)),"") -> 357.2271519 | M19: =IFERROR(K19-L19,"") -> 104.949437 | N19: =IFERROR(IF((OR($C19="RP",$C19="SP")),VLOOKUP($B19,Pitcher!$A$1:$Z$700,20,FALSE)/VLOOKUP($B19,Pitcher!$A$1:$Z$700,4,FALSE),(VLOOKUP($B19,Hitter!$A$1:$Z$700,26,FALSE)/VLOOKUP($B19,Hitter!$A$1:$Z$700,2,FALSE))),"") -> 2.230581993 | O19: =IFERROR(IF((OR($C19="RP",$C19="SP")),VLOOKUP($B19,Pitcher!$A$1:$V$700,2,FALSE),""),"") -> 15.52 | P19: =IFERROR(IF((OR($C19="RP",$C19="SP")),VLOOKUP($B19,Pitcher!$A$1:$V$700,9,FALSE),""),"") -> 0 | Q19: =IFERROR(IF((OR($C19="RP",$C19="SP")),VLOOKUP($B19,Pitcher!$A$1:$V$700,7,FALSE),""),"") -> 202.1946356 | R19: =IFERROR(IF((OR($C19="RP",$C19="SP")),VLOOKUP($B19,Pitcher!$A$1:$AB$700,21,FALSE),""),"") -> 3.292471042 | S19: =IFERROR(IF((OR($C19="RP",$C19="SP")),VLOOKUP($B19,Pitcher!$A$1:$V$700,22,FALSE),""),"") -> 1.160086873 | T19: =IFERROR(IF((OR($C19="RP",$C19="SP")),"",VLOOKUP($B19,Hitter!$A$1:$AH$700,27,FALSE)),"") ->  | U19: =IFERROR(IF((OR($C19="RP",$C19="SP")),"",VLOOKUP($B19,Hitter!$A$1:$AH$700,9,FALSE)),"") ->  | V19: =IFERROR(IF((OR($C19="RP",$C19="SP")),"",VLOOKUP($B19,Hitter!$A$1:$AH$700,10,FALSE)),"") ->  | W19: =IFERROR(IF((OR($C19="RP",$C19="SP")),"",VLOOKUP($B19,Hitter!$A$1:$AH$700,4,FALSE)),"") ->  | X19: =IFERROR(IF((OR($C19="RP",$C19="SP")),"",VLOOKUP($B19,Hitter!$A$1:$AH$700,11,FALSE)),"") ->  | Y19: =IFERROR(IF(ISTEXT($A19),"",(1-NORMDIST((COUNTA($A$4:$A$743)),($G19),((AD19-AC19)/6),TRUE))),"") -> 0.9999792786 | Z19: =IFERROR(IF(ISTEXT($A19),"",(1-NORMDIST((COUNTA($A$4:$A$743))+(Personalize!$E$18+1),$G19,((AD19-AC19)/6),TRUE))),"") -> 0.999594899 | AA19: =IFERROR(IF(ISTEXT($A19),"",(1-NORMDIST((COUNTA($A$4:$A$743))+((Personalize!$E$18+1)*2),$G19,((AD19-AC19)/6),TRUE))),"") -> 0.9953291008 | AC19: =IF(Personalize!$E$34=1,VLOOKUP($B19,'ADP-Rank'!$A$2:$J$700,5,FALSE),(IF(Personalize!$E$34=2,VLOOKUP($B19,'ADP-Rank'!$A$2:$J$700,8,FALSE),(IF(Personalize!$E$34=3,VLOOKUP($B19,'ADP-Rank'!$A$2:$O$700,11,FALSE),(IF(Personalize!$E$31=4,VLOOKUP($B19,'ADP-Rank'!$A$2:$AZ$700,25,FALSE),(IF(Personalize!$E$31=5,VLOOKUP($B19,'ADP-Rank'!$A$2:$AZ$700,28,FALSE),(IF(Personalize!$E$31=6,VLOOKUP($B19,'ADP-Rank'!$A$2:$AZ$700,32,FALSE),""))))))))))) -> 28 | AD19: =IF(Personalize!$E$34=1,VLOOKUP($B19,'ADP-Rank'!$A$2:$J$700,6,FALSE),(IF(Personalize!$E$34=2,VLOOKUP($B19,'ADP-Rank'!$A$2:$J$700,9,FALSE),(IF(Personalize!$E$34=3,VLOOKUP($B19,'ADP-Rank'!$A$2:$O$700,12,FALSE),(IF(Personalize!$E$31=4,VLOOKUP($B19,'ADP-Rank'!$A$2:$AZ$700,26,FALSE),(IF(Personalize!$E$31=5,VLOOKUP($B19,'ADP-Rank'!$A$2:$AZ$700,29,FALSE),(IF(Personalize!$E$31=6,VLOOKUP($B19,'ADP-Rank'!$A$2:$AZ$700,33,FALSE),""))))))))))) -> 56 | AE19: =IF(ISBLANK(A19),0,1) -> 0 | AF19: =IF(K19="",0,1) -> 1 | AG19: =A19 -> 0 | AH19: =IF(C19="C",1,IF(C19="1B",2,IF(C19="2B",3,IF(C19="3B",4,IF(C19="SS",5,IF(C19="CI",6,IF(C19="MI",7,IF(C19="OF",11,IF(C19="LF",8,IF(C19="CF",9,IF(C19="RF",10,IF(C19="DH",12,IF(C19="SP",13,IF(C19="RP",14,IF(C19="P",15,16))))))))))))))) -> 13 | AI19: =VLOOKUP(B19,'Starter Calc'!$B$2:$BN$700,65,FALSE) -> Bench | AJ19: =IFERROR(VLOOKUP($B19,'ADP-Rank'!$A$2:$AH$964,34,FALSE),TRUE) -> TRUE
B20: CC Sabathia | C20: =IFERROR(IF(VLOOKUP(B20,'ADP-Rank'!$A$2:$B$700,2,FALSE)="OF",VLOOKUP(B20,'Starter Calc'!$B$2:$AM$700,38,FALSE),(VLOOKUP(B20,'ADP-Rank'!$A$2:$B$700,2,FALSE))),"") -> SP | D20: =IFERROR(IF(VLOOKUP(B20,'Starter Calc'!$B$2:$E$700,4,FALSE)="","",VLOOKUP(B20,'Starter Calc'!$B$2:$E$700,4,FALSE)),"") ->  | E20: =IFERROR(VLOOKUP($B20,'ADP-Rank'!$A$2:$D$700,3,FALSE),"") -> NYY | F20: =IFERROR(VLOOKUP($B20,'ADP-Rank'!$A$2:$W$700,23,FALSE),"") -> 33 | G20: =IFERROR((IF(Personalize!$E$38=1,VLOOKUP($B20,'ADP-Rank'!$A$2:$J$700,4,FALSE),(IF(Personalize!$E$38=2,VLOOKUP($B20,'ADP-Rank'!$A$2:$J$700,7,FALSE),(IF(Personalize!$E$38=3,VLOOKUP($B20,'ADP-Rank'!$A$2:$J$700,10,FALSE),(IF(Personalize!$E$38=4,VLOOKUP($B20,'ADP-Rank'!$A$2:$AD$700,24,FALSE),(IF(Personalize!$E$38=5,VLOOKUP($B20,'ADP-Rank'!$A$2:$AD$700,27,FALSE),VLOOKUP($B20,'ADP-Rank'!$A$2:$AZ$700,30,FALSE))))))))))),"") -> 20.36 | H20: =IFERROR(ROUNDDOWN(VLOOKUP($B20,'ADP-Rank'!$A$2:$AY$1064,38,FALSE),0),"") -> 2 | I20: =VLOOKUP($B20,'ADP-Rank'!$A$2:$AJ$1064,36,FALSE) -> 48 | J20: =IFERROR(RANK($M20,$M$4:$M$743,0),"") -> 27 | K20: =IFERROR(IF((OR($C20="RP",$C20="SP")),VLOOKUP($B20,Pitcher!$A$1:$Z$700,20,FALSE),(VLOOKUP($B20,Hitter!$A$1:$Z$700,26,FALSE))),"") -> 416.2918636 | L20: =IFERROR(IF((OR($C20="RP",$C20="SP")),VLOOKUP($C20,'Filtered-P'!$M$3:$P$4,4,FALSE), VLOOKUP($C20,Filtered!$Q$3:$T$14,4,FALSE)),"") -> 357.2271519 | M20: =IFERROR(K20-L20,"") -> 59.06471172 | N20: =IFERROR(IF((OR($C20="RP",$C20="SP")),VLOOKUP($B20,Pitcher!$A$1:$Z$700,20,FALSE)/VLOOKUP($B20,Pitcher!$A$1:$Z$700,4,FALSE),(VLOOKUP($B20,Hitter!$A$1:$Z$700,26,FALSE)/VLOOKUP($B20,Hitter!$A$1:$Z$700,2,FALSE))),"") -> 1.98328663 | O20: =IFERROR(IF((OR($C20="RP",$C20="SP")),VLOOKUP($B20,Pitcher!$A$1:$V$700,2,FALSE),""),"") -> 15.85 | P20: =IFERROR(IF((OR($C20="RP",$C20="SP")),VLOOKUP($B20,Pitcher!$A$1:$V$700,9,FALSE),""),"") -> 0 | Q20: =IFERROR(IF((OR($C20="RP",$C20="SP")),VLOOKUP($B20,Pitcher!$A$1:$V$700,7,FALSE),""),"") -> 190.4647454 | R20: =IFERROR(IF((OR($C20="RP",$C20="SP")),VLOOKUP($B20,Pitcher!$A$1:$AB$700,21,FALSE),""),"") -> 3.423773225 | S20: =IFERROR(IF((OR($C20="RP",$C20="SP")),VLOOKUP($B20,Pitcher!$A$1:$V$700,22,FALSE),""),"") -> 1.203811339 | T20: =IFERROR(IF((OR($C20="RP",$C20="SP")),"",VLOOKUP($B20,Hitter!$A$1:$AH$700,27,FALSE)),"") ->  | U20: =IFERROR(IF((OR($C20="RP",$C20="SP")),"",VLOOKUP($B20,Hitter!$A$1:$AH$700,9,FALSE)),"") ->  | V20: =IFERROR(IF((OR($C20="RP",$C20="SP")),"",VLOOKUP($B20,Hitter!$A$1:$AH$700,10,FALSE)),"") ->  | W20: =IFERROR(IF((OR($C20="RP",$C20="SP")),"",VLOOKUP($B20,Hitter!$A$1:$AH$700,4,FALSE)),"") ->  | X20: =IFERROR(IF((OR($C20="RP",$C20="SP")),"",VLOOKUP($B20,Hitter!$A$1:$AH$700,11,FALSE)),"") ->  | Y20: =IFERROR(IF(ISTEXT($A20),"",(1-NORMDIST((COUNTA($A$4:$A$743)),($G20),((AD20-AC20)/6),TRUE))),"") -> 0.9460132134 | Z20: =IFERROR(IF(ISTEXT($A20),"",(1-NORMDIST((COUNTA($A$4:$A$743))+(Personalize!$E$18+1),$G20,((AD20-AC20)/6),TRUE))),"") -> 0.9084141532 | AA20: =IFERROR(IF(ISTEXT($A20),"",(1-NORMDIST((COUNTA($A$4:$A$743))+((Personalize!$E$18+1)*2),$G20,((AD20-AC20)/6),TRUE))),"") -> 0.8542271515 | AC20: =IF(Personalize!$E$34=1,VLOOKUP($B20,'ADP-Rank'!$A$2:$J$700,5,FALSE),(IF(Personalize!$E$34=2,VLOOKUP($B20,'ADP-Rank'!$A$2:$J$700,8,FALSE),(IF(Personalize!$E$34=3,VLOOKUP($B20,'ADP-Rank'!$A$2:$O$700,11,FALSE),(IF(Personalize!$E$31=4,VLOOKUP($B20,'ADP-Rank'!$A$2:$AZ$700,25,FALSE),(IF(Personalize!$E$31=5,VLOOKUP($B20,'ADP-Rank'!$A$2:$AZ$700,28,FALSE),(IF(Personalize!$E$31=6,VLOOKUP($B20,'ADP-Rank'!$A$2:$AZ$700,32,FALSE),""))))))))))) -> 48 | AD20: =IF(Personalize!$E$34=1,VLOOKUP($B20,'ADP-Rank'!$A$2:$J$700,6,FALSE),(IF(Personalize!$E$34=2,VLOOKUP($B20,'ADP-Rank'!$A$2:$J$700,9,FALSE),(IF(Personalize!$E$34=3,VLOOKUP($B20,'ADP-Rank'!$A$2:$O$700,12,FALSE),(IF(Personalize!$E$31=4,VLOOKUP($B20,'ADP-Rank'!$A$2:$AZ$700,26,FALSE),(IF(Personalize!$E$31=5,VLOOKUP($B20,'ADP-Rank'!$A$2:$AZ$700,29,FALSE),(IF(Personalize!$E$31=6,VLOOKUP($B20,'ADP-Rank'!$A$2:$AZ$700,33,FALSE),""))))))))))) -> 124 | AE20: =IF(ISBLANK(A20),0,1) -> 0 | AF20: =IF(K20="",0,1) -> 1 | AG20: =A20 -> 0 | AH20: =IF(C20="C",1,IF(C20="1B",2,IF(C20="2B",3,IF(C20="3B",4,IF(C20="SS",5,IF(C20="CI",6,IF(C20="MI",7,IF(C20="OF",11,IF(C20="LF",8,IF(C20="CF",9,IF(C20="RF",10,IF(C20="DH",12,IF(C20="SP",13,IF(C20="RP",14,IF(C20="P",15,16))))))))))))))) -> 13 | AI20: =VLOOKUP(B20,'Starter Calc'!$B$2:$BN$700,65,FALSE) -> Bench | AJ20: =IFERROR(VLOOKUP($B20,'ADP-Rank'!$A$2:$AH$964,34,FALSE),TRUE) -> TRUE
B21: Josh Hamilton | C21: =IFERROR(IF(VLOOKUP(B21,'ADP-Rank'!$A$2:$B$700,2,FALSE)="OF",VLOOKUP(B21,'Starter Calc'!$B$2:$AM$700,38,FALSE),(VLOOKUP(B21,'ADP-Rank'!$A$2:$B$700,2,FALSE))),"") -> OF | D21: =IFERROR(IF(VLOOKUP(B21,'Starter Calc'!$B$2:$E$700,4,FALSE)="","",VLOOKUP(B21,'Starter Calc'!$B$2:$E$700,4,FALSE)),"") -> CF,LF | E21: =IFERROR(VLOOKUP($B21,'ADP-Rank'!$A$2:$D$700,3,FALSE),"") -> ANA | F21: =IFERROR(VLOOKUP($B21,'ADP-Rank'!$A$2:$W$700,23,FALSE),"") -> 32 | G21: =IFERROR((IF(Personalize!$E$38=1,VLOOKUP($B21,'ADP-Rank'!$A$2:$J$700,4,FALSE),(IF(Personalize!$E$38=2,VLOOKUP($B21,'ADP-Rank'!$A$2:$J$700,7,FALSE),(IF(Personalize!$E$38=3,VLOOKUP($B21,'ADP-Rank'!$A$2:$J$700,10,FALSE),(IF(Personalize!$E$38=4,VLOOKUP($B21,'ADP-Rank'!$A$2:$AD$700,24,FALSE),(IF(Personalize!$E$38=5,VLOOKUP($B21,'ADP-Rank'!$A$2:$AD$700,27,FALSE),VLOOKUP($B21,'ADP-Rank'!$A$2:$AZ$700,30,FALSE))))))))))),"") -> 22.73 | H21: =IFERROR(ROUNDDOWN(VLOOKUP($B21,'ADP-Rank'!$A$2:$AY$1064,38,FALSE),0),"") -> 2 | I21: =VLOOKUP($B21,'ADP-Rank'!$A$2:$AJ$1064,36,FALSE) -> 14 | J21: =IFERROR(RANK($M21,$M$4:$M$743,0),"") -> 88 | K21: =IFERROR(IF((OR($C21="RP",$C21="SP")),VLOOKUP($B21,Pitcher!$A$1:$Z$700,20,FALSE),(VLOOKUP($B21,Hitter!$A$1:$Z$700,26,FALSE))),"") -> 361.2459082 | L21: =IFERROR(IF((OR($C21="RP",$C21="SP")),VLOOKUP($C21,'Filtered-P'!$M$3:$P$4,4,FALSE), VLOOKUP($C21,Filtered!$Q$3:$T$14,4,FALSE)),"") -> 368.4885837 | M21: =IFERROR(K21-L21,"") -> -7.242675509 | N21: =IFERROR(IF((OR($C21="RP",$C21="SP")),VLOOKUP($B21,Pitcher!$A$1:$Z$700,20,FALSE)/VLOOKUP($B21,Pitcher!$A$1:$Z$700,4,FALSE),(VLOOKUP($B21,Hitter!$A$1:$Z$700,26,FALSE)/VLOOKUP($B21,Hitter!$A$1:$Z$700,2,FALSE))),"") -> 0.6253822236 | O21: =IFERROR(IF((OR($C21="RP",$C21="SP")),VLOOKUP($B21,Pitcher!$A$1:$V$700,2,FALSE),""),"") ->  | P21: =IFERROR(IF((OR($C21="RP",$C21="SP")),VLOOKUP($B21,Pitcher!$A$1:$V$700,9,FALSE),""),"") ->  | Q21: =IFERROR(IF((OR($C21="RP",$C21="SP")),VLOOKUP($B21,Pitcher!$A$1:$V$700,7,FALSE),""),"") ->  | R21: =IFERROR(IF((OR($C21="RP",$C21="SP")),VLOOKUP($B21,Pitcher!$A$1:$AB$700,21,FALSE),""),"") ->  | S21: =IFERROR(IF((OR($C21="RP",$C21="SP")),VLOOKUP($B21,Pitcher!$A$1:$V$700,22,FALSE),""),"") ->  | T21: =IFERROR(IF((OR($C21="RP",$C21="SP")),"",VLOOKUP($B21,Hitter!$A$1:$AH$700,27,FALSE)),"") -> 0.278752279 | U21: =IFERROR(IF((OR($C21="RP",$C21="SP")),"",VLOOKUP($B21,Hitter!$A$1:$AH$700,9,FALSE)),"") -> 28.53637461 | V21: =IFERROR(IF((OR($C21="RP",$C21="SP")),"",VLOOKUP($B21,Hitter!$A$1:$AH$700,10,FALSE)),"") -> 89.71366074 | W21: =IFERROR(IF((OR($C21="RP",$C21="SP")),"",VLOOKUP($B21,Hitter!$A$1:$AH$700,4,FALSE)),"") -> 82.80732263 | X21: =IFERROR(IF((OR($C21="RP",$C21="SP")),"",VLOOKUP($B21,Hitter!$A$1:$AH$700,11,FALSE)),"") -> 5.967324379 | Y21: =IFERROR(IF(ISTEXT($A21),"",(1-NORMDIST((COUNTA($A$4:$A$743)),($G21),((AD21-AC21)/6),TRUE))),"") -> 1 | Z21: =IFERROR(IF(ISTEXT($A21),"",(1-NORMDIST((COUNTA($A$4:$A$743))+(Personalize!$E$18+1),$G21,((AD21-AC21)/6),TRUE))),"") -> 0.9999999994 | AA21: =IFERROR(IF(ISTEXT($A21),"",(1-NORMDIST((COUNTA($A$4:$A$743))+((Personalize!$E$18+1)*2),$G21,((AD21-AC21)/6),TRUE))),"") -> 0.9999996607 | AC21: =IF(Personalize!$E$34=1,VLOOKUP($B21,'ADP-Rank'!$A$2:$J$700,5,FALSE),(IF(Personalize!$E$34=2,VLOOKUP($B21,'ADP-Rank'!$A$2:$J$700,8,FALSE),(IF(Personalize!$E$34=3,VLOOKUP($B21,'ADP-Rank'!$A$2:$O$700,11,FALSE),(IF(Personalize!$E$31=4,VLOOKUP($B21,'ADP-Rank'!$A$2:$AZ$700,25,FALSE),(IF(Personalize!$E$31=5,VLOOKUP($B21,'ADP-Rank'!$A$2:$AZ$700,28,FALSE),(IF(Personalize!$E$31=6,VLOOKUP($B21,'ADP-Rank'!$A$2:$AZ$700,32,FALSE),""))))))))))) -> 15 | AD21: =IF(Personalize!$E$34=1,VLOOKUP($B21,'ADP-Rank'!$A$2:$J$700,6,FALSE),(IF(Personalize!$E$34=2,VLOOKUP($B21,'ADP-Rank'!$A$2:$J$700,9,FALSE),(IF(Personalize!$E$34=3,VLOOKUP($B21,'ADP-Rank'!$A$2:$O$700,12,FALSE),(IF(Personalize!$E$31=4,VLOOKUP($B21,'ADP-Rank'!$A$2:$AZ$700,26,FALSE),(IF(Personalize!$E$31=5,VLOOKUP($B21,'ADP-Rank'!$A$2:$AZ$700,29,FALSE),(IF(Personalize!$E$31=6,VLOOKUP($B21,'ADP-Rank'!$A$2:$AZ$700,33,FALSE),""))))))))))) -> 34 | AE21: =IF(ISBLANK(A21),0,1) -> 0 | AF21: =IF(K21="",0,1) -> 1 | AG21: =A21 -> 0 | AH21: =IF(C21="C",1,IF(C21="1B",2,IF(C21="2B",3,IF(C21="3B",4,IF(C21="SS",5,IF(C21="CI",6,IF(C21="MI",7,IF(C21="OF",11,IF(C21="LF",8,IF(C21="CF",9,IF(C21="RF",10,IF(C21="DH",12,IF(C21="SP",13,IF(C21="RP",14,IF(C21="P",15,16))))))))))))))) -> 11 | AI21: =VLOOKUP(B21,'Starter Calc'!$B$2:$BN$700,65,FALSE) -> Bench | AJ21: =IFERROR(VLOOKUP($B21,'ADP-Rank'!$A$2:$AH$964,34,FALSE),TRUE) -> TRUE
B22: Giancarlo Stanton | C22: =IFERROR(IF(VLOOKUP(B22,'ADP-Rank'!$A$2:$B$700,2,FALSE)="OF",VLOOKUP(B22,'Starter Calc'!$B$2:$AM$700,38,FALSE),(VLOOKUP(B22,'ADP-Rank'!$A$2:$B$700,2,FALSE))),"") -> OF | D22: =IFERROR(IF(VLOOKUP(B22,'Starter Calc'!$B$2:$E$700,4,FALSE)="","",VLOOKUP(B22,'Starter Calc'!$B$2:$E$700,4,FALSE)),"") -> RF | E22: =IFERROR(VLOOKUP($B22,'ADP-Rank'!$A$2:$D$700,3,FALSE),"") -> MIA | F22: =IFERROR(VLOOKUP($B22,'ADP-Rank'!$A$2:$W$700,23,FALSE),"") -> 24 | G22: =IFERROR((IF(Personalize!$E$38=1,VLOOKUP($B22,'ADP-Rank'!$A$2:$J$700,4,FALSE),(IF(Personalize!$E$38=2,VLOOKUP($B22,'ADP-Rank'!$A$2:$J$700,7,FALSE),(IF(Personalize!$E$38=3,VLOOKUP($B22,'ADP-Rank'!$A$2:$J$700,10,FALSE),(IF(Personalize!$E$38=4,VLOOKUP($B22,'ADP-Rank'!$A$2:$AD$700,24,FALSE),(IF(Personalize!$E$38=5,VLOOKUP($B22,'ADP-Rank'!$A$2:$AD$700,27,FALSE),VLOOKUP($B22,'ADP-Rank'!$A$2:$AZ$700,30,FALSE))))))))))),"") -> 23.47 | H22: =IFERROR(ROUNDDOWN(VLOOKUP($B22,'ADP-Rank'!$A$2:$AY$1064,38,FALSE),0),"") -> 2 | I22: =VLOOKUP($B22,'ADP-Rank'!$A$2:$AJ$1064,36,FALSE) -> 13 | J22: =IFERROR(RANK($M22,$M$4:$M$743,0),"") -> 28 | K22: =IFERROR(IF((OR($C22="RP",$C22="SP")),VLOOKUP($B22,Pitcher!$A$1:$Z$700,20,FALSE),(VLOOKUP($B22,Hitter!$A$1:$Z$700,26,FALSE))),"") -> 425.2761772 | L22: =IFERROR(IF((OR($C22="RP",$C22="SP")),VLOOKUP($C22,'Filtered-P'!$M$3:$P$4,4,FALSE), VLOOKUP($C22,Filtered!$Q$3:$T$14,4,FALSE)),"") -> 368.4885837 | M22: =IFERROR(K22-L22,"") -> 56.78759351 | N22: =IFERROR(IF((OR($C22="RP",$C22="SP")),VLOOKUP($B22,Pitcher!$A$1:$Z$700,20,FALSE)/VLOOKUP($B22,Pitcher!$A$1:$Z$700,4,FALSE),(VLOOKUP($B22,Hitter!$A$1:$Z$700,26,FALSE)/VLOOKUP($B22,Hitter!$A$1:$Z$700,2,FALSE))),"") -> 0.6909137441 | O22: =IFERROR(IF((OR($C22="RP",$C22="SP")),VLOOKUP($B22,Pitcher!$A$1:$V$700,2,FALSE),""),"") ->  | P22: =IFERROR(IF((OR($C22="RP",$C22="SP")),VLOOKUP($B22,Pitcher!$A$1:$V$700,9,FALSE),""),"") ->  | Q22: =IFERROR(IF((OR($C22="RP",$C22="SP")),VLOOKUP($B22,Pitcher!$A$1:$V$700,7,FALSE),""),"") ->  | R22: =IFERROR(IF((OR($C22="RP",$C22="SP")),VLOOKUP($B22,Pitcher!$A$1:$AB$700,21,FALSE),""),"") ->  | S22: =IFERROR(IF((OR($C22="RP",$C22="SP")),VLOOKUP($B22,Pitcher!$A$1:$V$700,22,FALSE),""),"") ->  | T22: =IFERROR(IF((OR($C22="RP",$C22="SP")),"",VLOOKUP($B22,Hitter!$A$1:$AH$700,27,FALSE)),"") -> 0.2764645492 | U22: =IFERROR(IF((OR($C22="RP",$C22="SP")),"",VLOOKUP($B22,Hitter!$A$1:$AH$700,9,FALSE)),"") -> 41.79227349 | V22: =IFERROR(IF((OR($C22="RP",$C22="SP")),"",VLOOKUP($B22,Hitter!$A$1:$AH$700,10,FALSE)),"") -> 106.0339639 | W22: =IFERROR(IF((OR($C22="RP",$C22="SP")),"",VLOOKUP($B22,Hitter!$A$1:$AH$700,4,FALSE)),"") -> 94.70188668 | X22: =IFERROR(IF((OR($C22="RP",$C22="SP")),"",VLOOKUP($B22,Hitter!$A$1:$AH$700,11,FALSE)),"") -> 5.553818987 | Y22: =IFERROR(IF(ISTEXT($A22),"",(1-NORMDIST((COUNTA($A$4:$A$743)),($G22),((AD22-AC22)/6),TRUE))),"") -> 0.9999999696 | Z22: =IFERROR(IF(ISTEXT($A22),"",(1-NORMDIST((COUNTA($A$4:$A$743))+(Personalize!$E$18+1),$G22,((AD22-AC22)/6),TRUE))),"") -> 0.9999979717 | AA22: =IFERROR(IF(ISTEXT($A22),"",(1-NORMDIST((COUNTA($A$4:$A$743))+((Personalize!$E$18+1)*2),$G22,((AD22-AC22)/6),TRUE))),"") -> 0.9999278762 | AC22: =IF(Personalize!$E$34=1,VLOOKUP($B22,'ADP-Rank'!$A$2:$J$700,5,FALSE),(IF(Personalize!$E$34=2,VLOOKUP($B22,'ADP-Rank'!$A$2:$J$700,8,FALSE),(IF(Personalize!$E$34=3,VLOOKUP($B22,'ADP-Rank'!$A$2:$O$700,11,FALSE),(IF(Personalize!$E$31=4,VLOOKUP($B22,'ADP-Rank'!$A$2:$AZ$700,25,FALSE),(IF(Personalize!$E$31=5,VLOOKUP($B22,'ADP-Rank'!$A$2:$AZ$700,28,FALSE),(IF(Personalize!$E$31=6,VLOOKUP($B22,'ADP-Rank'!$A$2:$AZ$700,32,FALSE),""))))))))))) -> 8 | AD22: =IF(Personalize!$E$34=1,VLOOKUP($B22,'ADP-Rank'!$A$2:$J$700,6,FALSE),(IF(Personalize!$E$34=2,VLOOKUP($B22,'ADP-Rank'!$A$2:$J$700,9,FALSE),(IF(Personalize!$E$34=3,VLOOKUP($B22,'ADP-Rank'!$A$2:$O$700,12,FALSE),(IF(Personalize!$E$31=4,VLOOKUP($B22,'ADP-Rank'!$A$2:$AZ$700,26,FALSE),(IF(Personalize!$E$31=5,VLOOKUP($B22,'ADP-Rank'!$A$2:$AZ$700,29,FALSE),(IF(Personalize!$E$31=6,VLOOKUP($B22,'ADP-Rank'!$A$2:$AZ$700,33,FALSE),""))))))))))) -> 34 | AE22: =IF(ISBLANK(A22),0,1) -> 0 | AF22: =IF(K22="",0,1) -> 1 | AG22: =A22 -> 0 | AH22: =IF(C22="C",1,IF(C22="1B",2,IF(C22="2B",3,IF(C22="3B",4,IF(C22="SS",5,IF(C22="CI",6,IF(C22="MI",7,IF(C22="OF",11,IF(C22="LF",8,IF(C22="CF",9,IF(C22="RF",10,IF(C22="DH",12,IF(C22="SP",13,IF(C22="RP",14,IF(C22="P",15,16))))))))))))))) -> 11 | AI22: =VLOOKUP(B22,'Starter Calc'!$B$2:$BN$700,65,FALSE) -> Bench | AJ22: =IFERROR(VLOOKUP($B22,'ADP-Rank'!$A$2:$AH$964,34,FALSE),TRUE) -> TRUE
B23: Jose Reyes | C23: =IFERROR(IF(VLOOKUP(B23,'ADP-Rank'!$A$2:$B$700,2,FALSE)="OF",VLOOKUP(B23,'Starter Calc'!$B$2:$AM$700,38,FALSE),(VLOOKUP(B23,'ADP-Rank'!$A$2:$B$700,2,FALSE))),"") -> SS | D23: =IFERROR(IF(VLOOKUP(B23,'Starter Calc'!$B$2:$E$700,4,FALSE)="","",VLOOKUP(B23,'Starter Calc'!$B$2:$E$700,4,FALSE)),"") ->  | E23: =IFERROR(VLOOKUP($B23,'ADP-Rank'!$A$2:$D$700,3,FALSE),"") -> TOR | F23: =IFERROR(VLOOKUP($B23,'ADP-Rank'!$A$2:$W$700,23,FALSE),"") -> 30 | G23: =IFERROR((IF(Personalize!$E$38=1,VLOOKUP($B23,'ADP-Rank'!$A$2:$J$700,4,FALSE),(IF(Personalize!$E$38=2,VLOOKUP($B23,'ADP-Rank'!$A$2:$J$700,7,FALSE),(IF(Personalize!$E$38=3,VLOOKUP($B23,'ADP-Rank'!$A$2:$J$700,10,FALSE),(IF(Personalize!$E$38=4,VLOOKUP($B23,'ADP-Rank'!$A$2:$AD$700,24,FALSE),(IF(Personalize!$E$38=5,VLOOKUP($B23,'ADP-Rank'!$A$2:$AD$700,27,FALSE),VLOOKUP($B23,'ADP-Rank'!$A$2:$AZ$700,30,FALSE))))))))))),"") -> 24 | H23: =IFERROR(ROUNDDOWN(VLOOKUP($B23,'ADP-Rank'!$A$2:$AY$1064,38,FALSE),0),"") -> 2 | I23: =VLOOKUP($B23,'ADP-Rank'!$A$2:$AJ$1064,36,FALSE) -> 22 | J23: =IFERROR(RANK($M23,$M$4:$M$743,0),"") -> 21 | K23: =IFERROR(IF((OR($C23="RP",$C23="SP")),VLOOKUP($B23,Pitcher!$A$1:$Z$700,20,FALSE),(VLOOKUP($B23,Hitter!$A$1:$Z$700,26,FALSE))),"") -> 408.4423907 | L23: =IFERROR(IF((OR($C23="RP",$C23="SP")),VLOOKUP($C23,'Filtered-P'!$M$3:$P$4,4,FALSE), VLOOKUP($C23,Filtered!$Q$3:$T$14,4,FALSE)),"") -> 340.1248739 | M23: =IFERROR(K23-L23,"") -> 68.31751684 | N23: =IFERROR(IF((OR($C23="RP",$C23="SP")),VLOOKUP($B23,Pitcher!$A$1:$Z$700,20,FALSE)/VLOOKUP($B23,Pitcher!$A$1:$Z$700,4,FALSE),(VLOOKUP($B23,Hitter!$A$1:$Z$700,26,FALSE)/VLOOKUP($B23,Hitter!$A$1:$Z$700,2,FALSE))),"") -> 0.6709937072 | O23: =IFERROR(IF((OR($C23="RP",$C23="SP")),VLOOKUP($B23,Pitcher!$A$1:$V$700,2,FALSE),""),"") ->  | P23: =IFERROR(IF((OR($C23="RP",$C23="SP")),VLOOKUP($B23,Pitcher!$A$1:$V$700,9,FALSE),""),"") ->  | Q23: =IFERROR(IF((OR($C23="RP",$C23="SP")),VLOOKUP($B23,Pitcher!$A$1:$V$700,7,FALSE),""),"") ->  | R23: =IFERROR(IF((OR($C23="RP",$C23="SP")),VLOOKUP($B23,Pitcher!$A$1:$AB$700,21,FALSE),""),"") ->  | S23: =IFERROR(IF((OR($C23="RP",$C23="SP")),VLOOKUP($B23,Pitcher!$A$1:$V$700,22,FALSE),""),"") ->  | T23: =IFERROR(IF((OR($C23="RP",$C23="SP")),"",VLOOKUP($B23,Hitter!$A$1:$AH$700,27,FALSE)),"") -> 0.292170685 | U23: =IFERROR(IF((OR($C23="RP",$C23="SP")),"",VLOOKUP($B23,Hitter!$A$1:$AH$700,9,FALSE)),"") -> 9.603726263 | V23: =IFERROR(IF((OR($C23="RP",$C23="SP")),"",VLOOKUP($B23,Hitter!$A$1:$AH$700,10,FALSE)),"") -> 55.71741225 | W23: =IFERROR(IF((OR($C23="RP",$C23="SP")),"",VLOOKUP($B23,Hitter!$A$1:$AH$700,4,FALSE)),"") -> 90.81204622 | X23: =IFERROR(IF((OR($C23="RP",$C23="SP")),"",VLOOKUP($B23,Hitter!$A$1:$AH$700,11,FALSE)),"") -> 31.82456251 | Y23: =IFERROR(IF(ISTEXT($A23),"",(1-NORMDIST((COUNTA($A$4:$A$743)),($G23),((AD23-AC23)/6),TRUE))),"") -> 1 | Z23: =IFERROR(IF(ISTEXT($A23),"",(1-NORMDIST((COUNTA($A$4:$A$743))+(Personalize!$E$18+1),$G23,((AD23-AC23)/6),TRUE))),"") -> 0.9999999976 | AA23: =IFERROR(IF(ISTEXT($A23),"",(1-NORMDIST((COUNTA($A$4:$A$743))+((Personalize!$E$18+1)*2),$G23,((AD23-AC23)/6),TRUE))),"") -> 0.9999994045 | AC23: =IF(Personalize!$E$34=1,VLOOKUP($B23,'ADP-Rank'!$A$2:$J$700,5,FALSE),(IF(Personalize!$E$34=2,VLOOKUP($B23,'ADP-Rank'!$A$2:$J$700,8,FALSE),(IF(Personalize!$E$34=3,VLOOKUP($B23,'ADP-Rank'!$A$2:$O$700,11,FALSE),(IF(Personalize!$E$31=4,VLOOKUP($B23,'ADP-Rank'!$A$2:$AZ$700,25,FALSE),(IF(Personalize!$E$31=5,VLOOKUP($B23,'ADP-Rank'!$A$2:$AZ$700,28,FALSE),(IF(Personalize!$E$31=6,VLOOKUP($B23,'ADP-Rank'!$A$2:$AZ$700,32,FALSE),""))))))))))) -> 15 | AD23: =IF(Personalize!$E$34=1,VLOOKUP($B23,'ADP-Rank'!$A$2:$J$700,6,FALSE),(IF(Personalize!$E$34=2,VLOOKUP($B23,'ADP-Rank'!$A$2:$J$700,9,FALSE),(IF(Personalize!$E$34=3,VLOOKUP($B23,'ADP-Rank'!$A$2:$O$700,12,FALSE),(IF(Personalize!$E$31=4,VLOOKUP($B23,'ADP-Rank'!$A$2:$AZ$700,26,FALSE),(IF(Personalize!$E$31=5,VLOOKUP($B23,'ADP-Rank'!$A$2:$AZ$700,29,FALSE),(IF(Personalize!$E$31=6,VLOOKUP($B23,'ADP-Rank'!$A$2:$AZ$700,33,FALSE),""))))))))))) -> 36 | AE23: =IF(ISBLANK(A23),0,1) -> 0 | AF23: =IF(K23="",0,1) -> 1 | AG23: =A23 -> 0 | AH23: =IF(C23="C",1,IF(C23="1B",2,IF(C23="2B",3,IF(C23="3B",4,IF(C23="SS",5,IF(C23="CI",6,IF(C23="MI",7,IF(C23="OF",11,IF(C23="LF",8,IF(C23="CF",9,IF(C23="RF",10,IF(C23="DH",12,IF(C23="SP",13,IF(C23="RP",14,IF(C23="P",15,16))))))))))))))) -> 5 | AI23: =VLOOKUP(B23,'Starter Calc'!$B$2:$BN$700,65,FALSE) -> Bench | AJ23: =IFERROR(VLOOKUP($B23,'ADP-Rank'!$A$2:$AH$964,34,FALSE),TRUE) -> TRUE
B24: Evan Longoria | C24: =IFERROR(IF(VLOOKUP(B24,'ADP-Rank'!$A$2:$B$700,2,FALSE)="OF",VLOOKUP(B24,'Starter Calc'!$B$2:$AM$700,38,FALSE),(VLOOKUP(B24,'ADP-Rank'!$A$2:$B$700,2,FALSE))),"") -> 3B | D24: =IFERROR(IF(VLOOKUP(B24,'Starter Calc'!$B$2:$E$700,4,FALSE)="","",VLOOKUP(B24,'Starter Calc'!$B$2:$E$700,4,FALSE)),"") ->  | E24: =IFERROR(VLOOKUP($B24,'ADP-Rank'!$A$2:$D$700,3,FALSE),"") -> TB | F24: =IFERROR(VLOOKUP($B24,'ADP-Rank'!$A$2:$W$700,23,FALSE),"") -> 28 | G24: =IFERROR((IF(Personalize!$E$38=1,VLOOKUP($B24,'ADP-Rank'!$A$2:$J$700,4,FALSE),(IF(Personalize!$E$38=2,VLOOKUP($B24,'ADP-Rank'!$A$2:$J$700,7,FALSE),(IF(Personalize!$E$38=3,VLOOKUP($B24,'ADP-Rank'!$A$2:$J$700,10,FALSE),(IF(Personalize!$E$38=4,VLOOKUP($B24,'ADP-Rank'!$A$2:$AD$700,24,FALSE),(IF(Personalize!$E$38=5,VLOOKUP($B24,'ADP-Rank'!$A$2:$AD$700,27,FALSE),VLOOKUP($B24,'ADP-Rank'!$A$2:$AZ$700,30,FALSE))))))))))),"") -> 25.39 | H24: =IFERROR(ROUNDDOWN(VLOOKUP($B24,'ADP-Rank'!$A$2:$AY$1064,38,FALSE),0),"") -> 2 | I24: =VLOOKUP($B24,'ADP-Rank'!$A$2:$AJ$1064,36,FALSE) -> 20 | J24: =IFERROR(RANK($M24,$M$4:$M$743,0),"") -> 54 | K24: =IFERROR(IF((OR($C24="RP",$C24="SP")),VLOOKUP($B24,Pitcher!$A$1:$Z$700,20,FALSE),(VLOOKUP($B24,Hitter!$A$1:$Z$700,26,FALSE))),"") -> 388.0583368 | L24: =IFERROR(IF((OR($C24="RP",$C24="SP")),VLOOKUP($C24,'Filtered-P'!$M$3:$P$4,4,FALSE), VLOOKUP($C24,Filtered!$Q$3:$T$14,4,FALSE)),"") -> 360.1633507 | M24: =IFERROR(K24-L24,"") -> 27.89498608 | N24: =IFERROR(IF((OR($C24="RP",$C24="SP")),VLOOKUP($B24,Pitcher!$A$1:$Z$700,20,FALSE)/VLOOKUP($B24,Pitcher!$A$1:$Z$700,4,FALSE),(VLOOKUP($B24,Hitter!$A$1:$Z$700,26,FALSE)/VLOOKUP($B24,Hitter!$A$1:$Z$700,2,FALSE))),"") -> 0.6906745166 | O24: =IFERROR(IF((OR($C24="RP",$C24="SP")),VLOOKUP($B24,Pitcher!$A$1:$V$700,2,FALSE),""),"") ->  | P24: =IFERROR(IF((OR($C24="RP",$C24="SP")),VLOOKUP($B24,Pitcher!$A$1:$V$700,9,FALSE),""),"") ->  | Q24: =IFERROR(IF((OR($C24="RP",$C24="SP")),VLOOKUP($B24,Pitcher!$A$1:$V$700,7,FALSE),""),"") ->  | R24: =IFERROR(IF((OR($C24="RP",$C24="SP")),VLOOKUP($B24,Pitcher!$A$1:$AB$700,21,FALSE),""),"") ->  | S24: =IFERROR(IF((OR($C24="RP",$C24="SP")),VLOOKUP($B24,Pitcher!$A$1:$V$700,22,FALSE),""),"") ->  | T24: =IFERROR(IF((OR($C24="RP",$C24="SP")),"",VLOOKUP($B24,Hitter!$A$1:$AH$700,27,FALSE)),"") -> 0.2731700344 | U24: =IFERROR(IF((OR($C24="RP",$C24="SP")),"",VLOOKUP($B24,Hitter!$A$1:$AH$700,9,FALSE)),"") -> 27.99051582 | V24: =IFERROR(IF((OR($C24="RP",$C24="SP")),"",VLOOKUP($B24,Hitter!$A$1:$AH$700,10,FALSE)),"") -> 90.82969116 | W24: =IFERROR(IF((OR($C24="RP",$C24="SP")),"",VLOOKUP($B24,Hitter!$A$1:$AH$700,4,FALSE)),"") -> 81.79724556 | X24: =IFERROR(IF((OR($C24="RP",$C24="SP")),"",VLOOKUP($B24,Hitter!$A$1:$AH$700,11,FALSE)),"") -> 5.63157479 | Y24: =IFERROR(IF(ISTEXT($A24),"",(1-NORMDIST((COUNTA($A$4:$A$743)),($G24),((AD24-AC24)/6),TRUE))),"") -> 0.9999999735 | Z24: =IFERROR(IF(ISTEXT($A24),"",(1-NORMDIST((COUNTA($A$4:$A$743))+(Personalize!$E$18+1),$G24,((AD24-AC24)/6),TRUE))),"") -> 0.9999986387 | AA24: =IFERROR(IF(ISTEXT($A24),"",(1-NORMDIST((COUNTA($A$4:$A$743))+((Personalize!$E$18+1)*2),$G24,((AD24-AC24)/6),TRUE))),"") -> 0.9999593803 | AC24: =IF(Personalize!$E$34=1,VLOOKUP($B24,'ADP-Rank'!$A$2:$J$700,5,FALSE),(IF(Personalize!$E$34=2,VLOOKUP($B24,'ADP-Rank'!$A$2:$J$700,8,FALSE),(IF(Personalize!$E$34=3,VLOOKUP($B24,'ADP-Rank'!$A$2:$O$700,11,FALSE),(IF(Personalize!$E$31=4,VLOOKUP($B24,'ADP-Rank'!$A$2:$AZ$700,25,FALSE),(IF(Personalize!$E$31=5,VLOOKUP($B24,'ADP-Rank'!$A$2:$AZ$700,28,FALSE),(IF(Personalize!$E$31=6,VLOOKUP($B24,'ADP-Rank'!$A$2:$AZ$700,32,FALSE),""))))))))))) -> 16 | AD24: =IF(Personalize!$E$34=1,VLOOKUP($B24,'ADP-Rank'!$A$2:$J$700,6,FALSE),(IF(Personalize!$E$34=2,VLOOKUP($B24,'ADP-Rank'!$A$2:$J$700,9,FALSE),(IF(Personalize!$E$34=3,VLOOKUP($B24,'ADP-Rank'!$A$2:$O$700,12,FALSE),(IF(Personalize!$E$31=4,VLOOKUP($B24,'ADP-Rank'!$A$2:$AZ$700,26,FALSE),(IF(Personalize!$E$31=5,VLOOKUP($B24,'ADP-Rank'!$A$2:$AZ$700,29,FALSE),(IF(Personalize!$E$31=6,VLOOKUP($B24,'ADP-Rank'!$A$2:$AZ$700,33,FALSE),""))))))))))) -> 44 | AE24: =IF(ISBLANK(A24),0,1) -> 0 | AF24: =IF(K24="",0,1) -> 1 | AG24: =A24 -> 0 | AH24: =IF(C24="C",1,IF(C24="1B",2,IF(C24="2B",3,IF(C24="3B",4,IF(C24="SS",5,IF(C24="CI",6,IF(C24="MI",7,IF(C24="OF",11,IF(C24="LF",8,IF(C24="CF",9,IF(C24="RF",10,IF(C24="DH",12,IF(C24="SP",13,IF(C24="RP",14,IF(C24="P",15,16))))))))))))))) -> 4 | AI24: =VLOOKUP(B24,'Starter Calc'!$B$2:$BN$700,65,FALSE) -> Bench | AJ24: =IFERROR(VLOOKUP($B24,'ADP-Rank'!$A$2:$AH$964,34,FALSE),TRUE) -> TRUE
B25: Cliff Lee | C25: =IFERROR(IF(VLOOKUP(B25,'ADP-Rank'!$A$2:$B$700,2,FALSE)="OF",VLOOKUP(B25,'Starter Calc'!$B$2:$AM$700,38,FALSE),(VLOOKUP(B25,'ADP-Rank'!$A$2:$B$700,2,FALSE))),"") -> SP | D25: =IFERROR(IF(VLOOKUP(B25,'Starter Calc'!$B$2:$E$700,4,FALSE)="","",VLOOKUP(B25,'Starter Calc'!$B$2:$E$700,4,FALSE)),"") ->  | E25: =IFERROR(VLOOKUP($B25,'ADP-Rank'!$A$2:$D$700,3,FALSE),"") -> PHI | F25: =IFERROR(VLOOKUP($B25,'ADP-Rank'!$A$2:$W$700,23,FALSE),"") -> 35 | G25: =IFERROR((IF(Personalize!$E$38=1,VLOOKUP($B25,'ADP-Rank'!$A$2:$J$700,4,FALSE),(IF(Personalize!$E$38=2,VLOOKUP($B25,'ADP-Rank'!$A$2:$J$700,7,FALSE),(IF(Personalize!$E$38=3,VLOOKUP($B25,'ADP-Rank'!$A$2:$J$700,10,FALSE),(IF(Personalize!$E$38=4,VLOOKUP($B25,'ADP-Rank'!$A$2:$AD$700,24,FALSE),(IF(Personalize!$E$38=5,VLOOKUP($B25,'ADP-Rank'!$A$2:$AD$700,27,FALSE),VLOOKUP($B25,'ADP-Rank'!$A$2:$AZ$700,30,FALSE))))))))))),"") -> 25.79 | H25: =IFERROR(ROUNDDOWN(VLOOKUP($B25,'ADP-Rank'!$A$2:$AY$1064,38,FALSE),0),"") -> 2 | I25: =VLOOKUP($B25,'ADP-Rank'!$A$2:$AJ$1064,36,FALSE) -> 47 | J25: =IFERROR(RANK($M25,$M$4:$M$743,0),"") -> 15 | K25: =IFERROR(IF((OR($C25="RP",$C25="SP")),VLOOKUP($B25,Pitcher!$A$1:$Z$700,20,FALSE),(VLOOKUP($B25,Hitter!$A$1:$Z$700,26,FALSE))),"") -> 450.6864768 | L25: =IFERROR(IF((OR($C25="RP",$C25="SP")),VLOOKUP($C25,'Filtered-P'!$M$3:$P$4,4,FALSE), VLOOKUP($C25,Filtered!$Q$3:$T$14,4,FALSE)),"") -> 357.2271519 | M25: =IFERROR(K25-L25,"") -> 93.4593249 | N25: =IFERROR(IF((OR($C25="RP",$C25="SP")),VLOOKUP($B25,Pitcher!$A$1:$Z$700,20,FALSE)/VLOOKUP($B25,Pitcher!$A$1:$Z$700,4,FALSE),(VLOOKUP($B25,Hitter!$A$1:$Z$700,26,FALSE)/VLOOKUP($B25,Hitter!$A$1:$Z$700,2,FALSE))),"") -> 2.315963396 | O25: =IFERROR(IF((OR($C25="RP",$C25="SP")),VLOOKUP($B25,Pitcher!$A$1:$V$700,2,FALSE),""),"") -> 14.13 | P25: =IFERROR(IF((OR($C25="RP",$C25="SP")),VLOOKUP($B25,Pitcher!$A$1:$V$700,9,FALSE),""),"") -> 0 | Q25: =IFERROR(IF((OR($C25="RP",$C25="SP")),VLOOKUP($B25,Pitcher!$A$1:$V$700,7,FALSE),""),"") -> 189.3585907 | R25: =IFERROR(IF((OR($C25="RP",$C25="SP")),VLOOKUP($B25,Pitcher!$A$1:$AB$700,21,FALSE),""),"") -> 3.156012333 | S25: =IFERROR(IF((OR($C25="RP",$C25="SP")),VLOOKUP($B25,Pitcher!$A$1:$V$700,22,FALSE),""),"") -> 1.108581706 | T25: =IFERROR(IF((OR($C25="RP",$C25="SP")),"",VLOOKUP($B25,Hitter!$A$1:$AH$700,27,FALSE)),"") ->  | U25: =IFERROR(IF((OR($C25="RP",$C25="SP")),"",VLOOKUP($B25,Hitter!$A$1:$AH$700,9,FALSE)),"") ->  | V25: =IFERROR(IF((OR($C25="RP",$C25="SP")),"",VLOOKUP($B25,Hitter!$A$1:$AH$700,10,FALSE)),"") ->  | W25: =IFERROR(IF((OR($C25="RP",$C25="SP")),"",VLOOKUP($B25,Hitter!$A$1:$AH$700,4,FALSE)),"") ->  | X25: =IFERROR(IF((OR($C25="RP",$C25="SP")),"",VLOOKUP($B25,Hitter!$A$1:$AH$700,11,FALSE)),"") ->  | Y25: =IFERROR(IF(ISTEXT($A25),"",(1-NORMDIST((COUNTA($A$4:$A$743)),($G25),((AD25-AC25)/6),TRUE))),"") -> 0.9999999997 | Z25: =IFERROR(IF(ISTEXT($A25),"",(1-NORMDIST((COUNTA($A$4:$A$743))+(Personalize!$E$18+1),$G25,((AD25-AC25)/6),TRUE))),"") -> 0.9999999559 | AA25: =IFERROR(IF(ISTEXT($A25),"",(1-NORMDIST((COUNTA($A$4:$A$743))+((Personalize!$E$18+1)*2),$G25,((AD25-AC25)/6),TRUE))),"") -> 0.9999967525 | AC25: =IF(Personalize!$E$34=1,VLOOKUP($B25,'ADP-Rank'!$A$2:$J$700,5,FALSE),(IF(Personalize!$E$34=2,VLOOKUP($B25,'ADP-Rank'!$A$2:$J$700,8,FALSE),(IF(Personalize!$E$34=3,VLOOKUP($B25,'ADP-Rank'!$A$2:$O$700,11,FALSE),(IF(Personalize!$E$31=4,VLOOKUP($B25,'ADP-Rank'!$A$2:$AZ$700,25,FALSE),(IF(Personalize!$E$31=5,VLOOKUP($B25,'ADP-Rank'!$A$2:$AZ$700,28,FALSE),(IF(Personalize!$E$31=6,VLOOKUP($B25,'ADP-Rank'!$A$2:$AZ$700,32,FALSE),""))))))))))) -> 31 | AD25: =IF(Personalize!$E$34=1,VLOOKUP($B25,'ADP-Rank'!$A$2:$J$700,6,FALSE),(IF(Personalize!$E$34=2,VLOOKUP($B25,'ADP-Rank'!$A$2:$J$700,9,FALSE),(IF(Personalize!$E$34=3,VLOOKUP($B25,'ADP-Rank'!$A$2:$O$700,12,FALSE),(IF(Personalize!$E$31=4,VLOOKUP($B25,'ADP-Rank'!$A$2:$AZ$700,26,FALSE),(IF(Personalize!$E$31=5,VLOOKUP($B25,'ADP-Rank'!$A$2:$AZ$700,29,FALSE),(IF(Personalize!$E$31=6,VLOOKUP($B25,'ADP-Rank'!$A$2:$AZ$700,33,FALSE),""))))))))))) -> 56 | AE25: =IF(ISBLANK(A25),0,1) -> 0 | AF25: =IF(K25="",0,1) -> 1 | AG25: =A25 -> 0 | AH25: =IF(C25="C",1,IF(C25="1B",2,IF(C25="2B",3,IF(C25="3B",4,IF(C25="SS",5,IF(C25="CI",6,IF(C25="MI",7,IF(C25="OF",11,IF(C25="LF",8,IF(C25="CF",9,IF(C25="RF",10,IF(C25="DH",12,IF(C25="SP",13,IF(C25="RP",14,IF(C25="P",15,16))))))))))))))) -> 13 | AI25: =VLOOKUP(B25,'Starter Calc'!$B$2:$BN$700,65,FALSE) -> Bench | AJ25: =IFERROR(VLOOKUP($B25,'ADP-Rank'!$A$2:$AH$964,34,FALSE),TRUE) -> TRUE
B26: Dustin Pedroia | C26: =IFERROR(IF(VLOOKUP(B26,'ADP-Rank'!$A$2:$B$700,2,FALSE)="OF",VLOOKUP(B26,'Starter Calc'!$B$2:$AM$700,38,FALSE),(VLOOKUP(B26,'ADP-Rank'!$A$2:$B$700,2,FALSE))),"") -> 2B | D26: =IFERROR(IF(VLOOKUP(B26,'Starter Calc'!$B$2:$E$700,4,FALSE)="","",VLOOKUP(B26,'Starter Calc'!$B$2:$E$700,4,FALSE)),"") ->  | E26: =IFERROR(VLOOKUP($B26,'ADP-Rank'!$A$2:$D$700,3,FALSE),"") -> BOS | F26: =IFERROR(VLOOKUP($B26,'ADP-Rank'!$A$2:$W$700,23,FALSE),"") -> 30 | G26: =IFERROR((IF(Personalize!$E$38=1,VLOOKUP($B26,'ADP-Rank'!$A$2:$J$700,4,FALSE),(IF(Personalize!$E$38=2,VLOOKUP($B26,'ADP-Rank'!$A$2:$J$700,7,FALSE),(IF(Personalize!$E$38=3,VLOOKUP($B26,'ADP-Rank'!$A$2:$J$700,10,FALSE),(IF(Personalize!$E$38=4,VLOOKUP($B26,'ADP-Rank'!$A$2:$AD$700,24,FALSE),(IF(Personalize!$E$38=5,VLOOKUP($B26,'ADP-Rank'!$A$2:$AD$700,27,FALSE),VLOOKUP($B26,'ADP-Rank'!$A$2:$AZ$700,30,FALSE))))))))))),"") -> 26.01 | H26: =IFERROR(ROUNDDOWN(VLOOKUP($B26,'ADP-Rank'!$A$2:$AY$1064,38,FALSE),0),"") -> 2 | I26: =VLOOKUP($B26,'ADP-Rank'!$A$2:$AJ$1064,36,FALSE) -> 18 | J26: =IFERROR(RANK($M26,$M$4:$M$743,0),"") -> 22 | K26: =IFERROR(IF((OR($C26="RP",$C26="SP")),VLOOKUP($B26,Pitcher!$A$1:$Z$700,20,FALSE),(VLOOKUP($B26,Hitter!$A$1:$Z$700,26,FALSE))),"") -> 436.5670078 | L26: =IFERROR(IF((OR($C26="RP",$C26="SP")),VLOOKUP($C26,'Filtered-P'!$M$3:$P$4,4,FALSE), VLOOKUP($C26,Filtered!$Q$3:$T$14,4,FALSE)),"") -> 368.3944957 | M26: =IFERROR(K26-L26,"") -> 68.17251211 | N26: =IFERROR(IF((OR($C26="RP",$C26="SP")),VLOOKUP($B26,Pitcher!$A$1:$Z$700,20,FALSE)/VLOOKUP($B26,Pitcher!$A$1:$Z$700,4,FALSE),(VLOOKUP($B26,Hitter!$A$1:$Z$700,26,FALSE)/VLOOKUP($B26,Hitter!$A$1:$Z$700,2,FALSE))),"") -> 0.6724893082 | O26: =IFERROR(IF((OR($C26="RP",$C26="SP")),VLOOKUP($B26,Pitcher!$A$1:$V$700,2,FALSE),""),"") ->  | P26: =IFERROR(IF((OR($C26="RP",$C26="SP")),VLOOKUP($B26,Pitcher!$A$1:$V$700,9,FALSE),""),"") ->  | Q26: =IFERROR(IF((OR($C26="RP",$C26="SP")),VLOOKUP($B26,Pitcher!$A$1:$V$700,7,FALSE),""),"") ->  | R26: =IFERROR(IF((OR($C26="RP",$C26="SP")),VLOOKUP($B26,Pitcher!$A$1:$AB$700,21,FALSE),""),"") ->  | S26: =IFERROR(IF((OR($C26="RP",$C26="SP")),VLOOKUP($B26,Pitcher!$A$1:$V$700,22,FALSE),""),"") ->  | T26: =IFERROR(IF((OR($C26="RP",$C26="SP")),"",VLOOKUP($B26,Hitter!$A$1:$AH$700,27,FALSE)),"") -> 0.2891686047 | U26: =IFERROR(IF((OR($C26="RP",$C26="SP")),"",VLOOKUP($B26,Hitter!$A$1:$AH$700,9,FALSE)),"") -> 16.87911067 | V26: =IFERROR(IF((OR($C26="RP",$C26="SP")),"",VLOOKUP($B26,Hitter!$A$1:$AH$700,10,FALSE)),"") -> 76.66913155 | W26: =IFERROR(IF((OR($C26="RP",$C26="SP")),"",VLOOKUP($B26,Hitter!$A$1:$AH$700,4,FALSE)),"") -> 91.0326824 | X26: =IFERROR(IF((OR($C26="RP",$C26="SP")),"",VLOOKUP($B26,Hitter!$A$1:$AH$700,11,FALSE)),"") -> 19.85334079 | Y26: =IFERROR(IF(ISTEXT($A26),"",(1-NORMDIST((COUNTA($A$4:$A$743)),($G26),((AD26-AC26)/6),TRUE))),"") -> 1 | Z26: =IFERROR(IF(ISTEXT($A26),"",(1-NORMDIST((COUNTA($A$4:$A$743))+(Personalize!$E$18+1),$G26,((AD26-AC26)/6),TRUE))),"") -> 1 | AA26: =IFERROR(IF(ISTEXT($A26),"",(1-NORMDIST((COUNTA($A$4:$A$743))+((Personalize!$E$18+1)*2),$G26,((AD26-AC26)/6),TRUE))),"") -> 0.999999999 | AC26: =IF(Personalize!$E$34=1,VLOOKUP($B26,'ADP-Rank'!$A$2:$J$700,5,FALSE),(IF(Personalize!$E$34=2,VLOOKUP($B26,'ADP-Rank'!$A$2:$J$700,8,FALSE),(IF(Personalize!$E$34=3,VLOOKUP($B26,'ADP-Rank'!$A$2:$O$700,11,FALSE),(IF(Personalize!$E$31=4,VLOOKUP($B26,'ADP-Rank'!$A$2:$AZ$700,25,FALSE),(IF(Personalize!$E$31=5,VLOOKUP($B26,'ADP-Rank'!$A$2:$AZ$700,28,FALSE),(IF(Personalize!$E$31=6,VLOOKUP($B26,'ADP-Rank'!$A$2:$AZ$700,32,FALSE),""))))))))))) -> 21 | AD26: =IF(Personalize!$E$34=1,VLOOKUP($B26,'ADP-Rank'!$A$2:$J$700,6,FALSE),(IF(Personalize!$E$34=2,VLOOKUP($B26,'ADP-Rank'!$A$2:$J$700,9,FALSE),(IF(Personalize!$E$34=3,VLOOKUP($B26,'ADP-Rank'!$A$2:$O$700,12,FALSE),(IF(Personalize!$E$31=4,VLOOKUP($B26,'ADP-Rank'!$A$2:$AZ$700,26,FALSE),(IF(Personalize!$E$31=5,VLOOKUP($B26,'ADP-Rank'!$A$2:$AZ$700,29,FALSE),(IF(Personalize!$E$31=6,VLOOKUP($B26,'ADP-Rank'!$A$2:$AZ$700,33,FALSE),""))))))))))) -> 40 | AE26: =IF(ISBLANK(A26),0,1) -> 0 | AF26: =IF(K26="",0,1) -> 1 | AG26: =A26 -> 0 | AH26: =IF(C26="C",1,IF(C26="1B",2,IF(C26="2B",3,IF(C26="3B",4,IF(C26="SS",5,IF(C26="CI",6,IF(C26="MI",7,IF(C26="OF",11,IF(C26="LF",8,IF(C26="CF",9,IF(C26="RF",10,IF(C26="DH",12,IF(C26="SP",13,IF(C26="RP",14,IF(C26="P",15,16))))))))))))))) -> 3 | AI26: =VLOOKUP(B26,'Starter Calc'!$B$2:$BN$700,65,FALSE) -> Bench | AJ26: =IFERROR(VLOOKUP($B26,'ADP-Rank'!$A$2:$AH$964,34,FALSE),TRUE) -> TRUE
B27: Jered Weaver | C27: =IFERROR(IF(VLOOKUP(B27,'ADP-Rank'!$A$2:$B$700,2,FALSE)="OF",VLOOKUP(B27,'Starter Calc'!$B$2:$AM$700,38,FALSE),(VLOOKUP(B27,'ADP-Rank'!$A$2:$B$700,2,FALSE))),"") -> SP | D27: =IFERROR(IF(VLOOKUP(B27,'Starter Calc'!$B$2:$E$700,4,FALSE)="","",VLOOKUP(B27,'Starter Calc'!$B$2:$E$700,4,FALSE)),"") ->  | E27: =IFERROR(VLOOKUP($B27,'ADP-Rank'!$A$2:$D$700,3,FALSE),"") -> ANA | F27: =IFERROR(VLOOKUP($B27,'ADP-Rank'!$A$2:$W$700,23,FALSE),"") -> 31 | G27: =IFERROR((IF(Personalize!$E$38=1,VLOOKUP($B27,'ADP-Rank'!$A$2:$J$700,4,FALSE),(IF(Personalize!$E$38=2,VLOOKUP($B27,'ADP-Rank'!$A$2:$J$700,7,FALSE),(IF(Personalize!$E$38=3,VLOOKUP($B27,'ADP-Rank'!$A$2:$J$700,10,FALSE),(IF(Personalize!$E$38=4,VLOOKUP($B27,'ADP-Rank'!$A$2:$AD$700,24,FALSE),(IF(Personalize!$E$38=5,VLOOKUP($B27,'ADP-Rank'!$A$2:$AD$700,27,FALSE),VLOOKUP($B27,'ADP-Rank'!$A$2:$AZ$700,30,FALSE))))))))))),"") -> 26.35 | H27: =IFERROR(ROUNDDOWN(VLOOKUP($B27,'ADP-Rank'!$A$2:$AY$1064,38,FALSE),0),"") -> 2 | I27: =VLOOKUP($B27,'ADP-Rank'!$A$2:$AJ$1064,36,FALSE) -> 34 | J27: =IFERROR(RANK($M27,$M$4:$M$743,0),"") -> 87 | K27: =IFERROR(IF((OR($C27="RP",$C27="SP")),VLOOKUP($B27,Pitcher!$A$1:$Z$700,20,FALSE),(VLOOKUP($B27,Hitter!$A$1:$Z$700,26,FALSE))),"") -> 351.3607607 | L27: =IFERROR(IF((OR($C27="RP",$C27="SP")),VLOOKUP($C27,'Filtered-P'!$M$3:$P$4,4,FALSE), VLOOKUP($C27,Filtered!$Q$3:$T$14,4,FALSE)),"") -> 357.2271519 | M27: =IFERROR(K27-L27,"") -> -5.86639122 | N27: =IFERROR(IF((OR($C27="RP",$C27="SP")),VLOOKUP($B27,Pitcher!$A$1:$Z$700,20,FALSE)/VLOOKUP($B27,Pitcher!$A$1:$Z$700,4,FALSE),(VLOOKUP($B27,Hitter!$A$1:$Z$700,26,FALSE)/VLOOKUP($B27,Hitter!$A$1:$Z$700,2,FALSE))),"") -> 1.850240972 | O27: =IFERROR(IF((OR($C27="RP",$C27="SP")),VLOOKUP($B27,Pitcher!$A$1:$V$700,2,FALSE),""),"") -> 15.2 | P27: =IFERROR(IF((OR($C27="RP",$C27="SP")),VLOOKUP($B27,Pitcher!$A$1:$V$700,9,FALSE),""),"") -> 0 | Q27: =IFERROR(IF((OR($C27="RP",$C27="SP")),VLOOKUP($B27,Pitcher!$A$1:$V$700,7,FALSE),""),"") -> 156.6643043 | R27: =IFERROR(IF((OR($C27="RP",$C27="SP")),VLOOKUP($B27,Pitcher!$A$1:$AB$700,21,FALSE),""),"") -> 3.574881517 | S27: =IFERROR(IF((OR($C27="RP",$C27="SP")),VLOOKUP($B27,Pitcher!$A$1:$V$700,22,FALSE),""),"") -> 1.186150606 | T27: =IFERROR(IF((OR($C27="RP",$C27="SP")),"",VLOOKUP($B27,Hitter!$A$1:$AH$700,27,FALSE)),"") ->  | U27: =IFERROR(IF((OR($C27="RP",$C27="SP")),"",VLOOKUP($B27,Hitter!$A$1:$AH$700,9,FALSE)),"") ->  | V27: =IFERROR(IF((OR($C27="RP",$C27="SP")),"",VLOOKUP($B27,Hitter!$A$1:$AH$700,10,FALSE)),"") ->  | W27: =IFERROR(IF((OR($C27="RP",$C27="SP")),"",VLOOKUP($B27,Hitter!$A$1:$AH$700,4,FALSE)),"") ->  | X27: =IFERROR(IF((OR($C27="RP",$C27="SP")),"",VLOOKUP($B27,Hitter!$A$1:$AH$700,11,FALSE)),"") ->  | Y27: =IFERROR(IF(ISTEXT($A27),"",(1-NORMDIST((COUNTA($A$4:$A$743)),($G27),((AD27-AC27)/6),TRUE))),"") -> 0.9999613305 | Z27: =IFERROR(IF(ISTEXT($A27),"",(1-NORMDIST((COUNTA($A$4:$A$743))+(Personalize!$E$18+1),$G27,((AD27-AC27)/6),TRUE))),"") -> 0.9996954168 | AA27: =IFERROR(IF(ISTEXT($A27),"",(1-NORMDIST((COUNTA($A$4:$A$743))+((Personalize!$E$18+1)*2),$G27,((AD27-AC27)/6),TRUE))),"") -> 0.9981490142 | AC27: =IF(Personalize!$E$34=1,VLOOKUP($B27,'ADP-Rank'!$A$2:$J$700,5,FALSE),(IF(Personalize!$E$34=2,VLOOKUP($B27,'ADP-Rank'!$A$2:$J$700,8,FALSE),(IF(Personalize!$E$34=3,VLOOKUP($B27,'ADP-Rank'!$A$2:$O$700,11,FALSE),(IF(Personalize!$E$31=4,VLOOKUP($B27,'ADP-Rank'!$A$2:$AZ$700,25,FALSE),(IF(Personalize!$E$31=5,VLOOKUP($B27,'ADP-Rank'!$A$2:$AZ$700,28,FALSE),(IF(Personalize!$E$31=6,VLOOKUP($B27,'ADP-Rank'!$A$2:$AZ$700,32,FALSE),""))))))))))) -> 26 | AD27: =IF(Personalize!$E$34=1,VLOOKUP($B27,'ADP-Rank'!$A$2:$J$700,6,FALSE),(IF(Personalize!$E$34=2,VLOOKUP($B27,'ADP-Rank'!$A$2:$J$700,9,FALSE),(IF(Personalize!$E$34=3,VLOOKUP($B27,'ADP-Rank'!$A$2:$O$700,12,FALSE),(IF(Personalize!$E$31=4,VLOOKUP($B27,'ADP-Rank'!$A$2:$AZ$700,26,FALSE),(IF(Personalize!$E$31=5,VLOOKUP($B27,'ADP-Rank'!$A$2:$AZ$700,29,FALSE),(IF(Personalize!$E$31=6,VLOOKUP($B27,'ADP-Rank'!$A$2:$AZ$700,33,FALSE),""))))))))))) -> 66 | AE27: =IF(ISBLANK(A27),0,1) -> 0 | AF27: =IF(K27="",0,1) -> 1 | AG27: =A27 -> 0 | AH27: =IF(C27="C",1,IF(C27="1B",2,IF(C27="2B",3,IF(C27="3B",4,IF(C27="SS",5,IF(C27="CI",6,IF(C27="MI",7,IF(C27="OF",11,IF(C27="LF",8,IF(C27="CF",9,IF(C27="RF",10,IF(C27="DH",12,IF(C27="SP",13,IF(C27="RP",14,IF(C27="P",15,16))))))))))))))) -> 13 | AI27: =VLOOKUP(B27,'Starter Calc'!$B$2:$BN$700,65,FALSE) -> Bench | AJ27: =IFERROR(VLOOKUP($B27,'ADP-Rank'!$A$2:$AH$964,34,FALSE),TRUE) -> TRUE
B28: Carlos Gonzalez | C28: =IFERROR(IF(VLOOKUP(B28,'ADP-Rank'!$A$2:$B$700,2,FALSE)="OF",VLOOKUP(B28,'Starter Calc'!$B$2:$AM$700,38,FALSE),(VLOOKUP(B28,'ADP-Rank'!$A$2:$B$700,2,FALSE))),"") -> OF | D28: =IFERROR(IF(VLOOKUP(B28,'Starter Calc'!$B$2:$E$700,4,FALSE)="","",VLOOKUP(B28,'Starter Calc'!$B$2:$E$700,4,FALSE)),"") -> LF | E28: =IFERROR(VLOOKUP($B28,'ADP-Rank'!$A$2:$D$700,3,FALSE),"") -> COL | F28: =IFERROR(VLOOKUP($B28,'ADP-Rank'!$A$2:$W$700,23,FALSE),"") -> 28 | G28: =IFERROR((IF(Personalize!$E$38=1,VLOOKUP($B28,'ADP-Rank'!$A$2:$J$700,4,FALSE),(IF(Personalize!$E$38=2,VLOOKUP($B28,'ADP-Rank'!$A$2:$J$700,7,FALSE),(IF(Personalize!$E$38=3,VLOOKUP($B28,'ADP-Rank'!$A$2:$J$700,10,FALSE),(IF(Personalize!$E$38=4,VLOOKUP($B28,'ADP-Rank'!$A$2:$AD$700,24,FALSE),(IF(Personalize!$E$38=5,VLOOKUP($B28,'ADP-Rank'!$A$2:$AD$700,27,FALSE),VLOOKUP($B28,'ADP-Rank'!$A$2:$AZ$700,30,FALSE))))))))))),"") -> 26.7 | H28: =IFERROR(ROUNDDOWN(VLOOKUP($B28,'ADP-Rank'!$A$2:$AY$1064,38,FALSE),0),"") -> 2 | I28: =VLOOKUP($B28,'ADP-Rank'!$A$2:$AJ$1064,36,FALSE) -> 17 | J28: =IFERROR(RANK($M28,$M$4:$M$743,0),"") -> 31 | K28: =IFERROR(IF((OR($C28="RP",$C28="SP")),VLOOKUP($B28,Pitcher!$A$1:$Z$700,20,FALSE),(VLOOKUP($B28,Hitter!$A$1:$Z$700,26,FALSE))),"") -> 423.0975866 | L28: =IFERROR(IF((OR($C28="RP",$C28="SP")),VLOOKUP($C28,'Filtered-P'!$M$3:$P$4,4,FALSE), VLOOKUP($C28,Filtered!$Q$3:$T$14,4,FALSE)),"") -> 368.4885837 | M28: =IFERROR(K28-L28,"") -> 54.60900284 | N28: =IFERROR(IF((OR($C28="RP",$C28="SP")),VLOOKUP($B28,Pitcher!$A$1:$Z$700,20,FALSE)/VLOOKUP($B28,Pitcher!$A$1:$Z$700,4,FALSE),(VLOOKUP($B28,Hitter!$A$1:$Z$700,26,FALSE)/VLOOKUP($B28,Hitter!$A$1:$Z$700,2,FALSE))),"") -> 0.7113853484 | O28: =IFERROR(IF((OR($C28="RP",$C28="SP")),VLOOKUP($B28,Pitcher!$A$1:$V$700,2,FALSE),""),"") ->  | P28: =IFERROR(IF((OR($C28="RP",$C28="SP")),VLOOKUP($B28,Pitcher!$A$1:$V$700,9,FALSE),""),"") ->  | Q28: =IFERROR(IF((OR($C28="RP",$C28="SP")),VLOOKUP($B28,Pitcher!$A$1:$V$700,7,FALSE),""),"") ->  | R28: =IFERROR(IF((OR($C28="RP",$C28="SP")),VLOOKUP($B28,Pitcher!$A$1:$AB$700,21,FALSE),""),"") ->  | S28: =IFERROR(IF((OR($C28="RP",$C28="SP")),VLOOKUP($B28,Pitcher!$A$1:$V$700,22,FALSE),""),"") ->  | T28: =IFERROR(IF((OR($C28="RP",$C28="SP")),"",VLOOKUP($B28,Hitter!$A$1:$AH$700,27,FALSE)),"") -> 0.3003684392 | U28: =IFERROR(IF((OR($C28="RP",$C28="SP")),"",VLOOKUP($B28,Hitter!$A$1:$AH$700,9,FALSE)),"") -> 26.12568447 | V28: =IFERROR(IF((OR($C28="RP",$C28="SP")),"",VLOOKUP($B28,Hitter!$A$1:$AH$700,10,FALSE)),"") -> 93.69070345 | W28: =IFERROR(IF((OR($C28="RP",$C28="SP")),"",VLOOKUP($B28,Hitter!$A$1:$AH$700,4,FALSE)),"") -> 96.10832367 | X28: =IFERROR(IF((OR($C28="RP",$C28="SP")),"",VLOOKUP($B28,Hitter!$A$1:$AH$700,11,FALSE)),"") -> 20.0428437 | Y28: =IFERROR(IF(ISTEXT($A28),"",(1-NORMDIST((COUNTA($A$4:$A$743)),($G28),((AD28-AC28)/6),TRUE))),"") -> 1 | Z28: =IFERROR(IF(ISTEXT($A28),"",(1-NORMDIST((COUNTA($A$4:$A$743))+(Personalize!$E$18+1),$G28,((AD28-AC28)/6),TRUE))),"") -> 1 | AA28: =IFERROR(IF(ISTEXT($A28),"",(1-NORMDIST((COUNTA($A$4:$A$743))+((Personalize!$E$18+1)*2),$G28,((AD28-AC28)/6),TRUE))),"") -> 1 | AC28: =IF(Personalize!$E$34=1,VLOOKUP($B28,'ADP-Rank'!$A$2:$J$700,5,FALSE),(IF(Personalize!$E$34=2,VLOOKUP($B28,'ADP-Rank'!$A$2:$J$700,8,FALSE),(IF(Personalize!$E$34=3,VLOOKUP($B28,'ADP-Rank'!$A$2:$O$700,11,FALSE),(IF(Personalize!$E$31=4,VLOOKUP($B28,'ADP-Rank'!$A$2:$AZ$700,25,FALSE),(IF(Personalize!$E$31=5,VLOOKUP($B28,'ADP-Rank'!$A$2:$AZ$700,28,FALSE),(IF(Personalize!$E$31=6,VLOOKUP($B28,'ADP-Rank'!$A$2:$AZ$700,32,FALSE),""))))))))))) -> 7 | AD28: =IF(Personalize!$E$34=1,VLOOKUP($B28,'ADP-Rank'!$A$2:$J$700,6,FALSE),(IF(Personalize!$E$34=2,VLOOKUP($B28,'ADP-Rank'!$A$2:$J$700,9,FALSE),(IF(Personalize!$E$34=3,VLOOKUP($B28,'ADP-Rank'!$A$2:$O$700,12,FALSE),(IF(Personalize!$E$31=4,VLOOKUP($B28,'ADP-Rank'!$A$2:$AZ$700,26,FALSE),(IF(Personalize!$E$31=5,VLOOKUP($B28,'ADP-Rank'!$A$2:$AZ$700,29,FALSE),(IF(Personalize!$E$31=6,VLOOKUP($B28,'ADP-Rank'!$A$2:$AZ$700,33,FALSE),""))))))))))) -> 20 | AE28: =IF(ISBLANK(A28),0,1) -> 0 | AF28: =IF(K28="",0,1) -> 1 | AG28: =A28 -> 0 | AH28: =IF(C28="C",1,IF(C28="1B",2,IF(C28="2B",3,IF(C28="3B",4,IF(C28="SS",5,IF(C28="CI",6,IF(C28="MI",7,IF(C28="OF",11,IF(C28="LF",8,IF(C28="CF",9,IF(C28="RF",10,IF(C28="DH",12,IF(C28="SP",13,IF(C28="RP",14,IF(C28="P",15,16))))))))))))))) -> 11 | AI28: =VLOOKUP(B28,'Starter Calc'!$B$2:$BN$700,65,FALSE) -> Bench | AJ28: =IFERROR(VLOOKUP($B28,'ADP-Rank'!$A$2:$AH$964,34,FALSE),TRUE) -> TRUE
B29: Jose Bautista | C29: =IFERROR(IF(VLOOKUP(B29,'ADP-Rank'!$A$2:$B$700,2,FALSE)="OF",VLOOKUP(B29,'Starter Calc'!$B$2:$AM$700,38,FALSE),(VLOOKUP(B29,'ADP-Rank'!$A$2:$B$700,2,FALSE))),"") -> OF | D29: =IFERROR(IF(VLOOKUP(B29,'Starter Calc'!$B$2:$E$700,4,FALSE)="","",VLOOKUP(B29,'Starter Calc'!$B$2:$E$700,4,FALSE)),"") -> RF | E29: =IFERROR(VLOOKUP($B29,'ADP-Rank'!$A$2:$D$700,3,FALSE),"") -> TOR | F29: =IFERROR(VLOOKUP($B29,'ADP-Rank'!$A$2:$W$700,23,FALSE),"") -> 33 | G29: =IFERROR((IF(Personalize!$E$38=1,VLOOKUP($B29,'ADP-Rank'!$A$2:$J$700,4,FALSE),(IF(Personalize!$E$38=2,VLOOKUP($B29,'ADP-Rank'!$A$2:$J$700,7,FALSE),(IF(Personalize!$E$38=3,VLOOKUP($B29,'ADP-Rank'!$A$2:$J$700,10,FALSE),(IF(Personalize!$E$38=4,VLOOKUP($B29,'ADP-Rank'!$A$2:$AD$700,24,FALSE),(IF(Personalize!$E$38=5,VLOOKUP($B29,'ADP-Rank'!$A$2:$AD$700,27,FALSE),VLOOKUP($B29,'ADP-Rank'!$A$2:$AZ$700,30,FALSE))))))))))),"") -> 27.31 | H29: =IFERROR(ROUNDDOWN(VLOOKUP($B29,'ADP-Rank'!$A$2:$AY$1064,38,FALSE),0),"") -> 3 | I29: =VLOOKUP($B29,'ADP-Rank'!$A$2:$AJ$1064,36,FALSE) -> 12 | J29: =IFERROR(RANK($M29,$M$4:$M$743,0),"") -> 35 | K29: =IFERROR(IF((OR($C29="RP",$C29="SP")),VLOOKUP($B29,Pitcher!$A$1:$Z$700,20,FALSE),(VLOOKUP($B29,Hitter!$A$1:$Z$700,26,FALSE))),"") -> 419.3872778 | L29: =IFERROR(IF((OR($C29="RP",$C29="SP")),VLOOKUP($C29,'Filtered-P'!$M$3:$P$4,4,FALSE), VLOOKUP($C29,Filtered!$Q$3:$T$14,4,FALSE)),"") -> 368.4885837 | M29: =IFERROR(K29-L29,"") -> 50.89869406 | N29: =IFERROR(IF((OR($C29="RP",$C29="SP")),VLOOKUP($B29,Pitcher!$A$1:$Z$700,20,FALSE)/VLOOKUP($B29,Pitcher!$A$1:$Z$700,4,FALSE),(VLOOKUP($B29,Hitter!$A$1:$Z$700,26,FALSE)/VLOOKUP($B29,Hitter!$A$1:$Z$700,2,FALSE))),"") -> 0.7615506911 | O29: =IFERROR(IF((OR($C29="RP",$C29="SP")),VLOOKUP($B29,Pitcher!$A$1:$V$700,2,FALSE),""),"") ->  | P29: =IFERROR(IF((OR($C29="RP",$C29="SP")),VLOOKUP($B29,Pitcher!$A$1:$V$700,9,FALSE),""),"") ->  | Q29: =IFERROR(IF((OR($C29="RP",$C29="SP")),VLOOKUP($B29,Pitcher!$A$1:$V$700,7,FALSE),""),"") ->  | R29: =IFERROR(IF((OR($C29="RP",$C29="SP")),VLOOKUP($B29,Pitcher!$A$1:$AB$700,21,FALSE),""),"") ->  | S29: =IFERROR(IF((OR($C29="RP",$C29="SP")),VLOOKUP($B29,Pitcher!$A$1:$V$700,22,FALSE),""),"") ->  | T29: =IFERROR(IF((OR($C29="RP",$C29="SP")),"",VLOOKUP($B29,Hitter!$A$1:$AH$700,27,FALSE)),"") -> 0.2648688224 | U29: =IFERROR(IF((OR($C29="RP",$C29="SP")),"",VLOOKUP($B29,Hitter!$A$1:$AH$700,9,FALSE)),"") -> 33.44685706 | V29: =IFERROR(IF((OR($C29="RP",$C29="SP")),"",VLOOKUP($B29,Hitter!$A$1:$AH$700,10,FALSE)),"") -> 88.76926121 | W29: =IFERROR(IF((OR($C29="RP",$C29="SP")),"",VLOOKUP($B29,Hitter!$A$1:$AH$700,4,FALSE)),"") -> 87.63815222 | X29: =IFERROR(IF((OR($C29="RP",$C29="SP")),"",VLOOKUP($B29,Hitter!$A$1:$AH$700,11,FALSE)),"") -> 6.101325715 | Y29: =IFERROR(IF(ISTEXT($A29),"",(1-NORMDIST((COUNTA($A$4:$A$743)),($G29),((AD29-AC29)/6),TRUE))),"") -> 1 | Z29: =IFERROR(IF(ISTEXT($A29),"",(1-NORMDIST((COUNTA($A$4:$A$743))+(Personalize!$E$18+1),$G29,((AD29-AC29)/6),TRUE))),"") -> 1 | AA29: =IFERROR(IF(ISTEXT($A29),"",(1-NORMDIST((COUNTA($A$4:$A$743))+((Personalize!$E$18+1)*2),$G29,((AD29-AC29)/6),TRUE))),"") -> 1 | AB29: Due for increase in AVG | AC29: =IF(Personalize!$E$34=1,VLOOKUP($B29,'ADP-Rank'!$A$2:$J$700,5,FALSE),(IF(Personalize!$E$34=2,VLOOKUP($B29,'ADP-Rank'!$A$2:$J$700,8,FALSE),(IF(Personalize!$E$34=3,VLOOKUP($B29,'ADP-Rank'!$A$2:$O$700,11,FALSE),(IF(Personalize!$E$31=4,VLOOKUP($B29,'ADP-Rank'!$A$2:$AZ$700,25,FALSE),(IF(Personalize!$E$31=5,VLOOKUP($B29,'ADP-Rank'!$A$2:$AZ$700,28,FALSE),(IF(Personalize!$E$31=6,VLOOKUP($B29,'ADP-Rank'!$A$2:$AZ$700,32,FALSE),""))))))))))) -> 7 | AD29: =IF(Personalize!$E$34=1,VLOOKUP($B29,'ADP-Rank'!$A$2:$J$700,6,FALSE),(IF(Personalize!$E$34=2,VLOOKUP($B29,'ADP-Rank'!$A$2:$J$700,9,FALSE),(IF(Personalize!$E$34=3,VLOOKUP($B29,'ADP-Rank'!$A$2:$O$700,12,FALSE),(IF(Personalize!$E$31=4,VLOOKUP($B29,'ADP-Rank'!$A$2:$AZ$700,26,FALSE),(IF(Personalize!$E$31=5,VLOOKUP($B29,'ADP-Rank'!$A$2:$AZ$700,29,FALSE),(IF(Personalize!$E$31=6,VLOOKUP($B29,'ADP-Rank'!$A$2:$AZ$700,33,FALSE),""))))))))))) -> 18 | AE29: =IF(ISBLANK(A29),0,1) -> 0 | AF29: =IF(K29="",0,1) -> 1 | AG29: =A29 -> 0 | AH29: =IF(C29="C",1,IF(C29="1B",2,IF(C29="2B",3,IF(C29="3B",4,IF(C29="SS",5,IF(C29="CI",6,IF(C29="MI",7,IF(C29="OF",11,IF(C29="LF",8,IF(C29="CF",9,IF(C29="RF",10,IF(C29="DH",12,IF(C29="SP",13,IF(C29="RP",14,IF(C29="P",15,16))))))))))))))) -> 11 | AI29: =VLOOKUP(B29,'Starter Calc'!$B$2:$BN$700,65,FALSE) -> Bench | AJ29: =IFERROR(VLOOKUP($B29,'ADP-Rank'!$A$2:$AH$964,34,FALSE),TRUE) -> TRUE
B30: Buster Posey | C30: =IFERROR(IF(VLOOKUP(B30,'ADP-Rank'!$A$2:$B$700,2,FALSE)="OF",VLOOKUP(B30,'Starter Calc'!$B$2:$AM$700,38,FALSE),(VLOOKUP(B30,'ADP-Rank'!$A$2:$B$700,2,FALSE))),"") -> C | D30: =IFERROR(IF(VLOOKUP(B30,'Starter Calc'!$B$2:$E$700,4,FALSE)="","",VLOOKUP(B30,'Starter Calc'!$B$2:$E$700,4,FALSE)),"") ->  | E30: =IFERROR(VLOOKUP($B30,'ADP-Rank'!$A$2:$D$700,3,FALSE),"") -> SF | F30: =IFERROR(VLOOKUP($B30,'ADP-Rank'!$A$2:$W$700,23,FALSE),"") -> 26 | G30: =IFERROR((IF(Personalize!$E$38=1,VLOOKUP($B30,'ADP-Rank'!$A$2:$J$700,4,FALSE),(IF(Personalize!$E$38=2,VLOOKUP($B30,'ADP-Rank'!$A$2:$J$700,7,FALSE),(IF(Personalize!$E$38=3,VLOOKUP($B30,'ADP-Rank'!$A$2:$J$700,10,FALSE),(IF(Personalize!$E$38=4,VLOOKUP($B30,'ADP-Rank'!$A$2:$AD$700,24,FALSE),(IF(Personalize!$E$38=5,VLOOKUP($B30,'ADP-Rank'!$A$2:$AD$700,27,FALSE),VLOOKUP($B30,'ADP-Rank'!$A$2:$AZ$700,30,FALSE))))))))))),"") -> 28.84 | H30: =IFERROR(ROUNDDOWN(VLOOKUP($B30,'ADP-Rank'!$A$2:$AY$1064,38,FALSE),0),"") -> 3 | I30: =VLOOKUP($B30,'ADP-Rank'!$A$2:$AJ$1064,36,FALSE) -> 16 | J30: =IFERROR(RANK($M30,$M$4:$M$743,0),"") -> 17 | K30: =IFERROR(IF((OR($C30="RP",$C30="SP")),VLOOKUP($B30,Pitcher!$A$1:$Z$700,20,FALSE),(VLOOKUP($B30,Hitter!$A$1:$Z$700,26,FALSE))),"") -> 390.9792375 | L30: =IFERROR(IF((OR($C30="RP",$C30="SP")),VLOOKUP($C30,'Filtered-P'!$M$3:$P$4,4,FALSE), VLOOKUP($C30,Filtered!$Q$3:$T$14,4,FALSE)),"") -> 304.9320515 | M30: =IFERROR(K30-L30,"") -> 86.04718603 | N30: =IFERROR(IF((OR($C30="RP",$C30="SP")),VLOOKUP($B30,Pitcher!$A$1:$Z$700,20,FALSE)/VLOOKUP($B30,Pitcher!$A$1:$Z$700,4,FALSE),(VLOOKUP($B30,Hitter!$A$1:$Z$700,26,FALSE)/VLOOKUP($B30,Hitter!$A$1:$Z$700,2,FALSE))),"") -> 0.6748349138 | O30: =IFERROR(IF((OR($C30="RP",$C30="SP")),VLOOKUP($B30,Pitcher!$A$1:$V$700,2,FALSE),""),"") ->  | P30: =IFERROR(IF((OR($C30="RP",$C30="SP")),VLOOKUP($B30,Pitcher!$A$1:$V$700,9,FALSE),""),"") ->  | Q30: =IFERROR(IF((OR($C30="RP",$C30="SP")),VLOOKUP($B30,Pitcher!$A$1:$V$700,7,FALSE),""),"") ->  | R30: =IFERROR(IF((OR($C30="RP",$C30="SP")),VLOOKUP($B30,Pitcher!$A$1:$AB$700,21,FALSE),""),"") ->  | S30: =IFERROR(IF((OR($C30="RP",$C30="SP")),VLOOKUP($B30,Pitcher!$A$1:$V$700,22,FALSE),""),"") ->  | T30: =IFERROR(IF((OR($C30="RP",$C30="SP")),"",VLOOKUP($B30,Hitter!$A$1:$AH$700,27,FALSE)),"") -> 0.3042175352 | U30: =IFERROR(IF((OR($C30="RP",$C30="SP")),"",VLOOKUP($B30,Hitter!$A$1:$AH$700,9,FALSE)),"") -> 20.59159988 | V30: =IFERROR(IF((OR($C30="RP",$C30="SP")),"",VLOOKUP($B30,Hitter!$A$1:$AH$700,10,FALSE)),"") -> 87.06192241 | W30: =IFERROR(IF((OR($C30="RP",$C30="SP")),"",VLOOKUP($B30,Hitter!$A$1:$AH$700,4,FALSE)),"") -> 78.82910971 | X30: =IFERROR(IF((OR($C30="RP",$C30="SP")),"",VLOOKUP($B30,Hitter!$A$1:$AH$700,11,FALSE)),"") -> 2.675098533 | Y30: =IFERROR(IF(ISTEXT($A30),"",(1-NORMDIST((COUNTA($A$4:$A$743)),($G30),((AD30-AC30)/6),TRUE))),"") -> 0.9997307136 | Z30: =IFERROR(IF(ISTEXT($A30),"",(1-NORMDIST((COUNTA($A$4:$A$743))+(Personalize!$E$18+1),$G30,((AD30-AC30)/6),TRUE))),"") -> 0.9988202475 | AA30: =IFERROR(IF(ISTEXT($A30),"",(1-NORMDIST((COUNTA($A$4:$A$743))+((Personalize!$E$18+1)*2),$G30,((AD30-AC30)/6),TRUE))),"") -> 0.9956138146 | AC30: =IF(Personalize!$E$34=1,VLOOKUP($B30,'ADP-Rank'!$A$2:$J$700,5,FALSE),(IF(Personalize!$E$34=2,VLOOKUP($B30,'ADP-Rank'!$A$2:$J$700,8,FALSE),(IF(Personalize!$E$34=3,VLOOKUP($B30,'ADP-Rank'!$A$2:$O$700,11,FALSE),(IF(Personalize!$E$31=4,VLOOKUP($B30,'ADP-Rank'!$A$2:$AZ$700,25,FALSE),(IF(Personalize!$E$31=5,VLOOKUP($B30,'ADP-Rank'!$A$2:$AZ$700,28,FALSE),(IF(Personalize!$E$31=6,VLOOKUP($B30,'ADP-Rank'!$A$2:$AZ$700,32,FALSE),""))))))))))) -> 7 | AD30: =IF(Personalize!$E$34=1,VLOOKUP($B30,'ADP-Rank'!$A$2:$J$700,6,FALSE),(IF(Personalize!$E$34=2,VLOOKUP($B30,'ADP-Rank'!$A$2:$J$700,9,FALSE),(IF(Personalize!$E$34=3,VLOOKUP($B30,'ADP-Rank'!$A$2:$O$700,12,FALSE),(IF(Personalize!$E$31=4,VLOOKUP($B30,'ADP-Rank'!$A$2:$AZ$700,26,FALSE),(IF(Personalize!$E$31=5,VLOOKUP($B30,'ADP-Rank'!$A$2:$AZ$700,29,FALSE),(IF(Personalize!$E$31=6,VLOOKUP($B30,'ADP-Rank'!$A$2:$AZ$700,33,FALSE),""))))))))))) -> 57 | AE30: =IF(ISBLANK(A30),0,1) -> 0 | AF30: =IF(K30="",0,1) -> 1 | AG30: =A30 -> 0 | AH30: =IF(C30="C",1,IF(C30="1B",2,IF(C30="2B",3,IF(C30="3B",4,IF(C30="SS",5,IF(C30="CI",6,IF(C30="MI",7,IF(C30="OF",11,IF(C30="LF",8,IF(C30="CF",9,IF(C30="RF",10,IF(C30="DH",12,IF(C30="SP",13,IF(C30="RP",14,IF(C30="P",15,16))))))))))))))) -> 1 | AI30: =VLOOKUP(B30,'Starter Calc'!$B$2:$BN$700,65,FALSE) -> Bench | AJ30: =IFERROR(VLOOKUP($B30,'ADP-Rank'!$A$2:$AH$964,34,FALSE),TRUE) -> TRUE
B31: Matt Cain | C31: =IFERROR(IF(VLOOKUP(B31,'ADP-Rank'!$A$2:$B$700,2,FALSE)="OF",VLOOKUP(B31,'Starter Calc'!$B$2:$AM$700,38,FALSE),(VLOOKUP(B31,'ADP-Rank'!$A$2:$B$700,2,FALSE))),"") -> SP | D31: =IFERROR(IF(VLOOKUP(B31,'Starter Calc'!$B$2:$E$700,4,FALSE)="","",VLOOKUP(B31,'Starter Calc'!$B$2:$E$700,4,FALSE)),"") ->  | E31: =IFERROR(VLOOKUP($B31,'ADP-Rank'!$A$2:$D$700,3,FALSE),"") -> SF | F31: =IFERROR(VLOOKUP($B31,'ADP-Rank'!$A$2:$W$700,23,FALSE),"") -> 29 | G31: =IFERROR((IF(Personalize!$E$38=1,VLOOKUP($B31,'ADP-Rank'!$A$2:$J$700,4,FALSE),(IF(Personalize!$E$38=2,VLOOKUP($B31,'ADP-Rank'!$A$2:$J$700,7,FALSE),(IF(Personalize!$E$38=3,VLOOKUP($B31,'ADP-Rank'!$A$2:$J$700,10,FALSE),(IF(Personalize!$E$38=4,VLOOKUP($B31,'ADP-Rank'!$A$2:$AD$700,24,FALSE),(IF(Personalize!$E$38=5,VLOOKUP($B31,'ADP-Rank'!$A$2:$AD$700,27,FALSE),VLOOKUP($B31,'ADP-Rank'!$A$2:$AZ$700,30,FALSE))))))))))),"") -> 29.34 | H31: =IFERROR(ROUNDDOWN(VLOOKUP($B31,'ADP-Rank'!$A$2:$AY$1064,38,FALSE),0),"") -> 3 | I31: =VLOOKUP($B31,'ADP-Rank'!$A$2:$AJ$1064,36,FALSE) -> 45 | J31: =IFERROR(RANK($M31,$M$4:$M$743,0),"") -> 44 | K31: =IFERROR(IF((OR($C31="RP",$C31="SP")),VLOOKUP($B31,Pitcher!$A$1:$Z$700,20,FALSE),(VLOOKUP($B31,Hitter!$A$1:$Z$700,26,FALSE))),"") -> 396.7791663 | L31: =IFERROR(IF((OR($C31="RP",$C31="SP")),VLOOKUP($C31,'Filtered-P'!$M$3:$P$4,4,FALSE), VLOOKUP($C31,Filtered!$Q$3:$T$14,4,FALSE)),"") -> 357.2271519 | M31: =IFERROR(K31-L31,"") -> 39.5520144 | N31: =IFERROR(IF((OR($C31="RP",$C31="SP")),VLOOKUP($B31,Pitcher!$A$1:$Z$700,20,FALSE)/VLOOKUP($B31,Pitcher!$A$1:$Z$700,4,FALSE),(VLOOKUP($B31,Hitter!$A$1:$Z$700,26,FALSE)/VLOOKUP($B31,Hitter!$A$1:$Z$700,2,FALSE))),"") -> 1.926112458 | O31: =IFERROR(IF((OR($C31="RP",$C31="SP")),VLOOKUP($B31,Pitcher!$A$1:$V$700,2,FALSE),""),"") -> 14.82 | P31: =IFERROR(IF((OR($C31="RP",$C31="SP")),VLOOKUP($B31,Pitcher!$A$1:$V$700,9,FALSE),""),"") -> 0 | Q31: =IFERROR(IF((OR($C31="RP",$C31="SP")),VLOOKUP($B31,Pitcher!$A$1:$V$700,7,FALSE),""),"") -> 179.4596665 | R31: =IFERROR(IF((OR($C31="RP",$C31="SP")),VLOOKUP($B31,Pitcher!$A$1:$AB$700,21,FALSE),""),"") -> 3.501262136 | S31: =IFERROR(IF((OR($C31="RP",$C31="SP")),VLOOKUP($B31,Pitcher!$A$1:$V$700,22,FALSE),""),"") -> 1.191893204 | T31: =IFERROR(IF((OR($C31="RP",$C31="SP")),"",VLOOKUP($B31,Hitter!$A$1:$AH$700,27,FALSE)),"") ->  | U31: =IFERROR(IF((OR($C31="RP",$C31="SP")),"",VLOOKUP($B31,Hitter!$A$1:$AH$700,9,FALSE)),"") ->  | V31: =IFERROR(IF((OR($C31="RP",$C31="SP")),"",VLOOKUP($B31,Hitter!$A$1:$AH$700,10,FALSE)),"") ->  | W31: =IFERROR(IF((OR($C31="RP",$C31="SP")),"",VLOOKUP($B31,Hitter!$A$1:$AH$700,4,FALSE)),"") ->  | X31: =IFERROR(IF((OR($C31="RP",$C31="SP")),"",VLOOKUP($B31,Hitter!$A$1:$AH$700,11,FALSE)),"") ->  | Y31: =IFERROR(IF(ISTEXT($A31),"",(1-NORMDIST((COUNTA($A$4:$A$743)),($G31),((AD31-AC31)/6),TRUE))),"") -> 0.9999684502 | Z31: =IFERROR(IF(ISTEXT($A31),"",(1-NORMDIST((COUNTA($A$4:$A$743))+(Personalize!$E$18+1),$G31,((AD31-AC31)/6),TRUE))),"") -> 0.999787166 | AA31: =IFERROR(IF(ISTEXT($A31),"",(1-NORMDIST((COUNTA($A$4:$A$743))+((Personalize!$E$18+1)*2),$G31,((AD31-AC31)/6),TRUE))),"") -> 0.9988418624 | AC31: =IF(Personalize!$E$34=1,VLOOKUP($B31,'ADP-Rank'!$A$2:$J$700,5,FALSE),(IF(Personalize!$E$34=2,VLOOKUP($B31,'ADP-Rank'!$A$2:$J$700,8,FALSE),(IF(Personalize!$E$34=3,VLOOKUP($B31,'ADP-Rank'!$A$2:$O$700,11,FALSE),(IF(Personalize!$E$31=4,VLOOKUP($B31,'ADP-Rank'!$A$2:$AZ$700,25,FALSE),(IF(Personalize!$E$31=5,VLOOKUP($B31,'ADP-Rank'!$A$2:$AZ$700,28,FALSE),(IF(Personalize!$E$31=6,VLOOKUP($B31,'ADP-Rank'!$A$2:$AZ$700,32,FALSE),""))))))))))) -> 38 | AD31: =IF(Personalize!$E$34=1,VLOOKUP($B31,'ADP-Rank'!$A$2:$J$700,6,FALSE),(IF(Personalize!$E$34=2,VLOOKUP($B31,'ADP-Rank'!$A$2:$J$700,9,FALSE),(IF(Personalize!$E$34=3,VLOOKUP($B31,'ADP-Rank'!$A$2:$O$700,12,FALSE),(IF(Personalize!$E$31=4,VLOOKUP($B31,'ADP-Rank'!$A$2:$AZ$700,26,FALSE),(IF(Personalize!$E$31=5,VLOOKUP($B31,'ADP-Rank'!$A$2:$AZ$700,29,FALSE),(IF(Personalize!$E$31=6,VLOOKUP($B31,'ADP-Rank'!$A$2:$AZ$700,33,FALSE),""))))))))))) -> 82 | AE31: =IF(ISBLANK(A31),0,1) -> 0 | AF31: =IF(K31="",0,1) -> 1 | AG31: =A31 -> 0 | AH31: =IF(C31="C",1,IF(C31="1B",2,IF(C31="2B",3,IF(C31="3B",4,IF(C31="SS",5,IF(C31="CI",6,IF(C31="MI",7,IF(C31="OF",11,IF(C31="LF",8,IF(C31="CF",9,IF(C31="RF",10,IF(C31="DH",12,IF(C31="SP",13,IF(C31="RP",14,IF(C31="P",15,16))))))))))))))) -> 13 | AI31: =VLOOKUP(B31,'Starter Calc'!$B$2:$BN$700,65,FALSE) -> Bench | AJ31: =IFERROR(VLOOKUP($B31,'ADP-Rank'!$A$2:$AH$964,34,FALSE),TRUE) -> TRUE
B32: Adrian Gonzalez | C32: =IFERROR(IF(VLOOKUP(B32,'ADP-Rank'!$A$2:$B$700,2,FALSE)="OF",VLOOKUP(B32,'Starter Calc'!$B$2:$AM$700,38,FALSE),(VLOOKUP(B32,'ADP-Rank'!$A$2:$B$700,2,FALSE))),"") -> 1B | D32: =IFERROR(IF(VLOOKUP(B32,'Starter Calc'!$B$2:$E$700,4,FALSE)="","",VLOOKUP(B32,'Starter Calc'!$B$2:$E$700,4,FALSE)),"") -> RF | E32: =IFERROR(VLOOKUP($B32,'ADP-Rank'!$A$2:$D$700,3,FALSE),"") -> LA | F32: =IFERROR(VLOOKUP($B32,'ADP-Rank'!$A$2:$W$700,23,FALSE),"") -> 31 | G32: =IFERROR((IF(Personalize!$E$38=1,VLOOKUP($B32,'ADP-Rank'!$A$2:$J$700,4,FALSE),(IF(Personalize!$E$38=2,VLOOKUP($B32,'ADP-Rank'!$A$2:$J$700,7,FALSE),(IF(Personalize!$E$38=3,VLOOKUP($B32,'ADP-Rank'!$A$2:$J$700,10,FALSE),(IF(Personalize!$E$38=4,VLOOKUP($B32,'ADP-Rank'!$A$2:$AD$700,24,FALSE),(IF(Personalize!$E$38=5,VLOOKUP($B32,'ADP-Rank'!$A$2:$AD$700,27,FALSE),VLOOKUP($B32,'ADP-Rank'!$A$2:$AZ$700,30,FALSE))))))))))),"") -> 30.28 | H32: =IFERROR(ROUNDDOWN(VLOOKUP($B32,'ADP-Rank'!$A$2:$AY$1064,38,FALSE),0),"") -> 3 | I32: =VLOOKUP($B32,'ADP-Rank'!$A$2:$AJ$1064,36,FALSE) -> 33 | J32: =IFERROR(RANK($M32,$M$4:$M$743,0),"") -> 50 | K32: =IFERROR(IF((OR($C32="RP",$C32="SP")),VLOOKUP($B32,Pitcher!$A$1:$Z$700,20,FALSE),(VLOOKUP($B32,Hitter!$A$1:$Z$700,26,FALSE))),"") -> 425.8345 | L32: =IFERROR(IF((OR($C32="RP",$C32="SP")),VLOOKUP($C32,'Filtered-P'!$M$3:$P$4,4,FALSE), VLOOKUP($C32,Filtered!$Q$3:$T$14,4,FALSE)),"") -> 395.2780551 | M32: =IFERROR(K32-L32,"") -> 30.55644492 | N32: =IFERROR(IF((OR($C32="RP",$C32="SP")),VLOOKUP($B32,Pitcher!$A$1:$Z$700,20,FALSE)/VLOOKUP($B32,Pitcher!$A$1:$Z$700,4,FALSE),(VLOOKUP($B32,Hitter!$A$1:$Z$700,26,FALSE)/VLOOKUP($B32,Hitter!$A$1:$Z$700,2,FALSE))),"") -> 0.6477943195 | O32: =IFERROR(IF((OR($C32="RP",$C32="SP")),VLOOKUP($B32,Pitcher!$A$1:$V$700,2,FALSE),""),"") ->  | P32: =IFERROR(IF((OR($C32="RP",$C32="SP")),VLOOKUP($B32,Pitcher!$A$1:$V$700,9,FALSE),""),"") ->  | Q32: =IFERROR(IF((OR($C32="RP",$C32="SP")),VLOOKUP($B32,Pitcher!$A$1:$V$700,7,FALSE),""),"") ->  | R32: =IFERROR(IF((OR($C32="RP",$C32="SP")),VLOOKUP($B32,Pitcher!$A$1:$AB$700,21,FALSE),""),"") ->  | S32: =IFERROR(IF((OR($C32="RP",$C32="SP")),VLOOKUP($B32,Pitcher!$A$1:$V$700,22,FALSE),""),"") ->  | T32: =IFERROR(IF((OR($C32="RP",$C32="SP")),"",VLOOKUP($B32,Hitter!$A$1:$AH$700,27,FALSE)),"") -> 0.2885095498 | U32: =IFERROR(IF((OR($C32="RP",$C32="SP")),"",VLOOKUP($B32,Hitter!$A$1:$AH$700,9,FALSE)),"") -> 25.68590266 | V32: =IFERROR(IF((OR($C32="RP",$C32="SP")),"",VLOOKUP($B32,Hitter!$A$1:$AH$700,10,FALSE)),"") -> 98.03325464 | W32: =IFERROR(IF((OR($C32="RP",$C32="SP")),"",VLOOKUP($B32,Hitter!$A$1:$AH$700,4,FALSE)),"") -> 88.81930631 | X32: =IFERROR(IF((OR($C32="RP",$C32="SP")),"",VLOOKUP($B32,Hitter!$A$1:$AH$700,11,FALSE)),"") -> 1.730582567 | Y32: =IFERROR(IF(ISTEXT($A32),"",(1-NORMDIST((COUNTA($A$4:$A$743)),($G32),((AD32-AC32)/6),TRUE))),"") -> 1 | Z32: =IFERROR(IF(ISTEXT($A32),"",(1-NORMDIST((COUNTA($A$4:$A$743))+(Personalize!$E$18+1),$G32,((AD32-AC32)/6),TRUE))),"") -> 1 | AA32: =IFERROR(IF(ISTEXT($A32),"",(1-NORMDIST((COUNTA($A$4:$A$743))+((Personalize!$E$18+1)*2),$G32,((AD32-AC32)/6),TRUE))),"") -> 1 | AC32: =IF(Personalize!$E$34=1,VLOOKUP($B32,'ADP-Rank'!$A$2:$J$700,5,FALSE),(IF(Personalize!$E$34=2,VLOOKUP($B32,'ADP-Rank'!$A$2:$J$700,8,FALSE),(IF(Personalize!$E$34=3,VLOOKUP($B32,'ADP-Rank'!$A$2:$O$700,11,FALSE),(IF(Personalize!$E$31=4,VLOOKUP($B32,'ADP-Rank'!$A$2:$AZ$700,25,FALSE),(IF(Personalize!$E$31=5,VLOOKUP($B32,'ADP-Rank'!$A$2:$AZ$700,28,FALSE),(IF(Personalize!$E$31=6,VLOOKUP($B32,'ADP-Rank'!$A$2:$AZ$700,32,FALSE),""))))))))))) -> 24 | AD32: =IF(Personalize!$E$34=1,VLOOKUP($B32,'ADP-Rank'!$A$2:$J$700,6,FALSE),(IF(Personalize!$E$34=2,VLOOKUP($B32,'ADP-Rank'!$A$2:$J$700,9,FALSE),(IF(Personalize!$E$34=3,VLOOKUP($B32,'ADP-Rank'!$A$2:$O$700,12,FALSE),(IF(Personalize!$E$31=4,VLOOKUP($B32,'ADP-Rank'!$A$2:$AZ$700,26,FALSE),(IF(Personalize!$E$31=5,VLOOKUP($B32,'ADP-Rank'!$A$2:$AZ$700,29,FALSE),(IF(Personalize!$E$31=6,VLOOKUP($B32,'ADP-Rank'!$A$2:$AZ$700,33,FALSE),""))))))))))) -> 43 | AE32: =IF(ISBLANK(A32),0,1) -> 0 | AF32: =IF(K32="",0,1) -> 1 | AG32: =A32 -> 0 | AH32: =IF(C32="C",1,IF(C32="1B",2,IF(C32="2B",3,IF(C32="3B",4,IF(C32="SS",5,IF(C32="CI",6,IF(C32="MI",7,IF(C32="OF",11,IF(C32="LF",8,IF(C32="CF",9,IF(C32="RF",10,IF(C32="DH",12,IF(C32="SP",13,IF(C32="RP",14,IF(C32="P",15,16))))))))))))))) -> 2 | AI32: =VLOOKUP(B32,'Starter Calc'!$B$2:$BN$700,65,FALSE) -> Bench | AJ32: =IFERROR(VLOOKUP($B32,'ADP-Rank'!$A$2:$AH$964,34,FALSE),TRUE) -> TRUE
B33: Ian Kinsler | C33: =IFERROR(IF(VLOOKUP(B33,'ADP-Rank'!$A$2:$B$700,2,FALSE)="OF",VLOOKUP(B33,'Starter Calc'!$B$2:$AM$700,38,FALSE),(VLOOKUP(B33,'ADP-Rank'!$A$2:$B$700,2,FALSE))),"") -> 2B | D33: =IFERROR(IF(VLOOKUP(B33,'Starter Calc'!$B$2:$E$700,4,FALSE)="","",VLOOKUP(B33,'Starter Calc'!$B$2:$E$700,4,FALSE)),"") ->  | E33: =IFERROR(VLOOKUP($B33,'ADP-Rank'!$A$2:$D$700,3,FALSE),"") -> TEX | F33: =IFERROR(VLOOKUP($B33,'ADP-Rank'!$A$2:$W$700,23,FALSE),"") -> 31 | G33: =IFERROR((IF(Personalize!$E$38=1,VLOOKUP($B33,'ADP-Rank'!$A$2:$J$700,4,FALSE),(IF(Personalize!$E$38=2,VLOOKUP($B33,'ADP-Rank'!$A$2:$J$700,7,FALSE),(IF(Personalize!$E$38=3,VLOOKUP($B33,'ADP-Rank'!$A$2:$J$700,10,FALSE),(IF(Personalize!$E$38=4,VLOOKUP($B33,'ADP-Rank'!$A$2:$AD$700,24,FALSE),(IF(Personalize!$E$38=5,VLOOKUP($B33,'ADP-Rank'!$A$2:$AD$700,27,FALSE),VLOOKUP($B33,'ADP-Rank'!$A$2:$AZ$700,30,FALSE))))))))))),"") -> 30.37 | H33: =IFERROR(ROUNDDOWN(VLOOKUP($B33,'ADP-Rank'!$A$2:$AY$1064,38,FALSE),0),"") -> 3 | I33: =VLOOKUP($B33,'ADP-Rank'!$A$2:$AJ$1064,36,FALSE) -> 19 | J33: =IFERROR(RANK($M33,$M$4:$M$743,0),"") -> 48 | K33: =IFERROR(IF((OR($C33="RP",$C33="SP")),VLOOKUP($B33,Pitcher!$A$1:$Z$700,20,FALSE),(VLOOKUP($B33,Hitter!$A$1:$Z$700,26,FALSE))),"") -> 402.5203178 | L33: =IFERROR(IF((OR($C33="RP",$C33="SP")),VLOOKUP($C33,'Filtered-P'!$M$3:$P$4,4,FALSE), VLOOKUP($C33,Filtered!$Q$3:$T$14,4,FALSE)),"") -> 368.3944957 | M33: =IFERROR(K33-L33,"") -> 34.12582212 | N33: =IFERROR(IF((OR($C33="RP",$C33="SP")),VLOOKUP($B33,Pitcher!$A$1:$Z$700,20,FALSE)/VLOOKUP($B33,Pitcher!$A$1:$Z$700,4,FALSE),(VLOOKUP($B33,Hitter!$A$1:$Z$700,26,FALSE)/VLOOKUP($B33,Hitter!$A$1:$Z$700,2,FALSE))),"") -> 0.653062581 | O33: =IFERROR(IF((OR($C33="RP",$C33="SP")),VLOOKUP($B33,Pitcher!$A$1:$V$700,2,FALSE),""),"") ->  | P33: =IFERROR(IF((OR($C33="RP",$C33="SP")),VLOOKUP($B33,Pitcher!$A$1:$V$700,9,FALSE),""),"") ->  | Q33: =IFERROR(IF((OR($C33="RP",$C33="SP")),VLOOKUP($B33,Pitcher!$A$1:$V$700,7,FALSE),""),"") ->  | R33: =IFERROR(IF((OR($C33="RP",$C33="SP")),VLOOKUP($B33,Pitcher!$A$1:$AB$700,21,FALSE),""),"") ->  | S33: =IFERROR(IF((OR($C33="RP",$C33="SP")),VLOOKUP($B33,Pitcher!$A$1:$V$700,22,FALSE),""),"") ->  | T33: =IFERROR(IF((OR($C33="RP",$C33="SP")),"",VLOOKUP($B33,Hitter!$A$1:$AH$700,27,FALSE)),"") -> 0.2645793926 | U33: =IFERROR(IF((OR($C33="RP",$C33="SP")),"",VLOOKUP($B33,Hitter!$A$1:$AH$700,9,FALSE)),"") -> 19.87051907 | V33: =IFERROR(IF((OR($C33="RP",$C33="SP")),"",VLOOKUP($B33,Hitter!$A$1:$AH$700,10,FALSE)),"") -> 66.11286898 | W33: =IFERROR(IF((OR($C33="RP",$C33="SP")),"",VLOOKUP($B33,Hitter!$A$1:$AH$700,4,FALSE)),"") -> 93.64273002 | X33: =IFERROR(IF((OR($C33="RP",$C33="SP")),"",VLOOKUP($B33,Hitter!$A$1:$AH$700,11,FALSE)),"") -> 19.15353018 | Y33: =IFERROR(IF(ISTEXT($A33),"",(1-NORMDIST((COUNTA($A$4:$A$743)),($G33),((AD33-AC33)/6),TRUE))),"") -> 1 | Z33: =IFERROR(IF(ISTEXT($A33),"",(1-NORMDIST((COUNTA($A$4:$A$743))+(Personalize!$E$18+1),$G33,((AD33-AC33)/6),TRUE))),"") -> 0.9999999997 | AA33: =IFERROR(IF(ISTEXT($A33),"",(1-NORMDIST((COUNTA($A$4:$A$743))+((Personalize!$E$18+1)*2),$G33,((AD33-AC33)/6),TRUE))),"") -> 0.9999999654 | AB33: Due for decrease in HR total | AC33: =IF(Personalize!$E$34=1,VLOOKUP($B33,'ADP-Rank'!$A$2:$J$700,5,FALSE),(IF(Personalize!$E$34=2,VLOOKUP($B33,'ADP-Rank'!$A$2:$J$700,8,FALSE),(IF(Personalize!$E$34=3,VLOOKUP($B33,'ADP-Rank'!$A$2:$O$700,11,FALSE),(IF(Personalize!$E$31=4,VLOOKUP($B33,'ADP-Rank'!$A$2:$AZ$700,25,FALSE),(IF(Personalize!$E$31=5,VLOOKUP($B33,'ADP-Rank'!$A$2:$AZ$700,28,FALSE),(IF(Personalize!$E$31=6,VLOOKUP($B33,'ADP-Rank'!$A$2:$AZ$700,32,FALSE),""))))))))))) -> 27 | AD33: =IF(Personalize!$E$34=1,VLOOKUP($B33,'ADP-Rank'!$A$2:$J$700,6,FALSE),(IF(Personalize!$E$34=2,VLOOKUP($B33,'ADP-Rank'!$A$2:$J$700,9,FALSE),(IF(Personalize!$E$34=3,VLOOKUP($B33,'ADP-Rank'!$A$2:$O$700,12,FALSE),(IF(Personalize!$E$31=4,VLOOKUP($B33,'ADP-Rank'!$A$2:$AZ$700,26,FALSE),(IF(Personalize!$E$31=5,VLOOKUP($B33,'ADP-Rank'!$A$2:$AZ$700,29,FALSE),(IF(Personalize!$E$31=6,VLOOKUP($B33,'ADP-Rank'!$A$2:$AZ$700,33,FALSE),""))))))))))) -> 53 | AE33: =IF(ISBLANK(A33),0,1) -> 0 | AF33: =IF(K33="",0,1) -> 1 | AG33: =A33 -> 0 | AH33: =IF(C33="C",1,IF(C33="1B",2,IF(C33="2B",3,IF(C33="3B",4,IF(C33="SS",5,IF(C33="CI",6,IF(C33="MI",7,IF(C33="OF",11,IF(C33="LF",8,IF(C33="CF",9,IF(C33="RF",10,IF(C33="DH",12,IF(C33="SP",13,IF(C33="RP",14,IF(C33="P",15,16))))))))))))))) -> 3 | AI33: =VLOOKUP(B33,'Starter Calc'!$B$2:$BN$700,65,FALSE) -> Bench | AJ33: =IFERROR(VLOOKUP($B33,'ADP-Rank'!$A$2:$AH$964,34,FALSE),TRUE) -> TRUE
B34: Bryce Harper | C34: =IFERROR(IF(VLOOKUP(B34,'ADP-Rank'!$A$2:$B$700,2,FALSE)="OF",VLOOKUP(B34,'Starter Calc'!$B$2:$AM$700,38,FALSE),(VLOOKUP(B34,'ADP-Rank'!$A$2:$B$700,2,FALSE))),"") -> OF | D34: =IFERROR(IF(VLOOKUP(B34,'Starter Calc'!$B$2:$E$700,4,FALSE)="","",VLOOKUP(B34,'Starter Calc'!$B$2:$E$700,4,FALSE)),"") -> CF,RF | E34: =IFERROR(VLOOKUP($B34,'ADP-Rank'!$A$2:$D$700,3,FALSE),"") -> WAS | F34: =IFERROR(VLOOKUP($B34,'ADP-Rank'!$A$2:$W$700,23,FALSE),"") -> 21 | G34: =IFERROR((IF(Personalize!$E$38=1,VLOOKUP($B34,'ADP-Rank'!$A$2:$J$700,4,FALSE),(IF(Personalize!$E$38=2,VLOOKUP($B34,'ADP-Rank'!$A$2:$J$700,7,FALSE),(IF(Personalize!$E$38=3,VLOOKUP($B34,'ADP-Rank'!$A$2:$J$700,10,FALSE),(IF(Personalize!$E$38=4,VLOOKUP($B34,'ADP-Rank'!$A$2:$AD$700,24,FALSE),(IF(Personalize!$E$38=5,VLOOKUP($B34,'ADP-Rank'!$A$2:$AD$700,27,FALSE),VLOOKUP($B34,'ADP-Rank'!$A$2:$AZ$700,30,FALSE))))))))))),"") -> 34.8 | H34: =IFERROR(ROUNDDOWN(VLOOKUP($B34,'ADP-Rank'!$A$2:$AY$1064,38,FALSE),0),"") -> 3 | I34: =VLOOKUP($B34,'ADP-Rank'!$A$2:$AJ$1064,36,FALSE) -> 54 | J34: =IFERROR(RANK($M34,$M$4:$M$743,0),"") -> 53 | K34: =IFERROR(IF((OR($C34="RP",$C34="SP")),VLOOKUP($B34,Pitcher!$A$1:$Z$700,20,FALSE),(VLOOKUP($B34,Hitter!$A$1:$Z$700,26,FALSE))),"") -> 396.8128284 | L34: =IFERROR(IF((OR($C34="RP",$C34="SP")),VLOOKUP($C34,'Filtered-P'!$M$3:$P$4,4,FALSE), VLOOKUP($C34,Filtered!$Q$3:$T$14,4,FALSE)),"") -> 368.4885837 | M34: =IFERROR(K34-L34,"") -> 28.32424467 | N34: =IFERROR(IF((OR($C34="RP",$C34="SP")),VLOOKUP($B34,Pitcher!$A$1:$Z$700,20,FALSE)/VLOOKUP($B34,Pitcher!$A$1:$Z$700,4,FALSE),(VLOOKUP($B34,Hitter!$A$1:$Z$700,26,FALSE)/VLOOKUP($B34,Hitter!$A$1:$Z$700,2,FALSE))),"") -> 0.6013172472 | O34: =IFERROR(IF((OR($C34="RP",$C34="SP")),VLOOKUP($B34,Pitcher!$A$1:$V$700,2,FALSE),""),"") ->  | P34: =IFERROR(IF((OR($C34="RP",$C34="SP")),VLOOKUP($B34,Pitcher!$A$1:$V$700,9,FALSE),""),"") ->  | Q34: =IFERROR(IF((OR($C34="RP",$C34="SP")),VLOOKUP($B34,Pitcher!$A$1:$V$700,7,FALSE),""),"") ->  | R34: =IFERROR(IF((OR($C34="RP",$C34="SP")),VLOOKUP($B34,Pitcher!$A$1:$AB$700,21,FALSE),""),"") ->  | S34: =IFERROR(IF((OR($C34="RP",$C34="SP")),VLOOKUP($B34,Pitcher!$A$1:$V$700,22,FALSE),""),"") ->  | T34: =IFERROR(IF((OR($C34="RP",$C34="SP")),"",VLOOKUP($B34,Hitter!$A$1:$AH$700,27,FALSE)),"") -> 0.2685127456 | U34: =IFERROR(IF((OR($C34="RP",$C34="SP")),"",VLOOKUP($B34,Hitter!$A$1:$AH$700,9,FALSE)),"") -> 25.6829296 | V34: =IFERROR(IF((OR($C34="RP",$C34="SP")),"",VLOOKUP($B34,Hitter!$A$1:$AH$700,10,FALSE)),"") -> 80.35656372 | W34: =IFERROR(IF((OR($C34="RP",$C34="SP")),"",VLOOKUP($B34,Hitter!$A$1:$AH$700,4,FALSE)),"") -> 95.14198764 | X34: =IFERROR(IF((OR($C34="RP",$C34="SP")),"",VLOOKUP($B34,Hitter!$A$1:$AH$700,11,FALSE)),"") -> 20.26547394 | Y34: =IFERROR(IF(ISTEXT($A34),"",(1-NORMDIST((COUNTA($A$4:$A$743)),($G34),((AD34-AC34)/6),TRUE))),"") -> 1 | Z34: =IFERROR(IF(ISTEXT($A34),"",(1-NORMDIST((COUNTA($A$4:$A$743))+(Personalize!$E$18+1),$G34,((AD34-AC34)/6),TRUE))),"") -> 1 | AA34: =IFERROR(IF(ISTEXT($A34),"",(1-NORMDIST((COUNTA($A$4:$A$743))+((Personalize!$E$18+1)*2),$G34,((AD34-AC34)/6),TRUE))),"") -> 1 | AC34: =IF(Personalize!$E$34=1,VLOOKUP($B34,'ADP-Rank'!$A$2:$J$700,5,FALSE),(IF(Personalize!$E$34=2,VLOOKUP($B34,'ADP-Rank'!$A$2:$J$700,8,FALSE),(IF(Personalize!$E$34=3,VLOOKUP($B34,'ADP-Rank'!$A$2:$O$700,11,FALSE),(IF(Personalize!$E$31=4,VLOOKUP($B34,'ADP-Rank'!$A$2:$AZ$700,25,FALSE),(IF(Personalize!$E$31=5,VLOOKUP($B34,'ADP-Rank'!$A$2:$AZ$700,28,FALSE),(IF(Personalize!$E$31=6,VLOOKUP($B34,'ADP-Rank'!$A$2:$AZ$700,32,FALSE),""))))))))))) -> 10 | AD34: =IF(Personalize!$E$34=1,VLOOKUP($B34,'ADP-Rank'!$A$2:$J$700,6,FALSE),(IF(Personalize!$E$34=2,VLOOKUP($B34,'ADP-Rank'!$A$2:$J$700,9,FALSE),(IF(Personalize!$E$34=3,VLOOKUP($B34,'ADP-Rank'!$A$2:$O$700,12,FALSE),(IF(Personalize!$E$31=4,VLOOKUP($B34,'ADP-Rank'!$A$2:$AZ$700,26,FALSE),(IF(Personalize!$E$31=5,VLOOKUP($B34,'ADP-Rank'!$A$2:$AZ$700,29,FALSE),(IF(Personalize!$E$31=6,VLOOKUP($B34,'ADP-Rank'!$A$2:$AZ$700,33,FALSE),""))))))))))) -> 35 | AE34: =IF(ISBLANK(A34),0,1) -> 0 | AF34: =IF(K34="",0,1) -> 1 | AG34: =A34 -> 0 | AH34: =IF(C34="C",1,IF(C34="1B",2,IF(C34="2B",3,IF(C34="3B",4,IF(C34="SS",5,IF(C34="CI",6,IF(C34="MI",7,IF(C34="OF",11,IF(C34="LF",8,IF(C34="CF",9,IF(C34="RF",10,IF(C34="DH",12,IF(C34="SP",13,IF(C34="RP",14,IF(C34="P",15,16))))))))))))))) -> 11 | AI34: =VLOOKUP(B34,'Starter Calc'!$B$2:$BN$700,65,FALSE) -> Bench | AJ34: =IFERROR(VLOOKUP($B34,'ADP-Rank'!$A$2:$AH$964,34,FALSE),TRUE) -> TRUE
B35: Adam Wainwright | C35: =IFERROR(IF(VLOOKUP(B35,'ADP-Rank'!$A$2:$B$700,2,FALSE)="OF",VLOOKUP(B35,'Starter Calc'!$B$2:$AM$700,38,FALSE),(VLOOKUP(B35,'ADP-Rank'!$A$2:$B$700,2,FALSE))),"") -> SP | D35: =IFERROR(IF(VLOOKUP(B35,'Starter Calc'!$B$2:$E$700,4,FALSE)="","",VLOOKUP(B35,'Starter Calc'!$B$2:$E$700,4,FALSE)),"") ->  | E35: =IFERROR(VLOOKUP($B35,'ADP-Rank'!$A$2:$D$700,3,FALSE),"") -> STL | F35: =IFERROR(VLOOKUP($B35,'ADP-Rank'!$A$2:$W$700,23,FALSE),"") -> 32 | G35: =IFERROR((IF(Personalize!$E$38=1,VLOOKUP($B35,'ADP-Rank'!$A$2:$J$700,4,FALSE),(IF(Personalize!$E$38=2,VLOOKUP($B35,'ADP-Rank'!$A$2:$J$700,7,FALSE),(IF(Personalize!$E$38=3,VLOOKUP($B35,'ADP-Rank'!$A$2:$J$700,10,FALSE),(IF(Personalize!$E$38=4,VLOOKUP($B35,'ADP-Rank'!$A$2:$AD$700,24,FALSE),(IF(Personalize!$E$38=5,VLOOKUP($B35,'ADP-Rank'!$A$2:$AD$700,27,FALSE),VLOOKUP($B35,'ADP-Rank'!$A$2:$AZ$700,30,FALSE))))))))))),"") -> 36.27 | H35: =IFERROR(ROUNDDOWN(VLOOKUP($B35,'ADP-Rank'!$A$2:$AY$1064,38,FALSE),0),"") -> 3 | I35: =VLOOKUP($B35,'ADP-Rank'!$A$2:$AJ$1064,36,FALSE) -> 74 | J35: =IFERROR(RANK($M35,$M$4:$M$743,0),"") -> 60 | K35: =IFERROR(IF((OR($C35="RP",$C35="SP")),VLOOKUP($B35,Pitcher!$A$1:$Z$700,20,FALSE),(VLOOKUP($B35,Hitter!$A$1:$Z$700,26,FALSE))),"") -> 378.1041122 | L35: =IFERROR(IF((OR($C35="RP",$C35="SP")),VLOOKUP($C35,'Filtered-P'!$M$3:$P$4,4,FALSE), VLOOKUP($C35,Filtered!$Q$3:$T$14,4,FALSE)),"") -> 357.2271519 | M35: =IFERROR(K35-L35,"") -> 20.8769603 | N35: =IFERROR(IF((OR($C35="RP",$C35="SP")),VLOOKUP($B35,Pitcher!$A$1:$Z$700,20,FALSE)/VLOOKUP($B35,Pitcher!$A$1:$Z$700,4,FALSE),(VLOOKUP($B35,Hitter!$A$1:$Z$700,26,FALSE)/VLOOKUP($B35,Hitter!$A$1:$Z$700,2,FALSE))),"") -> 2.229518911 | O35: =IFERROR(IF((OR($C35="RP",$C35="SP")),VLOOKUP($B35,Pitcher!$A$1:$V$700,2,FALSE),""),"") -> 14.53 | P35: =IFERROR(IF((OR($C35="RP",$C35="SP")),VLOOKUP($B35,Pitcher!$A$1:$V$700,9,FALSE),""),"") -> 0 | Q35: =IFERROR(IF((OR($C35="RP",$C35="SP")),VLOOKUP($B35,Pitcher!$A$1:$V$700,7,FALSE),""),"") -> 162.2696449 | R35: =IFERROR(IF((OR($C35="RP",$C35="SP")),VLOOKUP($B35,Pitcher!$A$1:$AB$700,21,FALSE),""),"") -> 3.419777109 | S35: =IFERROR(IF((OR($C35="RP",$C35="SP")),VLOOKUP($B35,Pitcher!$A$1:$V$700,22,FALSE),""),"") -> 1.211981839 | T35: =IFERROR(IF((OR($C35="RP",$C35="SP")),"",VLOOKUP($B35,Hitter!$A$1:$AH$700,27,FALSE)),"") ->  | U35: =IFERROR(IF((OR($C35="RP",$C35="SP")),"",VLOOKUP($B35,Hitter!$A$1:$AH$700,9,FALSE)),"") ->  | V35: =IFERROR(IF((OR($C35="RP",$C35="SP")),"",VLOOKUP($B35,Hitter!$A$1:$AH$700,10,FALSE)),"") ->  | W35: =IFERROR(IF((OR($C35="RP",$C35="SP")),"",VLOOKUP($B35,Hitter!$A$1:$AH$700,4,FALSE)),"") ->  | X35: =IFERROR(IF((OR($C35="RP",$C35="SP")),"",VLOOKUP($B35,Hitter!$A$1:$AH$700,11,FALSE)),"") ->  | Y35: =IFERROR(IF(ISTEXT($A35),"",(1-NORMDIST((COUNTA($A$4:$A$743)),($G35),((AD35-AC35)/6),TRUE))),"") -> 0.9999999997 | Z35: =IFERROR(IF(ISTEXT($A35),"",(1-NORMDIST((COUNTA($A$4:$A$743))+(Personalize!$E$18+1),$G35,((AD35-AC35)/6),TRUE))),"") -> 0.9999999903 | AA35: =IFERROR(IF(ISTEXT($A35),"",(1-NORMDIST((COUNTA($A$4:$A$743))+((Personalize!$E$18+1)*2),$G35,((AD35-AC35)/6),TRUE))),"") -> 0.9999997386 | AC35: =IF(Personalize!$E$34=1,VLOOKUP($B35,'ADP-Rank'!$A$2:$J$700,5,FALSE),(IF(Personalize!$E$34=2,VLOOKUP($B35,'ADP-Rank'!$A$2:$J$700,8,FALSE),(IF(Personalize!$E$34=3,VLOOKUP($B35,'ADP-Rank'!$A$2:$O$700,11,FALSE),(IF(Personalize!$E$31=4,VLOOKUP($B35,'ADP-Rank'!$A$2:$AZ$700,25,FALSE),(IF(Personalize!$E$31=5,VLOOKUP($B35,'ADP-Rank'!$A$2:$AZ$700,28,FALSE),(IF(Personalize!$E$31=6,VLOOKUP($B35,'ADP-Rank'!$A$2:$AZ$700,32,FALSE),""))))))))))) -> 47 | AD35: =IF(Personalize!$E$34=1,VLOOKUP($B35,'ADP-Rank'!$A$2:$J$700,6,FALSE),(IF(Personalize!$E$34=2,VLOOKUP($B35,'ADP-Rank'!$A$2:$J$700,9,FALSE),(IF(Personalize!$E$34=3,VLOOKUP($B35,'ADP-Rank'!$A$2:$O$700,12,FALSE),(IF(Personalize!$E$31=4,VLOOKUP($B35,'ADP-Rank'!$A$2:$AZ$700,26,FALSE),(IF(Personalize!$E$31=5,VLOOKUP($B35,'ADP-Rank'!$A$2:$AZ$700,29,FALSE),(IF(Personalize!$E$31=6,VLOOKUP($B35,'ADP-Rank'!$A$2:$AZ$700,33,FALSE),""))))))))))) -> 82 | AE35: =IF(ISBLANK(A35),0,1) -> 0 | AF35: =IF(K35="",0,1) -> 1 | AG35: =A35 -> 0 | AH35: =IF(C35="C",1,IF(C35="1B",2,IF(C35="2B",3,IF(C35="3B",4,IF(C35="SS",5,IF(C35="CI",6,IF(C35="MI",7,IF(C35="OF",11,IF(C35="LF",8,IF(C35="CF",9,IF(C35="RF",10,IF(C35="DH",12,IF(C35="SP",13,IF(C35="RP",14,IF(C35="P",15,16))))))))))))))) -> 13 | AI35: =VLOOKUP(B35,'Starter Calc'!$B$2:$BN$700,65,FALSE) -> Bench | AJ35: =IFERROR(VLOOKUP($B35,'ADP-Rank'!$A$2:$AH$964,34,FALSE),TRUE) -> TRUE
B36: Gio Gonzalez | C36: =IFERROR(IF(VLOOKUP(B36,'ADP-Rank'!$A$2:$B$700,2,FALSE)="OF",VLOOKUP(B36,'Starter Calc'!$B$2:$AM$700,38,FALSE),(VLOOKUP(B36,'ADP-Rank'!$A$2:$B$700,2,FALSE))),"") -> SP | D36: =IFERROR(IF(VLOOKUP(B36,'Starter Calc'!$B$2:$E$700,4,FALSE)="","",VLOOKUP(B36,'Starter Calc'!$B$2:$E$700,4,FALSE)),"") ->  | E36: =IFERROR(VLOOKUP($B36,'ADP-Rank'!$A$2:$D$700,3,FALSE),"") -> WAS | F36: =IFERROR(VLOOKUP($B36,'ADP-Rank'!$A$2:$W$700,23,FALSE),"") -> 28 | G36: =IFERROR((IF(Personalize!$E$38=1,VLOOKUP($B36,'ADP-Rank'!$A$2:$J$700,4,FALSE),(IF(Personalize!$E$38=2,VLOOKUP($B36,'ADP-Rank'!$A$2:$J$700,7,FALSE),(IF(Personalize!$E$38=3,VLOOKUP($B36,'ADP-Rank'!$A$2:$J$700,10,FALSE),(IF(Personalize!$E$38=4,VLOOKUP($B36,'ADP-Rank'!$A$2:$AD$700,24,FALSE),(IF(Personalize!$E$38=5,VLOOKUP($B36,'ADP-Rank'!$A$2:$AD$700,27,FALSE),VLOOKUP($B36,'ADP-Rank'!$A$2:$AZ$700,30,FALSE))))))))))),"") -> 36.98 | H36: =IFERROR(ROUNDDOWN(VLOOKUP($B36,'ADP-Rank'!$A$2:$AY$1064,38,FALSE),0),"") -> 3 | I36: =VLOOKUP($B36,'ADP-Rank'!$A$2:$AJ$1064,36,FALSE) -> 52 | J36: =IFERROR(RANK($M36,$M$4:$M$743,0),"") -> 20 | K36: =IFERROR(IF((OR($C36="RP",$C36="SP")),VLOOKUP($B36,Pitcher!$A$1:$Z$700,20,FALSE),(VLOOKUP($B36,Hitter!$A$1:$Z$700,26,FALSE))),"") -> 429.1524741 | L36: =IFERROR(IF((OR($C36="RP",$C36="SP")),VLOOKUP($C36,'Filtered-P'!$M$3:$P$4,4,FALSE), VLOOKUP($C36,Filtered!$Q$3:$T$14,4,FALSE)),"") -> 357.2271519 | M36: =IFERROR(K36-L36,"") -> 71.92532225 | N36: =IFERROR(IF((OR($C36="RP",$C36="SP")),VLOOKUP($B36,Pitcher!$A$1:$Z$700,20,FALSE)/VLOOKUP($B36,Pitcher!$A$1:$Z$700,4,FALSE),(VLOOKUP($B36,Hitter!$A$1:$Z$700,26,FALSE)/VLOOKUP($B36,Hitter!$A$1:$Z$700,2,FALSE))),"") -> 2.269447246 | O36: =IFERROR(IF((OR($C36="RP",$C36="SP")),VLOOKUP($B36,Pitcher!$A$1:$V$700,2,FALSE),""),"") -> 14.89 | P36: =IFERROR(IF((OR($C36="RP",$C36="SP")),VLOOKUP($B36,Pitcher!$A$1:$V$700,9,FALSE),""),"") -> 0 | Q36: =IFERROR(IF((OR($C36="RP",$C36="SP")),VLOOKUP($B36,Pitcher!$A$1:$V$700,7,FALSE),""),"") -> 193.8169897 | R36: =IFERROR(IF((OR($C36="RP",$C36="SP")),VLOOKUP($B36,Pitcher!$A$1:$AB$700,21,FALSE),""),"") -> 3.372501322 | S36: =IFERROR(IF((OR($C36="RP",$C36="SP")),VLOOKUP($B36,Pitcher!$A$1:$V$700,22,FALSE),""),"") -> 1.25050238 | T36: =IFERROR(IF((OR($C36="RP",$C36="SP")),"",VLOOKUP($B36,Hitter!$A$1:$AH$700,27,FALSE)),"") ->  | U36: =IFERROR(IF((OR($C36="RP",$C36="SP")),"",VLOOKUP($B36,Hitter!$A$1:$AH$700,9,FALSE)),"") ->  | V36: =IFERROR(IF((OR($C36="RP",$C36="SP")),"",VLOOKUP($B36,Hitter!$A$1:$AH$700,10,FALSE)),"") ->  | W36: =IFERROR(IF((OR($C36="RP",$C36="SP")),"",VLOOKUP($B36,Hitter!$A$1:$AH$700,4,FALSE)),"") ->  | X36: =IFERROR(IF((OR($C36="RP",$C36="SP")),"",VLOOKUP($B36,Hitter!$A$1:$AH$700,11,FALSE)),"") ->  | Y36: =IFERROR(IF(ISTEXT($A36),"",(1-NORMDIST((COUNTA($A$4:$A$743)),($G36),((AD36-AC36)/6),TRUE))),"") -> 0.9999981043 | Z36: =IFERROR(IF(ISTEXT($A36),"",(1-NORMDIST((COUNTA($A$4:$A$743))+(Personalize!$E$18+1),$G36,((AD36-AC36)/6),TRUE))),"") -> 0.9999857417 | AA36: =IFERROR(IF(ISTEXT($A36),"",(1-NORMDIST((COUNTA($A$4:$A$743))+((Personalize!$E$18+1)*2),$G36,((AD36-AC36)/6),TRUE))),"") -> 0.9999106971 | AC36: =IF(Personalize!$E$34=1,VLOOKUP($B36,'ADP-Rank'!$A$2:$J$700,5,FALSE),(IF(Personalize!$E$34=2,VLOOKUP($B36,'ADP-Rank'!$A$2:$J$700,8,FALSE),(IF(Personalize!$E$34=3,VLOOKUP($B36,'ADP-Rank'!$A$2:$O$700,11,FALSE),(IF(Personalize!$E$31=4,VLOOKUP($B36,'ADP-Rank'!$A$2:$AZ$700,25,FALSE),(IF(Personalize!$E$31=5,VLOOKUP($B36,'ADP-Rank'!$A$2:$AZ$700,28,FALSE),(IF(Personalize!$E$31=6,VLOOKUP($B36,'ADP-Rank'!$A$2:$AZ$700,32,FALSE),""))))))))))) -> 45 | AD36: =IF(Personalize!$E$34=1,VLOOKUP($B36,'ADP-Rank'!$A$2:$J$700,6,FALSE),(IF(Personalize!$E$34=2,VLOOKUP($B36,'ADP-Rank'!$A$2:$J$700,9,FALSE),(IF(Personalize!$E$34=3,VLOOKUP($B36,'ADP-Rank'!$A$2:$O$700,12,FALSE),(IF(Personalize!$E$31=4,VLOOKUP($B36,'ADP-Rank'!$A$2:$AZ$700,26,FALSE),(IF(Personalize!$E$31=5,VLOOKUP($B36,'ADP-Rank'!$A$2:$AZ$700,29,FALSE),(IF(Personalize!$E$31=6,VLOOKUP($B36,'ADP-Rank'!$A$2:$AZ$700,33,FALSE),""))))))))))) -> 93 | AE36: =IF(ISBLANK(A36),0,1) -> 0 | AF36: =IF(K36="",0,1) -> 1 | AG36: =A36 -> 0 | AH36: =IF(C36="C",1,IF(C36="1B",2,IF(C36="2B",3,IF(C36="3B",4,IF(C36="SS",5,IF(C36="CI",6,IF(C36="MI",7,IF(C36="OF",11,IF(C36="LF",8,IF(C36="CF",9,IF(C36="RF",10,IF(C36="DH",12,IF(C36="SP",13,IF(C36="RP",14,IF(C36="P",15,16))))))))))))))) -> 13 | AI36: =VLOOKUP(B36,'Starter Calc'!$B$2:$BN$700,65,FALSE) -> Bench | AJ36: =IFERROR(VLOOKUP($B36,'ADP-Rank'!$A$2:$AH$964,34,FALSE),TRUE) -> TRUE
B37: Adrian Beltre | C37: =IFERROR(IF(VLOOKUP(B37,'ADP-Rank'!$A$2:$B$700,2,FALSE)="OF",VLOOKUP(B37,'Starter Calc'!$B$2:$AM$700,38,FALSE),(VLOOKUP(B37,'ADP-Rank'!$A$2:$B$700,2,FALSE))),"") -> 3B | D37: =IFERROR(IF(VLOOKUP(B37,'Starter Calc'!$B$2:$E$700,4,FALSE)="","",VLOOKUP(B37,'Starter Calc'!$B$2:$E$700,4,FALSE)),"") ->  | E37: =IFERROR(VLOOKUP($B37,'ADP-Rank'!$A$2:$D$700,3,FALSE),"") -> TEX | F37: =IFERROR(VLOOKUP($B37,'ADP-Rank'!$A$2:$W$700,23,FALSE),"") -> 34 | G37: =IFERROR((IF(Personalize!$E$38=1,VLOOKUP($B37,'ADP-Rank'!$A$2:$J$700,4,FALSE),(IF(Personalize!$E$38=2,VLOOKUP($B37,'ADP-Rank'!$A$2:$J$700,7,FALSE),(IF(Personalize!$E$38=3,VLOOKUP($B37,'ADP-Rank'!$A$2:$J$700,10,FALSE),(IF(Personalize!$E$38=4,VLOOKUP($B37,'ADP-Rank'!$A$2:$AD$700,24,FALSE),(IF(Personalize!$E$38=5,VLOOKUP($B37,'ADP-Rank'!$A$2:$AD$700,27,FALSE),VLOOKUP($B37,'ADP-Rank'!$A$2:$AZ$700,30,FALSE))))))))))),"") -> 37.39 | H37: =IFERROR(ROUNDDOWN(VLOOKUP($B37,'ADP-Rank'!$A$2:$AY$1064,38,FALSE),0),"") -> 3 | I37: =VLOOKUP($B37,'ADP-Rank'!$A$2:$AJ$1064,36,FALSE) -> 25 | J37: =IFERROR(RANK($M37,$M$4:$M$743,0),"") -> 37 | K37: =IFERROR(IF((OR($C37="RP",$C37="SP")),VLOOKUP($B37,Pitcher!$A$1:$Z$700,20,FALSE),(VLOOKUP($B37,Hitter!$A$1:$Z$700,26,FALSE))),"") -> 406.7533975 | L37: =IFERROR(IF((OR($C37="RP",$C37="SP")),VLOOKUP($C37,'Filtered-P'!$M$3:$P$4,4,FALSE), VLOOKUP($C37,Filtered!$Q$3:$T$14,4,FALSE)),"") -> 360.1633507 | M37: =IFERROR(K37-L37,"") -> 46.5900468 | N37: =IFERROR(IF((OR($C37="RP",$C37="SP")),VLOOKUP($B37,Pitcher!$A$1:$Z$700,20,FALSE)/VLOOKUP($B37,Pitcher!$A$1:$Z$700,4,FALSE),(VLOOKUP($B37,Hitter!$A$1:$Z$700,26,FALSE)/VLOOKUP($B37,Hitter!$A$1:$Z$700,2,FALSE))),"") -> 0.7109477131 | O37: =IFERROR(IF((OR($C37="RP",$C37="SP")),VLOOKUP($B37,Pitcher!$A$1:$V$700,2,FALSE),""),"") ->  | P37: =IFERROR(IF((OR($C37="RP",$C37="SP")),VLOOKUP($B37,Pitcher!$A$1:$V$700,9,FALSE),""),"") ->  | Q37: =IFERROR(IF((OR($C37="RP",$C37="SP")),VLOOKUP($B37,Pitcher!$A$1:$V$700,7,FALSE),""),"") ->  | R37: =IFERROR(IF((OR($C37="RP",$C37="SP")),VLOOKUP($B37,Pitcher!$A$1:$AB$700,21,FALSE),""),"") ->  | S37: =IFERROR(IF((OR($C37="RP",$C37="SP")),VLOOKUP($B37,Pitcher!$A$1:$V$700,22,FALSE),""),"") ->  | T37: =IFERROR(IF((OR($C37="RP",$C37="SP")),"",VLOOKUP($B37,Hitter!$A$1:$AH$700,27,FALSE)),"") -> 0.2962176109 | U37: =IFERROR(IF((OR($C37="RP",$C37="SP")),"",VLOOKUP($B37,Hitter!$A$1:$AH$700,9,FALSE)),"") -> 27.51524714 | V37: =IFERROR(IF((OR($C37="RP",$C37="SP")),"",VLOOKUP($B37,Hitter!$A$1:$AH$700,10,FALSE)),"") -> 92.10799117 | W37: =IFERROR(IF((OR($C37="RP",$C37="SP")),"",VLOOKUP($B37,Hitter!$A$1:$AH$700,4,FALSE)),"") -> 81.26934039 | X37: =IFERROR(IF((OR($C37="RP",$C37="SP")),"",VLOOKUP($B37,Hitter!$A$1:$AH$700,11,FALSE)),"") -> 2.063867651 | Y37: =IFERROR(IF(ISTEXT($A37),"",(1-NORMDIST((COUNTA($A$4:$A$743)),($G37),((AD37-AC37)/6),TRUE))),"") -> 1 | Z37: =IFERROR(IF(ISTEXT($A37),"",(1-NORMDIST((COUNTA($A$4:$A$743))+(Personalize!$E$18+1),$G37,((AD37-AC37)/6),TRUE))),"") -> 1 | AA37: =IFERROR(IF(ISTEXT($A37),"",(1-NORMDIST((COUNTA($A$4:$A$743))+((Personalize!$E$18+1)*2),$G37,((AD37-AC37)/6),TRUE))),"") -> 1 | AC37: =IF(Personalize!$E$34=1,VLOOKUP($B37,'ADP-Rank'!$A$2:$J$700,5,FALSE),(IF(Personalize!$E$34=2,VLOOKUP($B37,'ADP-Rank'!$A$2:$J$700,8,FALSE),(IF(Personalize!$E$34=3,VLOOKUP($B37,'ADP-Rank'!$A$2:$O$700,11,FALSE),(IF(Personalize!$E$31=4,VLOOKUP($B37,'ADP-Rank'!$A$2:$AZ$700,25,FALSE),(IF(Personalize!$E$31=5,VLOOKUP($B37,'ADP-Rank'!$A$2:$AZ$700,28,FALSE),(IF(Personalize!$E$31=6,VLOOKUP($B37,'ADP-Rank'!$A$2:$AZ$700,32,FALSE),""))))))))))) -> 13 | AD37: =IF(Personalize!$E$34=1,VLOOKUP($B37,'ADP-Rank'!$A$2:$J$700,6,FALSE),(IF(Personalize!$E$34=2,VLOOKUP($B37,'ADP-Rank'!$A$2:$J$700,9,FALSE),(IF(Personalize!$E$34=3,VLOOKUP($B37,'ADP-Rank'!$A$2:$O$700,12,FALSE),(IF(Personalize!$E$31=4,VLOOKUP($B37,'ADP-Rank'!$A$2:$AZ$700,26,FALSE),(IF(Personalize!$E$31=5,VLOOKUP($B37,'ADP-Rank'!$A$2:$AZ$700,29,FALSE),(IF(Personalize!$E$31=6,VLOOKUP($B37,'ADP-Rank'!$A$2:$AZ$700,33,FALSE),""))))))))))) -> 31 | AE37: =IF(ISBLANK(A37),0,1) -> 0 | AF37: =IF(K37="",0,1) -> 1 | AG37: =A37 -> 0 | AH37: =IF(C37="C",1,IF(C37="1B",2,IF(C37="2B",3,IF(C37="3B",4,IF(C37="SS",5,IF(C37="CI",6,IF(C37="MI",7,IF(C37="OF",11,IF(C37="LF",8,IF(C37="CF",9,IF(C37="RF",10,IF(C37="DH",12,IF(C37="SP",13,IF(C37="RP",14,IF(C37="P",15,16))))))))))))))) -> 4 | AI37: =VLOOKUP(B37,'Starter Calc'!$B$2:$BN$700,65,FALSE) -> Bench | AJ37: =IFERROR(VLOOKUP($B37,'ADP-Rank'!$A$2:$AH$964,34,FALSE),TRUE) -> TRUE
B38: Zack Greinke | C38: =IFERROR(IF(VLOOKUP(B38,'ADP-Rank'!$A$2:$B$700,2,FALSE)="OF",VLOOKUP(B38,'Starter Calc'!$B$2:$AM$700,38,FALSE),(VLOOKUP(B38,'ADP-Rank'!$A$2:$B$700,2,FALSE))),"") -> SP | D38: =IFERROR(IF(VLOOKUP(B38,'Starter Calc'!$B$2:$E$700,4,FALSE)="","",VLOOKUP(B38,'Starter Calc'!$B$2:$E$700,4,FALSE)),"") ->  | E38: =IFERROR(VLOOKUP($B38,'ADP-Rank'!$A$2:$D$700,3,FALSE),"") -> LA | F38: =IFERROR(VLOOKUP($B38,'ADP-Rank'!$A$2:$W$700,23,FALSE),"") -> 30 | G38: =IFERROR((IF(Personalize!$E$38=1,VLOOKUP($B38,'ADP-Rank'!$A$2:$J$700,4,FALSE),(IF(Personalize!$E$38=2,VLOOKUP($B38,'ADP-Rank'!$A$2:$J$700,7,FALSE),(IF(Personalize!$E$38=3,VLOOKUP($B38,'ADP-Rank'!$A$2:$J$700,10,FALSE),(IF(Personalize!$E$38=4,VLOOKUP($B38,'ADP-Rank'!$A$2:$AD$700,24,FALSE),(IF(Personalize!$E$38=5,VLOOKUP($B38,'ADP-Rank'!$A$2:$AD$700,27,FALSE),VLOOKUP($B38,'ADP-Rank'!$A$2:$AZ$700,30,FALSE))))))))))),"") -> 37.68 | H38: =IFERROR(ROUNDDOWN(VLOOKUP($B38,'ADP-Rank'!$A$2:$AY$1064,38,FALSE),0),"") -> 3 | I38: =VLOOKUP($B38,'ADP-Rank'!$A$2:$AJ$1064,36,FALSE) -> 51 | J38: =IFERROR(RANK($M38,$M$4:$M$743,0),"") -> 71 | K38: =IFERROR(IF((OR($C38="RP",$C38="SP")),VLOOKUP($B38,Pitcher!$A$1:$Z$700,20,FALSE),(VLOOKUP($B38,Hitter!$A$1:$Z$700,26,FALSE))),"") -> 363.4480592 | L38: =IFERROR(IF((OR($C38="RP",$C38="SP")),VLOOKUP($C38,'Filtered-P'!$M$3:$P$4,4,FALSE), VLOOKUP($C38,Filtered!$Q$3:$T$14,4,FALSE)),"") -> 357.2271519 | M38: =IFERROR(K38-L38,"") -> 6.2209073 | N38: =IFERROR(IF((OR($C38="RP",$C38="SP")),VLOOKUP($B38,Pitcher!$A$1:$Z$700,20,FALSE)/VLOOKUP($B38,Pitcher!$A$1:$Z$700,4,FALSE),(VLOOKUP($B38,Hitter!$A$1:$Z$700,26,FALSE)/VLOOKUP($B38,Hitter!$A$1:$Z$700,2,FALSE))),"") -> 2.104383413 | O38: =IFERROR(IF((OR($C38="RP",$C38="SP")),VLOOKUP($B38,Pitcher!$A$1:$V$700,2,FALSE),""),"") -> 12.96 | P38: =IFERROR(IF((OR($C38="RP",$C38="SP")),VLOOKUP($B38,Pitcher!$A$1:$V$700,9,FALSE),""),"") -> 0 | Q38: =IFERROR(IF((OR($C38="RP",$C38="SP")),VLOOKUP($B38,Pitcher!$A$1:$V$700,7,FALSE),""),"") -> 163.8832237 | R38: =IFERROR(IF((OR($C38="RP",$C38="SP")),VLOOKUP($B38,Pitcher!$A$1:$AB$700,21,FALSE),""),"") -> 3.33402814 | S38: =IFERROR(IF((OR($C38="RP",$C38="SP")),VLOOKUP($B38,Pitcher!$A$1:$V$700,22,FALSE),""),"") -> 1.17914423 | T38: =IFERROR(IF((OR($C38="RP",$C38="SP")),"",VLOOKUP($B38,Hitter!$A$1:$AH$700,27,FALSE)),"") ->  | U38: =IFERROR(IF((OR($C38="RP",$C38="SP")),"",VLOOKUP($B38,Hitter!$A$1:$AH$700,9,FALSE)),"") ->  | V38: =IFERROR(IF((OR($C38="RP",$C38="SP")),"",VLOOKUP($B38,Hitter!$A$1:$AH$700,10,FALSE)),"") ->  | W38: =IFERROR(IF((OR($C38="RP",$C38="SP")),"",VLOOKUP($B38,Hitter!$A$1:$AH$700,4,FALSE)),"") ->  | X38: =IFERROR(IF((OR($C38="RP",$C38="SP")),"",VLOOKUP($B38,Hitter!$A$1:$AH$700,11,FALSE)),"") ->  | Y38: =IFERROR(IF(ISTEXT($A38),"",(1-NORMDIST((COUNTA($A$4:$A$743)),($G38),((AD38-AC38)/6),TRUE))),"") -> 0.9998337525 | Z38: =IFERROR(IF(ISTEXT($A38),"",(1-NORMDIST((COUNTA($A$4:$A$743))+(Personalize!$E$18+1),$G38,((AD38-AC38)/6),TRUE))),"") -> 0.9994335133 | AA38: =IFERROR(IF(ISTEXT($A38),"",(1-NORMDIST((COUNTA($A$4:$A$743))+((Personalize!$E$18+1)*2),$G38,((AD38-AC38)/6),TRUE))),"") -> 0.9982605105 | AC38: =IF(Personalize!$E$34=1,VLOOKUP($B38,'ADP-Rank'!$A$2:$J$700,5,FALSE),(IF(Personalize!$E$34=2,VLOOKUP($B38,'ADP-Rank'!$A$2:$J$700,8,FALSE),(IF(Personalize!$E$34=3,VLOOKUP($B38,'ADP-Rank'!$A$2:$O$700,11,FALSE),(IF(Personalize!$E$31=4,VLOOKUP($B38,'ADP-Rank'!$A$2:$AZ$700,25,FALSE),(IF(Personalize!$E$31=5,VLOOKUP($B38,'ADP-Rank'!$A$2:$AZ$700,28,FALSE),(IF(Personalize!$E$31=6,VLOOKUP($B38,'ADP-Rank'!$A$2:$AZ$700,32,FALSE),""))))))))))) -> 64 | AD38: =IF(Personalize!$E$34=1,VLOOKUP($B38,'ADP-Rank'!$A$2:$J$700,6,FALSE),(IF(Personalize!$E$34=2,VLOOKUP($B38,'ADP-Rank'!$A$2:$J$700,9,FALSE),(IF(Personalize!$E$34=3,VLOOKUP($B38,'ADP-Rank'!$A$2:$O$700,12,FALSE),(IF(Personalize!$E$31=4,VLOOKUP($B38,'ADP-Rank'!$A$2:$AZ$700,26,FALSE),(IF(Personalize!$E$31=5,VLOOKUP($B38,'ADP-Rank'!$A$2:$AZ$700,29,FALSE),(IF(Personalize!$E$31=6,VLOOKUP($B38,'ADP-Rank'!$A$2:$AZ$700,33,FALSE),""))))))))))) -> 127 | AE38: =IF(ISBLANK(A38),0,1) -> 0 | AF38: =IF(K38="",0,1) -> 1 | AG38: =A38 -> 0 | AH38: =IF(C38="C",1,IF(C38="1B",2,IF(C38="2B",3,IF(C38="3B",4,IF(C38="SS",5,IF(C38="CI",6,IF(C38="MI",7,IF(C38="OF",11,IF(C38="LF",8,IF(C38="CF",9,IF(C38="RF",10,IF(C38="DH",12,IF(C38="SP",13,IF(C38="RP",14,IF(C38="P",15,16))))))))))))))) -> 13 | AI38: =VLOOKUP(B38,'Starter Calc'!$B$2:$BN$700,65,FALSE) -> Bench | AJ38: =IFERROR(VLOOKUP($B38,'ADP-Rank'!$A$2:$AH$964,34,FALSE),TRUE) -> TRUE
B39: Justin Upton | C39: =IFERROR(IF(VLOOKUP(B39,'ADP-Rank'!$A$2:$B$700,2,FALSE)="OF",VLOOKUP(B39,'Starter Calc'!$B$2:$AM$700,38,FALSE),(VLOOKUP(B39,'ADP-Rank'!$A$2:$B$700,2,FALSE))),"") -> OF | D39: =IFERROR(IF(VLOOKUP(B39,'Starter Calc'!$B$2:$E$700,4,FALSE)="","",VLOOKUP(B39,'Starter Calc'!$B$2:$E$700,4,FALSE)),"") -> RF | E39: =IFERROR(VLOOKUP($B39,'ADP-Rank'!$A$2:$D$700,3,FALSE),"") -> ATL | F39: =IFERROR(VLOOKUP($B39,'ADP-Rank'!$A$2:$W$700,23,FALSE),"") -> 26 | G39: =IFERROR((IF(Personalize!$E$38=1,VLOOKUP($B39,'ADP-Rank'!$A$2:$J$700,4,FALSE),(IF(Personalize!$E$38=2,VLOOKUP($B39,'ADP-Rank'!$A$2:$J$700,7,FALSE),(IF(Personalize!$E$38=3,VLOOKUP($B39,'ADP-Rank'!$A$2:$J$700,10,FALSE),(IF(Personalize!$E$38=4,VLOOKUP($B39,'ADP-Rank'!$A$2:$AD$700,24,FALSE),(IF(Personalize!$E$38=5,VLOOKUP($B39,'ADP-Rank'!$A$2:$AD$700,27,FALSE),VLOOKUP($B39,'ADP-Rank'!$A$2:$AZ$700,30,FALSE))))))))))),"") -> 38.72 | H39: =IFERROR(ROUNDDOWN(VLOOKUP($B39,'ADP-Rank'!$A$2:$AY$1064,38,FALSE),0),"") -> 3 | I39: =VLOOKUP($B39,'ADP-Rank'!$A$2:$AJ$1064,36,FALSE) -> 26 | J39: =IFERROR(RANK($M39,$M$4:$M$743,0),"") -> 40 | K39: =IFERROR(IF((OR($C39="RP",$C39="SP")),VLOOKUP($B39,Pitcher!$A$1:$Z$700,20,FALSE),(VLOOKUP($B39,Hitter!$A$1:$Z$700,26,FALSE))),"") -> 412.5736503 | L39: =IFERROR(IF((OR($C39="RP",$C39="SP")),VLOOKUP($C39,'Filtered-P'!$M$3:$P$4,4,FALSE), VLOOKUP($C39,Filtered!$Q$3:$T$14,4,FALSE)),"") -> 368.4885837 | M39: =IFERROR(K39-L39,"") -> 44.08506653 | N39: =IFERROR(IF((OR($C39="RP",$C39="SP")),VLOOKUP($B39,Pitcher!$A$1:$Z$700,20,FALSE)/VLOOKUP($B39,Pitcher!$A$1:$Z$700,4,FALSE),(VLOOKUP($B39,Hitter!$A$1:$Z$700,26,FALSE)/VLOOKUP($B39,Hitter!$A$1:$Z$700,2,FALSE))),"") -> 0.6299589094 | O39: =IFERROR(IF((OR($C39="RP",$C39="SP")),VLOOKUP($B39,Pitcher!$A$1:$V$700,2,FALSE),""),"") ->  | P39: =IFERROR(IF((OR($C39="RP",$C39="SP")),VLOOKUP($B39,Pitcher!$A$1:$V$700,9,FALSE),""),"") ->  | Q39: =IFERROR(IF((OR($C39="RP",$C39="SP")),VLOOKUP($B39,Pitcher!$A$1:$V$700,7,FALSE),""),"") ->  | R39: =IFERROR(IF((OR($C39="RP",$C39="SP")),VLOOKUP($B39,Pitcher!$A$1:$AB$700,21,FALSE),""),"") ->  | S39: =IFERROR(IF((OR($C39="RP",$C39="SP")),VLOOKUP($B39,Pitcher!$A$1:$V$700,22,FALSE),""),"") ->  | T39: =IFERROR(IF((OR($C39="RP",$C39="SP")),"",VLOOKUP($B39,Hitter!$A$1:$AH$700,27,FALSE)),"") -> 0.2815011855 | U39: =IFERROR(IF((OR($C39="RP",$C39="SP")),"",VLOOKUP($B39,Hitter!$A$1:$AH$700,9,FALSE)),"") -> 27.19830258 | V39: =IFERROR(IF((OR($C39="RP",$C39="SP")),"",VLOOKUP($B39,Hitter!$A$1:$AH$700,10,FALSE)),"") -> 88.16251199 | W39: =IFERROR(IF((OR($C39="RP",$C39="SP")),"",VLOOKUP($B39,Hitter!$A$1:$AH$700,4,FALSE)),"") -> 98.41851309 | X39: =IFERROR(IF((OR($C39="RP",$C39="SP")),"",VLOOKUP($B39,Hitter!$A$1:$AH$700,11,FALSE)),"") -> 17.71402567 | Y39: =IFERROR(IF(ISTEXT($A39),"",(1-NORMDIST((COUNTA($A$4:$A$743)),($G39),((AD39-AC39)/6),TRUE))),"") -> 1 | Z39: =IFERROR(IF(ISTEXT($A39),"",(1-NORMDIST((COUNTA($A$4:$A$743))+(Personalize!$E$18+1),$G39,((AD39-AC39)/6),TRUE))),"") -> 1 | AA39: =IFERROR(IF(ISTEXT($A39),"",(1-NORMDIST((COUNTA($A$4:$A$743))+((Personalize!$E$18+1)*2),$G39,((AD39-AC39)/6),TRUE))),"") -> 1 | AB39: Due for increase in HR total | AC39: =IF(Personalize!$E$34=1,VLOOKUP($B39,'ADP-Rank'!$A$2:$J$700,5,FALSE),(IF(Personalize!$E$34=2,VLOOKUP($B39,'ADP-Rank'!$A$2:$J$700,8,FALSE),(IF(Personalize!$E$34=3,VLOOKUP($B39,'ADP-Rank'!$A$2:$O$700,11,FALSE),(IF(Personalize!$E$31=4,VLOOKUP($B39,'ADP-Rank'!$A$2:$AZ$700,25,FALSE),(IF(Personalize!$E$31=5,VLOOKUP($B39,'ADP-Rank'!$A$2:$AZ$700,28,FALSE),(IF(Personalize!$E$31=6,VLOOKUP($B39,'ADP-Rank'!$A$2:$AZ$700,32,FALSE),""))))))))))) -> 8 | AD39: =IF(Personalize!$E$34=1,VLOOKUP($B39,'ADP-Rank'!$A$2:$J$700,6,FALSE),(IF(Personalize!$E$34=2,VLOOKUP($B39,'ADP-Rank'!$A$2:$J$700,9,FALSE),(IF(Personalize!$E$34=3,VLOOKUP($B39,'ADP-Rank'!$A$2:$O$700,12,FALSE),(IF(Personalize!$E$31=4,VLOOKUP($B39,'ADP-Rank'!$A$2:$AZ$700,26,FALSE),(IF(Personalize!$E$31=5,VLOOKUP($B39,'ADP-Rank'!$A$2:$AZ$700,29,FALSE),(IF(Personalize!$E$31=6,VLOOKUP($B39,'ADP-Rank'!$A$2:$AZ$700,33,FALSE),""))))))))))) -> 32 | AE39: =IF(ISBLANK(A39),0,1) -> 0 | AF39: =IF(K39="",0,1) -> 1 | AG39: =A39 -> 0 | AH39: =IF(C39="C",1,IF(C39="1B",2,IF(C39="2B",3,IF(C39="3B",4,IF(C39="SS",5,IF(C39="CI",6,IF(C39="MI",7,IF(C39="OF",11,IF(C39="LF",8,IF(C39="CF",9,IF(C39="RF",10,IF(C39="DH",12,IF(C39="SP",13,IF(C39="RP",14,IF(C39="P",15,16))))))))))))))) -> 11 | AI39: =VLOOKUP(B39,'Starter Calc'!$B$2:$BN$700,65,FALSE) -> Bench | AJ39: =IFERROR(VLOOKUP($B39,'ADP-Rank'!$A$2:$AH$964,34,FALSE),TRUE) -> TRUE
B40: Edwin Encarnacion | C40: =IFERROR(IF(VLOOKUP(B40,'ADP-Rank'!$A$2:$B$700,2,FALSE)="OF",VLOOKUP(B40,'Starter Calc'!$B$2:$AM$700,38,FALSE),(VLOOKUP(B40,'ADP-Rank'!$A$2:$B$700,2,FALSE))),"") -> 1B | D40: =IFERROR(IF(VLOOKUP(B40,'Starter Calc'!$B$2:$E$700,4,FALSE)="","",VLOOKUP(B40,'Starter Calc'!$B$2:$E$700,4,FALSE)),"") ->  | E40: =IFERROR(VLOOKUP($B40,'ADP-Rank'!$A$2:$D$700,3,FALSE),"") -> TOR | F40: =IFERROR(VLOOKUP($B40,'ADP-Rank'!$A$2:$W$700,23,FALSE),"") -> 31 | G40: =IFERROR((IF(Personalize!$E$38=1,VLOOKUP($B40,'ADP-Rank'!$A$2:$J$700,4,FALSE),(IF(Personalize!$E$38=2,VLOOKUP($B40,'ADP-Rank'!$A$2:$J$700,7,FALSE),(IF(Personalize!$E$38=3,VLOOKUP($B40,'ADP-Rank'!$A$2:$J$700,10,FALSE),(IF(Personalize!$E$38=4,VLOOKUP($B40,'ADP-Rank'!$A$2:$AD$700,24,FALSE),(IF(Personalize!$E$38=5,VLOOKUP($B40,'ADP-Rank'!$A$2:$AD$700,27,FALSE),VLOOKUP($B40,'ADP-Rank'!$A$2:$AZ$700,30,FALSE))))))))))),"") -> 38.86 | H40: =IFERROR(ROUNDDOWN(VLOOKUP($B40,'ADP-Rank'!$A$2:$AY$1064,38,FALSE),0),"") -> 3 | I40: =VLOOKUP($B40,'ADP-Rank'!$A$2:$AJ$1064,36,FALSE) -> 24 | J40: =IFERROR(RANK($M40,$M$4:$M$743,0),"") -> 91 | K40: =IFERROR(IF((OR($C40="RP",$C40="SP")),VLOOKUP($B40,Pitcher!$A$1:$Z$700,20,FALSE),(VLOOKUP($B40,Hitter!$A$1:$Z$700,26,FALSE))),"") -> 384.8218564 | L40: =IFERROR(IF((OR($C40="RP",$C40="SP")),VLOOKUP($C40,'Filtered-P'!$M$3:$P$4,4,FALSE), VLOOKUP($C40,Filtered!$Q$3:$T$14,4,FALSE)),"") -> 395.2780551 | M40: =IFERROR(K40-L40,"") -> -10.45619873 | N40: =IFERROR(IF((OR($C40="RP",$C40="SP")),VLOOKUP($B40,Pitcher!$A$1:$Z$700,20,FALSE)/VLOOKUP($B40,Pitcher!$A$1:$Z$700,4,FALSE),(VLOOKUP($B40,Hitter!$A$1:$Z$700,26,FALSE)/VLOOKUP($B40,Hitter!$A$1:$Z$700,2,FALSE))),"") -> 0.687623977 | O40: =IFERROR(IF((OR($C40="RP",$C40="SP")),VLOOKUP($B40,Pitcher!$A$1:$V$700,2,FALSE),""),"") ->  | P40: =IFERROR(IF((OR($C40="RP",$C40="SP")),VLOOKUP($B40,Pitcher!$A$1:$V$700,9,FALSE),""),"") ->  | Q40: =IFERROR(IF((OR($C40="RP",$C40="SP")),VLOOKUP($B40,Pitcher!$A$1:$V$700,7,FALSE),""),"") ->  | R40: =IFERROR(IF((OR($C40="RP",$C40="SP")),VLOOKUP($B40,Pitcher!$A$1:$AB$700,21,FALSE),""),"") ->  | S40: =IFERROR(IF((OR($C40="RP",$C40="SP")),VLOOKUP($B40,Pitcher!$A$1:$V$700,22,FALSE),""),"") ->  | T40: =IFERROR(IF((OR($C40="RP",$C40="SP")),"",VLOOKUP($B40,Hitter!$A$1:$AH$700,27,FALSE)),"") -> 0.2670468563 | U40: =IFERROR(IF((OR($C40="RP",$C40="SP")),"",VLOOKUP($B40,Hitter!$A$1:$AH$700,9,FALSE)),"") -> 27.81072919 | V40: =IFERROR(IF((OR($C40="RP",$C40="SP")),"",VLOOKUP($B40,Hitter!$A$1:$AH$700,10,FALSE)),"") -> 83.70329077 | W40: =IFERROR(IF((OR($C40="RP",$C40="SP")),"",VLOOKUP($B40,Hitter!$A$1:$AH$700,4,FALSE)),"") -> 80.07082124 | X40: =IFERROR(IF((OR($C40="RP",$C40="SP")),"",VLOOKUP($B40,Hitter!$A$1:$AH$700,11,FALSE)),"") -> 7.320424068 | Y40: =IFERROR(IF(ISTEXT($A40),"",(1-NORMDIST((COUNTA($A$4:$A$743)),($G40),((AD40-AC40)/6),TRUE))),"") -> 1 | Z40: =IFERROR(IF(ISTEXT($A40),"",(1-NORMDIST((COUNTA($A$4:$A$743))+(Personalize!$E$18+1),$G40,((AD40-AC40)/6),TRUE))),"") -> 1 | AA40: =IFERROR(IF(ISTEXT($A40),"",(1-NORMDIST((COUNTA($A$4:$A$743))+((Personalize!$E$18+1)*2),$G40,((AD40-AC40)/6),TRUE))),"") -> 1 | AC40: =IF(Personalize!$E$34=1,VLOOKUP($B40,'ADP-Rank'!$A$2:$J$700,5,FALSE),(IF(Personalize!$E$34=2,VLOOKUP($B40,'ADP-Rank'!$A$2:$J$700,8,FALSE),(IF(Personalize!$E$34=3,VLOOKUP($B40,'ADP-Rank'!$A$2:$O$700,11,FALSE),(IF(Personalize!$E$31=4,VLOOKUP($B40,'ADP-Rank'!$A$2:$AZ$700,25,FALSE),(IF(Personalize!$E$31=5,VLOOKUP($B40,'ADP-Rank'!$A$2:$AZ$700,28,FALSE),(IF(Personalize!$E$31=6,VLOOKUP($B40,'ADP-Rank'!$A$2:$AZ$700,32,FALSE),""))))))))))) -> 21 | AD40: =IF(Personalize!$E$34=1,VLOOKUP($B40,'ADP-Rank'!$A$2:$J$700,6,FALSE),(IF(Personalize!$E$34=2,VLOOKUP($B40,'ADP-Rank'!$A$2:$J$700,9,FALSE),(IF(Personalize!$E$34=3,VLOOKUP($B40,'ADP-Rank'!$A$2:$O$700,12,FALSE),(IF(Personalize!$E$31=4,VLOOKUP($B40,'ADP-Rank'!$A$2:$AZ$700,26,FALSE),(IF(Personalize!$E$31=5,VLOOKUP($B40,'ADP-Rank'!$A$2:$AZ$700,29,FALSE),(IF(Personalize!$E$31=6,VLOOKUP($B40,'ADP-Rank'!$A$2:$AZ$700,33,FALSE),""))))))))))) -> 49 | AE40: =IF(ISBLANK(A40),0,1) -> 0 | AF40: =IF(K40="",0,1) -> 1 | AG40: =A40 -> 0 | AH40: =IF(C40="C",1,IF(C40="1B",2,IF(C40="2B",3,IF(C40="3B",4,IF(C40="SS",5,IF(C40="CI",6,IF(C40="MI",7,IF(C40="OF",11,IF(C40="LF",8,IF(C40="CF",9,IF(C40="RF",10,IF(C40="DH",12,IF(C40="SP",13,IF(C40="RP",14,IF(C40="P",15,16))))))))))))))) -> 2 | AI40: =VLOOKUP(B40,'Starter Calc'!$B$2:$BN$700,65,FALSE) -> Bench | AJ40: =IFERROR(VLOOKUP($B40,'ADP-Rank'!$A$2:$AH$964,34,FALSE),TRUE) -> TRUE
B41: R.A. Dickey | C41: =IFERROR(IF(VLOOKUP(B41,'ADP-Rank'!$A$2:$B$700,2,FALSE)="OF",VLOOKUP(B41,'Starter Calc'!$B$2:$AM$700,38,FALSE),(VLOOKUP(B41,'ADP-Rank'!$A$2:$B$700,2,FALSE))),"") -> SP | D41: =IFERROR(IF(VLOOKUP(B41,'Starter Calc'!$B$2:$E$700,4,FALSE)="","",VLOOKUP(B41,'Starter Calc'!$B$2:$E$700,4,FALSE)),"") ->  | E41: =IFERROR(VLOOKUP($B41,'ADP-Rank'!$A$2:$D$700,3,FALSE),"") -> TOR | F41: =IFERROR(VLOOKUP($B41,'ADP-Rank'!$A$2:$W$700,23,FALSE),"") -> 39 | G41: =IFERROR((IF(Personalize!$E$38=1,VLOOKUP($B41,'ADP-Rank'!$A$2:$J$700,4,FALSE),(IF(Personalize!$E$38=2,VLOOKUP($B41,'ADP-Rank'!$A$2:$J$700,7,FALSE),(IF(Personalize!$E$38=3,VLOOKUP($B41,'ADP-Rank'!$A$2:$J$700,10,FALSE),(IF(Personalize!$E$38=4,VLOOKUP($B41,'ADP-Rank'!$A$2:$AD$700,24,FALSE),(IF(Personalize!$E$38=5,VLOOKUP($B41,'ADP-Rank'!$A$2:$AD$700,27,FALSE),VLOOKUP($B41,'ADP-Rank'!$A$2:$AZ$700,30,FALSE))))))))))),"") -> 39.23 | H41: =IFERROR(ROUNDDOWN(VLOOKUP($B41,'ADP-Rank'!$A$2:$AY$1064,38,FALSE),0),"") -> 3 | I41: =VLOOKUP($B41,'ADP-Rank'!$A$2:$AJ$1064,36,FALSE) -> 43 | J41: =IFERROR(RANK($M41,$M$4:$M$743,0),"") -> 141 | K41: =IFERROR(IF((OR($C41="RP",$C41="SP")),VLOOKUP($B41,Pitcher!$A$1:$Z$700,20,FALSE),(VLOOKUP($B41,Hitter!$A$1:$Z$700,26,FALSE))),"") -> 306.2752773 | L41: =IFERROR(IF((OR($C41="RP",$C41="SP")),VLOOKUP($C41,'Filtered-P'!$M$3:$P$4,4,FALSE), VLOOKUP($C41,Filtered!$Q$3:$T$14,4,FALSE)),"") -> 357.2271519 | M41: =IFERROR(K41-L41,"") -> -50.95187455 | N41: =IFERROR(IF((OR($C41="RP",$C41="SP")),VLOOKUP($B41,Pitcher!$A$1:$Z$700,20,FALSE)/VLOOKUP($B41,Pitcher!$A$1:$Z$700,4,FALSE),(VLOOKUP($B41,Hitter!$A$1:$Z$700,26,FALSE)/VLOOKUP($B41,Hitter!$A$1:$Z$700,2,FALSE))),"") -> 1.555407432 | O41: =IFERROR(IF((OR($C41="RP",$C41="SP")),VLOOKUP($B41,Pitcher!$A$1:$V$700,2,FALSE),""),"") -> 13.78 | P41: =IFERROR(IF((OR($C41="RP",$C41="SP")),VLOOKUP($B41,Pitcher!$A$1:$V$700,9,FALSE),""),"") -> 0 | Q41: =IFERROR(IF((OR($C41="RP",$C41="SP")),VLOOKUP($B41,Pitcher!$A$1:$V$700,7,FALSE),""),"") -> 151.2581109 | R41: =IFERROR(IF((OR($C41="RP",$C41="SP")),VLOOKUP($B41,Pitcher!$A$1:$AB$700,21,FALSE),""),"") -> 3.804123711 | S41: =IFERROR(IF((OR($C41="RP",$C41="SP")),VLOOKUP($B41,Pitcher!$A$1:$V$700,22,FALSE),""),"") -> 1.265502006 | T41: =IFERROR(IF((OR($C41="RP",$C41="SP")),"",VLOOKUP($B41,Hitter!$A$1:$AH$700,27,FALSE)),"") ->  | U41: =IFERROR(IF((OR($C41="RP",$C41="SP")),"",VLOOKUP($B41,Hitter!$A$1:$AH$700,9,FALSE)),"") ->  | V41: =IFERROR(IF((OR($C41="RP",$C41="SP")),"",VLOOKUP($B41,Hitter!$A$1:$AH$700,10,FALSE)),"") ->  | W41: =IFERROR(IF((OR($C41="RP",$C41="SP")),"",VLOOKUP($B41,Hitter!$A$1:$AH$700,4,FALSE)),"") ->  | X41: =IFERROR(IF((OR($C41="RP",$C41="SP")),"",VLOOKUP($B41,Hitter!$A$1:$AH$700,11,FALSE)),"") ->  | Y41: =IFERROR(IF(ISTEXT($A41),"",(1-NORMDIST((COUNTA($A$4:$A$743)),($G41),((AD41-AC41)/6),TRUE))),"") -> 0.999926609 | Z41: =IFERROR(IF(ISTEXT($A41),"",(1-NORMDIST((COUNTA($A$4:$A$743))+(Personalize!$E$18+1),$G41,((AD41-AC41)/6),TRUE))),"") -> 0.9997276386 | AA41: =IFERROR(IF(ISTEXT($A41),"",(1-NORMDIST((COUNTA($A$4:$A$743))+((Personalize!$E$18+1)*2),$G41,((AD41-AC41)/6),TRUE))),"") -> 0.9990927695 | AC41: =IF(Personalize!$E$34=1,VLOOKUP($B41,'ADP-Rank'!$A$2:$J$700,5,FALSE),(IF(Personalize!$E$34=2,VLOOKUP($B41,'ADP-Rank'!$A$2:$J$700,8,FALSE),(IF(Personalize!$E$34=3,VLOOKUP($B41,'ADP-Rank'!$A$2:$O$700,11,FALSE),(IF(Personalize!$E$31=4,VLOOKUP($B41,'ADP-Rank'!$A$2:$AZ$700,25,FALSE),(IF(Personalize!$E$31=5,VLOOKUP($B41,'ADP-Rank'!$A$2:$AZ$700,28,FALSE),(IF(Personalize!$E$31=6,VLOOKUP($B41,'ADP-Rank'!$A$2:$AZ$700,32,FALSE),""))))))))))) -> 40 | AD41: =IF(Personalize!$E$34=1,VLOOKUP($B41,'ADP-Rank'!$A$2:$J$700,6,FALSE),(IF(Personalize!$E$34=2,VLOOKUP($B41,'ADP-Rank'!$A$2:$J$700,9,FALSE),(IF(Personalize!$E$34=3,VLOOKUP($B41,'ADP-Rank'!$A$2:$O$700,12,FALSE),(IF(Personalize!$E$31=4,VLOOKUP($B41,'ADP-Rank'!$A$2:$AZ$700,26,FALSE),(IF(Personalize!$E$31=5,VLOOKUP($B41,'ADP-Rank'!$A$2:$AZ$700,29,FALSE),(IF(Personalize!$E$31=6,VLOOKUP($B41,'ADP-Rank'!$A$2:$AZ$700,33,FALSE),""))))))))))) -> 102 | AE41: =IF(ISBLANK(A41),0,1) -> 0 | AF41: =IF(K41="",0,1) -> 1 | AG41: =A41 -> 0 | AH41: =IF(C41="C",1,IF(C41="1B",2,IF(C41="2B",3,IF(C41="3B",4,IF(C41="SS",5,IF(C41="CI",6,IF(C41="MI",7,IF(C41="OF",11,IF(C41="LF",8,IF(C41="CF",9,IF(C41="RF",10,IF(C41="DH",12,IF(C41="SP",13,IF(C41="RP",14,IF(C41="P",15,16))))))))))))))) -> 13 | AI41: =VLOOKUP(B41,'Starter Calc'!$B$2:$BN$700,65,FALSE) -> Bench | AJ41: =IFERROR(VLOOKUP($B41,'ADP-Rank'!$A$2:$AH$964,34,FALSE),TRUE) -> TRUE
B42: David Wright | C42: =IFERROR(IF(VLOOKUP(B42,'ADP-Rank'!$A$2:$B$700,2,FALSE)="OF",VLOOKUP(B42,'Starter Calc'!$B$2:$AM$700,38,FALSE),(VLOOKUP(B42,'ADP-Rank'!$A$2:$B$700,2,FALSE))),"") -> 3B | D42: =IFERROR(IF(VLOOKUP(B42,'Starter Calc'!$B$2:$E$700,4,FALSE)="","",VLOOKUP(B42,'Starter Calc'!$B$2:$E$700,4,FALSE)),"") ->  | E42: =IFERROR(VLOOKUP($B42,'ADP-Rank'!$A$2:$D$700,3,FALSE),"") -> NYM | F42: =IFERROR(VLOOKUP($B42,'ADP-Rank'!$A$2:$W$700,23,FALSE),"") -> 31 | G42: =IFERROR((IF(Personalize!$E$38=1,VLOOKUP($B42,'ADP-Rank'!$A$2:$J$700,4,FALSE),(IF(Personalize!$E$38=2,VLOOKUP($B42,'ADP-Rank'!$A$2:$J$700,7,FALSE),(IF(Personalize!$E$38=3,VLOOKUP($B42,'ADP-Rank'!$A$2:$J$700,10,FALSE),(IF(Personalize!$E$38=4,VLOOKUP($B42,'ADP-Rank'!$A$2:$AD$700,24,FALSE),(IF(Personalize!$E$38=5,VLOOKUP($B42,'ADP-Rank'!$A$2:$AD$700,27,FALSE),VLOOKUP($B42,'ADP-Rank'!$A$2:$AZ$700,30,FALSE))))))))))),"") -> 39.7 | H42: =IFERROR(ROUNDDOWN(VLOOKUP($B42,'ADP-Rank'!$A$2:$AY$1064,38,FALSE),0),"") -> 4 | I42: =VLOOKUP($B42,'ADP-Rank'!$A$2:$AJ$1064,36,FALSE) -> 31 | J42: =IFERROR(RANK($M42,$M$4:$M$743,0),"") -> 76 | K42: =IFERROR(IF((OR($C42="RP",$C42="SP")),VLOOKUP($B42,Pitcher!$A$1:$Z$700,20,FALSE),(VLOOKUP($B42,Hitter!$A$1:$Z$700,26,FALSE))),"") -> 361.0773409 | L42: =IFERROR(IF((OR($C42="RP",$C42="SP")),VLOOKUP($C42,'Filtered-P'!$M$3:$P$4,4,FALSE), VLOOKUP($C42,Filtered!$Q$3:$T$14,4,FALSE)),"") -> 360.1633507 | M42: =IFERROR(K42-L42,"") -> 0.913990177 | N42: =IFERROR(IF((OR($C42="RP",$C42="SP")),VLOOKUP($B42,Pitcher!$A$1:$Z$700,20,FALSE)/VLOOKUP($B42,Pitcher!$A$1:$Z$700,4,FALSE),(VLOOKUP($B42,Hitter!$A$1:$Z$700,26,FALSE)/VLOOKUP($B42,Hitter!$A$1:$Z$700,2,FALSE))),"") -> 0.6072875284 | O42: =IFERROR(IF((OR($C42="RP",$C42="SP")),VLOOKUP($B42,Pitcher!$A$1:$V$700,2,FALSE),""),"") ->  | P42: =IFERROR(IF((OR($C42="RP",$C42="SP")),VLOOKUP($B42,Pitcher!$A$1:$V$700,9,FALSE),""),"") ->  | Q42: =IFERROR(IF((OR($C42="RP",$C42="SP")),VLOOKUP($B42,Pitcher!$A$1:$V$700,7,FALSE),""),"") ->  | R42: =IFERROR(IF((OR($C42="RP",$C42="SP")),VLOOKUP($B42,Pitcher!$A$1:$AB$700,21,FALSE),""),"") ->  | S42: =IFERROR(IF((OR($C42="RP",$C42="SP")),VLOOKUP($B42,Pitcher!$A$1:$V$700,22,FALSE),""),"") ->  | T42: =IFERROR(IF((OR($C42="RP",$C42="SP")),"",VLOOKUP($B42,Hitter!$A$1:$AH$700,27,FALSE)),"") -> 0.2807746037 | U42: =IFERROR(IF((OR($C42="RP",$C42="SP")),"",VLOOKUP($B42,Hitter!$A$1:$AH$700,9,FALSE)),"") -> 19.42810768 | V42: =IFERROR(IF((OR($C42="RP",$C42="SP")),"",VLOOKUP($B42,Hitter!$A$1:$AH$700,10,FALSE)),"") -> 79.00191307 | W42: =IFERROR(IF((OR($C42="RP",$C42="SP")),"",VLOOKUP($B42,Hitter!$A$1:$AH$700,4,FALSE)),"") -> 81.09427467 | X42: =IFERROR(IF((OR($C42="RP",$C42="SP")),"",VLOOKUP($B42,Hitter!$A$1:$AH$700,11,FALSE)),"") -> 14.45480132 | Y42: =IFERROR(IF(ISTEXT($A42),"",(1-NORMDIST((COUNTA($A$4:$A$743)),($G42),((AD42-AC42)/6),TRUE))),"") -> 1 | Z42: =IFERROR(IF(ISTEXT($A42),"",(1-NORMDIST((COUNTA($A$4:$A$743))+(Personalize!$E$18+1),$G42,((AD42-AC42)/6),TRUE))),"") -> 1 | AA42: =IFERROR(IF(ISTEXT($A42),"",(1-NORMDIST((COUNTA($A$4:$A$743))+((Personalize!$E$18+1)*2),$G42,((AD42-AC42)/6),TRUE))),"") -> 0.9999999986 | AC42: =IF(Personalize!$E$34=1,VLOOKUP($B42,'ADP-Rank'!$A$2:$J$700,5,FALSE),(IF(Personalize!$E$34=2,VLOOKUP($B42,'ADP-Rank'!$A$2:$J$700,8,FALSE),(IF(Personalize!$E$34=3,VLOOKUP($B42,'ADP-Rank'!$A$2:$O$700,11,FALSE),(IF(Personalize!$E$31=4,VLOOKUP($B42,'ADP-Rank'!$A$2:$AZ$700,25,FALSE),(IF(Personalize!$E$31=5,VLOOKUP($B42,'ADP-Rank'!$A$2:$AZ$700,28,FALSE),(IF(Personalize!$E$31=6,VLOOKUP($B42,'ADP-Rank'!$A$2:$AZ$700,32,FALSE),""))))))))))) -> 19 | AD42: =IF(Personalize!$E$34=1,VLOOKUP($B42,'ADP-Rank'!$A$2:$J$700,6,FALSE),(IF(Personalize!$E$34=2,VLOOKUP($B42,'ADP-Rank'!$A$2:$J$700,9,FALSE),(IF(Personalize!$E$34=3,VLOOKUP($B42,'ADP-Rank'!$A$2:$O$700,12,FALSE),(IF(Personalize!$E$31=4,VLOOKUP($B42,'ADP-Rank'!$A$2:$AZ$700,26,FALSE),(IF(Personalize!$E$31=5,VLOOKUP($B42,'ADP-Rank'!$A$2:$AZ$700,29,FALSE),(IF(Personalize!$E$31=6,VLOOKUP($B42,'ADP-Rank'!$A$2:$AZ$700,33,FALSE),""))))))))))) -> 52 | AE42: =IF(ISBLANK(A42),0,1) -> 0 | AF42: =IF(K42="",0,1) -> 1 | AG42: =A42 -> 0 | AH42: =IF(C42="C",1,IF(C42="1B",2,IF(C42="2B",3,IF(C42="3B",4,IF(C42="SS",5,IF(C42="CI",6,IF(C42="MI",7,IF(C42="OF",11,IF(C42="LF",8,IF(C42="CF",9,IF(C42="RF",10,IF(C42="DH",12,IF(C42="SP",13,IF(C42="RP",14,IF(C42="P",15,16))))))))))))))) -> 4 | AI42: =VLOOKUP(B42,'Starter Calc'!$B$2:$BN$700,65,FALSE) -> Bench | AJ42: =IFERROR(VLOOKUP($B42,'ADP-Rank'!$A$2:$AH$964,34,FALSE),TRUE) -> TRUE
B43: Madison Bumgarner | C43: =IFERROR(IF(VLOOKUP(B43,'ADP-Rank'!$A$2:$B$700,2,FALSE)="OF",VLOOKUP(B43,'Starter Calc'!$B$2:$AM$700,38,FALSE),(VLOOKUP(B43,'ADP-Rank'!$A$2:$B$700,2,FALSE))),"") -> SP | D43: =IFERROR(IF(VLOOKUP(B43,'Starter Calc'!$B$2:$E$700,4,FALSE)="","",VLOOKUP(B43,'Starter Calc'!$B$2:$E$700,4,FALSE)),"") ->  | E43: =IFERROR(VLOOKUP($B43,'ADP-Rank'!$A$2:$D$700,3,FALSE),"") -> SF | F43: =IFERROR(VLOOKUP($B43,'ADP-Rank'!$A$2:$W$700,23,FALSE),"") -> 24 | G43: =IFERROR((IF(Personalize!$E$38=1,VLOOKUP($B43,'ADP-Rank'!$A$2:$J$700,4,FALSE),(IF(Personalize!$E$38=2,VLOOKUP($B43,'ADP-Rank'!$A$2:$J$700,7,FALSE),(IF(Personalize!$E$38=3,VLOOKUP($B43,'ADP-Rank'!$A$2:$J$700,10,FALSE),(IF(Personalize!$E$38=4,VLOOKUP($B43,'ADP-Rank'!$A$2:$AD$700,24,FALSE),(IF(Personalize!$E$38=5,VLOOKUP($B43,'ADP-Rank'!$A$2:$AD$700,27,FALSE),VLOOKUP($B43,'ADP-Rank'!$A$2:$AZ$700,30,FALSE))))))))))),"") -> 42.8 | H43: =IFERROR(ROUNDDOWN(VLOOKUP($B43,'ADP-Rank'!$A$2:$AY$1064,38,FALSE),0),"") -> 4 | I43: =VLOOKUP($B43,'ADP-Rank'!$A$2:$AJ$1064,36,FALSE) -> 44 | J43: =IFERROR(RANK($M43,$M$4:$M$743,0),"") -> 52 | K43: =IFERROR(IF((OR($C43="RP",$C43="SP")),VLOOKUP($B43,Pitcher!$A$1:$Z$700,20,FALSE),(VLOOKUP($B43,Hitter!$A$1:$Z$700,26,FALSE))),"") -> 386.0847697 | L43: =IFERROR(IF((OR($C43="RP",$C43="SP")),VLOOKUP($C43,'Filtered-P'!$M$3:$P$4,4,FALSE), VLOOKUP($C43,Filtered!$Q$3:$T$14,4,FALSE)),"") -> 357.2271519 | M43: =IFERROR(K43-L43,"") -> 28.85761778 | N43: =IFERROR(IF((OR($C43="RP",$C43="SP")),VLOOKUP($B43,Pitcher!$A$1:$Z$700,20,FALSE)/VLOOKUP($B43,Pitcher!$A$1:$Z$700,4,FALSE),(VLOOKUP($B43,Hitter!$A$1:$Z$700,26,FALSE)/VLOOKUP($B43,Hitter!$A$1:$Z$700,2,FALSE))),"") -> 2.11194557 | O43: =IFERROR(IF((OR($C43="RP",$C43="SP")),VLOOKUP($B43,Pitcher!$A$1:$V$700,2,FALSE),""),"") -> 14.25 | P43: =IFERROR(IF((OR($C43="RP",$C43="SP")),VLOOKUP($B43,Pitcher!$A$1:$V$700,9,FALSE),""),"") -> 0 | Q43: =IFERROR(IF((OR($C43="RP",$C43="SP")),VLOOKUP($B43,Pitcher!$A$1:$V$700,7,FALSE),""),"") -> 169.8899079 | R43: =IFERROR(IF((OR($C43="RP",$C43="SP")),VLOOKUP($B43,Pitcher!$A$1:$AB$700,21,FALSE),""),"") -> 3.330507084 | S43: =IFERROR(IF((OR($C43="RP",$C43="SP")),VLOOKUP($B43,Pitcher!$A$1:$V$700,22,FALSE),""),"") -> 1.175209234 | T43: =IFERROR(IF((OR($C43="RP",$C43="SP")),"",VLOOKUP($B43,Hitter!$A$1:$AH$700,27,FALSE)),"") ->  | U43: =IFERROR(IF((OR($C43="RP",$C43="SP")),"",VLOOKUP($B43,Hitter!$A$1:$AH$700,9,FALSE)),"") ->  | V43: =IFERROR(IF((OR($C43="RP",$C43="SP")),"",VLOOKUP($B43,Hitter!$A$1:$AH$700,10,FALSE)),"") ->  | W43: =IFERROR(IF((OR($C43="RP",$C43="SP")),"",VLOOKUP($B43,Hitter!$A$1:$AH$700,4,FALSE)),"") ->  | X43: =IFERROR(IF((OR($C43="RP",$C43="SP")),"",VLOOKUP($B43,Hitter!$A$1:$AH$700,11,FALSE)),"") ->  | Y43: =IFERROR(IF(ISTEXT($A43),"",(1-NORMDIST((COUNTA($A$4:$A$743)),($G43),((AD43-AC43)/6),TRUE))),"") -> 1 | Z43: =IFERROR(IF(ISTEXT($A43),"",(1-NORMDIST((COUNTA($A$4:$A$743))+(Personalize!$E$18+1),$G43,((AD43-AC43)/6),TRUE))),"") -> 0.9999999993 | AA43: =IFERROR(IF(ISTEXT($A43),"",(1-NORMDIST((COUNTA($A$4:$A$743))+((Personalize!$E$18+1)*2),$G43,((AD43-AC43)/6),TRUE))),"") -> 0.9999999818 | AC43: =IF(Personalize!$E$34=1,VLOOKUP($B43,'ADP-Rank'!$A$2:$J$700,5,FALSE),(IF(Personalize!$E$34=2,VLOOKUP($B43,'ADP-Rank'!$A$2:$J$700,8,FALSE),(IF(Personalize!$E$34=3,VLOOKUP($B43,'ADP-Rank'!$A$2:$O$700,11,FALSE),(IF(Personalize!$E$31=4,VLOOKUP($B43,'ADP-Rank'!$A$2:$AZ$700,25,FALSE),(IF(Personalize!$E$31=5,VLOOKUP($B43,'ADP-Rank'!$A$2:$AZ$700,28,FALSE),(IF(Personalize!$E$31=6,VLOOKUP($B43,'ADP-Rank'!$A$2:$AZ$700,32,FALSE),""))))))))))) -> 51 | AD43: =IF(Personalize!$E$34=1,VLOOKUP($B43,'ADP-Rank'!$A$2:$J$700,6,FALSE),(IF(Personalize!$E$34=2,VLOOKUP($B43,'ADP-Rank'!$A$2:$J$700,9,FALSE),(IF(Personalize!$E$34=3,VLOOKUP($B43,'ADP-Rank'!$A$2:$O$700,12,FALSE),(IF(Personalize!$E$31=4,VLOOKUP($B43,'ADP-Rank'!$A$2:$AZ$700,26,FALSE),(IF(Personalize!$E$31=5,VLOOKUP($B43,'ADP-Rank'!$A$2:$AZ$700,29,FALSE),(IF(Personalize!$E$31=6,VLOOKUP($B43,'ADP-Rank'!$A$2:$AZ$700,33,FALSE),""))))))))))) -> 90 | AE43: =IF(ISBLANK(A43),0,1) -> 0 | AF43: =IF(K43="",0,1) -> 1 | AG43: =A43 -> 0 | AH43: =IF(C43="C",1,IF(C43="1B",2,IF(C43="2B",3,IF(C43="3B",4,IF(C43="SS",5,IF(C43="CI",6,IF(C43="MI",7,IF(C43="OF",11,IF(C43="LF",8,IF(C43="CF",9,IF(C43="RF",10,IF(C43="DH",12,IF(C43="SP",13,IF(C43="RP",14,IF(C43="P",15,16))))))))))))))) -> 13 | AI43: =VLOOKUP(B43,'Starter Calc'!$B$2:$BN$700,65,FALSE) -> Bench | AJ43: =IFERROR(VLOOKUP($B43,'ADP-Rank'!$A$2:$AH$964,34,FALSE),TRUE) -> TRUE
B44: Yu Darvish | C44: =IFERROR(IF(VLOOKUP(B44,'ADP-Rank'!$A$2:$B$700,2,FALSE)="OF",VLOOKUP(B44,'Starter Calc'!$B$2:$AM$700,38,FALSE),(VLOOKUP(B44,'ADP-Rank'!$A$2:$B$700,2,FALSE))),"") -> SP | D44: =IFERROR(IF(VLOOKUP(B44,'Starter Calc'!$B$2:$E$700,4,FALSE)="","",VLOOKUP(B44,'Starter Calc'!$B$2:$E$700,4,FALSE)),"") ->  | E44: =IFERROR(VLOOKUP($B44,'ADP-Rank'!$A$2:$D$700,3,FALSE),"") -> TEX | F44: =IFERROR(VLOOKUP($B44,'ADP-Rank'!$A$2:$W$700,23,FALSE),"") -> 27 | G44: =IFERROR((IF(Personalize!$E$38=1,VLOOKUP($B44,'ADP-Rank'!$A$2:$J$700,4,FALSE),(IF(Personalize!$E$38=2,VLOOKUP($B44,'ADP-Rank'!$A$2:$J$700,7,FALSE),(IF(Personalize!$E$38=3,VLOOKUP($B44,'ADP-Rank'!$A$2:$J$700,10,FALSE),(IF(Personalize!$E$38=4,VLOOKUP($B44,'ADP-Rank'!$A$2:$AD$700,24,FALSE),(IF(Personalize!$E$38=5,VLOOKUP($B44,'ADP-Rank'!$A$2:$AD$700,27,FALSE),VLOOKUP($B44,'ADP-Rank'!$A$2:$AZ$700,30,FALSE))))))))))),"") -> 44.75 | H44: =IFERROR(ROUNDDOWN(VLOOKUP($B44,'ADP-Rank'!$A$2:$AY$1064,38,FALSE),0),"") -> 4 | I44: =VLOOKUP($B44,'ADP-Rank'!$A$2:$AJ$1064,36,FALSE) -> 56 | J44: =IFERROR(RANK($M44,$M$4:$M$743,0),"") -> 23 | K44: =IFERROR(IF((OR($C44="RP",$C44="SP")),VLOOKUP($B44,Pitcher!$A$1:$Z$700,20,FALSE),(VLOOKUP($B44,Hitter!$A$1:$Z$700,26,FALSE))),"") -> 421.4445431 | L44: =IFERROR(IF((OR($C44="RP",$C44="SP")),VLOOKUP($C44,'Filtered-P'!$M$3:$P$4,4,FALSE), VLOOKUP($C44,Filtered!$Q$3:$T$14,4,FALSE)),"") -> 357.2271519 | M44: =IFERROR(K44-L44,"") -> 64.21739125 | N44: =IFERROR(IF((OR($C44="RP",$C44="SP")),VLOOKUP($B44,Pitcher!$A$1:$Z$700,20,FALSE)/VLOOKUP($B44,Pitcher!$A$1:$Z$700,4,FALSE),(VLOOKUP($B44,Hitter!$A$1:$Z$700,26,FALSE)/VLOOKUP($B44,Hitter!$A$1:$Z$700,2,FALSE))),"") -> 2.391717514 | O44: =IFERROR(IF((OR($C44="RP",$C44="SP")),VLOOKUP($B44,Pitcher!$A$1:$V$700,2,FALSE),""),"") -> 14.86 | P44: =IFERROR(IF((OR($C44="RP",$C44="SP")),VLOOKUP($B44,Pitcher!$A$1:$V$700,9,FALSE),""),"") -> 0 | Q44: =IFERROR(IF((OR($C44="RP",$C44="SP")),VLOOKUP($B44,Pitcher!$A$1:$V$700,7,FALSE),""),"") -> 191.8258173 | R44: =IFERROR(IF((OR($C44="RP",$C44="SP")),VLOOKUP($B44,Pitcher!$A$1:$AB$700,21,FALSE),""),"") -> 3.475682424 | S44: =IFERROR(IF((OR($C44="RP",$C44="SP")),VLOOKUP($B44,Pitcher!$A$1:$V$700,22,FALSE),""),"") -> 1.227739629 | T44: =IFERROR(IF((OR($C44="RP",$C44="SP")),"",VLOOKUP($B44,Hitter!$A$1:$AH$700,27,FALSE)),"") ->  | U44: =IFERROR(IF((OR($C44="RP",$C44="SP")),"",VLOOKUP($B44,Hitter!$A$1:$AH$700,9,FALSE)),"") ->  | V44: =IFERROR(IF((OR($C44="RP",$C44="SP")),"",VLOOKUP($B44,Hitter!$A$1:$AH$700,10,FALSE)),"") ->  | W44: =IFERROR(IF((OR($C44="RP",$C44="SP")),"",VLOOKUP($B44,Hitter!$A$1:$AH$700,4,FALSE)),"") ->  | X44: =IFERROR(IF((OR($C44="RP",$C44="SP")),"",VLOOKUP($B44,Hitter!$A$1:$AH$700,11,FALSE)),"") ->  | Y44: =IFERROR(IF(ISTEXT($A44),"",(1-NORMDIST((COUNTA($A$4:$A$743)),($G44),((AD44-AC44)/6),TRUE))),"") -> 1 | Z44: =IFERROR(IF(ISTEXT($A44),"",(1-NORMDIST((COUNTA($A$4:$A$743))+(Personalize!$E$18+1),$G44,((AD44-AC44)/6),TRUE))),"") -> 1 | AA44: =IFERROR(IF(ISTEXT($A44),"",(1-NORMDIST((COUNTA($A$4:$A$743))+((Personalize!$E$18+1)*2),$G44,((AD44-AC44)/6),TRUE))),"") -> 1 | AC44: =IF(Personalize!$E$34=1,VLOOKUP($B44,'ADP-Rank'!$A$2:$J$700,5,FALSE),(IF(Personalize!$E$34=2,VLOOKUP($B44,'ADP-Rank'!$A$2:$J$700,8,FALSE),(IF(Personalize!$E$34=3,VLOOKUP($B44,'ADP-Rank'!$A$2:$O$700,11,FALSE),(IF(Personalize!$E$31=4,VLOOKUP($B44,'ADP-Rank'!$A$2:$AZ$700,25,FALSE),(IF(Personalize!$E$31=5,VLOOKUP($B44,'ADP-Rank'!$A$2:$AZ$700,28,FALSE),(IF(Personalize!$E$31=6,VLOOKUP($B44,'ADP-Rank'!$A$2:$AZ$700,32,FALSE),""))))))))))) -> 33 | AD44: =IF(Personalize!$E$34=1,VLOOKUP($B44,'ADP-Rank'!$A$2:$J$700,6,FALSE),(IF(Personalize!$E$34=2,VLOOKUP($B44,'ADP-Rank'!$A$2:$J$700,9,FALSE),(IF(Personalize!$E$34=3,VLOOKUP($B44,'ADP-Rank'!$A$2:$O$700,12,FALSE),(IF(Personalize!$E$31=4,VLOOKUP($B44,'ADP-Rank'!$A$2:$AZ$700,26,FALSE),(IF(Personalize!$E$31=5,VLOOKUP($B44,'ADP-Rank'!$A$2:$AZ$700,29,FALSE),(IF(Personalize!$E$31=6,VLOOKUP($B44,'ADP-Rank'!$A$2:$AZ$700,33,FALSE),""))))))))))) -> 65 | AE44: =IF(ISBLANK(A44),0,1) -> 0 | AF44: =IF(K44="",0,1) -> 1 | AG44: =A44 -> 0 | AH44: =IF(C44="C",1,IF(C44="1B",2,IF(C44="2B",3,IF(C44="3B",4,IF(C44="SS",5,IF(C44="CI",6,IF(C44="MI",7,IF(C44="OF",11,IF(C44="LF",8,IF(C44="CF",9,IF(C44="RF",10,IF(C44="DH",12,IF(C44="SP",13,IF(C44="RP",14,IF(C44="P",15,16))))))))))))))) -> 13 | AI44: =VLOOKUP(B44,'Starter Calc'!$B$2:$BN$700,65,FALSE) -> Bench | AJ44: =IFERROR(VLOOKUP($B44,'ADP-Rank'!$A$2:$AH$964,34,FALSE),TRUE) -> TRUE
B45: James Shields | C45: =IFERROR(IF(VLOOKUP(B45,'ADP-Rank'!$A$2:$B$700,2,FALSE)="OF",VLOOKUP(B45,'Starter Calc'!$B$2:$AM$700,38,FALSE),(VLOOKUP(B45,'ADP-Rank'!$A$2:$B$700,2,FALSE))),"") -> SP | D45: =IFERROR(IF(VLOOKUP(B45,'Starter Calc'!$B$2:$E$700,4,FALSE)="","",VLOOKUP(B45,'Starter Calc'!$B$2:$E$700,4,FALSE)),"") ->  | E45: =IFERROR(VLOOKUP($B45,'ADP-Rank'!$A$2:$D$700,3,FALSE),"") -> KC | F45: =IFERROR(VLOOKUP($B45,'ADP-Rank'!$A$2:$W$700,23,FALSE),"") -> 32 | G45: =IFERROR((IF(Personalize!$E$38=1,VLOOKUP($B45,'ADP-Rank'!$A$2:$J$700,4,FALSE),(IF(Personalize!$E$38=2,VLOOKUP($B45,'ADP-Rank'!$A$2:$J$700,7,FALSE),(IF(Personalize!$E$38=3,VLOOKUP($B45,'ADP-Rank'!$A$2:$J$700,10,FALSE),(IF(Personalize!$E$38=4,VLOOKUP($B45,'ADP-Rank'!$A$2:$AD$700,24,FALSE),(IF(Personalize!$E$38=5,VLOOKUP($B45,'ADP-Rank'!$A$2:$AD$700,27,FALSE),VLOOKUP($B45,'ADP-Rank'!$A$2:$AZ$700,30,FALSE))))))))))),"") -> 44.88 | H45: =IFERROR(ROUNDDOWN(VLOOKUP($B45,'ADP-Rank'!$A$2:$AY$1064,38,FALSE),0),"") -> 4 | I45: =VLOOKUP($B45,'ADP-Rank'!$A$2:$AJ$1064,36,FALSE) -> 59 | J45: =IFERROR(RANK($M45,$M$4:$M$743,0),"") -> 58 | K45: =IFERROR(IF((OR($C45="RP",$C45="SP")),VLOOKUP($B45,Pitcher!$A$1:$Z$700,20,FALSE),(VLOOKUP($B45,Hitter!$A$1:$Z$700,26,FALSE))),"") -> 378.7937754 | L45: =IFERROR(IF((OR($C45="RP",$C45="SP")),VLOOKUP($C45,'Filtered-P'!$M$3:$P$4,4,FALSE), VLOOKUP($C45,Filtered!$Q$3:$T$14,4,FALSE)),"") -> 357.2271519 | M45: =IFERROR(K45-L45,"") -> 21.56662349 | N45: =IFERROR(IF((OR($C45="RP",$C45="SP")),VLOOKUP($B45,Pitcher!$A$1:$Z$700,20,FALSE)/VLOOKUP($B45,Pitcher!$A$1:$Z$700,4,FALSE),(VLOOKUP($B45,Hitter!$A$1:$Z$700,26,FALSE)/VLOOKUP($B45,Hitter!$A$1:$Z$700,2,FALSE))),"") -> 1.814928731 | O45: =IFERROR(IF((OR($C45="RP",$C45="SP")),VLOOKUP($B45,Pitcher!$A$1:$V$700,2,FALSE),""),"") -> 14.57 | P45: =IFERROR(IF((OR($C45="RP",$C45="SP")),VLOOKUP($B45,Pitcher!$A$1:$V$700,9,FALSE),""),"") -> 0 | Q45: =IFERROR(IF((OR($C45="RP",$C45="SP")),VLOOKUP($B45,Pitcher!$A$1:$V$700,7,FALSE),""),"") -> 179.2215102 | R45: =IFERROR(IF((OR($C45="RP",$C45="SP")),VLOOKUP($B45,Pitcher!$A$1:$AB$700,21,FALSE),""),"") -> 3.564467443 | S45: =IFERROR(IF((OR($C45="RP",$C45="SP")),VLOOKUP($B45,Pitcher!$A$1:$V$700,22,FALSE),""),"") -> 1.219826554 | T45: =IFERROR(IF((OR($C45="RP",$C45="SP")),"",VLOOKUP($B45,Hitter!$A$1:$AH$700,27,FALSE)),"") ->  | U45: =IFERROR(IF((OR($C45="RP",$C45="SP")),"",VLOOKUP($B45,Hitter!$A$1:$AH$700,9,FALSE)),"") ->  | V45: =IFERROR(IF((OR($C45="RP",$C45="SP")),"",VLOOKUP($B45,Hitter!$A$1:$AH$700,10,FALSE)),"") ->  | W45: =IFERROR(IF((OR($C45="RP",$C45="SP")),"",VLOOKUP($B45,Hitter!$A$1:$AH$700,4,FALSE)),"") ->  | X45: =IFERROR(IF((OR($C45="RP",$C45="SP")),"",VLOOKUP($B45,Hitter!$A$1:$AH$700,11,FALSE)),"") ->  | Y45: =IFERROR(IF(ISTEXT($A45),"",(1-NORMDIST((COUNTA($A$4:$A$743)),($G45),((AD45-AC45)/6),TRUE))),"") -> 0.9999998881 | Z45: =IFERROR(IF(ISTEXT($A45),"",(1-NORMDIST((COUNTA($A$4:$A$743))+(Personalize!$E$18+1),$G45,((AD45-AC45)/6),TRUE))),"") -> 0.9999990997 | AA45: =IFERROR(IF(ISTEXT($A45),"",(1-NORMDIST((COUNTA($A$4:$A$743))+((Personalize!$E$18+1)*2),$G45,((AD45-AC45)/6),TRUE))),"") -> 0.9999938095 | AC45: =IF(Personalize!$E$34=1,VLOOKUP($B45,'ADP-Rank'!$A$2:$J$700,5,FALSE),(IF(Personalize!$E$34=2,VLOOKUP($B45,'ADP-Rank'!$A$2:$J$700,8,FALSE),(IF(Personalize!$E$34=3,VLOOKUP($B45,'ADP-Rank'!$A$2:$O$700,11,FALSE),(IF(Personalize!$E$31=4,VLOOKUP($B45,'ADP-Rank'!$A$2:$AZ$700,25,FALSE),(IF(Personalize!$E$31=5,VLOOKUP($B45,'ADP-Rank'!$A$2:$AZ$700,28,FALSE),(IF(Personalize!$E$31=6,VLOOKUP($B45,'ADP-Rank'!$A$2:$AZ$700,32,FALSE),""))))))))))) -> 52 | AD45: =IF(Personalize!$E$34=1,VLOOKUP($B45,'ADP-Rank'!$A$2:$J$700,6,FALSE),(IF(Personalize!$E$34=2,VLOOKUP($B45,'ADP-Rank'!$A$2:$J$700,9,FALSE),(IF(Personalize!$E$34=3,VLOOKUP($B45,'ADP-Rank'!$A$2:$O$700,12,FALSE),(IF(Personalize!$E$31=4,VLOOKUP($B45,'ADP-Rank'!$A$2:$AZ$700,26,FALSE),(IF(Personalize!$E$31=5,VLOOKUP($B45,'ADP-Rank'!$A$2:$AZ$700,29,FALSE),(IF(Personalize!$E$31=6,VLOOKUP($B45,'ADP-Rank'!$A$2:$AZ$700,33,FALSE),""))))))))))) -> 104 | AE45: =IF(ISBLANK(A45),0,1) -> 0 | AF45: =IF(K45="",0,1) -> 1 | AG45: =A45 -> 0 | AH45: =IF(C45="C",1,IF(C45="1B",2,IF(C45="2B",3,IF(C45="3B",4,IF(C45="SS",5,IF(C45="CI",6,IF(C45="MI",7,IF(C45="OF",11,IF(C45="LF",8,IF(C45="CF",9,IF(C45="RF",10,IF(C45="DH",12,IF(C45="SP",13,IF(C45="RP",14,IF(C45="P",15,16))))))))))))))) -> 13 | AI45: =VLOOKUP(B45,'Starter Calc'!$B$2:$BN$700,65,FALSE) -> Bench | AJ45: =IFERROR(VLOOKUP($B45,'ADP-Rank'!$A$2:$AH$964,34,FALSE),TRUE) -> TRUE
B46: Chris Sale | C46: =IFERROR(IF(VLOOKUP(B46,'ADP-Rank'!$A$2:$B$700,2,FALSE)="OF",VLOOKUP(B46,'Starter Calc'!$B$2:$AM$700,38,FALSE),(VLOOKUP(B46,'ADP-Rank'!$A$2:$B$700,2,FALSE))),"") -> SP | D46: =IFERROR(IF(VLOOKUP(B46,'Starter Calc'!$B$2:$E$700,4,FALSE)="","",VLOOKUP(B46,'Starter Calc'!$B$2:$E$700,4,FALSE)),"") ->  | E46: =IFERROR(VLOOKUP($B46,'ADP-Rank'!$A$2:$D$700,3,FALSE),"") -> CHW | F46: =IFERROR(VLOOKUP($B46,'ADP-Rank'!$A$2:$W$700,23,FALSE),"") -> 24 | G46: =IFERROR((IF(Personalize!$E$38=1,VLOOKUP($B46,'ADP-Rank'!$A$2:$J$700,4,FALSE),(IF(Personalize!$E$38=2,VLOOKUP($B46,'ADP-Rank'!$A$2:$J$700,7,FALSE),(IF(Personalize!$E$38=3,VLOOKUP($B46,'ADP-Rank'!$A$2:$J$700,10,FALSE),(IF(Personalize!$E$38=4,VLOOKUP($B46,'ADP-Rank'!$A$2:$AD$700,24,FALSE),(IF(Personalize!$E$38=5,VLOOKUP($B46,'ADP-Rank'!$A$2:$AD$700,27,FALSE),VLOOKUP($B46,'ADP-Rank'!$A$2:$AZ$700,30,FALSE))))))))))),"") -> 46.2 | H46: =IFERROR(ROUNDDOWN(VLOOKUP($B46,'ADP-Rank'!$A$2:$AY$1064,38,FALSE),0),"") -> 4 | I46: =VLOOKUP($B46,'ADP-Rank'!$A$2:$AJ$1064,36,FALSE) -> 57 | J46: =IFERROR(RANK($M46,$M$4:$M$743,0),"") -> 32 | K46: =IFERROR(IF((OR($C46="RP",$C46="SP")),VLOOKUP($B46,Pitcher!$A$1:$Z$700,20,FALSE),(VLOOKUP($B46,Hitter!$A$1:$Z$700,26,FALSE))),"") -> 411.406823 | L46: =IFERROR(IF((OR($C46="RP",$C46="SP")),VLOOKUP($C46,'Filtered-P'!$M$3:$P$4,4,FALSE), VLOOKUP($C46,Filtered!$Q$3:$T$14,4,FALSE)),"") -> 357.2271519 | M46: =IFERROR(K46-L46,"") -> 54.17967114 | N46: =IFERROR(IF((OR($C46="RP",$C46="SP")),VLOOKUP($B46,Pitcher!$A$1:$Z$700,20,FALSE)/VLOOKUP($B46,Pitcher!$A$1:$Z$700,4,FALSE),(VLOOKUP($B46,Hitter!$A$1:$Z$700,26,FALSE)/VLOOKUP($B46,Hitter!$A$1:$Z$700,2,FALSE))),"") -> 2.391761078 | O46: =IFERROR(IF((OR($C46="RP",$C46="SP")),VLOOKUP($B46,Pitcher!$A$1:$V$700,2,FALSE),""),"") -> 13.83 | P46: =IFERROR(IF((OR($C46="RP",$C46="SP")),VLOOKUP($B46,Pitcher!$A$1:$V$700,9,FALSE),""),"") -> 0 | Q46: =IFERROR(IF((OR($C46="RP",$C46="SP")),VLOOKUP($B46,Pitcher!$A$1:$V$700,7,FALSE),""),"") -> 183.9747292 | R46: =IFERROR(IF((OR($C46="RP",$C46="SP")),VLOOKUP($B46,Pitcher!$A$1:$AB$700,21,FALSE),""),"") -> 3.443869542 | S46: =IFERROR(IF((OR($C46="RP",$C46="SP")),VLOOKUP($B46,Pitcher!$A$1:$V$700,22,FALSE),""),"") -> 1.214464275 | T46: =IFERROR(IF((OR($C46="RP",$C46="SP")),"",VLOOKUP($B46,Hitter!$A$1:$AH$700,27,FALSE)),"") ->  | U46: =IFERROR(IF((OR($C46="RP",$C46="SP")),"",VLOOKUP($B46,Hitter!$A$1:$AH$700,9,FALSE)),"") ->  | V46: =IFERROR(IF((OR($C46="RP",$C46="SP")),"",VLOOKUP($B46,Hitter!$A$1:$AH$700,10,FALSE)),"") ->  | W46: =IFERROR(IF((OR($C46="RP",$C46="SP")),"",VLOOKUP($B46,Hitter!$A$1:$AH$700,4,FALSE)),"") ->  | X46: =IFERROR(IF((OR($C46="RP",$C46="SP")),"",VLOOKUP($B46,Hitter!$A$1:$AH$700,11,FALSE)),"") ->  | Y46: =IFERROR(IF(ISTEXT($A46),"",(1-NORMDIST((COUNTA($A$4:$A$743)),($G46),((AD46-AC46)/6),TRUE))),"") -> 0.9999999726 | Z46: =IFERROR(IF(ISTEXT($A46),"",(1-NORMDIST((COUNTA($A$4:$A$743))+(Personalize!$E$18+1),$G46,((AD46-AC46)/6),TRUE))),"") -> 0.9999997463 | AA46: =IFERROR(IF(ISTEXT($A46),"",(1-NORMDIST((COUNTA($A$4:$A$743))+((Personalize!$E$18+1)*2),$G46,((AD46-AC46)/6),TRUE))),"") -> 0.9999980037 | AC46: =IF(Personalize!$E$34=1,VLOOKUP($B46,'ADP-Rank'!$A$2:$J$700,5,FALSE),(IF(Personalize!$E$34=2,VLOOKUP($B46,'ADP-Rank'!$A$2:$J$700,8,FALSE),(IF(Personalize!$E$34=3,VLOOKUP($B46,'ADP-Rank'!$A$2:$O$700,11,FALSE),(IF(Personalize!$E$31=4,VLOOKUP($B46,'ADP-Rank'!$A$2:$AZ$700,25,FALSE),(IF(Personalize!$E$31=5,VLOOKUP($B46,'ADP-Rank'!$A$2:$AZ$700,28,FALSE),(IF(Personalize!$E$31=6,VLOOKUP($B46,'ADP-Rank'!$A$2:$AZ$700,32,FALSE),""))))))))))) -> 52 | AD46: =IF(Personalize!$E$34=1,VLOOKUP($B46,'ADP-Rank'!$A$2:$J$700,6,FALSE),(IF(Personalize!$E$34=2,VLOOKUP($B46,'ADP-Rank'!$A$2:$J$700,9,FALSE),(IF(Personalize!$E$34=3,VLOOKUP($B46,'ADP-Rank'!$A$2:$O$700,12,FALSE),(IF(Personalize!$E$31=4,VLOOKUP($B46,'ADP-Rank'!$A$2:$AZ$700,26,FALSE),(IF(Personalize!$E$31=5,VLOOKUP($B46,'ADP-Rank'!$A$2:$AZ$700,29,FALSE),(IF(Personalize!$E$31=6,VLOOKUP($B46,'ADP-Rank'!$A$2:$AZ$700,33,FALSE),""))))))))))) -> 103 | AE46: =IF(ISBLANK(A46),0,1) -> 0 | AF46: =IF(K46="",0,1) -> 1 | AG46: =A46 -> 0 | AH46: =IF(C46="C",1,IF(C46="1B",2,IF(C46="2B",3,IF(C46="3B",4,IF(C46="SS",5,IF(C46="CI",6,IF(C46="MI",7,IF(C46="OF",11,IF(C46="LF",8,IF(C46="CF",9,IF(C46="RF",10,IF(C46="DH",12,IF(C46="SP",13,IF(C46="RP",14,IF(C46="P",15,16))))))))))))))) -> 13 | AI46: =VLOOKUP(B46,'Starter Calc'!$B$2:$BN$700,65,FALSE) -> Bench | AJ46: =IFERROR(VLOOKUP($B46,'ADP-Rank'!$A$2:$AH$964,34,FALSE),TRUE) -> TRUE
B47: Yovani Gallardo | C47: =IFERROR(IF(VLOOKUP(B47,'ADP-Rank'!$A$2:$B$700,2,FALSE)="OF",VLOOKUP(B47,'Starter Calc'!$B$2:$AM$700,38,FALSE),(VLOOKUP(B47,'ADP-Rank'!$A$2:$B$700,2,FALSE))),"") -> SP | D47: =IFERROR(IF(VLOOKUP(B47,'Starter Calc'!$B$2:$E$700,4,FALSE)="","",VLOOKUP(B47,'Starter Calc'!$B$2:$E$700,4,FALSE)),"") ->  | E47: =IFERROR(VLOOKUP($B47,'ADP-Rank'!$A$2:$D$700,3,FALSE),"") -> MIL | F47: =IFERROR(VLOOKUP($B47,'ADP-Rank'!$A$2:$W$700,23,FALSE),"") -> 27 | G47: =IFERROR((IF(Personalize!$E$38=1,VLOOKUP($B47,'ADP-Rank'!$A$2:$J$700,4,FALSE),(IF(Personalize!$E$38=2,VLOOKUP($B47,'ADP-Rank'!$A$2:$J$700,7,FALSE),(IF(Personalize!$E$38=3,VLOOKUP($B47,'ADP-Rank'!$A$2:$J$700,10,FALSE),(IF(Personalize!$E$38=4,VLOOKUP($B47,'ADP-Rank'!$A$2:$AD$700,24,FALSE),(IF(Personalize!$E$38=5,VLOOKUP($B47,'ADP-Rank'!$A$2:$AD$700,27,FALSE),VLOOKUP($B47,'ADP-Rank'!$A$2:$AZ$700,30,FALSE))))))))))),"") -> 48.32 | H47: =IFERROR(ROUNDDOWN(VLOOKUP($B47,'ADP-Rank'!$A$2:$AY$1064,38,FALSE),0),"") -> 4 | I47: =VLOOKUP($B47,'ADP-Rank'!$A$2:$AJ$1064,36,FALSE) -> 70 | J47: =IFERROR(RANK($M47,$M$4:$M$743,0),"") -> 36 | K47: =IFERROR(IF((OR($C47="RP",$C47="SP")),VLOOKUP($B47,Pitcher!$A$1:$Z$700,20,FALSE),(VLOOKUP($B47,Hitter!$A$1:$Z$700,26,FALSE))),"") -> 404.6249945 | L47: =IFERROR(IF((OR($C47="RP",$C47="SP")),VLOOKUP($C47,'Filtered-P'!$M$3:$P$4,4,FALSE), VLOOKUP($C47,Filtered!$Q$3:$T$14,4,FALSE)),"") -> 357.2271519 | M47: =IFERROR(K47-L47,"") -> 47.39784257 | N47: =IFERROR(IF((OR($C47="RP",$C47="SP")),VLOOKUP($B47,Pitcher!$A$1:$Z$700,20,FALSE)/VLOOKUP($B47,Pitcher!$A$1:$Z$700,4,FALSE),(VLOOKUP($B47,Hitter!$A$1:$Z$700,26,FALSE)/VLOOKUP($B47,Hitter!$A$1:$Z$700,2,FALSE))),"") -> 2.137480161 | O47: =IFERROR(IF((OR($C47="RP",$C47="SP")),VLOOKUP($B47,Pitcher!$A$1:$V$700,2,FALSE),""),"") -> 14.58 | P47: =IFERROR(IF((OR($C47="RP",$C47="SP")),VLOOKUP($B47,Pitcher!$A$1:$V$700,9,FALSE),""),"") -> 0 | Q47: =IFERROR(IF((OR($C47="RP",$C47="SP")),VLOOKUP($B47,Pitcher!$A$1:$V$700,7,FALSE),""),"") -> 189.5859978 | R47: =IFERROR(IF((OR($C47="RP",$C47="SP")),VLOOKUP($B47,Pitcher!$A$1:$AB$700,21,FALSE),""),"") -> 3.61141046 | S47: =IFERROR(IF((OR($C47="RP",$C47="SP")),VLOOKUP($B47,Pitcher!$A$1:$V$700,22,FALSE),""),"") -> 1.260327522 | T47: =IFERROR(IF((OR($C47="RP",$C47="SP")),"",VLOOKUP($B47,Hitter!$A$1:$AH$700,27,FALSE)),"") ->  | U47: =IFERROR(IF((OR($C47="RP",$C47="SP")),"",VLOOKUP($B47,Hitter!$A$1:$AH$700,9,FALSE)),"") ->  | V47: =IFERROR(IF((OR($C47="RP",$C47="SP")),"",VLOOKUP($B47,Hitter!$A$1:$AH$700,10,FALSE)),"") ->  | W47: =IFERROR(IF((OR($C47="RP",$C47="SP")),"",VLOOKUP($B47,Hitter!$A$1:$AH$700,4,FALSE)),"") ->  | X47: =IFERROR(IF((OR($C47="RP",$C47="SP")),"",VLOOKUP($B47,Hitter!$A$1:$AH$700,11,FALSE)),"") ->  | Y47: =IFERROR(IF(ISTEXT($A47),"",(1-NORMDIST((COUNTA($A$4:$A$743)),($G47),((AD47-AC47)/6),TRUE))),"") -> 0.9999999967 | Z47: =IFERROR(IF(ISTEXT($A47),"",(1-NORMDIST((COUNTA($A$4:$A$743))+(Personalize!$E$18+1),$G47,((AD47-AC47)/6),TRUE))),"") -> 0.9999999624 | AA47: =IFERROR(IF(ISTEXT($A47),"",(1-NORMDIST((COUNTA($A$4:$A$743))+((Personalize!$E$18+1)*2),$G47,((AD47-AC47)/6),TRUE))),"") -> 0.9999996446 | AC47: =IF(Personalize!$E$34=1,VLOOKUP($B47,'ADP-Rank'!$A$2:$J$700,5,FALSE),(IF(Personalize!$E$34=2,VLOOKUP($B47,'ADP-Rank'!$A$2:$J$700,8,FALSE),(IF(Personalize!$E$34=3,VLOOKUP($B47,'ADP-Rank'!$A$2:$O$700,11,FALSE),(IF(Personalize!$E$31=4,VLOOKUP($B47,'ADP-Rank'!$A$2:$AZ$700,25,FALSE),(IF(Personalize!$E$31=5,VLOOKUP($B47,'ADP-Rank'!$A$2:$AZ$700,28,FALSE),(IF(Personalize!$E$31=6,VLOOKUP($B47,'ADP-Rank'!$A$2:$AZ$700,32,FALSE),""))))))))))) -> 80 | AD47: =IF(Personalize!$E$34=1,VLOOKUP($B47,'ADP-Rank'!$A$2:$J$700,6,FALSE),(IF(Personalize!$E$34=2,VLOOKUP($B47,'ADP-Rank'!$A$2:$J$700,9,FALSE),(IF(Personalize!$E$34=3,VLOOKUP($B47,'ADP-Rank'!$A$2:$O$700,12,FALSE),(IF(Personalize!$E$31=4,VLOOKUP($B47,'ADP-Rank'!$A$2:$AZ$700,26,FALSE),(IF(Personalize!$E$31=5,VLOOKUP($B47,'ADP-Rank'!$A$2:$AZ$700,29,FALSE),(IF(Personalize!$E$31=6,VLOOKUP($B47,'ADP-Rank'!$A$2:$AZ$700,33,FALSE),""))))))))))) -> 130 | AE47: =IF(ISBLANK(A47),0,1) -> 0 | AF47: =IF(K47="",0,1) -> 1 | AG47: =A47 -> 0 | AH47: =IF(C47="C",1,IF(C47="1B",2,IF(C47="2B",3,IF(C47="3B",4,IF(C47="SS",5,IF(C47="CI",6,IF(C47="MI",7,IF(C47="OF",11,IF(C47="LF",8,IF(C47="CF",9,IF(C47="RF",10,IF(C47="DH",12,IF(C47="SP",13,IF(C47="RP",14,IF(C47="P",15,16))))))))))))))) -> 13 | AI47: =VLOOKUP(B47,'Starter Calc'!$B$2:$BN$700,65,FALSE) -> Bench | AJ47: =IFERROR(VLOOKUP($B47,'ADP-Rank'!$A$2:$AH$964,34,FALSE),TRUE) -> TRUE
B48: Matt Holliday | C48: =IFERROR(IF(VLOOKUP(B48,'ADP-Rank'!$A$2:$B$700,2,FALSE)="OF",VLOOKUP(B48,'Starter Calc'!$B$2:$AM$700,38,FALSE),(VLOOKUP(B48,'ADP-Rank'!$A$2:$B$700,2,FALSE))),"") -> OF | D48: =IFERROR(IF(VLOOKUP(B48,'Starter Calc'!$B$2:$E$700,4,FALSE)="","",VLOOKUP(B48,'Starter Calc'!$B$2:$E$700,4,FALSE)),"") -> LF | E48: =IFERROR(VLOOKUP($B48,'ADP-Rank'!$A$2:$D$700,3,FALSE),"") -> STL | F48: =IFERROR(VLOOKUP($B48,'ADP-Rank'!$A$2:$W$700,23,FALSE),"") -> 33 | G48: =IFERROR((IF(Personalize!$E$38=1,VLOOKUP($B48,'ADP-Rank'!$A$2:$J$700,4,FALSE),(IF(Personalize!$E$38=2,VLOOKUP($B48,'ADP-Rank'!$A$2:$J$700,7,FALSE),(IF(Personalize!$E$38=3,VLOOKUP($B48,'ADP-Rank'!$A$2:$J$700,10,FALSE),(IF(Personalize!$E$38=4,VLOOKUP($B48,'ADP-Rank'!$A$2:$AD$700,24,FALSE),(IF(Personalize!$E$38=5,VLOOKUP($B48,'ADP-Rank'!$A$2:$AD$700,27,FALSE),VLOOKUP($B48,'ADP-Rank'!$A$2:$AZ$700,30,FALSE))))))))))),"") -> 48.35 | H48: =IFERROR(ROUNDDOWN(VLOOKUP($B48,'ADP-Rank'!$A$2:$AY$1064,38,FALSE),0),"") -> 4 | I48: =VLOOKUP($B48,'ADP-Rank'!$A$2:$AJ$1064,36,FALSE) -> 27 | J48: =IFERROR(RANK($M48,$M$4:$M$743,0),"") -> 26 | K48: =IFERROR(IF((OR($C48="RP",$C48="SP")),VLOOKUP($B48,Pitcher!$A$1:$Z$700,20,FALSE),(VLOOKUP($B48,Hitter!$A$1:$Z$700,26,FALSE))),"") -> 427.7531901 | L48: =IFERROR(IF((OR($C48="RP",$C48="SP")),VLOOKUP($C48,'Filtered-P'!$M$3:$P$4,4,FALSE), VLOOKUP($C48,Filtered!$Q$3:$T$14,4,FALSE)),"") -> 368.4885837 | M48: =IFERROR(K48-L48,"") -> 59.26460639 | N48: =IFERROR(IF((OR($C48="RP",$C48="SP")),VLOOKUP($B48,Pitcher!$A$1:$Z$700,20,FALSE)/VLOOKUP($B48,Pitcher!$A$1:$Z$700,4,FALSE),(VLOOKUP($B48,Hitter!$A$1:$Z$700,26,FALSE)/VLOOKUP($B48,Hitter!$A$1:$Z$700,2,FALSE))),"") -> 0.6505505721 | O48: =IFERROR(IF((OR($C48="RP",$C48="SP")),VLOOKUP($B48,Pitcher!$A$1:$V$700,2,FALSE),""),"") ->  | P48: =IFERROR(IF((OR($C48="RP",$C48="SP")),VLOOKUP($B48,Pitcher!$A$1:$V$700,9,FALSE),""),"") ->  | Q48: =IFERROR(IF((OR($C48="RP",$C48="SP")),VLOOKUP($B48,Pitcher!$A$1:$V$700,7,FALSE),""),"") ->  | R48: =IFERROR(IF((OR($C48="RP",$C48="SP")),VLOOKUP($B48,Pitcher!$A$1:$AB$700,21,FALSE),""),"") ->  | S48: =IFERROR(IF((OR($C48="RP",$C48="SP")),VLOOKUP($B48,Pitcher!$A$1:$V$700,22,FALSE),""),"") ->  | T48: =IFERROR(IF((OR($C48="RP",$C48="SP")),"",VLOOKUP($B48,Hitter!$A$1:$AH$700,27,FALSE)),"") -> 0.2897213412 | U48: =IFERROR(IF((OR($C48="RP",$C48="SP")),"",VLOOKUP($B48,Hitter!$A$1:$AH$700,9,FALSE)),"") -> 25.10460431 | V48: =IFERROR(IF((OR($C48="RP",$C48="SP")),"",VLOOKUP($B48,Hitter!$A$1:$AH$700,10,FALSE)),"") -> 93.87037049 | W48: =IFERROR(IF((OR($C48="RP",$C48="SP")),"",VLOOKUP($B48,Hitter!$A$1:$AH$700,4,FALSE)),"") -> 95.44512295 | X48: =IFERROR(IF((OR($C48="RP",$C48="SP")),"",VLOOKUP($B48,Hitter!$A$1:$AH$700,11,FALSE)),"") -> 5.356595181 | Y48: =IFERROR(IF(ISTEXT($A48),"",(1-NORMDIST((COUNTA($A$4:$A$743)),($G48),((AD48-AC48)/6),TRUE))),"") -> 1 | Z48: =IFERROR(IF(ISTEXT($A48),"",(1-NORMDIST((COUNTA($A$4:$A$743))+(Personalize!$E$18+1),$G48,((AD48-AC48)/6),TRUE))),"") -> 1 | AA48: =IFERROR(IF(ISTEXT($A48),"",(1-NORMDIST((COUNTA($A$4:$A$743))+((Personalize!$E$18+1)*2),$G48,((AD48-AC48)/6),TRUE))),"") -> 1 | AC48: =IF(Personalize!$E$34=1,VLOOKUP($B48,'ADP-Rank'!$A$2:$J$700,5,FALSE),(IF(Personalize!$E$34=2,VLOOKUP($B48,'ADP-Rank'!$A$2:$J$700,8,FALSE),(IF(Personalize!$E$34=3,VLOOKUP($B48,'ADP-Rank'!$A$2:$O$700,11,FALSE),(IF(Personalize!$E$31=4,VLOOKUP($B48,'ADP-Rank'!$A$2:$AZ$700,25,FALSE),(IF(Personalize!$E$31=5,VLOOKUP($B48,'ADP-Rank'!$A$2:$AZ$700,28,FALSE),(IF(Personalize!$E$31=6,VLOOKUP($B48,'ADP-Rank'!$A$2:$AZ$700,32,FALSE),""))))))))))) -> 37 | AD48: =IF(Personalize!$E$34=1,VLOOKUP($B48,'ADP-Rank'!$A$2:$J$700,6,FALSE),(IF(Personalize!$E$34=2,VLOOKUP($B48,'ADP-Rank'!$A$2:$J$700,9,FALSE),(IF(Personalize!$E$34=3,VLOOKUP($B48,'ADP-Rank'!$A$2:$O$700,12,FALSE),(IF(Personalize!$E$31=4,VLOOKUP($B48,'ADP-Rank'!$A$2:$AZ$700,26,FALSE),(IF(Personalize!$E$31=5,VLOOKUP($B48,'ADP-Rank'!$A$2:$AZ$700,29,FALSE),(IF(Personalize!$E$31=6,VLOOKUP($B48,'ADP-Rank'!$A$2:$AZ$700,33,FALSE),""))))))))))) -> 73 | AE48: =IF(ISBLANK(A48),0,1) -> 0 | AF48: =IF(K48="",0,1) -> 1 | AG48: =A48 -> 0 | AH48: =IF(C48="C",1,IF(C48="1B",2,IF(C48="2B",3,IF(C48="3B",4,IF(C48="SS",5,IF(C48="CI",6,IF(C48="MI",7,IF(C48="OF",11,IF(C48="LF",8,IF(C48="CF",9,IF(C48="RF",10,IF(C48="DH",12,IF(C48="SP",13,IF(C48="RP",14,IF(C48="P",15,16))))))))))))))) -> 11 | AI48: =VLOOKUP(B48,'Starter Calc'!$B$2:$BN$700,65,FALSE) -> Bench | AJ48: =IFERROR(VLOOKUP($B48,'ADP-Rank'!$A$2:$AH$964,34,FALSE),TRUE) -> TRUE
B49: Ben Zobrist | C49: =IFERROR(IF(VLOOKUP(B49,'ADP-Rank'!$A$2:$B$700,2,FALSE)="OF",VLOOKUP(B49,'Starter Calc'!$B$2:$AM$700,38,FALSE),(VLOOKUP(B49,'ADP-Rank'!$A$2:$B$700,2,FALSE))),"") -> 2B | D49: =IFERROR(IF(VLOOKUP(B49,'Starter Calc'!$B$2:$E$700,4,FALSE)="","",VLOOKUP(B49,'Starter Calc'!$B$2:$E$700,4,FALSE)),"") -> RF | E49: =IFERROR(VLOOKUP($B49,'ADP-Rank'!$A$2:$D$700,3,FALSE),"") -> TB | F49: =IFERROR(VLOOKUP($B49,'ADP-Rank'!$A$2:$W$700,23,FALSE),"") -> 32 | G49: =IFERROR((IF(Personalize!$E$38=1,VLOOKUP($B49,'ADP-Rank'!$A$2:$J$700,4,FALSE),(IF(Personalize!$E$38=2,VLOOKUP($B49,'ADP-Rank'!$A$2:$J$700,7,FALSE),(IF(Personalize!$E$38=3,VLOOKUP($B49,'ADP-Rank'!$A$2:$J$700,10,FALSE),(IF(Personalize!$E$38=4,VLOOKUP($B49,'ADP-Rank'!$A$2:$AD$700,24,FALSE),(IF(Personalize!$E$38=5,VLOOKUP($B49,'ADP-Rank'!$A$2:$AD$700,27,FALSE),VLOOKUP($B49,'ADP-Rank'!$A$2:$AZ$700,30,FALSE))))))))))),"") -> 48.7 | H49: =IFERROR(ROUNDDOWN(VLOOKUP($B49,'ADP-Rank'!$A$2:$AY$1064,38,FALSE),0),"") -> 4 | I49: =VLOOKUP($B49,'ADP-Rank'!$A$2:$AJ$1064,36,FALSE) -> 39 | J49: =IFERROR(RANK($M49,$M$4:$M$743,0),"") -> 49 | K49: =IFERROR(IF((OR($C49="RP",$C49="SP")),VLOOKUP($B49,Pitcher!$A$1:$Z$700,20,FALSE),(VLOOKUP($B49,Hitter!$A$1:$Z$700,26,FALSE))),"") -> 399.06322 | L49: =IFERROR(IF((OR($C49="RP",$C49="SP")),VLOOKUP($C49,'Filtered-P'!$M$3:$P$4,4,FALSE), VLOOKUP($C49,Filtered!$Q$3:$T$14,4,FALSE)),"") -> 368.3944957 | M49: =IFERROR(K49-L49,"") -> 30.66872435 | N49: =IFERROR(IF((OR($C49="RP",$C49="SP")),VLOOKUP($B49,Pitcher!$A$1:$Z$700,20,FALSE)/VLOOKUP($B49,Pitcher!$A$1:$Z$700,4,FALSE),(VLOOKUP($B49,Hitter!$A$1:$Z$700,26,FALSE)/VLOOKUP($B49,Hitter!$A$1:$Z$700,2,FALSE))),"") -> 0.6102394481 | O49: =IFERROR(IF((OR($C49="RP",$C49="SP")),VLOOKUP($B49,Pitcher!$A$1:$V$700,2,FALSE),""),"") ->  | P49: =IFERROR(IF((OR($C49="RP",$C49="SP")),VLOOKUP($B49,Pitcher!$A$1:$V$700,9,FALSE),""),"") ->  | Q49: =IFERROR(IF((OR($C49="RP",$C49="SP")),VLOOKUP($B49,Pitcher!$A$1:$V$700,7,FALSE),""),"") ->  | R49: =IFERROR(IF((OR($C49="RP",$C49="SP")),VLOOKUP($B49,Pitcher!$A$1:$AB$700,21,FALSE),""),"") ->  | S49: =IFERROR(IF((OR($C49="RP",$C49="SP")),VLOOKUP($B49,Pitcher!$A$1:$V$700,22,FALSE),""),"") ->  | T49: =IFERROR(IF((OR($C49="RP",$C49="SP")),"",VLOOKUP($B49,Hitter!$A$1:$AH$700,27,FALSE)),"") -> 0.2604570497 | U49: =IFERROR(IF((OR($C49="RP",$C49="SP")),"",VLOOKUP($B49,Hitter!$A$1:$AH$700,9,FALSE)),"") -> 17.93885278 | V49: =IFERROR(IF((OR($C49="RP",$C49="SP")),"",VLOOKUP($B49,Hitter!$A$1:$AH$700,10,FALSE)),"") -> 80.20466937 | W49: =IFERROR(IF((OR($C49="RP",$C49="SP")),"",VLOOKUP($B49,Hitter!$A$1:$AH$700,4,FALSE)),"") -> 89.82049811 | X49: =IFERROR(IF((OR($C49="RP",$C49="SP")),"",VLOOKUP($B49,Hitter!$A$1:$AH$700,11,FALSE)),"") -> 14.99012602 | Y49: =IFERROR(IF(ISTEXT($A49),"",(1-NORMDIST((COUNTA($A$4:$A$743)),($G49),((AD49-AC49)/6),TRUE))),"") -> 0.9999999095 | Z49: =IFERROR(IF(ISTEXT($A49),"",(1-NORMDIST((COUNTA($A$4:$A$743))+(Personalize!$E$18+1),$G49,((AD49-AC49)/6),TRUE))),"") -> 0.9999993601 | AA49: =IFERROR(IF(ISTEXT($A49),"",(1-NORMDIST((COUNTA($A$4:$A$743))+((Personalize!$E$18+1)*2),$G49,((AD49-AC49)/6),TRUE))),"") -> 0.9999960496 | AC49: =IF(Personalize!$E$34=1,VLOOKUP($B49,'ADP-Rank'!$A$2:$J$700,5,FALSE),(IF(Personalize!$E$34=2,VLOOKUP($B49,'ADP-Rank'!$A$2:$J$700,8,FALSE),(IF(Personalize!$E$34=3,VLOOKUP($B49,'ADP-Rank'!$A$2:$O$700,11,FALSE),(IF(Personalize!$E$31=4,VLOOKUP($B49,'ADP-Rank'!$A$2:$AZ$700,25,FALSE),(IF(Personalize!$E$31=5,VLOOKUP($B49,'ADP-Rank'!$A$2:$AZ$700,28,FALSE),(IF(Personalize!$E$31=6,VLOOKUP($B49,'ADP-Rank'!$A$2:$AZ$700,32,FALSE),""))))))))))) -> 38 | AD49: =IF(Personalize!$E$34=1,VLOOKUP($B49,'ADP-Rank'!$A$2:$J$700,6,FALSE),(IF(Personalize!$E$34=2,VLOOKUP($B49,'ADP-Rank'!$A$2:$J$700,9,FALSE),(IF(Personalize!$E$34=3,VLOOKUP($B49,'ADP-Rank'!$A$2:$O$700,12,FALSE),(IF(Personalize!$E$31=4,VLOOKUP($B49,'ADP-Rank'!$A$2:$AZ$700,26,FALSE),(IF(Personalize!$E$31=5,VLOOKUP($B49,'ADP-Rank'!$A$2:$AZ$700,29,FALSE),(IF(Personalize!$E$31=6,VLOOKUP($B49,'ADP-Rank'!$A$2:$AZ$700,33,FALSE),""))))))))))) -> 94 | AE49: =IF(ISBLANK(A49),0,1) -> 0 | AF49: =IF(K49="",0,1) -> 1 | AG49: =A49 -> 0 | AH49: =IF(C49="C",1,IF(C49="1B",2,IF(C49="2B",3,IF(C49="3B",4,IF(C49="SS",5,IF(C49="CI",6,IF(C49="MI",7,IF(C49="OF",11,IF(C49="LF",8,IF(C49="CF",9,IF(C49="RF",10,IF(C49="DH",12,IF(C49="SP",13,IF(C49="RP",14,IF(C49="P",15,16))))))))))))))) -> 3 | AI49: =VLOOKUP(B49,'Starter Calc'!$B$2:$BN$700,65,FALSE) -> Bench | AJ49: =IFERROR(VLOOKUP($B49,'ADP-Rank'!$A$2:$AH$964,34,FALSE),TRUE) -> TRUE
B50: Craig Kimbrel | C50: =IFERROR(IF(VLOOKUP(B50,'ADP-Rank'!$A$2:$B$700,2,FALSE)="OF",VLOOKUP(B50,'Starter Calc'!$B$2:$AM$700,38,FALSE),(VLOOKUP(B50,'ADP-Rank'!$A$2:$B$700,2,FALSE))),"") -> RP | D50: =IFERROR(IF(VLOOKUP(B50,'Starter Calc'!$B$2:$E$700,4,FALSE)="","",VLOOKUP(B50,'Starter Calc'!$B$2:$E$700,4,FALSE)),"") ->  | E50: =IFERROR(VLOOKUP($B50,'ADP-Rank'!$A$2:$D$700,3,FALSE),"") -> ATL | F50: =IFERROR(VLOOKUP($B50,'ADP-Rank'!$A$2:$W$700,23,FALSE),"") -> 25 | G50: =IFERROR((IF(Personalize!$E$38=1,VLOOKUP($B50,'ADP-Rank'!$A$2:$J$700,4,FALSE),(IF(Personalize!$E$38=2,VLOOKUP($B50,'ADP-Rank'!$A$2:$J$700,7,FALSE),(IF(Personalize!$E$38=3,VLOOKUP($B50,'ADP-Rank'!$A$2:$J$700,10,FALSE),(IF(Personalize!$E$38=4,VLOOKUP($B50,'ADP-Rank'!$A$2:$AD$700,24,FALSE),(IF(Personalize!$E$38=5,VLOOKUP($B50,'ADP-Rank'!$A$2:$AD$700,27,FALSE),VLOOKUP($B50,'ADP-Rank'!$A$2:$AZ$700,30,FALSE))))))))))),"") -> 49.15 | H50: =IFERROR(ROUNDDOWN(VLOOKUP($B50,'ADP-Rank'!$A$2:$AY$1064,38,FALSE),0),"") -> 4 | I50: =VLOOKUP($B50,'ADP-Rank'!$A$2:$AJ$1064,36,FALSE) -> 58 | J50: =IFERROR(RANK($M50,$M$4:$M$743,0),"") -> 1 | K50: =IFERROR(IF((OR($C50="RP",$C50="SP")),VLOOKUP($B50,Pitcher!$A$1:$Z$700,20,FALSE),(VLOOKUP($B50,Hitter!$A$1:$Z$700,26,FALSE))),"") -> 606.3631777 | L50: =IFERROR(IF((OR($C50="RP",$C50="SP")),VLOOKUP($C50,'Filtered-P'!$M$3:$P$4,4,FALSE), VLOOKUP($C50,Filtered!$Q$3:$T$14,4,FALSE)),"") -> 386.4913141 | M50: =IFERROR(K50-L50,"") -> 219.8718636 | N50: =IFERROR(IF((OR($C50="RP",$C50="SP")),VLOOKUP($B50,Pitcher!$A$1:$Z$700,20,FALSE)/VLOOKUP($B50,Pitcher!$A$1:$Z$700,4,FALSE),(VLOOKUP($B50,Hitter!$A$1:$Z$700,26,FALSE)/VLOOKUP($B50,Hitter!$A$1:$Z$700,2,FALSE))),"") -> 9.474424652 | O50: =IFERROR(IF((OR($C50="RP",$C50="SP")),VLOOKUP($B50,Pitcher!$A$1:$V$700,2,FALSE),""),"") -> 4.57 | P50: =IFERROR(IF((OR($C50="RP",$C50="SP")),VLOOKUP($B50,Pitcher!$A$1:$V$700,9,FALSE),""),"") -> 33.92352941 | Q50: =IFERROR(IF((OR($C50="RP",$C50="SP")),VLOOKUP($B50,Pitcher!$A$1:$V$700,7,FALSE),""),"") -> 106.5271534 | R50: =IFERROR(IF((OR($C50="RP",$C50="SP")),VLOOKUP($B50,Pitcher!$A$1:$AB$700,21,FALSE),""),"") -> 1.97015625 | S50: =IFERROR(IF((OR($C50="RP",$C50="SP")),VLOOKUP($B50,Pitcher!$A$1:$V$700,22,FALSE),""),"") -> 1.01125 | T50: =IFERROR(IF((OR($C50="RP",$C50="SP")),"",VLOOKUP($B50,Hitter!$A$1:$AH$700,27,FALSE)),"") ->  | U50: =IFERROR(IF((OR($C50="RP",$C50="SP")),"",VLOOKUP($B50,Hitter!$A$1:$AH$700,9,FALSE)),"") ->  | V50: =IFERROR(IF((OR($C50="RP",$C50="SP")),"",VLOOKUP($B50,Hitter!$A$1:$AH$700,10,FALSE)),"") ->  | W50: =IFERROR(IF((OR($C50="RP",$C50="SP")),"",VLOOKUP($B50,Hitter!$A$1:$AH$700,4,FALSE)),"") ->  | X50: =IFERROR(IF((OR($C50="RP",$C50="SP")),"",VLOOKUP($B50,Hitter!$A$1:$AH$700,11,FALSE)),"") ->  | Y50: =IFERROR(IF(ISTEXT($A50),"",(1-NORMDIST((COUNTA($A$4:$A$743)),($G50),((AD50-AC50)/6),TRUE))),"") -> 0.9933967428 | Z50: =IFERROR(IF(ISTEXT($A50),"",(1-NORMDIST((COUNTA($A$4:$A$743))+(Personalize!$E$18+1),$G50,((AD50-AC50)/6),TRUE))),"") -> 0.9893234065 | AA50: =IFERROR(IF(ISTEXT($A50),"",(1-NORMDIST((COUNTA($A$4:$A$743))+((Personalize!$E$18+1)*2),$G50,((AD50-AC50)/6),TRUE))),"") -> 0.9832154565 | AC50: =IF(Personalize!$E$34=1,VLOOKUP($B50,'ADP-Rank'!$A$2:$J$700,5,FALSE),(IF(Personalize!$E$34=2,VLOOKUP($B50,'ADP-Rank'!$A$2:$J$700,8,FALSE),(IF(Personalize!$E$34=3,VLOOKUP($B50,'ADP-Rank'!$A$2:$O$700,11,FALSE),(IF(Personalize!$E$31=4,VLOOKUP($B50,'ADP-Rank'!$A$2:$AZ$700,25,FALSE),(IF(Personalize!$E$31=5,VLOOKUP($B50,'ADP-Rank'!$A$2:$AZ$700,28,FALSE),(IF(Personalize!$E$31=6,VLOOKUP($B50,'ADP-Rank'!$A$2:$AZ$700,32,FALSE),""))))))))))) -> 20 | AD50: =IF(Personalize!$E$34=1,VLOOKUP($B50,'ADP-Rank'!$A$2:$J$700,6,FALSE),(IF(Personalize!$E$34=2,VLOOKUP($B50,'ADP-Rank'!$A$2:$J$700,9,FALSE),(IF(Personalize!$E$34=3,VLOOKUP($B50,'ADP-Rank'!$A$2:$O$700,12,FALSE),(IF(Personalize!$E$31=4,VLOOKUP($B50,'ADP-Rank'!$A$2:$AZ$700,26,FALSE),(IF(Personalize!$E$31=5,VLOOKUP($B50,'ADP-Rank'!$A$2:$AZ$700,29,FALSE),(IF(Personalize!$E$31=6,VLOOKUP($B50,'ADP-Rank'!$A$2:$AZ$700,33,FALSE),""))))))))))) -> 139 | AE50: =IF(ISBLANK(A50),0,1) -> 0 | AF50: =IF(K50="",0,1) -> 1 | AG50: =A50 -> 0 | AH50: =IF(C50="C",1,IF(C50="1B",2,IF(C50="2B",3,IF(C50="3B",4,IF(C50="SS",5,IF(C50="CI",6,IF(C50="MI",7,IF(C50="OF",11,IF(C50="LF",8,IF(C50="CF",9,IF(C50="RF",10,IF(C50="DH",12,IF(C50="SP",13,IF(C50="RP",14,IF(C50="P",15,16))))))))))))))) -> 14 | AI50: =VLOOKUP(B50,'Starter Calc'!$B$2:$BN$700,65,FALSE) -> Bench | AJ50: =IFERROR(VLOOKUP($B50,'ADP-Rank'!$A$2:$AH$964,34,FALSE),TRUE) -> TRUE
B51: Ryan Zimmerman | C51: =IFERROR(IF(VLOOKUP(B51,'ADP-Rank'!$A$2:$B$700,2,FALSE)="OF",VLOOKUP(B51,'Starter Calc'!$B$2:$AM$700,38,FALSE),(VLOOKUP(B51,'ADP-Rank'!$A$2:$B$700,2,FALSE))),"") -> 3B | D51: =IFERROR(IF(VLOOKUP(B51,'Starter Calc'!$B$2:$E$700,4,FALSE)="","",VLOOKUP(B51,'Starter Calc'!$B$2:$E$700,4,FALSE)),"") ->  | E51: =IFERROR(VLOOKUP($B51,'ADP-Rank'!$A$2:$D$700,3,FALSE),"") -> WAS | F51: =IFERROR(VLOOKUP($B51,'ADP-Rank'!$A$2:$W$700,23,FALSE),"") -> 29 | G51: =IFERROR((IF(Personalize!$E$38=1,VLOOKUP($B51,'ADP-Rank'!$A$2:$J$700,4,FALSE),(IF(Personalize!$E$38=2,VLOOKUP($B51,'ADP-Rank'!$A$2:$J$700,7,FALSE),(IF(Personalize!$E$38=3,VLOOKUP($B51,'ADP-Rank'!$A$2:$J$700,10,FALSE),(IF(Personalize!$E$38=4,VLOOKUP($B51,'ADP-Rank'!$A$2:$AD$700,24,FALSE),(IF(Personalize!$E$38=5,VLOOKUP($B51,'ADP-Rank'!$A$2:$AD$700,27,FALSE),VLOOKUP($B51,'ADP-Rank'!$A$2:$AZ$700,30,FALSE))))))))))),"") -> 52.34 | H51: =IFERROR(ROUNDDOWN(VLOOKUP($B51,'ADP-Rank'!$A$2:$AY$1064,38,FALSE),0),"") -> 4 | I51: =VLOOKUP($B51,'ADP-Rank'!$A$2:$AJ$1064,36,FALSE) -> 28 | J51: =IFERROR(RANK($M51,$M$4:$M$743,0),"") -> 64 | K51: =IFERROR(IF((OR($C51="RP",$C51="SP")),VLOOKUP($B51,Pitcher!$A$1:$Z$700,20,FALSE),(VLOOKUP($B51,Hitter!$A$1:$Z$700,26,FALSE))),"") -> 375.8892111 | L51: =IFERROR(IF((OR($C51="RP",$C51="SP")),VLOOKUP($C51,'Filtered-P'!$M$3:$P$4,4,FALSE), VLOOKUP($C51,Filtered!$Q$3:$T$14,4,FALSE)),"") -> 360.1633507 | M51: =IFERROR(K51-L51,"") -> 15.72586037 | N51: =IFERROR(IF((OR($C51="RP",$C51="SP")),VLOOKUP($B51,Pitcher!$A$1:$Z$700,20,FALSE)/VLOOKUP($B51,Pitcher!$A$1:$Z$700,4,FALSE),(VLOOKUP($B51,Hitter!$A$1:$Z$700,26,FALSE)/VLOOKUP($B51,Hitter!$A$1:$Z$700,2,FALSE))),"") -> 0.63349077 | O51: =IFERROR(IF((OR($C51="RP",$C51="SP")),VLOOKUP($B51,Pitcher!$A$1:$V$700,2,FALSE),""),"") ->  | P51: =IFERROR(IF((OR($C51="RP",$C51="SP")),VLOOKUP($B51,Pitcher!$A$1:$V$700,9,FALSE),""),"") ->  | Q51: =IFERROR(IF((OR($C51="RP",$C51="SP")),VLOOKUP($B51,Pitcher!$A$1:$V$700,7,FALSE),""),"") ->  | R51: =IFERROR(IF((OR($C51="RP",$C51="SP")),VLOOKUP($B51,Pitcher!$A$1:$AB$700,21,FALSE),""),"") ->  | S51: =IFERROR(IF((OR($C51="RP",$C51="SP")),VLOOKUP($B51,Pitcher!$A$1:$V$700,22,FALSE),""),"") ->  | T51: =IFERROR(IF((OR($C51="RP",$C51="SP")),"",VLOOKUP($B51,Hitter!$A$1:$AH$700,27,FALSE)),"") -> 0.2829862137 | U51: =IFERROR(IF((OR($C51="RP",$C51="SP")),"",VLOOKUP($B51,Hitter!$A$1:$AH$700,9,FALSE)),"") -> 23.15186414 | V51: =IFERROR(IF((OR($C51="RP",$C51="SP")),"",VLOOKUP($B51,Hitter!$A$1:$AH$700,10,FALSE)),"") -> 81.79152368 | W51: =IFERROR(IF((OR($C51="RP",$C51="SP")),"",VLOOKUP($B51,Hitter!$A$1:$AH$700,4,FALSE)),"") -> 83.41142905 | X51: =IFERROR(IF((OR($C51="RP",$C51="SP")),"",VLOOKUP($B51,Hitter!$A$1:$AH$700,11,FALSE)),"") -> 4.133935491 | Y51: =IFERROR(IF(ISTEXT($A51),"",(1-NORMDIST((COUNTA($A$4:$A$743)),($G51),((AD51-AC51)/6),TRUE))),"") -> 1 | Z51: =IFERROR(IF(ISTEXT($A51),"",(1-NORMDIST((COUNTA($A$4:$A$743))+(Personalize!$E$18+1),$G51,((AD51-AC51)/6),TRUE))),"") -> 1 | AA51: =IFERROR(IF(ISTEXT($A51),"",(1-NORMDIST((COUNTA($A$4:$A$743))+((Personalize!$E$18+1)*2),$G51,((AD51-AC51)/6),TRUE))),"") -> 1 | AC51: =IF(Personalize!$E$34=1,VLOOKUP($B51,'ADP-Rank'!$A$2:$J$700,5,FALSE),(IF(Personalize!$E$34=2,VLOOKUP($B51,'ADP-Rank'!$A$2:$J$700,8,FALSE),(IF(Personalize!$E$34=3,VLOOKUP($B51,'ADP-Rank'!$A$2:$O$700,11,FALSE),(IF(Personalize!$E$31=4,VLOOKUP($B51,'ADP-Rank'!$A$2:$AZ$700,25,FALSE),(IF(Personalize!$E$31=5,VLOOKUP($B51,'ADP-Rank'!$A$2:$AZ$700,28,FALSE),(IF(Personalize!$E$31=6,VLOOKUP($B51,'ADP-Rank'!$A$2:$AZ$700,32,FALSE),""))))))))))) -> 30 | AD51: =IF(Personalize!$E$34=1,VLOOKUP($B51,'ADP-Rank'!$A$2:$J$700,6,FALSE),(IF(Personalize!$E$34=2,VLOOKUP($B51,'ADP-Rank'!$A$2:$J$700,9,FALSE),(IF(Personalize!$E$34=3,VLOOKUP($B51,'ADP-Rank'!$A$2:$O$700,12,FALSE),(IF(Personalize!$E$31=4,VLOOKUP($B51,'ADP-Rank'!$A$2:$AZ$700,26,FALSE),(IF(Personalize!$E$31=5,VLOOKUP($B51,'ADP-Rank'!$A$2:$AZ$700,29,FALSE),(IF(Personalize!$E$31=6,VLOOKUP($B51,'ADP-Rank'!$A$2:$AZ$700,33,FALSE),""))))))))))) -> 64 | AE51: =IF(ISBLANK(A51),0,1) -> 0 | AF51: =IF(K51="",0,1) -> 1 | AG51: =A51 -> 0 | AH51: =IF(C51="C",1,IF(C51="1B",2,IF(C51="2B",3,IF(C51="3B",4,IF(C51="SS",5,IF(C51="CI",6,IF(C51="MI",7,IF(C51="OF",11,IF(C51="LF",8,IF(C51="CF",9,IF(C51="RF",10,IF(C51="DH",12,IF(C51="SP",13,IF(C51="RP",14,IF(C51="P",15,16))))))))))))))) -> 4 | AI51: =VLOOKUP(B51,'Starter Calc'!$B$2:$BN$700,65,FALSE) -> Bench | AJ51: =IFERROR(VLOOKUP($B51,'ADP-Rank'!$A$2:$AH$964,34,FALSE),TRUE) -> TRUE
B52: Max Scherzer | C52: =IFERROR(IF(VLOOKUP(B52,'ADP-Rank'!$A$2:$B$700,2,FALSE)="OF",VLOOKUP(B52,'Starter Calc'!$B$2:$AM$700,38,FALSE),(VLOOKUP(B52,'ADP-Rank'!$A$2:$B$700,2,FALSE))),"") -> SP | D52: =IFERROR(IF(VLOOKUP(B52,'Starter Calc'!$B$2:$E$700,4,FALSE)="","",VLOOKUP(B52,'Starter Calc'!$B$2:$E$700,4,FALSE)),"") ->  | E52: =IFERROR(VLOOKUP($B52,'ADP-Rank'!$A$2:$D$700,3,FALSE),"") -> DET | F52: =IFERROR(VLOOKUP($B52,'ADP-Rank'!$A$2:$W$700,23,FALSE),"") -> 29 | G52: =IFERROR((IF(Personalize!$E$38=1,VLOOKUP($B52,'ADP-Rank'!$A$2:$J$700,4,FALSE),(IF(Personalize!$E$38=2,VLOOKUP($B52,'ADP-Rank'!$A$2:$J$700,7,FALSE),(IF(Personalize!$E$38=3,VLOOKUP($B52,'ADP-Rank'!$A$2:$J$700,10,FALSE),(IF(Personalize!$E$38=4,VLOOKUP($B52,'ADP-Rank'!$A$2:$AD$700,24,FALSE),(IF(Personalize!$E$38=5,VLOOKUP($B52,'ADP-Rank'!$A$2:$AD$700,27,FALSE),VLOOKUP($B52,'ADP-Rank'!$A$2:$AZ$700,30,FALSE))))))))))),"") -> 52.41 | H52: =IFERROR(ROUNDDOWN(VLOOKUP($B52,'ADP-Rank'!$A$2:$AY$1064,38,FALSE),0),"") -> 4 | I52: =VLOOKUP($B52,'ADP-Rank'!$A$2:$AJ$1064,36,FALSE) -> 68 | J52: =IFERROR(RANK($M52,$M$4:$M$743,0),"") -> 38 | K52: =IFERROR(IF((OR($C52="RP",$C52="SP")),VLOOKUP($B52,Pitcher!$A$1:$Z$700,20,FALSE),(VLOOKUP($B52,Hitter!$A$1:$Z$700,26,FALSE))),"") -> 402.8812214 | L52: =IFERROR(IF((OR($C52="RP",$C52="SP")),VLOOKUP($C52,'Filtered-P'!$M$3:$P$4,4,FALSE), VLOOKUP($C52,Filtered!$Q$3:$T$14,4,FALSE)),"") -> 357.2271519 | M52: =IFERROR(K52-L52,"") -> 45.65406947 | N52: =IFERROR(IF((OR($C52="RP",$C52="SP")),VLOOKUP($B52,Pitcher!$A$1:$Z$700,20,FALSE)/VLOOKUP($B52,Pitcher!$A$1:$Z$700,4,FALSE),(VLOOKUP($B52,Hitter!$A$1:$Z$700,26,FALSE)/VLOOKUP($B52,Hitter!$A$1:$Z$700,2,FALSE))),"") -> 2.253124665 | O52: =IFERROR(IF((OR($C52="RP",$C52="SP")),VLOOKUP($B52,Pitcher!$A$1:$V$700,2,FALSE),""),"") -> 14.89 | P52: =IFERROR(IF((OR($C52="RP",$C52="SP")),VLOOKUP($B52,Pitcher!$A$1:$V$700,9,FALSE),""),"") -> 0 | Q52: =IFERROR(IF((OR($C52="RP",$C52="SP")),VLOOKUP($B52,Pitcher!$A$1:$V$700,7,FALSE),""),"") -> 185.2924885 | R52: =IFERROR(IF((OR($C52="RP",$C52="SP")),VLOOKUP($B52,Pitcher!$A$1:$AB$700,21,FALSE),""),"") -> 3.522286226 | S52: =IFERROR(IF((OR($C52="RP",$C52="SP")),VLOOKUP($B52,Pitcher!$A$1:$V$700,22,FALSE),""),"") -> 1.220625245 | T52: =IFERROR(IF((OR($C52="RP",$C52="SP")),"",VLOOKUP($B52,Hitter!$A$1:$AH$700,27,FALSE)),"") ->  | U52: =IFERROR(IF((OR($C52="RP",$C52="SP")),"",VLOOKUP($B52,Hitter!$A$1:$AH$700,9,FALSE)),"") ->  | V52: =IFERROR(IF((OR($C52="RP",$C52="SP")),"",VLOOKUP($B52,Hitter!$A$1:$AH$700,10,FALSE)),"") ->  | W52: =IFERROR(IF((OR($C52="RP",$C52="SP")),"",VLOOKUP($B52,Hitter!$A$1:$AH$700,4,FALSE)),"") ->  | X52: =IFERROR(IF((OR($C52="RP",$C52="SP")),"",VLOOKUP($B52,Hitter!$A$1:$AH$700,11,FALSE)),"") ->  | Y52: =IFERROR(IF(ISTEXT($A52),"",(1-NORMDIST((COUNTA($A$4:$A$743)),($G52),((AD52-AC52)/6),TRUE))),"") -> 0.9999999946 | Z52: =IFERROR(IF(ISTEXT($A52),"",(1-NORMDIST((COUNTA($A$4:$A$743))+(Personalize!$E$18+1),$G52,((AD52-AC52)/6),TRUE))),"") -> 0.9999999524 | AA52: =IFERROR(IF(ISTEXT($A52),"",(1-NORMDIST((COUNTA($A$4:$A$743))+((Personalize!$E$18+1)*2),$G52,((AD52-AC52)/6),TRUE))),"") -> 0.9999996361 | AC52: =IF(Personalize!$E$34=1,VLOOKUP($B52,'ADP-Rank'!$A$2:$J$700,5,FALSE),(IF(Personalize!$E$34=2,VLOOKUP($B52,'ADP-Rank'!$A$2:$J$700,8,FALSE),(IF(Personalize!$E$34=3,VLOOKUP($B52,'ADP-Rank'!$A$2:$O$700,11,FALSE),(IF(Personalize!$E$31=4,VLOOKUP($B52,'ADP-Rank'!$A$2:$AZ$700,25,FALSE),(IF(Personalize!$E$31=5,VLOOKUP($B52,'ADP-Rank'!$A$2:$AZ$700,28,FALSE),(IF(Personalize!$E$31=6,VLOOKUP($B52,'ADP-Rank'!$A$2:$AZ$700,32,FALSE),""))))))))))) -> 63 | AD52: =IF(Personalize!$E$34=1,VLOOKUP($B52,'ADP-Rank'!$A$2:$J$700,6,FALSE),(IF(Personalize!$E$34=2,VLOOKUP($B52,'ADP-Rank'!$A$2:$J$700,9,FALSE),(IF(Personalize!$E$34=3,VLOOKUP($B52,'ADP-Rank'!$A$2:$O$700,12,FALSE),(IF(Personalize!$E$31=4,VLOOKUP($B52,'ADP-Rank'!$A$2:$AZ$700,26,FALSE),(IF(Personalize!$E$31=5,VLOOKUP($B52,'ADP-Rank'!$A$2:$AZ$700,29,FALSE),(IF(Personalize!$E$31=6,VLOOKUP($B52,'ADP-Rank'!$A$2:$AZ$700,33,FALSE),""))))))))))) -> 118 | AE52: =IF(ISBLANK(A52),0,1) -> 0 | AF52: =IF(K52="",0,1) -> 1 | AG52: =A52 -> 0 | AH52: =IF(C52="C",1,IF(C52="1B",2,IF(C52="2B",3,IF(C52="3B",4,IF(C52="SS",5,IF(C52="CI",6,IF(C52="MI",7,IF(C52="OF",11,IF(C52="LF",8,IF(C52="CF",9,IF(C52="RF",10,IF(C52="DH",12,IF(C52="SP",13,IF(C52="RP",14,IF(C52="P",15,16))))))))))))))) -> 13 | AI52: =VLOOKUP(B52,'Starter Calc'!$B$2:$BN$700,65,FALSE) -> Bench | AJ52: =IFERROR(VLOOKUP($B52,'ADP-Rank'!$A$2:$AH$964,34,FALSE),TRUE) -> TRUE
B53: Jay Bruce | C53: =IFERROR(IF(VLOOKUP(B53,'ADP-Rank'!$A$2:$B$700,2,FALSE)="OF",VLOOKUP(B53,'Starter Calc'!$B$2:$AM$700,38,FALSE),(VLOOKUP(B53,'ADP-Rank'!$A$2:$B$700,2,FALSE))),"") -> OF | D53: =IFERROR(IF(VLOOKUP(B53,'Starter Calc'!$B$2:$E$700,4,FALSE)="","",VLOOKUP(B53,'Starter Calc'!$B$2:$E$700,4,FALSE)),"") -> RF | E53: =IFERROR(VLOOKUP($B53,'ADP-Rank'!$A$2:$D$700,3,FALSE),"") -> CIN | F53: =IFERROR(VLOOKUP($B53,'ADP-Rank'!$A$2:$W$700,23,FALSE),"") -> 26 | G53: =IFERROR((IF(Personalize!$E$38=1,VLOOKUP($B53,'ADP-Rank'!$A$2:$J$700,4,FALSE),(IF(Personalize!$E$38=2,VLOOKUP($B53,'ADP-Rank'!$A$2:$J$700,7,FALSE),(IF(Personalize!$E$38=3,VLOOKUP($B53,'ADP-Rank'!$A$2:$J$700,10,FALSE),(IF(Personalize!$E$38=4,VLOOKUP($B53,'ADP-Rank'!$A$2:$AD$700,24,FALSE),(IF(Personalize!$E$38=5,VLOOKUP($B53,'ADP-Rank'!$A$2:$AD$700,27,FALSE),VLOOKUP($B53,'ADP-Rank'!$A$2:$AZ$700,30,FALSE))))))))))),"") -> 53 | H53: =IFERROR(ROUNDDOWN(VLOOKUP($B53,'ADP-Rank'!$A$2:$AY$1064,38,FALSE),0),"") -> 4 | I53: =VLOOKUP($B53,'ADP-Rank'!$A$2:$AJ$1064,36,FALSE) -> 53 | J53: =IFERROR(RANK($M53,$M$4:$M$743,0),"") -> 59 | K53: =IFERROR(IF((OR($C53="RP",$C53="SP")),VLOOKUP($B53,Pitcher!$A$1:$Z$700,20,FALSE),(VLOOKUP($B53,Hitter!$A$1:$Z$700,26,FALSE))),"") -> 389.4123252 | L53: =IFERROR(IF((OR($C53="RP",$C53="SP")),VLOOKUP($C53,'Filtered-P'!$M$3:$P$4,4,FALSE), VLOOKUP($C53,Filtered!$Q$3:$T$14,4,FALSE)),"") -> 368.4885837 | M53: =IFERROR(K53-L53,"") -> 20.92374146 | N53: =IFERROR(IF((OR($C53="RP",$C53="SP")),VLOOKUP($B53,Pitcher!$A$1:$Z$700,20,FALSE)/VLOOKUP($B53,Pitcher!$A$1:$Z$700,4,FALSE),(VLOOKUP($B53,Hitter!$A$1:$Z$700,26,FALSE)/VLOOKUP($B53,Hitter!$A$1:$Z$700,2,FALSE))),"") -> 0.6202952467 | O53: =IFERROR(IF((OR($C53="RP",$C53="SP")),VLOOKUP($B53,Pitcher!$A$1:$V$700,2,FALSE),""),"") ->  | P53: =IFERROR(IF((OR($C53="RP",$C53="SP")),VLOOKUP($B53,Pitcher!$A$1:$V$700,9,FALSE),""),"") ->  | Q53: =IFERROR(IF((OR($C53="RP",$C53="SP")),VLOOKUP($B53,Pitcher!$A$1:$V$700,7,FALSE),""),"") ->  | R53: =IFERROR(IF((OR($C53="RP",$C53="SP")),VLOOKUP($B53,Pitcher!$A$1:$AB$700,21,FALSE),""),"") ->  | S53: =IFERROR(IF((OR($C53="RP",$C53="SP")),VLOOKUP($B53,Pitcher!$A$1:$V$700,22,FALSE),""),"") ->  | T53: =IFERROR(IF((OR($C53="RP",$C53="SP")),"",VLOOKUP($B53,Hitter!$A$1:$AH$700,27,FALSE)),"") -> 0.2602522101 | U53: =IFERROR(IF((OR($C53="RP",$C53="SP")),"",VLOOKUP($B53,Hitter!$A$1:$AH$700,9,FALSE)),"") -> 33.59403561 | V53: =IFERROR(IF((OR($C53="RP",$C53="SP")),"",VLOOKUP($B53,Hitter!$A$1:$AH$700,10,FALSE)),"") -> 98.14114214 | W53: =IFERROR(IF((OR($C53="RP",$C53="SP")),"",VLOOKUP($B53,Hitter!$A$1:$AH$700,4,FALSE)),"") -> 90.53995109 | X53: =IFERROR(IF((OR($C53="RP",$C53="SP")),"",VLOOKUP($B53,Hitter!$A$1:$AH$700,11,FALSE)),"") -> 6.806236896 | Y53: =IFERROR(IF(ISTEXT($A53),"",(1-NORMDIST((COUNTA($A$4:$A$743)),($G53),((AD53-AC53)/6),TRUE))),"") -> 1 | Z53: =IFERROR(IF(ISTEXT($A53),"",(1-NORMDIST((COUNTA($A$4:$A$743))+(Personalize!$E$18+1),$G53,((AD53-AC53)/6),TRUE))),"") -> 1 | AA53: =IFERROR(IF(ISTEXT($A53),"",(1-NORMDIST((COUNTA($A$4:$A$743))+((Personalize!$E$18+1)*2),$G53,((AD53-AC53)/6),TRUE))),"") -> 0.9999999996 | AC53: =IF(Personalize!$E$34=1,VLOOKUP($B53,'ADP-Rank'!$A$2:$J$700,5,FALSE),(IF(Personalize!$E$34=2,VLOOKUP($B53,'ADP-Rank'!$A$2:$J$700,8,FALSE),(IF(Personalize!$E$34=3,VLOOKUP($B53,'ADP-Rank'!$A$2:$O$700,11,FALSE),(IF(Personalize!$E$31=4,VLOOKUP($B53,'ADP-Rank'!$A$2:$AZ$700,25,FALSE),(IF(Personalize!$E$31=5,VLOOKUP($B53,'ADP-Rank'!$A$2:$AZ$700,28,FALSE),(IF(Personalize!$E$31=6,VLOOKUP($B53,'ADP-Rank'!$A$2:$AZ$700,32,FALSE),""))))))))))) -> 24 | AD53: =IF(Personalize!$E$34=1,VLOOKUP($B53,'ADP-Rank'!$A$2:$J$700,6,FALSE),(IF(Personalize!$E$34=2,VLOOKUP($B53,'ADP-Rank'!$A$2:$J$700,9,FALSE),(IF(Personalize!$E$34=3,VLOOKUP($B53,'ADP-Rank'!$A$2:$O$700,12,FALSE),(IF(Personalize!$E$31=4,VLOOKUP($B53,'ADP-Rank'!$A$2:$AZ$700,26,FALSE),(IF(Personalize!$E$31=5,VLOOKUP($B53,'ADP-Rank'!$A$2:$AZ$700,29,FALSE),(IF(Personalize!$E$31=6,VLOOKUP($B53,'ADP-Rank'!$A$2:$AZ$700,33,FALSE),""))))))))))) -> 69 | AE53: =IF(ISBLANK(A53),0,1) -> 0 | AF53: =IF(K53="",0,1) -> 1 | AG53: =A53 -> 0 | AH53: =IF(C53="C",1,IF(C53="1B",2,IF(C53="2B",3,IF(C53="3B",4,IF(C53="SS",5,IF(C53="CI",6,IF(C53="MI",7,IF(C53="OF",11,IF(C53="LF",8,IF(C53="CF",9,IF(C53="RF",10,IF(C53="DH",12,IF(C53="SP",13,IF(C53="RP",14,IF(C53="P",15,16))))))))))))))) -> 11 | AI53: =VLOOKUP(B53,'Starter Calc'!$B$2:$BN$700,65,FALSE) -> Bench | AJ53: =IFERROR(VLOOKUP($B53,'ADP-Rank'!$A$2:$AH$964,34,FALSE),TRUE) -> TRUE
B54: Starlin Castro | C54: =IFERROR(IF(VLOOKUP(B54,'ADP-Rank'!$A$2:$B$700,2,FALSE)="OF",VLOOKUP(B54,'Starter Calc'!$B$2:$AM$700,38,FALSE),(VLOOKUP(B54,'ADP-Rank'!$A$2:$B$700,2,FALSE))),"") -> SS | D54: =IFERROR(IF(VLOOKUP(B54,'Starter Calc'!$B$2:$E$700,4,FALSE)="","",VLOOKUP(B54,'Starter Calc'!$B$2:$E$700,4,FALSE)),"") ->  | E54: =IFERROR(VLOOKUP($B54,'ADP-Rank'!$A$2:$D$700,3,FALSE),"") -> CHC | F54: =IFERROR(VLOOKUP($B54,'ADP-Rank'!$A$2:$W$700,23,FALSE),"") -> 23 | G54: =IFERROR((IF(Personalize!$E$38=1,VLOOKUP($B54,'ADP-Rank'!$A$2:$J$700,4,FALSE),(IF(Personalize!$E$38=2,VLOOKUP($B54,'ADP-Rank'!$A$2:$J$700,7,FALSE),(IF(Personalize!$E$38=3,VLOOKUP($B54,'ADP-Rank'!$A$2:$J$700,10,FALSE),(IF(Personalize!$E$38=4,VLOOKUP($B54,'ADP-Rank'!$A$2:$AD$700,24,FALSE),(IF(Personalize!$E$38=5,VLOOKUP($B54,'ADP-Rank'!$A$2:$AD$700,27,FALSE),VLOOKUP($B54,'ADP-Rank'!$A$2:$AZ$700,30,FALSE))))))))))),"") -> 54.21 | H54: =IFERROR(ROUNDDOWN(VLOOKUP($B54,'ADP-Rank'!$A$2:$AY$1064,38,FALSE),0),"") -> 4 | I54: =VLOOKUP($B54,'ADP-Rank'!$A$2:$AJ$1064,36,FALSE) -> 72 | J54: =IFERROR(RANK($M54,$M$4:$M$743,0),"") -> 46 | K54: =IFERROR(IF((OR($C54="RP",$C54="SP")),VLOOKUP($B54,Pitcher!$A$1:$Z$700,20,FALSE),(VLOOKUP($B54,Hitter!$A$1:$Z$700,26,FALSE))),"") -> 377.9980769 | L54: =IFERROR(IF((OR($C54="RP",$C54="SP")),VLOOKUP($C54,'Filtered-P'!$M$3:$P$4,4,FALSE), VLOOKUP($C54,Filtered!$Q$3:$T$14,4,FALSE)),"") -> 340.1248739 | M54: =IFERROR(K54-L54,"") -> 37.87320298 | N54: =IFERROR(IF((OR($C54="RP",$C54="SP")),VLOOKUP($B54,Pitcher!$A$1:$Z$700,20,FALSE)/VLOOKUP($B54,Pitcher!$A$1:$Z$700,4,FALSE),(VLOOKUP($B54,Hitter!$A$1:$Z$700,26,FALSE)/VLOOKUP($B54,Hitter!$A$1:$Z$700,2,FALSE))),"") -> 0.5932211896 | O54: =IFERROR(IF((OR($C54="RP",$C54="SP")),VLOOKUP($B54,Pitcher!$A$1:$V$700,2,FALSE),""),"") ->  | P54: =IFERROR(IF((OR($C54="RP",$C54="SP")),VLOOKUP($B54,Pitcher!$A$1:$V$700,9,FALSE),""),"") ->  | Q54: =IFERROR(IF((OR($C54="RP",$C54="SP")),VLOOKUP($B54,Pitcher!$A$1:$V$700,7,FALSE),""),"") ->  | R54: =IFERROR(IF((OR($C54="RP",$C54="SP")),VLOOKUP($B54,Pitcher!$A$1:$AB$700,21,FALSE),""),"") ->  | S54: =IFERROR(IF((OR($C54="RP",$C54="SP")),VLOOKUP($B54,Pitcher!$A$1:$V$700,22,FALSE),""),"") ->  | T54: =IFERROR(IF((OR($C54="RP",$C54="SP")),"",VLOOKUP($B54,Hitter!$A$1:$AH$700,27,FALSE)),"") -> 0.2926752121 | U54: =IFERROR(IF((OR($C54="RP",$C54="SP")),"",VLOOKUP($B54,Hitter!$A$1:$AH$700,9,FALSE)),"") -> 12.40290926 | V54: =IFERROR(IF((OR($C54="RP",$C54="SP")),"",VLOOKUP($B54,Hitter!$A$1:$AH$700,10,FALSE)),"") -> 72.97816035 | W54: =IFERROR(IF((OR($C54="RP",$C54="SP")),"",VLOOKUP($B54,Hitter!$A$1:$AH$700,4,FALSE)),"") -> 79.30497703 | X54: =IFERROR(IF((OR($C54="RP",$C54="SP")),"",VLOOKUP($B54,Hitter!$A$1:$AH$700,11,FALSE)),"") -> 20.66931261 | Y54: =IFERROR(IF(ISTEXT($A54),"",(1-NORMDIST((COUNTA($A$4:$A$743)),($G54),((AD54-AC54)/6),TRUE))),"") -> 1 | Z54: =IFERROR(IF(ISTEXT($A54),"",(1-NORMDIST((COUNTA($A$4:$A$743))+(Personalize!$E$18+1),$G54,((AD54-AC54)/6),TRUE))),"") -> 1 | AA54: =IFERROR(IF(ISTEXT($A54),"",(1-NORMDIST((COUNTA($A$4:$A$743))+((Personalize!$E$18+1)*2),$G54,((AD54-AC54)/6),TRUE))),"") -> 1 | AC54: =IF(Personalize!$E$34=1,VLOOKUP($B54,'ADP-Rank'!$A$2:$J$700,5,FALSE),(IF(Personalize!$E$34=2,VLOOKUP($B54,'ADP-Rank'!$A$2:$J$700,8,FALSE),(IF(Personalize!$E$34=3,VLOOKUP($B54,'ADP-Rank'!$A$2:$O$700,11,FALSE),(IF(Personalize!$E$31=4,VLOOKUP($B54,'ADP-Rank'!$A$2:$AZ$700,25,FALSE),(IF(Personalize!$E$31=5,VLOOKUP($B54,'ADP-Rank'!$A$2:$AZ$700,28,FALSE),(IF(Personalize!$E$31=6,VLOOKUP($B54,'ADP-Rank'!$A$2:$AZ$700,32,FALSE),""))))))))))) -> 31 | AD54: =IF(Personalize!$E$34=1,VLOOKUP($B54,'ADP-Rank'!$A$2:$J$700,6,FALSE),(IF(Personalize!$E$34=2,VLOOKUP($B54,'ADP-Rank'!$A$2:$J$700,9,FALSE),(IF(Personalize!$E$34=3,VLOOKUP($B54,'ADP-Rank'!$A$2:$O$700,12,FALSE),(IF(Personalize!$E$31=4,VLOOKUP($B54,'ADP-Rank'!$A$2:$AZ$700,26,FALSE),(IF(Personalize!$E$31=5,VLOOKUP($B54,'ADP-Rank'!$A$2:$AZ$700,29,FALSE),(IF(Personalize!$E$31=6,VLOOKUP($B54,'ADP-Rank'!$A$2:$AZ$700,33,FALSE),""))))))))))) -> 54 | AE54: =IF(ISBLANK(A54),0,1) -> 0 | AF54: =IF(K54="",0,1) -> 1 | AG54: =A54 -> 0 | AH54: =IF(C54="C",1,IF(C54="1B",2,IF(C54="2B",3,IF(C54="3B",4,IF(C54="SS",5,IF(C54="CI",6,IF(C54="MI",7,IF(C54="OF",11,IF(C54="LF",8,IF(C54="CF",9,IF(C54="RF",10,IF(C54="DH",12,IF(C54="SP",13,IF(C54="RP",14,IF(C54="P",15,16))))))))))))))) -> 5 | AI54: =VLOOKUP(B54,'Starter Calc'!$B$2:$BN$700,65,FALSE) -> Bench | AJ54: =IFERROR(VLOOKUP($B54,'ADP-Rank'!$A$2:$AH$964,34,FALSE),TRUE) -> TRUE
B55: Roy Halladay | C55: =IFERROR(IF(VLOOKUP(B55,'ADP-Rank'!$A$2:$B$700,2,FALSE)="OF",VLOOKUP(B55,'Starter Calc'!$B$2:$AM$700,38,FALSE),(VLOOKUP(B55,'ADP-Rank'!$A$2:$B$700,2,FALSE))),"") -> SP | D55: =IFERROR(IF(VLOOKUP(B55,'Starter Calc'!$B$2:$E$700,4,FALSE)="","",VLOOKUP(B55,'Starter Calc'!$B$2:$E$700,4,FALSE)),"") ->  | E55: =IFERROR(VLOOKUP($B55,'ADP-Rank'!$A$2:$D$700,3,FALSE),"") -> PHI | F55: =IFERROR(VLOOKUP($B55,'ADP-Rank'!$A$2:$W$700,23,FALSE),"") -> 36 | G55: =IFERROR((IF(Personalize!$E$38=1,VLOOKUP($B55,'ADP-Rank'!$A$2:$J$700,4,FALSE),(IF(Personalize!$E$38=2,VLOOKUP($B55,'ADP-Rank'!$A$2:$J$700,7,FALSE),(IF(Personalize!$E$38=3,VLOOKUP($B55,'ADP-Rank'!$A$2:$J$700,10,FALSE),(IF(Personalize!$E$38=4,VLOOKUP($B55,'ADP-Rank'!$A$2:$AD$700,24,FALSE),(IF(Personalize!$E$38=5,VLOOKUP($B55,'ADP-Rank'!$A$2:$AD$700,27,FALSE),VLOOKUP($B55,'ADP-Rank'!$A$2:$AZ$700,30,FALSE))))))))))),"") -> 54.29 | H55: =IFERROR(ROUNDDOWN(VLOOKUP($B55,'ADP-Rank'!$A$2:$AY$1064,38,FALSE),0),"") -> 5 | I55: =VLOOKUP($B55,'ADP-Rank'!$A$2:$AJ$1064,36,FALSE) -> 62 | J55: =IFERROR(RANK($M55,$M$4:$M$743,0),"") -> 113 | K55: =IFERROR(IF((OR($C55="RP",$C55="SP")),VLOOKUP($B55,Pitcher!$A$1:$Z$700,20,FALSE),(VLOOKUP($B55,Hitter!$A$1:$Z$700,26,FALSE))),"") -> 326.9341934 | L55: =IFERROR(IF((OR($C55="RP",$C55="SP")),VLOOKUP($C55,'Filtered-P'!$M$3:$P$4,4,FALSE), VLOOKUP($C55,Filtered!$Q$3:$T$14,4,FALSE)),"") -> 357.2271519 | M55: =IFERROR(K55-L55,"") -> -30.29295851 | N55: =IFERROR(IF((OR($C55="RP",$C55="SP")),VLOOKUP($B55,Pitcher!$A$1:$Z$700,20,FALSE)/VLOOKUP($B55,Pitcher!$A$1:$Z$700,4,FALSE),(VLOOKUP($B55,Hitter!$A$1:$Z$700,26,FALSE)/VLOOKUP($B55,Hitter!$A$1:$Z$700,2,FALSE))),"") -> 1.911784067 | O55: =IFERROR(IF((OR($C55="RP",$C55="SP")),VLOOKUP($B55,Pitcher!$A$1:$V$700,2,FALSE),""),"") -> 12.95 | P55: =IFERROR(IF((OR($C55="RP",$C55="SP")),VLOOKUP($B55,Pitcher!$A$1:$V$700,9,FALSE),""),"") -> 0 | Q55: =IFERROR(IF((OR($C55="RP",$C55="SP")),VLOOKUP($B55,Pitcher!$A$1:$V$700,7,FALSE),""),"") -> 145.7296774 | R55: =IFERROR(IF((OR($C55="RP",$C55="SP")),VLOOKUP($B55,Pitcher!$A$1:$AB$700,21,FALSE),""),"") -> 3.436114847 | S55: =IFERROR(IF((OR($C55="RP",$C55="SP")),VLOOKUP($B55,Pitcher!$A$1:$V$700,22,FALSE),""),"") -> 1.168645108 | T55: =IFERROR(IF((OR($C55="RP",$C55="SP")),"",VLOOKUP($B55,Hitter!$A$1:$AH$700,27,FALSE)),"") ->  | U55: =IFERROR(IF((OR($C55="RP",$C55="SP")),"",VLOOKUP($B55,Hitter!$A$1:$AH$700,9,FALSE)),"") ->  | V55: =IFERROR(IF((OR($C55="RP",$C55="SP")),"",VLOOKUP($B55,Hitter!$A$1:$AH$700,10,FALSE)),"") ->  | W55: =IFERROR(IF((OR($C55="RP",$C55="SP")),"",VLOOKUP($B55,Hitter!$A$1:$AH$700,4,FALSE)),"") ->  | X55: =IFERROR(IF((OR($C55="RP",$C55="SP")),"",VLOOKUP($B55,Hitter!$A$1:$AH$700,11,FALSE)),"") ->  | Y55: =IFERROR(IF(ISTEXT($A55),"",(1-NORMDIST((COUNTA($A$4:$A$743)),($G55),((AD55-AC55)/6),TRUE))),"") -> 0.9998738924 | Z55: =IFERROR(IF(ISTEXT($A55),"",(1-NORMDIST((COUNTA($A$4:$A$743))+(Personalize!$E$18+1),$G55,((AD55-AC55)/6),TRUE))),"") -> 0.9996915179 | AA55: =IFERROR(IF(ISTEXT($A55),"",(1-NORMDIST((COUNTA($A$4:$A$743))+((Personalize!$E$18+1)*2),$G55,((AD55-AC55)/6),TRUE))),"") -> 0.99928392 | AC55: =IF(Personalize!$E$34=1,VLOOKUP($B55,'ADP-Rank'!$A$2:$J$700,5,FALSE),(IF(Personalize!$E$34=2,VLOOKUP($B55,'ADP-Rank'!$A$2:$J$700,8,FALSE),(IF(Personalize!$E$34=3,VLOOKUP($B55,'ADP-Rank'!$A$2:$O$700,11,FALSE),(IF(Personalize!$E$31=4,VLOOKUP($B55,'ADP-Rank'!$A$2:$AZ$700,25,FALSE),(IF(Personalize!$E$31=5,VLOOKUP($B55,'ADP-Rank'!$A$2:$AZ$700,28,FALSE),(IF(Personalize!$E$31=6,VLOOKUP($B55,'ADP-Rank'!$A$2:$AZ$700,32,FALSE),""))))))))))) -> 84 | AD55: =IF(Personalize!$E$34=1,VLOOKUP($B55,'ADP-Rank'!$A$2:$J$700,6,FALSE),(IF(Personalize!$E$34=2,VLOOKUP($B55,'ADP-Rank'!$A$2:$J$700,9,FALSE),(IF(Personalize!$E$34=3,VLOOKUP($B55,'ADP-Rank'!$A$2:$O$700,12,FALSE),(IF(Personalize!$E$31=4,VLOOKUP($B55,'ADP-Rank'!$A$2:$AZ$700,26,FALSE),(IF(Personalize!$E$31=5,VLOOKUP($B55,'ADP-Rank'!$A$2:$AZ$700,29,FALSE),(IF(Personalize!$E$31=6,VLOOKUP($B55,'ADP-Rank'!$A$2:$AZ$700,33,FALSE),""))))))))))) -> 173 | AE55: =IF(ISBLANK(A55),0,1) -> 0 | AF55: =IF(K55="",0,1) -> 1 | AG55: =A55 -> 0 | AH55: =IF(C55="C",1,IF(C55="1B",2,IF(C55="2B",3,IF(C55="3B",4,IF(C55="SS",5,IF(C55="CI",6,IF(C55="MI",7,IF(C55="OF",11,IF(C55="LF",8,IF(C55="CF",9,IF(C55="RF",10,IF(C55="DH",12,IF(C55="SP",13,IF(C55="RP",14,IF(C55="P",15,16))))))))))))))) -> 13 | AI55: =VLOOKUP(B55,'Starter Calc'!$B$2:$BN$700,65,FALSE) -> Bench | AJ55: =IFERROR(VLOOKUP($B55,'ADP-Rank'!$A$2:$AH$964,34,FALSE),TRUE) -> TRUE
B56: Carlos Santana | C56: =IFERROR(IF(VLOOKUP(B56,'ADP-Rank'!$A$2:$B$700,2,FALSE)="OF",VLOOKUP(B56,'Starter Calc'!$B$2:$AM$700,38,FALSE),(VLOOKUP(B56,'ADP-Rank'!$A$2:$B$700,2,FALSE))),"") -> C | D56: =IFERROR(IF(VLOOKUP(B56,'Starter Calc'!$B$2:$E$700,4,FALSE)="","",VLOOKUP(B56,'Starter Calc'!$B$2:$E$700,4,FALSE)),"") ->  | E56: =IFERROR(VLOOKUP($B56,'ADP-Rank'!$A$2:$D$700,3,FALSE),"") -> CLE | F56: =IFERROR(VLOOKUP($B56,'ADP-Rank'!$A$2:$W$700,23,FALSE),"") -> 27 | G56: =IFERROR((IF(Personalize!$E$38=1,VLOOKUP($B56,'ADP-Rank'!$A$2:$J$700,4,FALSE),(IF(Personalize!$E$38=2,VLOOKUP($B56,'ADP-Rank'!$A$2:$J$700,7,FALSE),(IF(Personalize!$E$38=3,VLOOKUP($B56,'ADP-Rank'!$A$2:$J$700,10,FALSE),(IF(Personalize!$E$38=4,VLOOKUP($B56,'ADP-Rank'!$A$2:$AD$700,24,FALSE),(IF(Personalize!$E$38=5,VLOOKUP($B56,'ADP-Rank'!$A$2:$AD$700,27,FALSE),VLOOKUP($B56,'ADP-Rank'!$A$2:$AZ$700,30,FALSE))))))))))),"") -> 54.36 | H56: =IFERROR(ROUNDDOWN(VLOOKUP($B56,'ADP-Rank'!$A$2:$AY$1064,38,FALSE),0),"") -> 5 | I56: =VLOOKUP($B56,'ADP-Rank'!$A$2:$AJ$1064,36,FALSE) -> 49 | J56: =IFERROR(RANK($M56,$M$4:$M$743,0),"") -> 33 | K56: =IFERROR(IF((OR($C56="RP",$C56="SP")),VLOOKUP($B56,Pitcher!$A$1:$Z$700,20,FALSE),(VLOOKUP($B56,Hitter!$A$1:$Z$700,26,FALSE))),"") -> 357.1341716 | L56: =IFERROR(IF((OR($C56="RP",$C56="SP")),VLOOKUP($C56,'Filtered-P'!$M$3:$P$4,4,FALSE), VLOOKUP($C56,Filtered!$Q$3:$T$14,4,FALSE)),"") -> 304.9320515 | M56: =IFERROR(K56-L56,"") -> 52.2021201 | N56: =IFERROR(IF((OR($C56="RP",$C56="SP")),VLOOKUP($B56,Pitcher!$A$1:$Z$700,20,FALSE)/VLOOKUP($B56,Pitcher!$A$1:$Z$700,4,FALSE),(VLOOKUP($B56,Hitter!$A$1:$Z$700,26,FALSE)/VLOOKUP($B56,Hitter!$A$1:$Z$700,2,FALSE))),"") -> 0.6110879856 | O56: =IFERROR(IF((OR($C56="RP",$C56="SP")),VLOOKUP($B56,Pitcher!$A$1:$V$700,2,FALSE),""),"") ->  | P56: =IFERROR(IF((OR($C56="RP",$C56="SP")),VLOOKUP($B56,Pitcher!$A$1:$V$700,9,FALSE),""),"") ->  | Q56: =IFERROR(IF((OR($C56="RP",$C56="SP")),VLOOKUP($B56,Pitcher!$A$1:$V$700,7,FALSE),""),"") ->  | R56: =IFERROR(IF((OR($C56="RP",$C56="SP")),VLOOKUP($B56,Pitcher!$A$1:$AB$700,21,FALSE),""),"") ->  | S56: =IFERROR(IF((OR($C56="RP",$C56="SP")),VLOOKUP($B56,Pitcher!$A$1:$V$700,22,FALSE),""),"") ->  | T56: =IFERROR(IF((OR($C56="RP",$C56="SP")),"",VLOOKUP($B56,Hitter!$A$1:$AH$700,27,FALSE)),"") -> 0.2511293138 | U56: =IFERROR(IF((OR($C56="RP",$C56="SP")),"",VLOOKUP($B56,Hitter!$A$1:$AH$700,9,FALSE)),"") -> 21.35253732 | V56: =IFERROR(IF((OR($C56="RP",$C56="SP")),"",VLOOKUP($B56,Hitter!$A$1:$AH$700,10,FALSE)),"") -> 76.3533531 | W56: =IFERROR(IF((OR($C56="RP",$C56="SP")),"",VLOOKUP($B56,Hitter!$A$1:$AH$700,4,FALSE)),"") -> 77.95918337 | X56: =IFERROR(IF((OR($C56="RP",$C56="SP")),"",VLOOKUP($B56,Hitter!$A$1:$AH$700,11,FALSE)),"") -> 3.707035419 | Y56: =IFERROR(IF(ISTEXT($A56),"",(1-NORMDIST((COUNTA($A$4:$A$743)),($G56),((AD56-AC56)/6),TRUE))),"") -> 1 | Z56: =IFERROR(IF(ISTEXT($A56),"",(1-NORMDIST((COUNTA($A$4:$A$743))+(Personalize!$E$18+1),$G56,((AD56-AC56)/6),TRUE))),"") -> 1 | AA56: =IFERROR(IF(ISTEXT($A56),"",(1-NORMDIST((COUNTA($A$4:$A$743))+((Personalize!$E$18+1)*2),$G56,((AD56-AC56)/6),TRUE))),"") -> 1 | AC56: =IF(Personalize!$E$34=1,VLOOKUP($B56,'ADP-Rank'!$A$2:$J$700,5,FALSE),(IF(Personalize!$E$34=2,VLOOKUP($B56,'ADP-Rank'!$A$2:$J$700,8,FALSE),(IF(Personalize!$E$34=3,VLOOKUP($B56,'ADP-Rank'!$A$2:$O$700,11,FALSE),(IF(Personalize!$E$31=4,VLOOKUP($B56,'ADP-Rank'!$A$2:$AZ$700,25,FALSE),(IF(Personalize!$E$31=5,VLOOKUP($B56,'ADP-Rank'!$A$2:$AZ$700,28,FALSE),(IF(Personalize!$E$31=6,VLOOKUP($B56,'ADP-Rank'!$A$2:$AZ$700,32,FALSE),""))))))))))) -> 39 | AD56: =IF(Personalize!$E$34=1,VLOOKUP($B56,'ADP-Rank'!$A$2:$J$700,6,FALSE),(IF(Personalize!$E$34=2,VLOOKUP($B56,'ADP-Rank'!$A$2:$J$700,9,FALSE),(IF(Personalize!$E$34=3,VLOOKUP($B56,'ADP-Rank'!$A$2:$O$700,12,FALSE),(IF(Personalize!$E$31=4,VLOOKUP($B56,'ADP-Rank'!$A$2:$AZ$700,26,FALSE),(IF(Personalize!$E$31=5,VLOOKUP($B56,'ADP-Rank'!$A$2:$AZ$700,29,FALSE),(IF(Personalize!$E$31=6,VLOOKUP($B56,'ADP-Rank'!$A$2:$AZ$700,33,FALSE),""))))))))))) -> 68 | AE56: =IF(ISBLANK(A56),0,1) -> 0 | AF56: =IF(K56="",0,1) -> 1 | AG56: =A56 -> 0 | AH56: =IF(C56="C",1,IF(C56="1B",2,IF(C56="2B",3,IF(C56="3B",4,IF(C56="SS",5,IF(C56="CI",6,IF(C56="MI",7,IF(C56="OF",11,IF(C56="LF",8,IF(C56="CF",9,IF(C56="RF",10,IF(C56="DH",12,IF(C56="SP",13,IF(C56="RP",14,IF(C56="P",15,16))))))))))))))) -> 1 | AI56: =VLOOKUP(B56,'Starter Calc'!$B$2:$BN$700,65,FALSE) -> Bench | AJ56: =IFERROR(VLOOKUP($B56,'ADP-Rank'!$A$2:$AH$964,34,FALSE),TRUE) -> TRUE
B57: Allen Craig | C57: =IFERROR(IF(VLOOKUP(B57,'ADP-Rank'!$A$2:$B$700,2,FALSE)="OF",VLOOKUP(B57,'Starter Calc'!$B$2:$AM$700,38,FALSE),(VLOOKUP(B57,'ADP-Rank'!$A$2:$B$700,2,FALSE))),"") -> 1B | D57: =IFERROR(IF(VLOOKUP(B57,'Starter Calc'!$B$2:$E$700,4,FALSE)="","",VLOOKUP(B57,'Starter Calc'!$B$2:$E$700,4,FALSE)),"") -> RF | E57: =IFERROR(VLOOKUP($B57,'ADP-Rank'!$A$2:$D$700,3,FALSE),"") -> STL | F57: =IFERROR(VLOOKUP($B57,'ADP-Rank'!$A$2:$W$700,23,FALSE),"") -> 29 | G57: =IFERROR((IF(Personalize!$E$38=1,VLOOKUP($B57,'ADP-Rank'!$A$2:$J$700,4,FALSE),(IF(Personalize!$E$38=2,VLOOKUP($B57,'ADP-Rank'!$A$2:$J$700,7,FALSE),(IF(Personalize!$E$38=3,VLOOKUP($B57,'ADP-Rank'!$A$2:$J$700,10,FALSE),(IF(Personalize!$E$38=4,VLOOKUP($B57,'ADP-Rank'!$A$2:$AD$700,24,FALSE),(IF(Personalize!$E$38=5,VLOOKUP($B57,'ADP-Rank'!$A$2:$AD$700,27,FALSE),VLOOKUP($B57,'ADP-Rank'!$A$2:$AZ$700,30,FALSE))))))))))),"") -> 55.2 | H57: =IFERROR(ROUNDDOWN(VLOOKUP($B57,'ADP-Rank'!$A$2:$AY$1064,38,FALSE),0),"") -> 5 | I57: =VLOOKUP($B57,'ADP-Rank'!$A$2:$AJ$1064,36,FALSE) -> 42 | J57: =IFERROR(RANK($M57,$M$4:$M$743,0),"") -> 118 | K57: =IFERROR(IF((OR($C57="RP",$C57="SP")),VLOOKUP($B57,Pitcher!$A$1:$Z$700,20,FALSE),(VLOOKUP($B57,Hitter!$A$1:$Z$700,26,FALSE))),"") -> 361.4589543 | L57: =IFERROR(IF((OR($C57="RP",$C57="SP")),VLOOKUP($C57,'Filtered-P'!$M$3:$P$4,4,FALSE), VLOOKUP($C57,Filtered!$Q$3:$T$14,4,FALSE)),"") -> 395.2780551 | M57: =IFERROR(K57-L57,"") -> -33.81910075 | N57: =IFERROR(IF((OR($C57="RP",$C57="SP")),VLOOKUP($B57,Pitcher!$A$1:$Z$700,20,FALSE)/VLOOKUP($B57,Pitcher!$A$1:$Z$700,4,FALSE),(VLOOKUP($B57,Hitter!$A$1:$Z$700,26,FALSE)/VLOOKUP($B57,Hitter!$A$1:$Z$700,2,FALSE))),"") -> 0.6588686981 | O57: =IFERROR(IF((OR($C57="RP",$C57="SP")),VLOOKUP($B57,Pitcher!$A$1:$V$700,2,FALSE),""),"") ->  | P57: =IFERROR(IF((OR($C57="RP",$C57="SP")),VLOOKUP($B57,Pitcher!$A$1:$V$700,9,FALSE),""),"") ->  | Q57: =IFERROR(IF((OR($C57="RP",$C57="SP")),VLOOKUP($B57,Pitcher!$A$1:$V$700,7,FALSE),""),"") ->  | R57: =IFERROR(IF((OR($C57="RP",$C57="SP")),VLOOKUP($B57,Pitcher!$A$1:$AB$700,21,FALSE),""),"") ->  | S57: =IFERROR(IF((OR($C57="RP",$C57="SP")),VLOOKUP($B57,Pitcher!$A$1:$V$700,22,FALSE),""),"") ->  | T57: =IFERROR(IF((OR($C57="RP",$C57="SP")),"",VLOOKUP($B57,Hitter!$A$1:$AH$700,27,FALSE)),"") -> 0.2929542121 | U57: =IFERROR(IF((OR($C57="RP",$C57="SP")),"",VLOOKUP($B57,Hitter!$A$1:$AH$700,9,FALSE)),"") -> 22.96707136 | V57: =IFERROR(IF((OR($C57="RP",$C57="SP")),"",VLOOKUP($B57,Hitter!$A$1:$AH$700,10,FALSE)),"") -> 86.09247391 | W57: =IFERROR(IF((OR($C57="RP",$C57="SP")),"",VLOOKUP($B57,Hitter!$A$1:$AH$700,4,FALSE)),"") -> 79.16261521 | X57: =IFERROR(IF((OR($C57="RP",$C57="SP")),"",VLOOKUP($B57,Hitter!$A$1:$AH$700,11,FALSE)),"") -> 3.606008661 | Y57: =IFERROR(IF(ISTEXT($A57),"",(1-NORMDIST((COUNTA($A$4:$A$743)),($G57),((AD57-AC57)/6),TRUE))),"") -> 0.9999412208 | Z57: =IFERROR(IF(ISTEXT($A57),"",(1-NORMDIST((COUNTA($A$4:$A$743))+(Personalize!$E$18+1),$G57,((AD57-AC57)/6),TRUE))),"") -> 0.9998451073 | AA57: =IFERROR(IF(ISTEXT($A57),"",(1-NORMDIST((COUNTA($A$4:$A$743))+((Personalize!$E$18+1)*2),$G57,((AD57-AC57)/6),TRUE))),"") -> 0.9996142058 | AC57: =IF(Personalize!$E$34=1,VLOOKUP($B57,'ADP-Rank'!$A$2:$J$700,5,FALSE),(IF(Personalize!$E$34=2,VLOOKUP($B57,'ADP-Rank'!$A$2:$J$700,8,FALSE),(IF(Personalize!$E$34=3,VLOOKUP($B57,'ADP-Rank'!$A$2:$O$700,11,FALSE),(IF(Personalize!$E$31=4,VLOOKUP($B57,'ADP-Rank'!$A$2:$AZ$700,25,FALSE),(IF(Personalize!$E$31=5,VLOOKUP($B57,'ADP-Rank'!$A$2:$AZ$700,28,FALSE),(IF(Personalize!$E$31=6,VLOOKUP($B57,'ADP-Rank'!$A$2:$AZ$700,32,FALSE),""))))))))))) -> 31 | AD57: =IF(Personalize!$E$34=1,VLOOKUP($B57,'ADP-Rank'!$A$2:$J$700,6,FALSE),(IF(Personalize!$E$34=2,VLOOKUP($B57,'ADP-Rank'!$A$2:$J$700,9,FALSE),(IF(Personalize!$E$34=3,VLOOKUP($B57,'ADP-Rank'!$A$2:$O$700,12,FALSE),(IF(Personalize!$E$31=4,VLOOKUP($B57,'ADP-Rank'!$A$2:$AZ$700,26,FALSE),(IF(Personalize!$E$31=5,VLOOKUP($B57,'ADP-Rank'!$A$2:$AZ$700,29,FALSE),(IF(Personalize!$E$31=6,VLOOKUP($B57,'ADP-Rank'!$A$2:$AZ$700,33,FALSE),""))))))))))) -> 117 | AE57: =IF(ISBLANK(A57),0,1) -> 0 | AF57: =IF(K57="",0,1) -> 1 | AG57: =A57 -> 0 | AH57: =IF(C57="C",1,IF(C57="1B",2,IF(C57="2B",3,IF(C57="3B",4,IF(C57="SS",5,IF(C57="CI",6,IF(C57="MI",7,IF(C57="OF",11,IF(C57="LF",8,IF(C57="CF",9,IF(C57="RF",10,IF(C57="DH",12,IF(C57="SP",13,IF(C57="RP",14,IF(C57="P",15,16))))))))))))))) -> 2 | AI57: =VLOOKUP(B57,'Starter Calc'!$B$2:$BN$700,65,FALSE) -> Bench | AJ57: =IFERROR(VLOOKUP($B57,'ADP-Rank'!$A$2:$AH$964,34,FALSE),TRUE) -> TRUE
B58: Jacoby Ellsbury | C58: =IFERROR(IF(VLOOKUP(B58,'ADP-Rank'!$A$2:$B$700,2,FALSE)="OF",VLOOKUP(B58,'Starter Calc'!$B$2:$AM$700,38,FALSE),(VLOOKUP(B58,'ADP-Rank'!$A$2:$B$700,2,FALSE))),"") -> OF | D58: =IFERROR(IF(VLOOKUP(B58,'Starter Calc'!$B$2:$E$700,4,FALSE)="","",VLOOKUP(B58,'Starter Calc'!$B$2:$E$700,4,FALSE)),"") -> CF | E58: =IFERROR(VLOOKUP($B58,'ADP-Rank'!$A$2:$D$700,3,FALSE),"") -> BOS | F58: =IFERROR(VLOOKUP($B58,'ADP-Rank'!$A$2:$W$700,23,FALSE),"") -> 30 | G58: =IFERROR((IF(Personalize!$E$38=1,VLOOKUP($B58,'ADP-Rank'!$A$2:$J$700,4,FALSE),(IF(Personalize!$E$38=2,VLOOKUP($B58,'ADP-Rank'!$A$2:$J$700,7,FALSE),(IF(Personalize!$E$38=3,VLOOKUP($B58,'ADP-Rank'!$A$2:$J$700,10,FALSE),(IF(Personalize!$E$38=4,VLOOKUP($B58,'ADP-Rank'!$A$2:$AD$700,24,FALSE),(IF(Personalize!$E$38=5,VLOOKUP($B58,'ADP-Rank'!$A$2:$AD$700,27,FALSE),VLOOKUP($B58,'ADP-Rank'!$A$2:$AZ$700,30,FALSE))))))))))),"") -> 55.8 | H58: =IFERROR(ROUNDDOWN(VLOOKUP($B58,'ADP-Rank'!$A$2:$AY$1064,38,FALSE),0),"") -> 5 | I58: =VLOOKUP($B58,'ADP-Rank'!$A$2:$AJ$1064,36,FALSE) -> 38 | J58: =IFERROR(RANK($M58,$M$4:$M$743,0),"") -> 105 | K58: =IFERROR(IF((OR($C58="RP",$C58="SP")),VLOOKUP($B58,Pitcher!$A$1:$Z$700,20,FALSE),(VLOOKUP($B58,Hitter!$A$1:$Z$700,26,FALSE))),"") -> 343.9054287 | L58: =IFERROR(IF((OR($C58="RP",$C58="SP")),VLOOKUP($C58,'Filtered-P'!$M$3:$P$4,4,FALSE), VLOOKUP($C58,Filtered!$Q$3:$T$14,4,FALSE)),"") -> 368.4885837 | M58: =IFERROR(K58-L58,"") -> -24.58315499 | N58: =IFERROR(IF((OR($C58="RP",$C58="SP")),VLOOKUP($B58,Pitcher!$A$1:$Z$700,20,FALSE)/VLOOKUP($B58,Pitcher!$A$1:$Z$700,4,FALSE),(VLOOKUP($B58,Hitter!$A$1:$Z$700,26,FALSE)/VLOOKUP($B58,Hitter!$A$1:$Z$700,2,FALSE))),"") -> 0.6155047708 | O58: =IFERROR(IF((OR($C58="RP",$C58="SP")),VLOOKUP($B58,Pitcher!$A$1:$V$700,2,FALSE),""),"") ->  | P58: =IFERROR(IF((OR($C58="RP",$C58="SP")),VLOOKUP($B58,Pitcher!$A$1:$V$700,9,FALSE),""),"") ->  | Q58: =IFERROR(IF((OR($C58="RP",$C58="SP")),VLOOKUP($B58,Pitcher!$A$1:$V$700,7,FALSE),""),"") ->  | R58: =IFERROR(IF((OR($C58="RP",$C58="SP")),VLOOKUP($B58,Pitcher!$A$1:$AB$700,21,FALSE),""),"") ->  | S58: =IFERROR(IF((OR($C58="RP",$C58="SP")),VLOOKUP($B58,Pitcher!$A$1:$V$700,22,FALSE),""),"") ->  | T58: =IFERROR(IF((OR($C58="RP",$C58="SP")),"",VLOOKUP($B58,Hitter!$A$1:$AH$700,27,FALSE)),"") -> 0.2840301356 | U58: =IFERROR(IF((OR($C58="RP",$C58="SP")),"",VLOOKUP($B58,Hitter!$A$1:$AH$700,9,FALSE)),"") -> 13.41638884 | V58: =IFERROR(IF((OR($C58="RP",$C58="SP")),"",VLOOKUP($B58,Hitter!$A$1:$AH$700,10,FALSE)),"") -> 58.33436727 | W58: =IFERROR(IF((OR($C58="RP",$C58="SP")),"",VLOOKUP($B58,Hitter!$A$1:$AH$700,4,FALSE)),"") -> 81.81923823 | X58: =IFERROR(IF((OR($C58="RP",$C58="SP")),"",VLOOKUP($B58,Hitter!$A$1:$AH$700,11,FALSE)),"") -> 26.9104338 | Y58: =IFERROR(IF(ISTEXT($A58),"",(1-NORMDIST((COUNTA($A$4:$A$743)),($G58),((AD58-AC58)/6),TRUE))),"") -> 1 | Z58: =IFERROR(IF(ISTEXT($A58),"",(1-NORMDIST((COUNTA($A$4:$A$743))+(Personalize!$E$18+1),$G58,((AD58-AC58)/6),TRUE))),"") -> 1 | AA58: =IFERROR(IF(ISTEXT($A58),"",(1-NORMDIST((COUNTA($A$4:$A$743))+((Personalize!$E$18+1)*2),$G58,((AD58-AC58)/6),TRUE))),"") -> 1 | AC58: =IF(Personalize!$E$34=1,VLOOKUP($B58,'ADP-Rank'!$A$2:$J$700,5,FALSE),(IF(Personalize!$E$34=2,VLOOKUP($B58,'ADP-Rank'!$A$2:$J$700,8,FALSE),(IF(Personalize!$E$34=3,VLOOKUP($B58,'ADP-Rank'!$A$2:$O$700,11,FALSE),(IF(Personalize!$E$31=4,VLOOKUP($B58,'ADP-Rank'!$A$2:$AZ$700,25,FALSE),(IF(Personalize!$E$31=5,VLOOKUP($B58,'ADP-Rank'!$A$2:$AZ$700,28,FALSE),(IF(Personalize!$E$31=6,VLOOKUP($B58,'ADP-Rank'!$A$2:$AZ$700,32,FALSE),""))))))))))) -> 29 | AD58: =IF(Personalize!$E$34=1,VLOOKUP($B58,'ADP-Rank'!$A$2:$J$700,6,FALSE),(IF(Personalize!$E$34=2,VLOOKUP($B58,'ADP-Rank'!$A$2:$J$700,9,FALSE),(IF(Personalize!$E$34=3,VLOOKUP($B58,'ADP-Rank'!$A$2:$O$700,12,FALSE),(IF(Personalize!$E$31=4,VLOOKUP($B58,'ADP-Rank'!$A$2:$AZ$700,26,FALSE),(IF(Personalize!$E$31=5,VLOOKUP($B58,'ADP-Rank'!$A$2:$AZ$700,29,FALSE),(IF(Personalize!$E$31=6,VLOOKUP($B58,'ADP-Rank'!$A$2:$AZ$700,33,FALSE),""))))))))))) -> 55 | AE58: =IF(ISBLANK(A58),0,1) -> 0 | AF58: =IF(K58="",0,1) -> 1 | AG58: =A58 -> 0 | AH58: =IF(C58="C",1,IF(C58="1B",2,IF(C58="2B",3,IF(C58="3B",4,IF(C58="SS",5,IF(C58="CI",6,IF(C58="MI",7,IF(C58="OF",11,IF(C58="LF",8,IF(C58="CF",9,IF(C58="RF",10,IF(C58="DH",12,IF(C58="SP",13,IF(C58="RP",14,IF(C58="P",15,16))))))))))))))) -> 11 | AI58: =VLOOKUP(B58,'Starter Calc'!$B$2:$BN$700,65,FALSE) -> Bench | AJ58: =IFERROR(VLOOKUP($B58,'ADP-Rank'!$A$2:$AH$964,34,FALSE),TRUE) -> TRUE
B59: Johnny Cueto | C59: =IFERROR(IF(VLOOKUP(B59,'ADP-Rank'!$A$2:$B$700,2,FALSE)="OF",VLOOKUP(B59,'Starter Calc'!$B$2:$AM$700,38,FALSE),(VLOOKUP(B59,'ADP-Rank'!$A$2:$B$700,2,FALSE))),"") -> SP | D59: =IFERROR(IF(VLOOKUP(B59,'Starter Calc'!$B$2:$E$700,4,FALSE)="","",VLOOKUP(B59,'Starter Calc'!$B$2:$E$700,4,FALSE)),"") ->  | E59: =IFERROR(VLOOKUP($B59,'ADP-Rank'!$A$2:$D$700,3,FALSE),"") -> CIN | F59: =IFERROR(VLOOKUP($B59,'ADP-Rank'!$A$2:$W$700,23,FALSE),"") -> 27 | G59: =IFERROR((IF(Personalize!$E$38=1,VLOOKUP($B59,'ADP-Rank'!$A$2:$J$700,4,FALSE),(IF(Personalize!$E$38=2,VLOOKUP($B59,'ADP-Rank'!$A$2:$J$700,7,FALSE),(IF(Personalize!$E$38=3,VLOOKUP($B59,'ADP-Rank'!$A$2:$J$700,10,FALSE),(IF(Personalize!$E$38=4,VLOOKUP($B59,'ADP-Rank'!$A$2:$AD$700,24,FALSE),(IF(Personalize!$E$38=5,VLOOKUP($B59,'ADP-Rank'!$A$2:$AD$700,27,FALSE),VLOOKUP($B59,'ADP-Rank'!$A$2:$AZ$700,30,FALSE))))))))))),"") -> 56.71 | H59: =IFERROR(ROUNDDOWN(VLOOKUP($B59,'ADP-Rank'!$A$2:$AY$1064,38,FALSE),0),"") -> 5 | I59: =VLOOKUP($B59,'ADP-Rank'!$A$2:$AJ$1064,36,FALSE) -> 66 | J59: =IFERROR(RANK($M59,$M$4:$M$743,0),"") -> 160 | K59: =IFERROR(IF((OR($C59="RP",$C59="SP")),VLOOKUP($B59,Pitcher!$A$1:$Z$700,20,FALSE),(VLOOKUP($B59,Hitter!$A$1:$Z$700,26,FALSE))),"") -> 295.7691984 | L59: =IFERROR(IF((OR($C59="RP",$C59="SP")),VLOOKUP($C59,'Filtered-P'!$M$3:$P$4,4,FALSE), VLOOKUP($C59,Filtered!$Q$3:$T$14,4,FALSE)),"") -> 357.2271519 | M59: =IFERROR(K59-L59,"") -> -61.4579535 | N59: =IFERROR(IF((OR($C59="RP",$C59="SP")),VLOOKUP($B59,Pitcher!$A$1:$Z$700,20,FALSE)/VLOOKUP($B59,Pitcher!$A$1:$Z$700,4,FALSE),(VLOOKUP($B59,Hitter!$A$1:$Z$700,26,FALSE)/VLOOKUP($B59,Hitter!$A$1:$Z$700,2,FALSE))),"") -> 1.606655432 | O59: =IFERROR(IF((OR($C59="RP",$C59="SP")),VLOOKUP($B59,Pitcher!$A$1:$V$700,2,FALSE),""),"") -> 13.96 | P59: =IFERROR(IF((OR($C59="RP",$C59="SP")),VLOOKUP($B59,Pitcher!$A$1:$V$700,9,FALSE),""),"") -> 0 | Q59: =IFERROR(IF((OR($C59="RP",$C59="SP")),VLOOKUP($B59,Pitcher!$A$1:$V$700,7,FALSE),""),"") -> 142.0396794 | R59: =IFERROR(IF((OR($C59="RP",$C59="SP")),VLOOKUP($B59,Pitcher!$A$1:$AB$700,21,FALSE),""),"") -> 3.622195665 | S59: =IFERROR(IF((OR($C59="RP",$C59="SP")),VLOOKUP($B59,Pitcher!$A$1:$V$700,22,FALSE),""),"") -> 1.244554294 | T59: =IFERROR(IF((OR($C59="RP",$C59="SP")),"",VLOOKUP($B59,Hitter!$A$1:$AH$700,27,FALSE)),"") ->  | U59: =IFERROR(IF((OR($C59="RP",$C59="SP")),"",VLOOKUP($B59,Hitter!$A$1:$AH$700,9,FALSE)),"") ->  | V59: =IFERROR(IF((OR($C59="RP",$C59="SP")),"",VLOOKUP($B59,Hitter!$A$1:$AH$700,10,FALSE)),"") ->  | W59: =IFERROR(IF((OR($C59="RP",$C59="SP")),"",VLOOKUP($B59,Hitter!$A$1:$AH$700,4,FALSE)),"") ->  | X59: =IFERROR(IF((OR($C59="RP",$C59="SP")),"",VLOOKUP($B59,Hitter!$A$1:$AH$700,11,FALSE)),"") ->  | Y59: =IFERROR(IF(ISTEXT($A59),"",(1-NORMDIST((COUNTA($A$4:$A$743)),($G59),((AD59-AC59)/6),TRUE))),"") -> 0.9999999929 | Z59: =IFERROR(IF(ISTEXT($A59),"",(1-NORMDIST((COUNTA($A$4:$A$743))+(Personalize!$E$18+1),$G59,((AD59-AC59)/6),TRUE))),"") -> 0.9999999484 | AA59: =IFERROR(IF(ISTEXT($A59),"",(1-NORMDIST((COUNTA($A$4:$A$743))+((Personalize!$E$18+1)*2),$G59,((AD59-AC59)/6),TRUE))),"") -> 0.999999667 | AC59: =IF(Personalize!$E$34=1,VLOOKUP($B59,'ADP-Rank'!$A$2:$J$700,5,FALSE),(IF(Personalize!$E$34=2,VLOOKUP($B59,'ADP-Rank'!$A$2:$J$700,8,FALSE),(IF(Personalize!$E$34=3,VLOOKUP($B59,'ADP-Rank'!$A$2:$O$700,11,FALSE),(IF(Personalize!$E$31=4,VLOOKUP($B59,'ADP-Rank'!$A$2:$AZ$700,25,FALSE),(IF(Personalize!$E$31=5,VLOOKUP($B59,'ADP-Rank'!$A$2:$AZ$700,28,FALSE),(IF(Personalize!$E$31=6,VLOOKUP($B59,'ADP-Rank'!$A$2:$AZ$700,32,FALSE),""))))))))))) -> 62 | AD59: =IF(Personalize!$E$34=1,VLOOKUP($B59,'ADP-Rank'!$A$2:$J$700,6,FALSE),(IF(Personalize!$E$34=2,VLOOKUP($B59,'ADP-Rank'!$A$2:$J$700,9,FALSE),(IF(Personalize!$E$34=3,VLOOKUP($B59,'ADP-Rank'!$A$2:$O$700,12,FALSE),(IF(Personalize!$E$31=4,VLOOKUP($B59,'ADP-Rank'!$A$2:$AZ$700,26,FALSE),(IF(Personalize!$E$31=5,VLOOKUP($B59,'ADP-Rank'!$A$2:$AZ$700,29,FALSE),(IF(Personalize!$E$31=6,VLOOKUP($B59,'ADP-Rank'!$A$2:$AZ$700,33,FALSE),""))))))))))) -> 122 | AE59: =IF(ISBLANK(A59),0,1) -> 0 | AF59: =IF(K59="",0,1) -> 1 | AG59: =A59 -> 0 | AH59: =IF(C59="C",1,IF(C59="1B",2,IF(C59="2B",3,IF(C59="3B",4,IF(C59="SS",5,IF(C59="CI",6,IF(C59="MI",7,IF(C59="OF",11,IF(C59="LF",8,IF(C59="CF",9,IF(C59="RF",10,IF(C59="DH",12,IF(C59="SP",13,IF(C59="RP",14,IF(C59="P",15,16))))))))))))))) -> 13 | AI59: =VLOOKUP(B59,'Starter Calc'!$B$2:$BN$700,65,FALSE) -> Bench | AJ59: =IFERROR(VLOOKUP($B59,'ADP-Rank'!$A$2:$AH$964,34,FALSE),TRUE) -> TRUE
B60: Adam Jones | C60: =IFERROR(IF(VLOOKUP(B60,'ADP-Rank'!$A$2:$B$700,2,FALSE)="OF",VLOOKUP(B60,'Starter Calc'!$B$2:$AM$700,38,FALSE),(VLOOKUP(B60,'ADP-Rank'!$A$2:$B$700,2,FALSE))),"") -> OF | D60: =IFERROR(IF(VLOOKUP(B60,'Starter Calc'!$B$2:$E$700,4,FALSE)="","",VLOOKUP(B60,'Starter Calc'!$B$2:$E$700,4,FALSE)),"") -> CF | E60: =IFERROR(VLOOKUP($B60,'ADP-Rank'!$A$2:$D$700,3,FALSE),"") -> BAL | F60: =IFERROR(VLOOKUP($B60,'ADP-Rank'!$A$2:$W$700,23,FALSE),"") -> 28 | G60: =IFERROR((IF(Personalize!$E$38=1,VLOOKUP($B60,'ADP-Rank'!$A$2:$J$700,4,FALSE),(IF(Personalize!$E$38=2,VLOOKUP($B60,'ADP-Rank'!$A$2:$J$700,7,FALSE),(IF(Personalize!$E$38=3,VLOOKUP($B60,'ADP-Rank'!$A$2:$J$700,10,FALSE),(IF(Personalize!$E$38=4,VLOOKUP($B60,'ADP-Rank'!$A$2:$AD$700,24,FALSE),(IF(Personalize!$E$38=5,VLOOKUP($B60,'ADP-Rank'!$A$2:$AD$700,27,FALSE),VLOOKUP($B60,'ADP-Rank'!$A$2:$AZ$700,30,FALSE))))))))))),"") -> 57.53 | H60: =IFERROR(ROUNDDOWN(VLOOKUP($B60,'ADP-Rank'!$A$2:$AY$1064,38,FALSE),0),"") -> 5 | I60: =VLOOKUP($B60,'ADP-Rank'!$A$2:$AJ$1064,36,FALSE) -> 36 | J60: =IFERROR(RANK($M60,$M$4:$M$743,0),"") -> 55 | K60: =IFERROR(IF((OR($C60="RP",$C60="SP")),VLOOKUP($B60,Pitcher!$A$1:$Z$700,20,FALSE),(VLOOKUP($B60,Hitter!$A$1:$Z$700,26,FALSE))),"") -> 395.7720391 | L60: =IFERROR(IF((OR($C60="RP",$C60="SP")),VLOOKUP($C60,'Filtered-P'!$M$3:$P$4,4,FALSE), VLOOKUP($C60,Filtered!$Q$3:$T$14,4,FALSE)),"") -> 368.4885837 | M60: =IFERROR(K60-L60,"") -> 27.2834554 | N60: =IFERROR(IF((OR($C60="RP",$C60="SP")),VLOOKUP($B60,Pitcher!$A$1:$Z$700,20,FALSE)/VLOOKUP($B60,Pitcher!$A$1:$Z$700,4,FALSE),(VLOOKUP($B60,Hitter!$A$1:$Z$700,26,FALSE)/VLOOKUP($B60,Hitter!$A$1:$Z$700,2,FALSE))),"") -> 0.6040805248 | O60: =IFERROR(IF((OR($C60="RP",$C60="SP")),VLOOKUP($B60,Pitcher!$A$1:$V$700,2,FALSE),""),"") ->  | P60: =IFERROR(IF((OR($C60="RP",$C60="SP")),VLOOKUP($B60,Pitcher!$A$1:$V$700,9,FALSE),""),"") ->  | Q60: =IFERROR(IF((OR($C60="RP",$C60="SP")),VLOOKUP($B60,Pitcher!$A$1:$V$700,7,FALSE),""),"") ->  | R60: =IFERROR(IF((OR($C60="RP",$C60="SP")),VLOOKUP($B60,Pitcher!$A$1:$AB$700,21,FALSE),""),"") ->  | S60: =IFERROR(IF((OR($C60="RP",$C60="SP")),VLOOKUP($B60,Pitcher!$A$1:$V$700,22,FALSE),""),"") ->  | T60: =IFERROR(IF((OR($C60="RP",$C60="SP")),"",VLOOKUP($B60,Hitter!$A$1:$AH$700,27,FALSE)),"") -> 0.2806984282 | U60: =IFERROR(IF((OR($C60="RP",$C60="SP")),"",VLOOKUP($B60,Hitter!$A$1:$AH$700,9,FALSE)),"") -> 28.07948676 | V60: =IFERROR(IF((OR($C60="RP",$C60="SP")),"",VLOOKUP($B60,Hitter!$A$1:$AH$700,10,FALSE)),"") -> 90.37899619 | W60: =IFERROR(IF((OR($C60="RP",$C60="SP")),"",VLOOKUP($B60,Hitter!$A$1:$AH$700,4,FALSE)),"") -> 90.35209569 | X60: =IFERROR(IF((OR($C60="RP",$C60="SP")),"",VLOOKUP($B60,Hitter!$A$1:$AH$700,11,FALSE)),"") -> 12.76132236 | Y60: =IFERROR(IF(ISTEXT($A60),"",(1-NORMDIST((COUNTA($A$4:$A$743)),($G60),((AD60-AC60)/6),TRUE))),"") -> 1 | Z60: =IFERROR(IF(ISTEXT($A60),"",(1-NORMDIST((COUNTA($A$4:$A$743))+(Personalize!$E$18+1),$G60,((AD60-AC60)/6),TRUE))),"") -> 1 | AA60: =IFERROR(IF(ISTEXT($A60),"",(1-NORMDIST((COUNTA($A$4:$A$743))+((Personalize!$E$18+1)*2),$G60,((AD60-AC60)/6),TRUE))),"") -> 1 | AB60: Due for increase in AVG | AC60: =IF(Personalize!$E$34=1,VLOOKUP($B60,'ADP-Rank'!$A$2:$J$700,5,FALSE),(IF(Personalize!$E$34=2,VLOOKUP($B60,'ADP-Rank'!$A$2:$J$700,8,FALSE),(IF(Personalize!$E$34=3,VLOOKUP($B60,'ADP-Rank'!$A$2:$O$700,11,FALSE),(IF(Personalize!$E$31=4,VLOOKUP($B60,'ADP-Rank'!$A$2:$AZ$700,25,FALSE),(IF(Personalize!$E$31=5,VLOOKUP($B60,'ADP-Rank'!$A$2:$AZ$700,28,FALSE),(IF(Personalize!$E$31=6,VLOOKUP($B60,'ADP-Rank'!$A$2:$AZ$700,32,FALSE),""))))))))))) -> 18 | AD60: =IF(Personalize!$E$34=1,VLOOKUP($B60,'ADP-Rank'!$A$2:$J$700,6,FALSE),(IF(Personalize!$E$34=2,VLOOKUP($B60,'ADP-Rank'!$A$2:$J$700,9,FALSE),(IF(Personalize!$E$34=3,VLOOKUP($B60,'ADP-Rank'!$A$2:$O$700,12,FALSE),(IF(Personalize!$E$31=4,VLOOKUP($B60,'ADP-Rank'!$A$2:$AZ$700,26,FALSE),(IF(Personalize!$E$31=5,VLOOKUP($B60,'ADP-Rank'!$A$2:$AZ$700,29,FALSE),(IF(Personalize!$E$31=6,VLOOKUP($B60,'ADP-Rank'!$A$2:$AZ$700,33,FALSE),""))))))))))) -> 39 | AE60: =IF(ISBLANK(A60),0,1) -> 0 | AF60: =IF(K60="",0,1) -> 1 | AG60: =A60 -> 0 | AH60: =IF(C60="C",1,IF(C60="1B",2,IF(C60="2B",3,IF(C60="3B",4,IF(C60="SS",5,IF(C60="CI",6,IF(C60="MI",7,IF(C60="OF",11,IF(C60="LF",8,IF(C60="CF",9,IF(C60="RF",10,IF(C60="DH",12,IF(C60="SP",13,IF(C60="RP",14,IF(C60="P",15,16))))))))))))))) -> 11 | AI60: =VLOOKUP(B60,'Starter Calc'!$B$2:$BN$700,65,FALSE) -> Bench | AJ60: =IFERROR(VLOOKUP($B60,'ADP-Rank'!$A$2:$AH$964,34,FALSE),TRUE) -> TRUE
B61: Alex Gordon | C61: =IFERROR(IF(VLOOKUP(B61,'ADP-Rank'!$A$2:$B$700,2,FALSE)="OF",VLOOKUP(B61,'Starter Calc'!$B$2:$AM$700,38,FALSE),(VLOOKUP(B61,'ADP-Rank'!$A$2:$B$700,2,FALSE))),"") -> OF | D61: =IFERROR(IF(VLOOKUP(B61,'Starter Calc'!$B$2:$E$700,4,FALSE)="","",VLOOKUP(B61,'Starter Calc'!$B$2:$E$700,4,FALSE)),"") -> LF | E61: =IFERROR(VLOOKUP($B61,'ADP-Rank'!$A$2:$D$700,3,FALSE),"") -> KC | F61: =IFERROR(VLOOKUP($B61,'ADP-Rank'!$A$2:$W$700,23,FALSE),"") -> 29 | G61: =IFERROR((IF(Personalize!$E$38=1,VLOOKUP($B61,'ADP-Rank'!$A$2:$J$700,4,FALSE),(IF(Personalize!$E$38=2,VLOOKUP($B61,'ADP-Rank'!$A$2:$J$700,7,FALSE),(IF(Personalize!$E$38=3,VLOOKUP($B61,'ADP-Rank'!$A$2:$J$700,10,FALSE),(IF(Personalize!$E$38=4,VLOOKUP($B61,'ADP-Rank'!$A$2:$AD$700,24,FALSE),(IF(Personalize!$E$38=5,VLOOKUP($B61,'ADP-Rank'!$A$2:$AD$700,27,FALSE),VLOOKUP($B61,'ADP-Rank'!$A$2:$AZ$700,30,FALSE))))))))))),"") -> 59.47 | H61: =IFERROR(ROUNDDOWN(VLOOKUP($B61,'ADP-Rank'!$A$2:$AY$1064,38,FALSE),0),"") -> 5 | I61: =VLOOKUP($B61,'ADP-Rank'!$A$2:$AJ$1064,36,FALSE) -> 78 | J61: =IFERROR(RANK($M61,$M$4:$M$743,0),"") -> 80 | K61: =IFERROR(IF((OR($C61="RP",$C61="SP")),VLOOKUP($B61,Pitcher!$A$1:$Z$700,20,FALSE),(VLOOKUP($B61,Hitter!$A$1:$Z$700,26,FALSE))),"") -> 367.2443815 | L61: =IFERROR(IF((OR($C61="RP",$C61="SP")),VLOOKUP($C61,'Filtered-P'!$M$3:$P$4,4,FALSE), VLOOKUP($C61,Filtered!$Q$3:$T$14,4,FALSE)),"") -> 368.4885837 | M61: =IFERROR(K61-L61,"") -> -1.2442022 | N61: =IFERROR(IF((OR($C61="RP",$C61="SP")),VLOOKUP($B61,Pitcher!$A$1:$Z$700,20,FALSE)/VLOOKUP($B61,Pitcher!$A$1:$Z$700,4,FALSE),(VLOOKUP($B61,Hitter!$A$1:$Z$700,26,FALSE)/VLOOKUP($B61,Hitter!$A$1:$Z$700,2,FALSE))),"") -> 0.5588849554 | O61: =IFERROR(IF((OR($C61="RP",$C61="SP")),VLOOKUP($B61,Pitcher!$A$1:$V$700,2,FALSE),""),"") ->  | P61: =IFERROR(IF((OR($C61="RP",$C61="SP")),VLOOKUP($B61,Pitcher!$A$1:$V$700,9,FALSE),""),"") ->  | Q61: =IFERROR(IF((OR($C61="RP",$C61="SP")),VLOOKUP($B61,Pitcher!$A$1:$V$700,7,FALSE),""),"") ->  | R61: =IFERROR(IF((OR($C61="RP",$C61="SP")),VLOOKUP($B61,Pitcher!$A$1:$AB$700,21,FALSE),""),"") ->  | S61: =IFERROR(IF((OR($C61="RP",$C61="SP")),VLOOKUP($B61,Pitcher!$A$1:$V$700,22,FALSE),""),"") ->  | T61: =IFERROR(IF((OR($C61="RP",$C61="SP")),"",VLOOKUP($B61,Hitter!$A$1:$AH$700,27,FALSE)),"") -> 0.2750171853 | U61: =IFERROR(IF((OR($C61="RP",$C61="SP")),"",VLOOKUP($B61,Hitter!$A$1:$AH$700,9,FALSE)),"") -> 17.94229295 | V61: =IFERROR(IF((OR($C61="RP",$C61="SP")),"",VLOOKUP($B61,Hitter!$A$1:$AH$700,10,FALSE)),"") -> 77.52331203 | W61: =IFERROR(IF((OR($C61="RP",$C61="SP")),"",VLOOKUP($B61,Hitter!$A$1:$AH$700,4,FALSE)),"") -> 88.98692972 | X61: =IFERROR(IF((OR($C61="RP",$C61="SP")),"",VLOOKUP($B61,Hitter!$A$1:$AH$700,11,FALSE)),"") -> 10.34078385 | Y61: =IFERROR(IF(ISTEXT($A61),"",(1-NORMDIST((COUNTA($A$4:$A$743)),($G61),((AD61-AC61)/6),TRUE))),"") -> 1 | Z61: =IFERROR(IF(ISTEXT($A61),"",(1-NORMDIST((COUNTA($A$4:$A$743))+(Personalize!$E$18+1),$G61,((AD61-AC61)/6),TRUE))),"") -> 1 | AA61: =IFERROR(IF(ISTEXT($A61),"",(1-NORMDIST((COUNTA($A$4:$A$743))+((Personalize!$E$18+1)*2),$G61,((AD61-AC61)/6),TRUE))),"") -> 1 | AB61: Due for decrease in 2012 AVG | AC61: =IF(Personalize!$E$34=1,VLOOKUP($B61,'ADP-Rank'!$A$2:$J$700,5,FALSE),(IF(Personalize!$E$34=2,VLOOKUP($B61,'ADP-Rank'!$A$2:$J$700,8,FALSE),(IF(Personalize!$E$34=3,VLOOKUP($B61,'ADP-Rank'!$A$2:$O$700,11,FALSE),(IF(Personalize!$E$31=4,VLOOKUP($B61,'ADP-Rank'!$A$2:$AZ$700,25,FALSE),(IF(Personalize!$E$31=5,VLOOKUP($B61,'ADP-Rank'!$A$2:$AZ$700,28,FALSE),(IF(Personalize!$E$31=6,VLOOKUP($B61,'ADP-Rank'!$A$2:$AZ$700,32,FALSE),""))))))))))) -> 49 | AD61: =IF(Personalize!$E$34=1,VLOOKUP($B61,'ADP-Rank'!$A$2:$J$700,6,FALSE),(IF(Personalize!$E$34=2,VLOOKUP($B61,'ADP-Rank'!$A$2:$J$700,9,FALSE),(IF(Personalize!$E$34=3,VLOOKUP($B61,'ADP-Rank'!$A$2:$O$700,12,FALSE),(IF(Personalize!$E$31=4,VLOOKUP($B61,'ADP-Rank'!$A$2:$AZ$700,26,FALSE),(IF(Personalize!$E$31=5,VLOOKUP($B61,'ADP-Rank'!$A$2:$AZ$700,29,FALSE),(IF(Personalize!$E$31=6,VLOOKUP($B61,'ADP-Rank'!$A$2:$AZ$700,33,FALSE),""))))))))))) -> 78 | AE61: =IF(ISBLANK(A61),0,1) -> 0 | AF61: =IF(K61="",0,1) -> 1 | AG61: =A61 -> 0 | AH61: =IF(C61="C",1,IF(C61="1B",2,IF(C61="2B",3,IF(C61="3B",4,IF(C61="SS",5,IF(C61="CI",6,IF(C61="MI",7,IF(C61="OF",11,IF(C61="LF",8,IF(C61="CF",9,IF(C61="RF",10,IF(C61="DH",12,IF(C61="SP",13,IF(C61="RP",14,IF(C61="P",15,16))))))))))))))) -> 11 | AI61: =VLOOKUP(B61,'Starter Calc'!$B$2:$BN$700,65,FALSE) -> Bench | AJ61: =IFERROR(VLOOKUP($B61,'ADP-Rank'!$A$2:$AH$964,34,FALSE),TRUE) -> TRUE
B62: Joe Mauer | C62: =IFERROR(IF(VLOOKUP(B62,'ADP-Rank'!$A$2:$B$700,2,FALSE)="OF",VLOOKUP(B62,'Starter Calc'!$B$2:$AM$700,38,FALSE),(VLOOKUP(B62,'ADP-Rank'!$A$2:$B$700,2,FALSE))),"") -> C | D62: =IFERROR(IF(VLOOKUP(B62,'Starter Calc'!$B$2:$E$700,4,FALSE)="","",VLOOKUP(B62,'Starter Calc'!$B$2:$E$700,4,FALSE)),"") ->  | E62: =IFERROR(VLOOKUP($B62,'ADP-Rank'!$A$2:$D$700,3,FALSE),"") -> MIN | F62: =IFERROR(VLOOKUP($B62,'ADP-Rank'!$A$2:$W$700,23,FALSE),"") -> 30 | G62: =IFERROR((IF(Personalize!$E$38=1,VLOOKUP($B62,'ADP-Rank'!$A$2:$J$700,4,FALSE),(IF(Personalize!$E$38=2,VLOOKUP($B62,'ADP-Rank'!$A$2:$J$700,7,FALSE),(IF(Personalize!$E$38=3,VLOOKUP($B62,'ADP-Rank'!$A$2:$J$700,10,FALSE),(IF(Personalize!$E$38=4,VLOOKUP($B62,'ADP-Rank'!$A$2:$AD$700,24,FALSE),(IF(Personalize!$E$38=5,VLOOKUP($B62,'ADP-Rank'!$A$2:$AD$700,27,FALSE),VLOOKUP($B62,'ADP-Rank'!$A$2:$AZ$700,30,FALSE))))))))))),"") -> 60.9 | H62: =IFERROR(ROUNDDOWN(VLOOKUP($B62,'ADP-Rank'!$A$2:$AY$1064,38,FALSE),0),"") -> 5 | I62: =VLOOKUP($B62,'ADP-Rank'!$A$2:$AJ$1064,36,FALSE) -> 40 | J62: =IFERROR(RANK($M62,$M$4:$M$743,0),"") -> 30 | K62: =IFERROR(IF((OR($C62="RP",$C62="SP")),VLOOKUP($B62,Pitcher!$A$1:$Z$700,20,FALSE),(VLOOKUP($B62,Hitter!$A$1:$Z$700,26,FALSE))),"") -> 360.1778892 | L62: =IFERROR(IF((OR($C62="RP",$C62="SP")),VLOOKUP($C62,'Filtered-P'!$M$3:$P$4,4,FALSE), VLOOKUP($C62,Filtered!$Q$3:$T$14,4,FALSE)),"") -> 304.9320515 | M62: =IFERROR(K62-L62,"") -> 55.24583768 | N62: =IFERROR(IF((OR($C62="RP",$C62="SP")),VLOOKUP($B62,Pitcher!$A$1:$Z$700,20,FALSE)/VLOOKUP($B62,Pitcher!$A$1:$Z$700,4,FALSE),(VLOOKUP($B62,Hitter!$A$1:$Z$700,26,FALSE)/VLOOKUP($B62,Hitter!$A$1:$Z$700,2,FALSE))),"") -> 0.6223555511 | O62: =IFERROR(IF((OR($C62="RP",$C62="SP")),VLOOKUP($B62,Pitcher!$A$1:$V$700,2,FALSE),""),"") ->  | P62: =IFERROR(IF((OR($C62="RP",$C62="SP")),VLOOKUP($B62,Pitcher!$A$1:$V$700,9,FALSE),""),"") ->  | Q62: =IFERROR(IF((OR($C62="RP",$C62="SP")),VLOOKUP($B62,Pitcher!$A$1:$V$700,7,FALSE),""),"") ->  | R62: =IFERROR(IF((OR($C62="RP",$C62="SP")),VLOOKUP($B62,Pitcher!$A$1:$AB$700,21,FALSE),""),"") ->  | S62: =IFERROR(IF((OR($C62="RP",$C62="SP")),VLOOKUP($B62,Pitcher!$A$1:$V$700,22,FALSE),""),"") ->  | T62: =IFERROR(IF((OR($C62="RP",$C62="SP")),"",VLOOKUP($B62,Hitter!$A$1:$AH$700,27,FALSE)),"") -> 0.3002121106 | U62: =IFERROR(IF((OR($C62="RP",$C62="SP")),"",VLOOKUP($B62,Hitter!$A$1:$AH$700,9,FALSE)),"") -> 10.26549632 | V62: =IFERROR(IF((OR($C62="RP",$C62="SP")),"",VLOOKUP($B62,Hitter!$A$1:$AH$700,10,FALSE)),"") -> 68.92744401 | W62: =IFERROR(IF((OR($C62="RP",$C62="SP")),"",VLOOKUP($B62,Hitter!$A$1:$AH$700,4,FALSE)),"") -> 75.27201714 | X62: =IFERROR(IF((OR($C62="RP",$C62="SP")),"",VLOOKUP($B62,Hitter!$A$1:$AH$700,11,FALSE)),"") -> 3.990418396 | Y62: =IFERROR(IF(ISTEXT($A62),"",(1-NORMDIST((COUNTA($A$4:$A$743)),($G62),((AD62-AC62)/6),TRUE))),"") -> 1 | Z62: =IFERROR(IF(ISTEXT($A62),"",(1-NORMDIST((COUNTA($A$4:$A$743))+(Personalize!$E$18+1),$G62,((AD62-AC62)/6),TRUE))),"") -> 1 | AA62: =IFERROR(IF(ISTEXT($A62),"",(1-NORMDIST((COUNTA($A$4:$A$743))+((Personalize!$E$18+1)*2),$G62,((AD62-AC62)/6),TRUE))),"") -> 1 | AC62: =IF(Personalize!$E$34=1,VLOOKUP($B62,'ADP-Rank'!$A$2:$J$700,5,FALSE),(IF(Personalize!$E$34=2,VLOOKUP($B62,'ADP-Rank'!$A$2:$J$700,8,FALSE),(IF(Personalize!$E$34=3,VLOOKUP($B62,'ADP-Rank'!$A$2:$O$700,11,FALSE),(IF(Personalize!$E$31=4,VLOOKUP($B62,'ADP-Rank'!$A$2:$AZ$700,25,FALSE),(IF(Personalize!$E$31=5,VLOOKUP($B62,'ADP-Rank'!$A$2:$AZ$700,28,FALSE),(IF(Personalize!$E$31=6,VLOOKUP($B62,'ADP-Rank'!$A$2:$AZ$700,32,FALSE),""))))))))))) -> 41 | AD62: =IF(Personalize!$E$34=1,VLOOKUP($B62,'ADP-Rank'!$A$2:$J$700,6,FALSE),(IF(Personalize!$E$34=2,VLOOKUP($B62,'ADP-Rank'!$A$2:$J$700,9,FALSE),(IF(Personalize!$E$34=3,VLOOKUP($B62,'ADP-Rank'!$A$2:$O$700,12,FALSE),(IF(Personalize!$E$31=4,VLOOKUP($B62,'ADP-Rank'!$A$2:$AZ$700,26,FALSE),(IF(Personalize!$E$31=5,VLOOKUP($B62,'ADP-Rank'!$A$2:$AZ$700,29,FALSE),(IF(Personalize!$E$31=6,VLOOKUP($B62,'ADP-Rank'!$A$2:$AZ$700,33,FALSE),""))))))))))) -> 68 | AE62: =IF(ISBLANK(A62),0,1) -> 0 | AF62: =IF(K62="",0,1) -> 1 | AG62: =A62 -> 0 | AH62: =IF(C62="C",1,IF(C62="1B",2,IF(C62="2B",3,IF(C62="3B",4,IF(C62="SS",5,IF(C62="CI",6,IF(C62="MI",7,IF(C62="OF",11,IF(C62="LF",8,IF(C62="CF",9,IF(C62="RF",10,IF(C62="DH",12,IF(C62="SP",13,IF(C62="RP",14,IF(C62="P",15,16))))))))))))))) -> 1 | AI62: =VLOOKUP(B62,'Starter Calc'!$B$2:$BN$700,65,FALSE) -> Bench | AJ62: =IFERROR(VLOOKUP($B62,'ADP-Rank'!$A$2:$AH$964,34,FALSE),TRUE) -> TRUE
B63: Jason Heyward | C63: =IFERROR(IF(VLOOKUP(B63,'ADP-Rank'!$A$2:$B$700,2,FALSE)="OF",VLOOKUP(B63,'Starter Calc'!$B$2:$AM$700,38,FALSE),(VLOOKUP(B63,'ADP-Rank'!$A$2:$B$700,2,FALSE))),"") -> OF | D63: =IFERROR(IF(VLOOKUP(B63,'Starter Calc'!$B$2:$E$700,4,FALSE)="","",VLOOKUP(B63,'Starter Calc'!$B$2:$E$700,4,FALSE)),"") -> RF | E63: =IFERROR(VLOOKUP($B63,'ADP-Rank'!$A$2:$D$700,3,FALSE),"") -> ATL | F63: =IFERROR(VLOOKUP($B63,'ADP-Rank'!$A$2:$W$700,23,FALSE),"") -> 24 | G63: =IFERROR((IF(Personalize!$E$38=1,VLOOKUP($B63,'ADP-Rank'!$A$2:$J$700,4,FALSE),(IF(Personalize!$E$38=2,VLOOKUP($B63,'ADP-Rank'!$A$2:$J$700,7,FALSE),(IF(Personalize!$E$38=3,VLOOKUP($B63,'ADP-Rank'!$A$2:$J$700,10,FALSE),(IF(Personalize!$E$38=4,VLOOKUP($B63,'ADP-Rank'!$A$2:$AD$700,24,FALSE),(IF(Personalize!$E$38=5,VLOOKUP($B63,'ADP-Rank'!$A$2:$AD$700,27,FALSE),VLOOKUP($B63,'ADP-Rank'!$A$2:$AZ$700,30,FALSE))))))))))),"") -> 61.1 | H63: =IFERROR(ROUNDDOWN(VLOOKUP($B63,'ADP-Rank'!$A$2:$AY$1064,38,FALSE),0),"") -> 5 | I63: =VLOOKUP($B63,'ADP-Rank'!$A$2:$AJ$1064,36,FALSE) -> 37 | J63: =IFERROR(RANK($M63,$M$4:$M$743,0),"") -> 56 | K63: =IFERROR(IF((OR($C63="RP",$C63="SP")),VLOOKUP($B63,Pitcher!$A$1:$Z$700,20,FALSE),(VLOOKUP($B63,Hitter!$A$1:$Z$700,26,FALSE))),"") -> 395.2288976 | L63: =IFERROR(IF((OR($C63="RP",$C63="SP")),VLOOKUP($C63,'Filtered-P'!$M$3:$P$4,4,FALSE), VLOOKUP($C63,Filtered!$Q$3:$T$14,4,FALSE)),"") -> 368.4885837 | M63: =IFERROR(K63-L63,"") -> 26.7403139 | N63: =IFERROR(IF((OR($C63="RP",$C63="SP")),VLOOKUP($B63,Pitcher!$A$1:$Z$700,20,FALSE)/VLOOKUP($B63,Pitcher!$A$1:$Z$700,4,FALSE),(VLOOKUP($B63,Hitter!$A$1:$Z$700,26,FALSE)/VLOOKUP($B63,Hitter!$A$1:$Z$700,2,FALSE))),"") -> 0.6207461682 | O63: =IFERROR(IF((OR($C63="RP",$C63="SP")),VLOOKUP($B63,Pitcher!$A$1:$V$700,2,FALSE),""),"") ->  | P63: =IFERROR(IF((OR($C63="RP",$C63="SP")),VLOOKUP($B63,Pitcher!$A$1:$V$700,9,FALSE),""),"") ->  | Q63: =IFERROR(IF((OR($C63="RP",$C63="SP")),VLOOKUP($B63,Pitcher!$A$1:$V$700,7,FALSE),""),"") ->  | R63: =IFERROR(IF((OR($C63="RP",$C63="SP")),VLOOKUP($B63,Pitcher!$A$1:$AB$700,21,FALSE),""),"") ->  | S63: =IFERROR(IF((OR($C63="RP",$C63="SP")),VLOOKUP($B63,Pitcher!$A$1:$V$700,22,FALSE),""),"") ->  | T63: =IFERROR(IF((OR($C63="RP",$C63="SP")),"",VLOOKUP($B63,Hitter!$A$1:$AH$700,27,FALSE)),"") -> 0.2684357083 | U63: =IFERROR(IF((OR($C63="RP",$C63="SP")),"",VLOOKUP($B63,Hitter!$A$1:$AH$700,9,FALSE)),"") -> 26.47127685 | V63: =IFERROR(IF((OR($C63="RP",$C63="SP")),"",VLOOKUP($B63,Hitter!$A$1:$AH$700,10,FALSE)),"") -> 83.39773651 | W63: =IFERROR(IF((OR($C63="RP",$C63="SP")),"",VLOOKUP($B63,Hitter!$A$1:$AH$700,4,FALSE)),"") -> 91.737466 | X63: =IFERROR(IF((OR($C63="RP",$C63="SP")),"",VLOOKUP($B63,Hitter!$A$1:$AH$700,11,FALSE)),"") -> 16.92521505 | Y63: =IFERROR(IF(ISTEXT($A63),"",(1-NORMDIST((COUNTA($A$4:$A$743)),($G63),((AD63-AC63)/6),TRUE))),"") -> 1 | Z63: =IFERROR(IF(ISTEXT($A63),"",(1-NORMDIST((COUNTA($A$4:$A$743))+(Personalize!$E$18+1),$G63,((AD63-AC63)/6),TRUE))),"") -> 1 | AA63: =IFERROR(IF(ISTEXT($A63),"",(1-NORMDIST((COUNTA($A$4:$A$743))+((Personalize!$E$18+1)*2),$G63,((AD63-AC63)/6),TRUE))),"") -> 1 | AC63: =IF(Personalize!$E$34=1,VLOOKUP($B63,'ADP-Rank'!$A$2:$J$700,5,FALSE),(IF(Personalize!$E$34=2,VLOOKUP($B63,'ADP-Rank'!$A$2:$J$700,8,FALSE),(IF(Personalize!$E$34=3,VLOOKUP($B63,'ADP-Rank'!$A$2:$O$700,11,FALSE),(IF(Personalize!$E$31=4,VLOOKUP($B63,'ADP-Rank'!$A$2:$AZ$700,25,FALSE),(IF(Personalize!$E$31=5,VLOOKUP($B63,'ADP-Rank'!$A$2:$AZ$700,28,FALSE),(IF(Personalize!$E$31=6,VLOOKUP($B63,'ADP-Rank'!$A$2:$AZ$700,32,FALSE),""))))))))))) -> 18 | AD63: =IF(Personalize!$E$34=1,VLOOKUP($B63,'ADP-Rank'!$A$2:$J$700,6,FALSE),(IF(Personalize!$E$34=2,VLOOKUP($B63,'ADP-Rank'!$A$2:$J$700,9,FALSE),(IF(Personalize!$E$34=3,VLOOKUP($B63,'ADP-Rank'!$A$2:$O$700,12,FALSE),(IF(Personalize!$E$31=4,VLOOKUP($B63,'ADP-Rank'!$A$2:$AZ$700,26,FALSE),(IF(Personalize!$E$31=5,VLOOKUP($B63,'ADP-Rank'!$A$2:$AZ$700,29,FALSE),(IF(Personalize!$E$31=6,VLOOKUP($B63,'ADP-Rank'!$A$2:$AZ$700,33,FALSE),""))))))))))) -> 49 | AE63: =IF(ISBLANK(A63),0,1) -> 0 | AF63: =IF(K63="",0,1) -> 1 | AG63: =A63 -> 0 | AH63: =IF(C63="C",1,IF(C63="1B",2,IF(C63="2B",3,IF(C63="3B",4,IF(C63="SS",5,IF(C63="CI",6,IF(C63="MI",7,IF(C63="OF",11,IF(C63="LF",8,IF(C63="CF",9,IF(C63="RF",10,IF(C63="DH",12,IF(C63="SP",13,IF(C63="RP",14,IF(C63="P",15,16))))))))))))))) -> 11 | AI63: =VLOOKUP(B63,'Starter Calc'!$B$2:$BN$700,65,FALSE) -> Bench | AJ63: =IFERROR(VLOOKUP($B63,'ADP-Rank'!$A$2:$AH$964,34,FALSE),TRUE) -> TRUE
B64: Kris Medlen | C64: =IFERROR(IF(VLOOKUP(B64,'ADP-Rank'!$A$2:$B$700,2,FALSE)="OF",VLOOKUP(B64,'Starter Calc'!$B$2:$AM$700,38,FALSE),(VLOOKUP(B64,'ADP-Rank'!$A$2:$B$700,2,FALSE))),"") -> SP | D64: =IFERROR(IF(VLOOKUP(B64,'Starter Calc'!$B$2:$E$700,4,FALSE)="","",VLOOKUP(B64,'Starter Calc'!$B$2:$E$700,4,FALSE)),"") ->  | E64: =IFERROR(VLOOKUP($B64,'ADP-Rank'!$A$2:$D$700,3,FALSE),"") -> ATL | F64: =IFERROR(VLOOKUP($B64,'ADP-Rank'!$A$2:$W$700,23,FALSE),"") -> 28 | G64: =IFERROR((IF(Personalize!$E$38=1,VLOOKUP($B64,'ADP-Rank'!$A$2:$J$700,4,FALSE),(IF(Personalize!$E$38=2,VLOOKUP($B64,'ADP-Rank'!$A$2:$J$700,7,FALSE),(IF(Personalize!$E$38=3,VLOOKUP($B64,'ADP-Rank'!$A$2:$J$700,10,FALSE),(IF(Personalize!$E$38=4,VLOOKUP($B64,'ADP-Rank'!$A$2:$AD$700,24,FALSE),(IF(Personalize!$E$38=5,VLOOKUP($B64,'ADP-Rank'!$A$2:$AD$700,27,FALSE),VLOOKUP($B64,'ADP-Rank'!$A$2:$AZ$700,30,FALSE))))))))))),"") -> 61.34 | H64: =IFERROR(ROUNDDOWN(VLOOKUP($B64,'ADP-Rank'!$A$2:$AY$1064,38,FALSE),0),"") -> 5 | I64: =VLOOKUP($B64,'ADP-Rank'!$A$2:$AJ$1064,36,FALSE) -> 63 | J64: =IFERROR(RANK($M64,$M$4:$M$743,0),"") -> 98 | K64: =IFERROR(IF((OR($C64="RP",$C64="SP")),VLOOKUP($B64,Pitcher!$A$1:$Z$700,20,FALSE),(VLOOKUP($B64,Hitter!$A$1:$Z$700,26,FALSE))),"") -> 338.7510068 | L64: =IFERROR(IF((OR($C64="RP",$C64="SP")),VLOOKUP($C64,'Filtered-P'!$M$3:$P$4,4,FALSE), VLOOKUP($C64,Filtered!$Q$3:$T$14,4,FALSE)),"") -> 357.2271519 | M64: =IFERROR(K64-L64,"") -> -18.47614508 | N64: =IFERROR(IF((OR($C64="RP",$C64="SP")),VLOOKUP($B64,Pitcher!$A$1:$Z$700,20,FALSE)/VLOOKUP($B64,Pitcher!$A$1:$Z$700,4,FALSE),(VLOOKUP($B64,Hitter!$A$1:$Z$700,26,FALSE)/VLOOKUP($B64,Hitter!$A$1:$Z$700,2,FALSE))),"") -> 2.205266629 | O64: =IFERROR(IF((OR($C64="RP",$C64="SP")),VLOOKUP($B64,Pitcher!$A$1:$V$700,2,FALSE),""),"") -> 13.46 | P64: =IFERROR(IF((OR($C64="RP",$C64="SP")),VLOOKUP($B64,Pitcher!$A$1:$V$700,9,FALSE),""),"") -> 0.1529411765 | Q64: =IFERROR(IF((OR($C64="RP",$C64="SP")),VLOOKUP($B64,Pitcher!$A$1:$V$700,7,FALSE),""),"") -> 142.720638 | R64: =IFERROR(IF((OR($C64="RP",$C64="SP")),VLOOKUP($B64,Pitcher!$A$1:$AB$700,21,FALSE),""),"") -> 3.325564742 | S64: =IFERROR(IF((OR($C64="RP",$C64="SP")),VLOOKUP($B64,Pitcher!$A$1:$V$700,22,FALSE),""),"") -> 1.184362997 | T64: =IFERROR(IF((OR($C64="RP",$C64="SP")),"",VLOOKUP($B64,Hitter!$A$1:$AH$700,27,FALSE)),"") ->  | U64: =IFERROR(IF((OR($C64="RP",$C64="SP")),"",VLOOKUP($B64,Hitter!$A$1:$AH$700,9,FALSE)),"") ->  | V64: =IFERROR(IF((OR($C64="RP",$C64="SP")),"",VLOOKUP($B64,Hitter!$A$1:$AH$700,10,FALSE)),"") ->  | W64: =IFERROR(IF((OR($C64="RP",$C64="SP")),"",VLOOKUP($B64,Hitter!$A$1:$AH$700,4,FALSE)),"") ->  | X64: =IFERROR(IF((OR($C64="RP",$C64="SP")),"",VLOOKUP($B64,Hitter!$A$1:$AH$700,11,FALSE)),"") ->  | Y64: =IFERROR(IF(ISTEXT($A64),"",(1-NORMDIST((COUNTA($A$4:$A$743)),($G64),((AD64-AC64)/6),TRUE))),"") -> 1 | Z64: =IFERROR(IF(ISTEXT($A64),"",(1-NORMDIST((COUNTA($A$4:$A$743))+(Personalize!$E$18+1),$G64,((AD64-AC64)/6),TRUE))),"") -> 1 | AA64: =IFERROR(IF(ISTEXT($A64),"",(1-NORMDIST((COUNTA($A$4:$A$743))+((Personalize!$E$18+1)*2),$G64,((AD64-AC64)/6),TRUE))),"") -> 1 | AC64: =IF(Personalize!$E$34=1,VLOOKUP($B64,'ADP-Rank'!$A$2:$J$700,5,FALSE),(IF(Personalize!$E$34=2,VLOOKUP($B64,'ADP-Rank'!$A$2:$J$700,8,FALSE),(IF(Personalize!$E$34=3,VLOOKUP($B64,'ADP-Rank'!$A$2:$O$700,11,FALSE),(IF(Personalize!$E$31=4,VLOOKUP($B64,'ADP-Rank'!$A$2:$AZ$700,25,FALSE),(IF(Personalize!$E$31=5,VLOOKUP($B64,'ADP-Rank'!$A$2:$AZ$700,28,FALSE),(IF(Personalize!$E$31=6,VLOOKUP($B64,'ADP-Rank'!$A$2:$AZ$700,32,FALSE),""))))))))))) -> 59 | AD64: =IF(Personalize!$E$34=1,VLOOKUP($B64,'ADP-Rank'!$A$2:$J$700,6,FALSE),(IF(Personalize!$E$34=2,VLOOKUP($B64,'ADP-Rank'!$A$2:$J$700,9,FALSE),(IF(Personalize!$E$34=3,VLOOKUP($B64,'ADP-Rank'!$A$2:$O$700,12,FALSE),(IF(Personalize!$E$31=4,VLOOKUP($B64,'ADP-Rank'!$A$2:$AZ$700,26,FALSE),(IF(Personalize!$E$31=5,VLOOKUP($B64,'ADP-Rank'!$A$2:$AZ$700,29,FALSE),(IF(Personalize!$E$31=6,VLOOKUP($B64,'ADP-Rank'!$A$2:$AZ$700,33,FALSE),""))))))))))) -> 100 | AE64: =IF(ISBLANK(A64),0,1) -> 0 | AF64: =IF(K64="",0,1) -> 1 | AG64: =A64 -> 0 | AH64: =IF(C64="C",1,IF(C64="1B",2,IF(C64="2B",3,IF(C64="3B",4,IF(C64="SS",5,IF(C64="CI",6,IF(C64="MI",7,IF(C64="OF",11,IF(C64="LF",8,IF(C64="CF",9,IF(C64="RF",10,IF(C64="DH",12,IF(C64="SP",13,IF(C64="RP",14,IF(C64="P",15,16))))))))))))))) -> 13 | AI64: =VLOOKUP(B64,'Starter Calc'!$B$2:$BN$700,65,FALSE) -> Bench | AJ64: =IFERROR(VLOOKUP($B64,'ADP-Rank'!$A$2:$AH$964,34,FALSE),TRUE) -> TRUE
B65: Yoenis Cespedes | C65: =IFERROR(IF(VLOOKUP(B65,'ADP-Rank'!$A$2:$B$700,2,FALSE)="OF",VLOOKUP(B65,'Starter Calc'!$B$2:$AM$700,38,FALSE),(VLOOKUP(B65,'ADP-Rank'!$A$2:$B$700,2,FALSE))),"") -> OF | D65: =IFERROR(IF(VLOOKUP(B65,'Starter Calc'!$B$2:$E$700,4,FALSE)="","",VLOOKUP(B65,'Starter Calc'!$B$2:$E$700,4,FALSE)),"") -> CF,LF | E65: =IFERROR(VLOOKUP($B65,'ADP-Rank'!$A$2:$D$700,3,FALSE),"") -> OAK | F65: =IFERROR(VLOOKUP($B65,'ADP-Rank'!$A$2:$W$700,23,FALSE),"") -> 28 | G65: =IFERROR((IF(Personalize!$E$38=1,VLOOKUP($B65,'ADP-Rank'!$A$2:$J$700,4,FALSE),(IF(Personalize!$E$38=2,VLOOKUP($B65,'ADP-Rank'!$A$2:$J$700,7,FALSE),(IF(Personalize!$E$38=3,VLOOKUP($B65,'ADP-Rank'!$A$2:$J$700,10,FALSE),(IF(Personalize!$E$38=4,VLOOKUP($B65,'ADP-Rank'!$A$2:$AD$700,24,FALSE),(IF(Personalize!$E$38=5,VLOOKUP($B65,'ADP-Rank'!$A$2:$AD$700,27,FALSE),VLOOKUP($B65,'ADP-Rank'!$A$2:$AZ$700,30,FALSE))))))))))),"") -> 62.51 | H65: =IFERROR(ROUNDDOWN(VLOOKUP($B65,'ADP-Rank'!$A$2:$AY$1064,38,FALSE),0),"") -> 5 | I65: =VLOOKUP($B65,'ADP-Rank'!$A$2:$AJ$1064,36,FALSE) -> 55 | J65: =IFERROR(RANK($M65,$M$4:$M$743,0),"") -> 67 | K65: =IFERROR(IF((OR($C65="RP",$C65="SP")),VLOOKUP($B65,Pitcher!$A$1:$Z$700,20,FALSE),(VLOOKUP($B65,Hitter!$A$1:$Z$700,26,FALSE))),"") -> 382.5053898 | L65: =IFERROR(IF((OR($C65="RP",$C65="SP")),VLOOKUP($C65,'Filtered-P'!$M$3:$P$4,4,FALSE), VLOOKUP($C65,Filtered!$Q$3:$T$14,4,FALSE)),"") -> 368.4885837 | M65: =IFERROR(K65-L65,"") -> 14.01680606 | N65: =IFERROR(IF((OR($C65="RP",$C65="SP")),VLOOKUP($B65,Pitcher!$A$1:$Z$700,20,FALSE)/VLOOKUP($B65,Pitcher!$A$1:$Z$700,4,FALSE),(VLOOKUP($B65,Hitter!$A$1:$Z$700,26,FALSE)/VLOOKUP($B65,Hitter!$A$1:$Z$700,2,FALSE))),"") -> 0.6470011768 | O65: =IFERROR(IF((OR($C65="RP",$C65="SP")),VLOOKUP($B65,Pitcher!$A$1:$V$700,2,FALSE),""),"") ->  | P65: =IFERROR(IF((OR($C65="RP",$C65="SP")),VLOOKUP($B65,Pitcher!$A$1:$V$700,9,FALSE),""),"") ->  | Q65: =IFERROR(IF((OR($C65="RP",$C65="SP")),VLOOKUP($B65,Pitcher!$A$1:$V$700,7,FALSE),""),"") ->  | R65: =IFERROR(IF((OR($C65="RP",$C65="SP")),VLOOKUP($B65,Pitcher!$A$1:$AB$700,21,FALSE),""),"") ->  | S65: =IFERROR(IF((OR($C65="RP",$C65="SP")),VLOOKUP($B65,Pitcher!$A$1:$V$700,22,FALSE),""),"") ->  | T65: =IFERROR(IF((OR($C65="RP",$C65="SP")),"",VLOOKUP($B65,Hitter!$A$1:$AH$700,27,FALSE)),"") -> 0.2827782588 | U65: =IFERROR(IF((OR($C65="RP",$C65="SP")),"",VLOOKUP($B65,Hitter!$A$1:$AH$700,9,FALSE)),"") -> 25.39357559 | V65: =IFERROR(IF((OR($C65="RP",$C65="SP")),"",VLOOKUP($B65,Hitter!$A$1:$AH$700,10,FALSE)),"") -> 85.16273973 | W65: =IFERROR(IF((OR($C65="RP",$C65="SP")),"",VLOOKUP($B65,Hitter!$A$1:$AH$700,4,FALSE)),"") -> 83.80462046 | X65: =IFERROR(IF((OR($C65="RP",$C65="SP")),"",VLOOKUP($B65,Hitter!$A$1:$AH$700,11,FALSE)),"") -> 13.09763988 | Y65: =IFERROR(IF(ISTEXT($A65),"",(1-NORMDIST((COUNTA($A$4:$A$743)),($G65),((AD65-AC65)/6),TRUE))),"") -> 1 | Z65: =IFERROR(IF(ISTEXT($A65),"",(1-NORMDIST((COUNTA($A$4:$A$743))+(Personalize!$E$18+1),$G65,((AD65-AC65)/6),TRUE))),"") -> 1 | AA65: =IFERROR(IF(ISTEXT($A65),"",(1-NORMDIST((COUNTA($A$4:$A$743))+((Personalize!$E$18+1)*2),$G65,((AD65-AC65)/6),TRUE))),"") -> 1 | AC65: =IF(Personalize!$E$34=1,VLOOKUP($B65,'ADP-Rank'!$A$2:$J$700,5,FALSE),(IF(Personalize!$E$34=2,VLOOKUP($B65,'ADP-Rank'!$A$2:$J$700,8,FALSE),(IF(Personalize!$E$34=3,VLOOKUP($B65,'ADP-Rank'!$A$2:$O$700,11,FALSE),(IF(Personalize!$E$31=4,VLOOKUP($B65,'ADP-Rank'!$A$2:$AZ$700,25,FALSE),(IF(Personalize!$E$31=5,VLOOKUP($B65,'ADP-Rank'!$A$2:$AZ$700,28,FALSE),(IF(Personalize!$E$31=6,VLOOKUP($B65,'ADP-Rank'!$A$2:$AZ$700,32,FALSE),""))))))))))) -> 29 | AD65: =IF(Personalize!$E$34=1,VLOOKUP($B65,'ADP-Rank'!$A$2:$J$700,6,FALSE),(IF(Personalize!$E$34=2,VLOOKUP($B65,'ADP-Rank'!$A$2:$J$700,9,FALSE),(IF(Personalize!$E$34=3,VLOOKUP($B65,'ADP-Rank'!$A$2:$O$700,12,FALSE),(IF(Personalize!$E$31=4,VLOOKUP($B65,'ADP-Rank'!$A$2:$AZ$700,26,FALSE),(IF(Personalize!$E$31=5,VLOOKUP($B65,'ADP-Rank'!$A$2:$AZ$700,29,FALSE),(IF(Personalize!$E$31=6,VLOOKUP($B65,'ADP-Rank'!$A$2:$AZ$700,33,FALSE),""))))))))))) -> 66 | AE65: =IF(ISBLANK(A65),0,1) -> 0 | AF65: =IF(K65="",0,1) -> 1 | AG65: =A65 -> 0 | AH65: =IF(C65="C",1,IF(C65="1B",2,IF(C65="2B",3,IF(C65="3B",4,IF(C65="SS",5,IF(C65="CI",6,IF(C65="MI",7,IF(C65="OF",11,IF(C65="LF",8,IF(C65="CF",9,IF(C65="RF",10,IF(C65="DH",12,IF(C65="SP",13,IF(C65="RP",14,IF(C65="P",15,16))))))))))))))) -> 11 | AI65: =VLOOKUP(B65,'Starter Calc'!$B$2:$BN$700,65,FALSE) -> Bench | AJ65: =IFERROR(VLOOKUP($B65,'ADP-Rank'!$A$2:$AH$964,34,FALSE),TRUE) -> TRUE
B66: Billy Butler | C66: =IFERROR(IF(VLOOKUP(B66,'ADP-Rank'!$A$2:$B$700,2,FALSE)="OF",VLOOKUP(B66,'Starter Calc'!$B$2:$AM$700,38,FALSE),(VLOOKUP(B66,'ADP-Rank'!$A$2:$B$700,2,FALSE))),"") -> 1B | D66: =IFERROR(IF(VLOOKUP(B66,'Starter Calc'!$B$2:$E$700,4,FALSE)="","",VLOOKUP(B66,'Starter Calc'!$B$2:$E$700,4,FALSE)),"") ->  | E66: =IFERROR(VLOOKUP($B66,'ADP-Rank'!$A$2:$D$700,3,FALSE),"") -> KC | F66: =IFERROR(VLOOKUP($B66,'ADP-Rank'!$A$2:$W$700,23,FALSE),"") -> 27 | G66: =IFERROR((IF(Personalize!$E$38=1,VLOOKUP($B66,'ADP-Rank'!$A$2:$J$700,4,FALSE),(IF(Personalize!$E$38=2,VLOOKUP($B66,'ADP-Rank'!$A$2:$J$700,7,FALSE),(IF(Personalize!$E$38=3,VLOOKUP($B66,'ADP-Rank'!$A$2:$J$700,10,FALSE),(IF(Personalize!$E$38=4,VLOOKUP($B66,'ADP-Rank'!$A$2:$AD$700,24,FALSE),(IF(Personalize!$E$38=5,VLOOKUP($B66,'ADP-Rank'!$A$2:$AD$700,27,FALSE),VLOOKUP($B66,'ADP-Rank'!$A$2:$AZ$700,30,FALSE))))))))))),"") -> 65.27 | H66: =IFERROR(ROUNDDOWN(VLOOKUP($B66,'ADP-Rank'!$A$2:$AY$1064,38,FALSE),0),"") -> 5 | I66: =VLOOKUP($B66,'ADP-Rank'!$A$2:$AJ$1064,36,FALSE) -> 46 | J66: =IFERROR(RANK($M66,$M$4:$M$743,0),"") -> 45 | K66: =IFERROR(IF((OR($C66="RP",$C66="SP")),VLOOKUP($B66,Pitcher!$A$1:$Z$700,20,FALSE),(VLOOKUP($B66,Hitter!$A$1:$Z$700,26,FALSE))),"") -> 433.189871 | L66: =IFERROR(IF((OR($C66="RP",$C66="SP")),VLOOKUP($C66,'Filtered-P'!$M$3:$P$4,4,FALSE), VLOOKUP($C66,Filtered!$Q$3:$T$14,4,FALSE)),"") -> 395.2780551 | M66: =IFERROR(K66-L66,"") -> 37.91181586 | N66: =IFERROR(IF((OR($C66="RP",$C66="SP")),VLOOKUP($B66,Pitcher!$A$1:$Z$700,20,FALSE)/VLOOKUP($B66,Pitcher!$A$1:$Z$700,4,FALSE),(VLOOKUP($B66,Hitter!$A$1:$Z$700,26,FALSE)/VLOOKUP($B66,Hitter!$A$1:$Z$700,2,FALSE))),"") -> 0.6642807537 | O66: =IFERROR(IF((OR($C66="RP",$C66="SP")),VLOOKUP($B66,Pitcher!$A$1:$V$700,2,FALSE),""),"") ->  | P66: =IFERROR(IF((OR($C66="RP",$C66="SP")),VLOOKUP($B66,Pitcher!$A$1:$V$700,9,FALSE),""),"") ->  | Q66: =IFERROR(IF((OR($C66="RP",$C66="SP")),VLOOKUP($B66,Pitcher!$A$1:$V$700,7,FALSE),""),"") ->  | R66: =IFERROR(IF((OR($C66="RP",$C66="SP")),VLOOKUP($B66,Pitcher!$A$1:$AB$700,21,FALSE),""),"") ->  | S66: =IFERROR(IF((OR($C66="RP",$C66="SP")),VLOOKUP($B66,Pitcher!$A$1:$V$700,22,FALSE),""),"") ->  | T66: =IFERROR(IF((OR($C66="RP",$C66="SP")),"",VLOOKUP($B66,Hitter!$A$1:$AH$700,27,FALSE)),"") -> 0.3012605661 | U66: =IFERROR(IF((OR($C66="RP",$C66="SP")),"",VLOOKUP($B66,Hitter!$A$1:$AH$700,9,FALSE)),"") -> 25.03383057 | V66: =IFERROR(IF((OR($C66="RP",$C66="SP")),"",VLOOKUP($B66,Hitter!$A$1:$AH$700,10,FALSE)),"") -> 93.87862773 | W66: =IFERROR(IF((OR($C66="RP",$C66="SP")),"",VLOOKUP($B66,Hitter!$A$1:$AH$700,4,FALSE)),"") -> 83.75590853 | X66: =IFERROR(IF((OR($C66="RP",$C66="SP")),"",VLOOKUP($B66,Hitter!$A$1:$AH$700,11,FALSE)),"") -> 1.864371123 | Y66: =IFERROR(IF(ISTEXT($A66),"",(1-NORMDIST((COUNTA($A$4:$A$743)),($G66),((AD66-AC66)/6),TRUE))),"") -> 1 | Z66: =IFERROR(IF(ISTEXT($A66),"",(1-NORMDIST((COUNTA($A$4:$A$743))+(Personalize!$E$18+1),$G66,((AD66-AC66)/6),TRUE))),"") -> 1 | AA66: =IFERROR(IF(ISTEXT($A66),"",(1-NORMDIST((COUNTA($A$4:$A$743))+((Personalize!$E$18+1)*2),$G66,((AD66-AC66)/6),TRUE))),"") -> 1 | AC66: =IF(Personalize!$E$34=1,VLOOKUP($B66,'ADP-Rank'!$A$2:$J$700,5,FALSE),(IF(Personalize!$E$34=2,VLOOKUP($B66,'ADP-Rank'!$A$2:$J$700,8,FALSE),(IF(Personalize!$E$34=3,VLOOKUP($B66,'ADP-Rank'!$A$2:$O$700,11,FALSE),(IF(Personalize!$E$31=4,VLOOKUP($B66,'ADP-Rank'!$A$2:$AZ$700,25,FALSE),(IF(Personalize!$E$31=5,VLOOKUP($B66,'ADP-Rank'!$A$2:$AZ$700,28,FALSE),(IF(Personalize!$E$31=6,VLOOKUP($B66,'ADP-Rank'!$A$2:$AZ$700,32,FALSE),""))))))))))) -> 26 | AD66: =IF(Personalize!$E$34=1,VLOOKUP($B66,'ADP-Rank'!$A$2:$J$700,6,FALSE),(IF(Personalize!$E$34=2,VLOOKUP($B66,'ADP-Rank'!$A$2:$J$700,9,FALSE),(IF(Personalize!$E$34=3,VLOOKUP($B66,'ADP-Rank'!$A$2:$O$700,12,FALSE),(IF(Personalize!$E$31=4,VLOOKUP($B66,'ADP-Rank'!$A$2:$AZ$700,26,FALSE),(IF(Personalize!$E$31=5,VLOOKUP($B66,'ADP-Rank'!$A$2:$AZ$700,29,FALSE),(IF(Personalize!$E$31=6,VLOOKUP($B66,'ADP-Rank'!$A$2:$AZ$700,33,FALSE),""))))))))))) -> 68 | AE66: =IF(ISBLANK(A66),0,1) -> 0 | AF66: =IF(K66="",0,1) -> 1 | AG66: =A66 -> 0 | AH66: =IF(C66="C",1,IF(C66="1B",2,IF(C66="2B",3,IF(C66="3B",4,IF(C66="SS",5,IF(C66="CI",6,IF(C66="MI",7,IF(C66="OF",11,IF(C66="LF",8,IF(C66="CF",9,IF(C66="RF",10,IF(C66="DH",12,IF(C66="SP",13,IF(C66="RP",14,IF(C66="P",15,16))))))))))))))) -> 2 | AI66: =VLOOKUP(B66,'Starter Calc'!$B$2:$BN$700,65,FALSE) -> Bench | AJ66: =IFERROR(VLOOKUP($B66,'ADP-Rank'!$A$2:$AH$964,34,FALSE),TRUE) -> TRUE
B67: Aramis Ramirez | C67: =IFERROR(IF(VLOOKUP(B67,'ADP-Rank'!$A$2:$B$700,2,FALSE)="OF",VLOOKUP(B67,'Starter Calc'!$B$2:$AM$700,38,FALSE),(VLOOKUP(B67,'ADP-Rank'!$A$2:$B$700,2,FALSE))),"") -> 3B | D67: =IFERROR(IF(VLOOKUP(B67,'Starter Calc'!$B$2:$E$700,4,FALSE)="","",VLOOKUP(B67,'Starter Calc'!$B$2:$E$700,4,FALSE)),"") ->  | E67: =IFERROR(VLOOKUP($B67,'ADP-Rank'!$A$2:$D$700,3,FALSE),"") -> MIL | F67: =IFERROR(VLOOKUP($B67,'ADP-Rank'!$A$2:$W$700,23,FALSE),"") -> 35 | G67: =IFERROR((IF(Personalize!$E$38=1,VLOOKUP($B67,'ADP-Rank'!$A$2:$J$700,4,FALSE),(IF(Personalize!$E$38=2,VLOOKUP($B67,'ADP-Rank'!$A$2:$J$700,7,FALSE),(IF(Personalize!$E$38=3,VLOOKUP($B67,'ADP-Rank'!$A$2:$J$700,10,FALSE),(IF(Personalize!$E$38=4,VLOOKUP($B67,'ADP-Rank'!$A$2:$AD$700,24,FALSE),(IF(Personalize!$E$38=5,VLOOKUP($B67,'ADP-Rank'!$A$2:$AD$700,27,FALSE),VLOOKUP($B67,'ADP-Rank'!$A$2:$AZ$700,30,FALSE))))))))))),"") -> 69.47 | H67: =IFERROR(ROUNDDOWN(VLOOKUP($B67,'ADP-Rank'!$A$2:$AY$1064,38,FALSE),0),"") -> 5 | I67: =VLOOKUP($B67,'ADP-Rank'!$A$2:$AJ$1064,36,FALSE) -> 65 | J67: =IFERROR(RANK($M67,$M$4:$M$743,0),"") -> 68 | K67: =IFERROR(IF((OR($C67="RP",$C67="SP")),VLOOKUP($B67,Pitcher!$A$1:$Z$700,20,FALSE),(VLOOKUP($B67,Hitter!$A$1:$Z$700,26,FALSE))),"") -> 370.3636695 | L67: =IFERROR(IF((OR($C67="RP",$C67="SP")),VLOOKUP($C67,'Filtered-P'!$M$3:$P$4,4,FALSE), VLOOKUP($C67,Filtered!$Q$3:$T$14,4,FALSE)),"") -> 360.1633507 | M67: =IFERROR(K67-L67,"") -> 10.20031883 | N67: =IFERROR(IF((OR($C67="RP",$C67="SP")),VLOOKUP($B67,Pitcher!$A$1:$Z$700,20,FALSE)/VLOOKUP($B67,Pitcher!$A$1:$Z$700,4,FALSE),(VLOOKUP($B67,Hitter!$A$1:$Z$700,26,FALSE)/VLOOKUP($B67,Hitter!$A$1:$Z$700,2,FALSE))),"") -> 0.658705985 | O67: =IFERROR(IF((OR($C67="RP",$C67="SP")),VLOOKUP($B67,Pitcher!$A$1:$V$700,2,FALSE),""),"") ->  | P67: =IFERROR(IF((OR($C67="RP",$C67="SP")),VLOOKUP($B67,Pitcher!$A$1:$V$700,9,FALSE),""),"") ->  | Q67: =IFERROR(IF((OR($C67="RP",$C67="SP")),VLOOKUP($B67,Pitcher!$A$1:$V$700,7,FALSE),""),"") ->  | R67: =IFERROR(IF((OR($C67="RP",$C67="SP")),VLOOKUP($B67,Pitcher!$A$1:$AB$700,21,FALSE),""),"") ->  | S67: =IFERROR(IF((OR($C67="RP",$C67="SP")),VLOOKUP($B67,Pitcher!$A$1:$V$700,22,FALSE),""),"") ->  | T67: =IFERROR(IF((OR($C67="RP",$C67="SP")),"",VLOOKUP($B67,Hitter!$A$1:$AH$700,27,FALSE)),"") -> 0.2753594409 | U67: =IFERROR(IF((OR($C67="RP",$C67="SP")),"",VLOOKUP($B67,Hitter!$A$1:$AH$700,9,FALSE)),"") -> 22.6859344 | V67: =IFERROR(IF((OR($C67="RP",$C67="SP")),"",VLOOKUP($B67,Hitter!$A$1:$AH$700,10,FALSE)),"") -> 86.57011378 | W67: =IFERROR(IF((OR($C67="RP",$C67="SP")),"",VLOOKUP($B67,Hitter!$A$1:$AH$700,4,FALSE)),"") -> 75.41501567 | X67: =IFERROR(IF((OR($C67="RP",$C67="SP")),"",VLOOKUP($B67,Hitter!$A$1:$AH$700,11,FALSE)),"") -> 4.183916707 | Y67: =IFERROR(IF(ISTEXT($A67),"",(1-NORMDIST((COUNTA($A$4:$A$743)),($G67),((AD67-AC67)/6),TRUE))),"") -> 1 | Z67: =IFERROR(IF(ISTEXT($A67),"",(1-NORMDIST((COUNTA($A$4:$A$743))+(Personalize!$E$18+1),$G67,((AD67-AC67)/6),TRUE))),"") -> 1 | AA67: =IFERROR(IF(ISTEXT($A67),"",(1-NORMDIST((COUNTA($A$4:$A$743))+((Personalize!$E$18+1)*2),$G67,((AD67-AC67)/6),TRUE))),"") -> 1 | AC67: =IF(Personalize!$E$34=1,VLOOKUP($B67,'ADP-Rank'!$A$2:$J$700,5,FALSE),(IF(Personalize!$E$34=2,VLOOKUP($B67,'ADP-Rank'!$A$2:$J$700,8,FALSE),(IF(Personalize!$E$34=3,VLOOKUP($B67,'ADP-Rank'!$A$2:$O$700,11,FALSE),(IF(Personalize!$E$31=4,VLOOKUP($B67,'ADP-Rank'!$A$2:$AZ$700,25,FALSE),(IF(Personalize!$E$31=5,VLOOKUP($B67,'ADP-Rank'!$A$2:$AZ$700,28,FALSE),(IF(Personalize!$E$31=6,VLOOKUP($B67,'ADP-Rank'!$A$2:$AZ$700,32,FALSE),""))))))))))) -> 44 | AD67: =IF(Personalize!$E$34=1,VLOOKUP($B67,'ADP-Rank'!$A$2:$J$700,6,FALSE),(IF(Personalize!$E$34=2,VLOOKUP($B67,'ADP-Rank'!$A$2:$J$700,9,FALSE),(IF(Personalize!$E$34=3,VLOOKUP($B67,'ADP-Rank'!$A$2:$O$700,12,FALSE),(IF(Personalize!$E$31=4,VLOOKUP($B67,'ADP-Rank'!$A$2:$AZ$700,26,FALSE),(IF(Personalize!$E$31=5,VLOOKUP($B67,'ADP-Rank'!$A$2:$AZ$700,29,FALSE),(IF(Personalize!$E$31=6,VLOOKUP($B67,'ADP-Rank'!$A$2:$AZ$700,33,FALSE),""))))))))))) -> 84 | AE67: =IF(ISBLANK(A67),0,1) -> 0 | AF67: =IF(K67="",0,1) -> 1 | AG67: =A67 -> 0 | AH67: =IF(C67="C",1,IF(C67="1B",2,IF(C67="2B",3,IF(C67="3B",4,IF(C67="SS",5,IF(C67="CI",6,IF(C67="MI",7,IF(C67="OF",11,IF(C67="LF",8,IF(C67="CF",9,IF(C67="RF",10,IF(C67="DH",12,IF(C67="SP",13,IF(C67="RP",14,IF(C67="P",15,16))))))))))))))) -> 4 | AI67: =VLOOKUP(B67,'Starter Calc'!$B$2:$BN$700,65,FALSE) -> Bench | AJ67: =IFERROR(VLOOKUP($B67,'ADP-Rank'!$A$2:$AH$964,34,FALSE),TRUE) -> TRUE
B68: Aroldis Chapman | C68: =IFERROR(IF(VLOOKUP(B68,'ADP-Rank'!$A$2:$B$700,2,FALSE)="OF",VLOOKUP(B68,'Starter Calc'!$B$2:$AM$700,38,FALSE),(VLOOKUP(B68,'ADP-Rank'!$A$2:$B$700,2,FALSE))),"") -> SP | D68: =IFERROR(IF(VLOOKUP(B68,'Starter Calc'!$B$2:$E$700,4,FALSE)="","",VLOOKUP(B68,'Starter Calc'!$B$2:$E$700,4,FALSE)),"") ->  | E68: =IFERROR(VLOOKUP($B68,'ADP-Rank'!$A$2:$D$700,3,FALSE),"") -> CIN | F68: =IFERROR(VLOOKUP($B68,'ADP-Rank'!$A$2:$W$700,23,FALSE),"") -> 25 | G68: =IFERROR((IF(Personalize!$E$38=1,VLOOKUP($B68,'ADP-Rank'!$A$2:$J$700,4,FALSE),(IF(Personalize!$E$38=2,VLOOKUP($B68,'ADP-Rank'!$A$2:$J$700,7,FALSE),(IF(Personalize!$E$38=3,VLOOKUP($B68,'ADP-Rank'!$A$2:$J$700,10,FALSE),(IF(Personalize!$E$38=4,VLOOKUP($B68,'ADP-Rank'!$A$2:$AD$700,24,FALSE),(IF(Personalize!$E$38=5,VLOOKUP($B68,'ADP-Rank'!$A$2:$AD$700,27,FALSE),VLOOKUP($B68,'ADP-Rank'!$A$2:$AZ$700,30,FALSE))))))))))),"") -> 70.35 | H68: =IFERROR(ROUNDDOWN(VLOOKUP($B68,'ADP-Rank'!$A$2:$AY$1064,38,FALSE),0),"") -> 6 | I68: =VLOOKUP($B68,'ADP-Rank'!$A$2:$AJ$1064,36,FALSE) -> 64 | J68: =IFERROR(RANK($M68,$M$4:$M$743,0),"") -> 41 | K68: =IFERROR(IF((OR($C68="RP",$C68="SP")),VLOOKUP($B68,Pitcher!$A$1:$Z$700,20,FALSE),(VLOOKUP($B68,Hitter!$A$1:$Z$700,26,FALSE))),"") -> 399.9617088 | L68: =IFERROR(IF((OR($C68="RP",$C68="SP")),VLOOKUP($C68,'Filtered-P'!$M$3:$P$4,4,FALSE), VLOOKUP($C68,Filtered!$Q$3:$T$14,4,FALSE)),"") -> 357.2271519 | M68: =IFERROR(K68-L68,"") -> 42.73455689 | N68: =IFERROR(IF((OR($C68="RP",$C68="SP")),VLOOKUP($B68,Pitcher!$A$1:$Z$700,20,FALSE)/VLOOKUP($B68,Pitcher!$A$1:$Z$700,4,FALSE),(VLOOKUP($B68,Hitter!$A$1:$Z$700,26,FALSE)/VLOOKUP($B68,Hitter!$A$1:$Z$700,2,FALSE))),"") -> 5.934149982 | O68: =IFERROR(IF((OR($C68="RP",$C68="SP")),VLOOKUP($B68,Pitcher!$A$1:$V$700,2,FALSE),""),"") -> 8.11 | P68: =IFERROR(IF((OR($C68="RP",$C68="SP")),VLOOKUP($B68,Pitcher!$A$1:$V$700,9,FALSE),""),"") -> 9.4 | Q68: =IFERROR(IF((OR($C68="RP",$C68="SP")),VLOOKUP($B68,Pitcher!$A$1:$V$700,7,FALSE),""),"") -> 123.2006835 | R68: =IFERROR(IF((OR($C68="RP",$C68="SP")),VLOOKUP($B68,Pitcher!$A$1:$AB$700,21,FALSE),""),"") -> 2.507715134 | S68: =IFERROR(IF((OR($C68="RP",$C68="SP")),VLOOKUP($B68,Pitcher!$A$1:$V$700,22,FALSE),""),"") -> 1.11810089 | T68: =IFERROR(IF((OR($C68="RP",$C68="SP")),"",VLOOKUP($B68,Hitter!$A$1:$AH$700,27,FALSE)),"") ->  | U68: =IFERROR(IF((OR($C68="RP",$C68="SP")),"",VLOOKUP($B68,Hitter!$A$1:$AH$700,9,FALSE)),"") ->  | V68: =IFERROR(IF((OR($C68="RP",$C68="SP")),"",VLOOKUP($B68,Hitter!$A$1:$AH$700,10,FALSE)),"") ->  | W68: =IFERROR(IF((OR($C68="RP",$C68="SP")),"",VLOOKUP($B68,Hitter!$A$1:$AH$700,4,FALSE)),"") ->  | X68: =IFERROR(IF((OR($C68="RP",$C68="SP")),"",VLOOKUP($B68,Hitter!$A$1:$AH$700,11,FALSE)),"") ->  | Y68: =IFERROR(IF(ISTEXT($A68),"",(1-NORMDIST((COUNTA($A$4:$A$743)),($G68),((AD68-AC68)/6),TRUE))),"") -> 0.999965842 | Z68: =IFERROR(IF(ISTEXT($A68),"",(1-NORMDIST((COUNTA($A$4:$A$743))+(Personalize!$E$18+1),$G68,((AD68-AC68)/6),TRUE))),"") -> 0.9999228244 | AA68: =IFERROR(IF(ISTEXT($A68),"",(1-NORMDIST((COUNTA($A$4:$A$743))+((Personalize!$E$18+1)*2),$G68,((AD68-AC68)/6),TRUE))),"") -> 0.9998320084 | AC68: =IF(Personalize!$E$34=1,VLOOKUP($B68,'ADP-Rank'!$A$2:$J$700,5,FALSE),(IF(Personalize!$E$34=2,VLOOKUP($B68,'ADP-Rank'!$A$2:$J$700,8,FALSE),(IF(Personalize!$E$34=3,VLOOKUP($B68,'ADP-Rank'!$A$2:$O$700,11,FALSE),(IF(Personalize!$E$31=4,VLOOKUP($B68,'ADP-Rank'!$A$2:$AZ$700,25,FALSE),(IF(Personalize!$E$31=5,VLOOKUP($B68,'ADP-Rank'!$A$2:$AZ$700,28,FALSE),(IF(Personalize!$E$31=6,VLOOKUP($B68,'ADP-Rank'!$A$2:$AZ$700,32,FALSE),""))))))))))) -> 50 | AD68: =IF(Personalize!$E$34=1,VLOOKUP($B68,'ADP-Rank'!$A$2:$J$700,6,FALSE),(IF(Personalize!$E$34=2,VLOOKUP($B68,'ADP-Rank'!$A$2:$J$700,9,FALSE),(IF(Personalize!$E$34=3,VLOOKUP($B68,'ADP-Rank'!$A$2:$O$700,12,FALSE),(IF(Personalize!$E$31=4,VLOOKUP($B68,'ADP-Rank'!$A$2:$AZ$700,26,FALSE),(IF(Personalize!$E$31=5,VLOOKUP($B68,'ADP-Rank'!$A$2:$AZ$700,29,FALSE),(IF(Personalize!$E$31=6,VLOOKUP($B68,'ADP-Rank'!$A$2:$AZ$700,33,FALSE),""))))))))))) -> 156 | AE68: =IF(ISBLANK(A68),0,1) -> 0 | AF68: =IF(K68="",0,1) -> 1 | AG68: =A68 -> 0 | AH68: =IF(C68="C",1,IF(C68="1B",2,IF(C68="2B",3,IF(C68="3B",4,IF(C68="SS",5,IF(C68="CI",6,IF(C68="MI",7,IF(C68="OF",11,IF(C68="LF",8,IF(C68="CF",9,IF(C68="RF",10,IF(C68="DH",12,IF(C68="SP",13,IF(C68="RP",14,IF(C68="P",15,16))))))))))))))) -> 13 | AI68: =VLOOKUP(B68,'Starter Calc'!$B$2:$BN$700,65,FALSE) -> Bench | AJ68: =IFERROR(VLOOKUP($B68,'ADP-Rank'!$A$2:$AH$964,34,FALSE),TRUE) -> TRUE
